Workbook

Sheet State (hidden)
C1: 2014 Annual Averages | I1: DO NOT DELETE FORMULAS!!!!!!!!
B2: Ownership | C2: NAICS Sectors | D2: SuperSector NAICS Code | E2: Reporting Units | F2: AME | G2: Total Annual Wages | H2: AWW | I2: Average Number of Workers | J2: Total Annual Wages Rnd | K2: Average Annual Wages Rnd
A3: 0 | B3: 5 | C3: AGRICULTURE, FORESTRY, FISHING AND HUNTI | D3: 11 | E3: 1655 | F3: 14591 | G3: 522655763 | H3: 689 | I3: =ROUND((F3*1),-1) -> 14590 | J3: =ROUND((G3),-2) -> 522655800 | K3: =ROUND((G3/I3),-2) -> 35800
A4: 0 | B4: 5 | C4: MINING, QUARRYING, AND OIL AND GAS EXTRA | D4: 21 | E4: 349 | F4: 6893 | G4: 477896384 | H4: 1333 | I4: =ROUND((F4*1),-1) -> 6890 | J4: =ROUND((G4),-2) -> 477896400 | K4: 69400
A5: 0 | B5: 5 | C5: UTILITIES | D5: 22 | E5: 427 | F5: 14133 | G5: 1230987668 | H5: 1675 | I5: 14130 | J5: 1230987700 | K5: 87100
A6: 0 | B6: 5 | C6: CONSTRUCTION | D6: 23 | E6: 14422 | F6: 123086 | G6: 6462031879 | H6: 1010 | I6: 123090 | J6: 6462031900 | K6: 52500
A7: 0 | B7: 5 | C7: MANUFACTURING | D7: 31-33 | E7: 8431 | F7: 507198 | G7: 29248207720 | H7: 1109 | I7: 507200 | J7: 29248207700 | K7: 57700
A8: 0 | B8: 5 | C8: WHOLESALE TRADE | D8: 42 | E8: 13281 | F8: 117788 | G8: 7101075772 | H8: 1159 | I8: 117790 | J8: 7101075800 | K8: 60300
A9: 0 | B9: 5 | C9: RETAIL TRADE | D9: 44-45 | E9: 20361 | F9: 319060 | G9: 8005585691 | H9: 483 | I9: 319060 | J9: 8005585700 | K9: 25100
A10: 0 | B10: 5 | C10: TRANSPORTATION AND WAREHOUSING | D10: 48-49 | E10: 5441 | F10: 116775 | G10: 4884739330 | H10: 804 | I10: 116780 | J10: 4884739300 | K10: 41800
A11: 0 | B11: 5 | C11: INFORMATION | D11: 51 | E11: 2161 | F11: 35565 | G11: 1943943493 | H11: 1051 | I11: 35570 | J11: 1943943500 | K11: 54700
A12: 0 | B12: 5 | C12: FINANCE AND INSURANCE | D12: 52 | E12: 9749 | F12: 93044 | G12: 5908123954 | H12: 1221 | I12: 93040 | J12: 5908124000 | K12: 63500
A13: 0 | B13: 5 | C13: REAL ESTATE AND RENTAL AND LEASING | D13: 53 | E13: 5650 | F13: 32890 | G13: 1324610691 | H13: 774 | I13: 32890 | J13: 1324610700 | K13: 40300
A14: 0 | B14: 5 | C14: PROFESSIONAL AND TECHNICAL SERVICES | D14: 54 | E14: 17005 | F14: 105228 | G14: 6436740365 | H14: 1176 | I14: 105230 | J14: 6436740400 | K14: 61200
A15: 0 | B15: 5 | C15: MANAGEMENT OF COMPANIES AND ENTERPRISES | D15: 55 | E15: 1202 | F15: 32124 | G15: 2822123370 | H15: 1689 | I15: 32120 | J15: 2822123400 | K15: =ROUND((G15/F15/100)*100,-2) -> 87900
A16: 0 | B16: 5 | C16: ADMINISTRATIVE AND WASTE SERVICES | D16: 56 | E16: 8789 | F16: 183872 | G16: 5207202047 | H16: 545 | I16: 183870 | J16: 5207202000 | K16: =ROUND((G16/I16),-2) -> 28300
A17: 0 | B17: 5 | C17: EDUCATIONAL SERVICES | D17: 61 | E17: 1692 | F17: 49710 | G17: 1827799230 | H17: 707 | I17: 49710 | J17: 1827799200 | K17: 36800
A18: 0 | B18: 5 | C18: HEALTH CARE AND SOCIAL ASSISTANCE | D18: 62 | E18: 12922 | F18: 371074 | G18: 16133777693 | H18: 836 | I18: 371070 | J18: 16133777700 | K18: 43500
A19: 0 | B19: 5 | C19: ARTS, ENTERTAINMENT, AND RECREATION | D19: 71 | E19: 2039 | F19: 40597 | G19: 1219384953 | H19: 578 | I19: 40600 | J19: 1219385000 | K19: 30000
A20: 0 | B20: 5 | C20: ACCOMMODATION AND FOOD SERVICES | D20: 72 | E20: 12676 | F20: 253141 | G20: 3608046106 | H20: 274 | I20: 253140 | J20: 3608046100 | K20: 14300
A21: 0 | B21: 5 | C21: OTHER SERVICES, EXCEPT PUBLIC ADMIN | D21: 81 | E21: 12980 | F21: 83192 | G21: 2427386760 | H21: 561 | I21: 83190 | J21: 2427386800 | K21: 29200
A22: 0 | B22: 3 | C22: LOCAL GOVERNMENT | D22: 11 | E22: 3092 | F22: 267251 | G22: 9794736324 | H22: 705 | I22: 267250 | J22: 9794736300 | K22: 36600
A23: 0 | B23: 3 | C23: EDUCATIONAL SERVICES | D23: 61 | E23: 1333 | F23: 145761 | G23: 5153216803 | H23: 680 | I23: 145760 | J23: 5153216800 | K23: 35400
A24: 0 | B24: 3 | C24: HEALTH CARE AND SOCIAL ASSISTANCE | D24: 62 | E24: 112 | F24: 25666 | G24: 1222854076 | H24: 916 | I24: 25670 | J24: 1222854100 | K24: 47600
A25: 0 | B25: 2 | C25: STATE GOVERNMENT | D25: 11 | E25: 1385 | F25: 87395 | G25: 3968540477 | H25: 873 | I25: 87400 | J25: 3968540500 | K25: 45400
A26: 0 | B26: 2 | C26: EDUCATIONAL SERVICES | D26: 61 | E26: 41 | F26: 55004 | G26: 2616416643 | H26: 915 | I26: 55000 | J26: 2616416600 | K26: 47600
A27: 0 | B27: 2 | C27: HEALTH CARE AND SOCIAL ASSISTANCE | D27: 62 | E27: 8 | F27: 2203 | G27: 86791526 | H27: 758 | I27: 2200 | J27: 86791500 | K27: 39400
A28: 0 | B28: U | C28: TOTAL UI COVERED | D28: 11 | E28: 157111 | F28: 2854651 | G28: 120556750177 | H28: 812 | I28: 2854650 | J28: 120556750200 | K28: 42200
A29: 0 | B29: 1 | C29: FEDERAL GOVERNMENT | D29: 11 | E29: 1219 | F29: 36218 | G29: 2454749259 | H29: 1303 | I29: 36220 | J29: 2454749300 | K29: 67800

Sheet County (hidden)
D1: 2014 Annual Averages | J1: DO NOT DELETE FORMULAS !!!!
A2: Disclosure | C2: Ownership | D2: NAICS Sectors | E2: SuperSector NAICS Code | F2: Reporting Units | G2: AME | H2: Total Annual Wages | I2: AWW | J2: Average Number of Workers | K2: Total Annual Wages Rnd | L2: Average Annual Wages Rnd
B3: 1 | C3: 5 | D3: AGRICULTURE, FORESTRY, FISHING AND HUNTI | E3: 11 | F3: 23 | G3: 140 | H3: 4115265 | I3: 565 | J3: =IF(County!G3=0,"0",IF(County!G3<5,"*",ROUND((G3*1),-1))) -> 140 | K3: =ROUND((H3),-2) -> 4115300 | L3: =IF(G3=0,0,IF(J3="*","*",ROUND((K3/J3),-2))) -> 29400
A4: D | B4: 1 | C4: 5 | D4: MINING, QUARRYING, AND OIL AND GAS EXTRA | E4: 21 | F4: 1 | G4: 18 | H4: 1040661 | I4: 1112 | J4: =IF(County!G4=0,"0",IF(County!G4<5,"*",ROUND((G4*1),-1))) -> 20 | K4: 1040700 | L4: =IF(G4=0,0,IF(J4="*","*",ROUND((K4/J4),-2))) -> 52000
A5: D | B5: 1 | C5: 5 | D5: UTILITIES | E5: 22 | F5: 1 | G5: 14 | H5: 1281954 | I5: 1761 | J5: =IF(County!G5=0,"0",IF(County!G5<5,"*",ROUND((G5*1),-1))) -> 10 | K5: 1282000 | L5: 128200
B6: 1 | C6: 5 | D6: CONSTRUCTION | E6: 23 | F6: 68 | G6: 339 | H6: 12420638 | I6: 705 | J6: =IF(County!G6=0,"0",IF(County!G6<5,"*",ROUND((G6*1),-1))) -> 340 | K6: 12420600 | L6: 36500
B7: 1 | C7: 5 | D7: MANUFACTURING | E7: 31-33 | F7: 63 | G7: 4835 | H7: 212086486 | I7: 844 | J7: =IF(County!G7=0,"0",IF(County!G7<5,"*",ROUND((G7*1),-1))) -> 4840 | K7: 212086500 | L7: 43800
B8: 1 | C8: 5 | D8: WHOLESALE TRADE | E8: 42 | F8: 36 | G8: 379 | H8: 17316439 | I8: 879 | J8: =IF(County!G8=0,"0",IF(County!G8<5,"*",ROUND((G8*1),-1))) -> 380 | K8: 17316400 | L8: 45600
B9: 1 | C9: 5 | D9: RETAIL TRADE | E9: 44-45 | F9: 129 | G9: 1347 | H9: 30643583 | I9: 437 | J9: =IF(County!G9=0,"0",IF(County!G9<5,"*",ROUND((G9*1),-1))) -> 1350 | K9: =ROUND((H9),-2) -> 30643600 | L9: 22700
B10: 1 | C10: 5 | D10: TRANSPORTATION AND WAREHOUSING | E10: 48-49 | F10: 36 | G10: 350 | H10: 12468631 | I10: 685 | J10: =IF(County!G10=0,"0",IF(County!G10<5,"*",ROUND((G10*1),-1))) -> 350 | K10: 12468600 | L10: 35600
B11: 1 | C11: 5 | D11: INFORMATION | E11: 51 | F11: 9 | G11: 239 | H11: 9414657 | I11: 758 | J11: =IF(County!G11=0,"0",IF(County!G11<5,"*",ROUND((G11*1),-1))) -> 240 | K11: 9414700 | L11: 39200
B12: 1 | C12: 5 | D12: FINANCE AND INSURANCE | E12: 52 | F12: 43 | G12: 267 | H12: 10539369 | I12: 759 | J12: =IF(County!G12=0,"0",IF(County!G12<5,"*",ROUND((G12*1),-1))) -> 270 | K12: 10539400 | L12: 39000
B13: 1 | C13: 5 | D13: REAL ESTATE AND RENTAL AND LEASING | E13: 53 | F13: 16 | G13: 71 | H13: 2201200 | I13: 596 | J13: =IF(County!G13=0,"0",IF(County!G13<5,"*",ROUND((G13*1),-1))) -> 70 | K13: 2201200 | L13: 31400
B14: 1 | C14: 5 | D14: PROFESSIONAL AND TECHNICAL SERVICES | E14: 54 | F14: 38 | G14: 151 | H14: 6931404 | I14: 883 | J14: =IF(County!G14=0,"0",IF(County!G14<5,"*",ROUND((G14*1),-1))) -> 150 | K14: 6931400 | L14: 46200
A15: D | B15: 1 | C15: 5 | D15: MANAGEMENT OF COMPANIES AND ENTERPRISES | E15: 55 | F15: 2 | G15: 5 | H15: 667714 | I15: 2568 | J15: =IF(County!G15=0,"0",IF(County!G15<5,"*",ROUND((G15*1),-1))) -> 10 | K15: 667700 | L15: 66800
B16: 1 | C16: 5 | D16: ADMINISTRATIVE AND WASTE SERVICES | E16: 56 | F16: 44 | G16: 560 | H16: 9202084 | I16: 316 | J16: =IF(County!G16=0,"0",IF(County!G16<5,"*",ROUND((G16*1),-1))) -> 560 | K16: 9202100 | L16: 16400
B17: 1 | C17: 5 | D17: EDUCATIONAL SERVICES | E17: 61 | F17: 4 | G17: 19 | H17: 201119 | I17: 204 | J17: =IF(County!G17=0,"0",IF(County!G17<5,"*",ROUND((G17*1),-1))) -> 20 | K17: 201100 | L17: 10100
B18: 1 | C18: 5 | D18: HEALTH CARE AND SOCIAL ASSISTANCE | E18: 62 | F18: 36 | G18: 950 | H18: 24724756 | I18: 501 | J18: =IF(County!G18=0,"0",IF(County!G18<5,"*",ROUND((G18*1),-1))) -> 950 | K18: 24724800 | L18: 26000
B19: 1 | C19: 5 | D19: ARTS, ENTERTAINMENT, AND RECREATION | E19: 71 | F19: 7 | G19: 49 | H19: 482554 | I19: 189 | J19: =IF(County!G19=0,"0",IF(County!G19<5,"*",ROUND((G19*1),-1))) -> 50 | K19: 482600 | L19: 9700
B20: 1 | C20: 5 | D20: ACCOMMODATION AND FOOD SERVICES | E20: 72 | F20: 52 | G20: 852 | H20: 8690436 | I20: 196 | J20: =IF(County!G20=0,"0",IF(County!G20<5,"*",ROUND((G20*1),-1))) -> 850 | K20: 8690400 | L20: 10200
B21: 1 | C21: 5 | D21: OTHER SERVICES, EXCEPT PUBLIC ADMIN | E21: 81 | F21: 66 | G21: 367 | H21: 7547747 | I21: 396 | J21: =IF(County!G21=0,"0",IF(County!G21<5,"*",ROUND((G21*1),-1))) -> 370 | K21: 7547700 | L21: 20400
B22: 1 | C22: 3 | D22: LOCAL GOVERNMENT | E22: 11 | F22: 19 | G22: 1996 | H22: 63938294 | I22: 616 | J22: =IF(County!G22=0,"0",IF(County!G22<5,"*",ROUND((G22*1),-1))) -> 2000 | K22: 63938300 | L22: 32000
B23: 1 | C23: 3 | D23: EDUCATIONAL SERVICES | E23: 61 | F23: 6 | G23: 858 | H23: 25324679 | I23: 568 | J23: =IF(County!G23=0,"0",IF(County!G23<5,"*",ROUND((G23*1),-1))) -> 860 | K23: 25324700 | L23: 29400
A24: D | B24: 1 | C24: 3 | D24: HEALTH CARE AND SOCIAL ASSISTANCE | E24: 62 | F24: 2 | G24: 664 | H24: 26957623 | I24: 781 | J24: =IF(County!G24=0,"0",IF(County!G24<5,"*",ROUND((G24*1),-1))) -> 660 | K24: 26957600 | L24: 40800
B25: 1 | C25: 2 | D25: STATE GOVERNMENT | E25: 11 | F25: 11 | G25: 57 | H25: 2095816 | I25: 707 | J25: =IF(County!G25=0,"0",IF(County!G25<5,"*",ROUND((G25*1),-1))) -> 60 | K25: 2095800 | L25: 34900
B26: 1 | C26: 2 | D26: EDUCATIONAL SERVICES | E26: 61 | F26: 0 | G26: 0 | H26: 0 | I26: 0 | J26: =IF(County!G26=0,"0",IF(County!G26<5,"*",ROUND((G26*1),-1))) -> 0 | K26: 0 | L26: 0
B27: 1 | C27: 2 | D27: HEALTH CARE AND SOCIAL ASSISTANCE | E27: 62 | F27: 0 | G27: 0 | H27: 0 | I27: 0 | J27: =IF(County!G27=0,"0",IF(County!G27<5,"*",ROUND((G27*1),-1))) -> 0 | K27: 0 | L27: 0
B28: 1 | C28: U | D28: TOTAL UI COVERED | E28: 11 | F28: 704 | G28: 13003 | H28: 438010807 | I28: 648 | J28: =IF(County!G28=0,"0",IF(County!G28<5,"*",ROUND((G28*1),-1))) -> 13000 | K28: 438010800 | L28: 33700
B29: 1 | C29: 1 | D29: FEDERAL GOVERNMENT | E29: 11 | F29: 7 | G29: 57 | H29: 2691542 | I29: 908 | J29: =IF(County!G29=0,"0",IF(County!G29<5,"*",ROUND((G29*1),-1))) -> 60 | K29: 2691500 | L29: 44900
B30: 3 | C30: 5 | D30: AGRICULTURE, FORESTRY, FISHING AND HUNTI | E30: 11 | F30: 30 | G30: 211 | H30: 6478271 | I30: 590 | J30: =IF(County!G30=0,"0",IF(County!G30<5,"*",ROUND((G30*1),-1))) -> 210 | K30: 6478300 | L30: 30800
B31: 3 | C31: 5 | D31: MINING, QUARRYING, AND OIL AND GAS EXTRA | E31: 21 | F31: 6 | G31: 91 | H31: 5884838 | I31: 1244 | J31: =IF(County!G31=0,"0",IF(County!G31<5,"*",ROUND((G31*1),-1))) -> 90 | K31: 5884800 | L31: 65400
B32: 3 | C32: 5 | D32: UTILITIES | E32: 22 | F32: 12 | G32: 456 | H32: 40502236 | I32: 1708 | J32: =IF(County!G32=0,"0",IF(County!G32<5,"*",ROUND((G32*1),-1))) -> 460 | K32: 40502200 | L32: 88000
B33: 3 | C33: 5 | D33: CONSTRUCTION | E33: 23 | F33: 860 | G33: 8092 | H33: 400367085 | I33: 951 | J33: =IF(County!G33=0,"0",IF(County!G33<5,"*",ROUND((G33*1),-1))) -> 8090 | K33: 400367100 | L33: 49500
B34: 3 | C34: 5 | D34: MANUFACTURING | E34: 31-33 | F34: 487 | G34: 27278 | H34: 1539127608 | I34: 1085 | J34: =IF(County!G34=0,"0",IF(County!G34<5,"*",ROUND((G34*1),-1))) -> 27280 | K34: 1539127600 | L34: 56400
B35: 3 | C35: 5 | D35: WHOLESALE TRADE | E35: 42 | F35: 606 | G35: 8887 | H35: 454772552 | I35: 984 | J35: =IF(County!G35=0,"0",IF(County!G35<5,"*",ROUND((G35*1),-1))) -> 8890 | K35: 454772600 | L35: 51200
B36: 3 | C36: 5 | D36: RETAIL TRADE | E36: 44-45 | F36: 1153 | G36: 20442 | H36: 513377689 | I36: 483 | J36: =IF(County!G36=0,"0",IF(County!G36<5,"*",ROUND((G36*1),-1))) -> 20440 | K36: 513377700 | L36: 25100
B37: 3 | C37: 5 | D37: TRANSPORTATION AND WAREHOUSING | E37: 48-49 | F37: 282 | G37: 6302 | H37: 286209440 | I37: 873 | J37: =IF(County!G37=0,"0",IF(County!G37<5,"*",ROUND((G37*1),-1))) -> 6300 | K37: 286209400 | L37: 45400
B38: 3 | C38: 5 | D38: INFORMATION | E38: 51 | F38: 94 | G38: 2825 | H38: 155748094 | I38: 1060 | J38: =IF(County!G38=0,"0",IF(County!G38<5,"*",ROUND((G38*1),-1))) -> 2830 | K38: 155748100 | L38: 55000
B39: 3 | C39: 5 | D39: FINANCE AND INSURANCE | E39: 52 | F39: 643 | G39: 8209 | H39: 522188358 | I39: 1223 | J39: =IF(County!G39=0,"0",IF(County!G39<5,"*",ROUND((G39*1),-1))) -> 8210 | K39: 522188400 | L39: 63600
B40: 3 | C40: 5 | D40: REAL ESTATE AND RENTAL AND LEASING | E40: 53 | F40: 382 | G40: 1892 | H40: 64551337 | I40: 656 | J40: =IF(County!G40=0,"0",IF(County!G40<5,"*",ROUND((G40*1),-1))) -> 1890 | K40: 64551300 | L40: 34200
B41: 3 | C41: 5 | D41: PROFESSIONAL AND TECHNICAL SERVICES | E41: 54 | F41: 928 | G41: 5515 | H41: 294424616 | I41: 1027 | J41: =IF(County!G41=0,"0",IF(County!G41<5,"*",ROUND((G41*1),-1))) -> 5520 | K41: 294424600 | L41: 53300
B42: 3 | C42: 5 | D42: MANAGEMENT OF COMPANIES AND ENTERPRISES | E42: 55 | F42: 64 | G42: 1721 | H42: 114241799 | I42: 1277 | J42: =IF(County!G42=0,"0",IF(County!G42<5,"*",ROUND((G42*1),-1))) -> 1720 | K42: 114241800 | L42: 66400
B43: 3 | C43: 5 | D43: ADMINISTRATIVE AND WASTE SERVICES | E43: 56 | F43: 497 | G43: 10889 | H43: 266359488 | I43: 470 | J43: =IF(County!G43=0,"0",IF(County!G43<5,"*",ROUND((G43*1),-1))) -> 10890 | K43: 266359500 | L43: 24500
B44: 3 | C44: 5 | D44: EDUCATIONAL SERVICES | E44: 61 | F44: 85 | G44: 3209 | H44: 95226041 | I44: 571 | J44: =IF(County!G44=0,"0",IF(County!G44<5,"*",ROUND((G44*1),-1))) -> 3210 | K44: 95226000 | L44: 29700
B45: 3 | C45: 5 | D45: HEALTH CARE AND SOCIAL ASSISTANCE | E45: 62 | F45: 755 | G45: 30271 | H45: 1377419169 | I45: 875 | J45: =IF(County!G45=0,"0",IF(County!G45<5,"*",ROUND((G45*1),-1))) -> 30270 | K45: 1377419200 | L45: 45500
B46: 3 | C46: 5 | D46: ARTS, ENTERTAINMENT, AND RECREATION | E46: 71 | F46: 142 | G46: 2387 | H46: 39788983 | I46: 321 | J46: =IF(County!G46=0,"0",IF(County!G46<5,"*",ROUND((G46*1),-1))) -> 2390 | K46: 39789000 | L46: 16600
B47: 3 | C47: 5 | D47: ACCOMMODATION AND FOOD SERVICES | E47: 72 | F47: 706 | G47: 15832 | H47: 222630867 | I47: 270 | J47: =IF(County!G47=0,"0",IF(County!G47<5,"*",ROUND((G47*1),-1))) -> 15830 | K47: 222630900 | L47: 14100
B48: 3 | C48: 5 | D48: OTHER SERVICES, EXCEPT PUBLIC ADMIN | E48: 81 | F48: 719 | G48: 5015 | H48: 133076068 | I48: 510 | J48: =IF(County!G48=0,"0",IF(County!G48<5,"*",ROUND((G48*1),-1))) -> 5020 | K48: 133076100 | L48: 26500
B49: 3 | C49: 3 | D49: LOCAL GOVERNMENT | E49: 11 | F49: 191 | G49: 12773 | H49: 488955490 | I49: 736 | J49: =IF(County!G49=0,"0",IF(County!G49<5,"*",ROUND((G49*1),-1))) -> 12770 | K49: 488955500 | L49: 38300
B50: 3 | C50: 3 | D50: EDUCATIONAL SERVICES | E50: 61 | F50: 136 | G50: 7277 | H50: 270598288 | I50: 715 | J50: =IF(County!G50=0,"0",IF(County!G50<5,"*",ROUND((G50*1),-1))) -> 7280 | K50: 270598300 | L50: 37200
A51: D | B51: 3 | C51: 3 | D51: HEALTH CARE AND SOCIAL ASSISTANCE | E51: 62 | F51: 3 | G51: 67 | H51: 1827780 | I51: 525 | J51: =IF(County!G51=0,"0",IF(County!G51<5,"*",ROUND((G51*1),-1))) -> 70 | K51: 1827800 | L51: 26100
B52: 3 | C52: 2 | D52: STATE GOVERNMENT | E52: 11 | F52: 25 | G52: 2994 | H52: 111830575 | I52: 718 | J52: =IF(County!G52=0,"0",IF(County!G52<5,"*",ROUND((G52*1),-1))) -> 2990 | K52: 111830600 | L52: 37400
B53: 3 | C53: 2 | D53: EDUCATIONAL SERVICES | E53: 61 | F53: 3 | G53: 2297 | H53: 82222101 | I53: 688 | J53: =IF(County!G53=0,"0",IF(County!G53<5,"*",ROUND((G53*1),-1))) -> 2300 | K53: 82222100 | L53: 35700
B54: 3 | C54: 2 | D54: HEALTH CARE AND SOCIAL ASSISTANCE | E54: 62 | F54: 0 | G54: 0 | H54: 0 | I54: 0 | J54: =IF(County!G54=0,"0",IF(County!G54<5,"*",ROUND((G54*1),-1))) -> 0 | K54: 0 | L54: 0
B55: 3 | C55: U | D55: TOTAL UI COVERED | E55: 11 | F55: 8662 | G55: 175288 | H55: 7133160604 | I55: 783 | J55: =IF(County!G55=0,"0",IF(County!G55<5,"*",ROUND((G55*1),-1))) -> 175290 | K55: 7133160600 | L55: 40700
B56: 3 | C56: 1 | D56: FEDERAL GOVERNMENT | E56: 11 | F56: 40 | G56: 1834 | H56: 125843672 | I56: 1320 | J56: =IF(County!G56=0,"0",IF(County!G56<5,"*",ROUND((G56*1),-1))) -> 1830 | K56: 125843700 | L56: 68800
B57: 5 | C57: 5 | D57: AGRICULTURE, FORESTRY, FISHING AND HUNTI | E57: 11 | F57: 16 | G57: 56 | H57: 2037493 | I57: 700 | J57: =IF(County!G57=0,"0",IF(County!G57<5,"*",ROUND((G57*1),-1))) -> 60 | K57: 2037500 | L57: 34000
A58: D | B58: 5 | C58: 5 | D58: MINING, QUARRYING, AND OIL AND GAS EXTRA | E58: 21 | F58: 2 | G58: 28 | H58: 1693797 | I58: 1163 | J58: =IF(County!G58=0,"0",IF(County!G58<5,"*",ROUND((G58*1),-1))) -> 30 | K58: 1693800 | L58: 56500
B59: 5 | C59: 5 | D59: UTILITIES | E59: 22 | F59: 9 | G59: 141 | H59: 10798018 | I59: 1473 | J59: =IF(County!G59=0,"0",IF(County!G59<5,"*",ROUND((G59*1),-1))) -> 140 | K59: 10798000 | L59: 77100
B60: 5 | C60: 5 | D60: CONSTRUCTION | E60: 23 | F60: 150 | G60: 1439 | H60: 70142809 | I60: 937 | J60: =IF(County!G60=0,"0",IF(County!G60<5,"*",ROUND((G60*1),-1))) -> 1440 | K60: 70142800 | L60: 48700
B61: 5 | C61: 5 | D61: MANUFACTURING | E61: 31-33 | F61: 142 | G61: 18544 | H61: 1244385647 | I61: 1290 | J61: =IF(County!G61=0,"0",IF(County!G61<5,"*",ROUND((G61*1),-1))) -> 18540 | K61: 1244385600 | L61: 67100
B62: 5 | C62: 5 | D62: WHOLESALE TRADE | E62: 42 | F62: 110 | G62: 1499 | H62: 115598322 | I62: 1483 | J62: =IF(County!G62=0,"0",IF(County!G62<5,"*",ROUND((G62*1),-1))) -> 1500 | K62: 115598300 | L62: 77100
B63: 5 | C63: 5 | D63: RETAIL TRADE | E63: 44-45 | F63: 284 | G63: 4644 | H63: 104686324 | I63: 434 | J63: =IF(County!G63=0,"0",IF(County!G63<5,"*",ROUND((G63*1),-1))) -> 4640 | K63: 104686300 | L63: 22600
B64: 5 | C64: 5 | D64: TRANSPORTATION AND WAREHOUSING | E64: 48-49 | F64: 58 | G64: 1189 | H64: 52519719 | I64: 849 | J64: =IF(County!G64=0,"0",IF(County!G64<5,"*",ROUND((G64*1),-1))) -> 1190 | K64: 52519700 | L64: 44100
B65: 5 | C65: 5 | D65: INFORMATION | E65: 51 | F65: 17 | G65: 457 | H65: 18025007 | I65: 759 | J65: =IF(County!G65=0,"0",IF(County!G65<5,"*",ROUND((G65*1),-1))) -> 460 | K65: 18025000 | L65: 39200
B66: 5 | C66: 5 | D66: FINANCE AND INSURANCE | E66: 52 | F66: 116 | G66: 1000 | H66: 59982705 | I66: 1154 | J66: =IF(County!G66=0,"0",IF(County!G66<5,"*",ROUND((G66*1),-1))) -> 1000 | K66: 59982700 | L66: 60000
B67: 5 | C67: 5 | D67: REAL ESTATE AND RENTAL AND LEASING | E67: 53 | F67: 71 | G67: 310 | H67: 9916489 | I67: 615 | J67: =IF(County!G67=0,"0",IF(County!G67<5,"*",ROUND((G67*1),-1))) -> 310 | K67: 9916500 | L67: 32000
B68: 5 | C68: 5 | D68: PROFESSIONAL AND TECHNICAL SERVICES | E68: 54 | F68: 159 | G68: 1617 | H68: 93742070 | I68: 1115 | J68: =IF(County!G68=0,"0",IF(County!G68<5,"*",ROUND((G68*1),-1))) -> 1620 | K68: 93742100 | L68: =IF(G68=0,0,IF(J68="*","*",ROUND((K68/J68),-2))) -> 57900
B69: 5 | C69: 5 | D69: MANAGEMENT OF COMPANIES AND ENTERPRISES | E69: 55 | F69: 28 | G69: 693 | H69: 68486900 | I69: 1901 | J69: =IF(County!G69=0,"0",IF(County!G69<5,"*",ROUND((G69*1),-1))) -> 690 | K69: 68486900 | L69: 99300
B70: 5 | C70: 5 | D70: ADMINISTRATIVE AND WASTE SERVICES | E70: 56 | F70: 86 | G70: 2763 | H70: 78084468 | I70: 543 | J70: =IF(County!G70=0,"0",IF(County!G70<5,"*",ROUND((G70*1),-1))) -> 2760 | K70: 78084500 | L70: 28300
B71: 5 | C71: 5 | D71: EDUCATIONAL SERVICES | E71: 61 | F71: 17 | G71: 160 | H71: 3069637 | I71: 369 | J71: =IF(County!G71=0,"0",IF(County!G71<5,"*",ROUND((G71*1),-1))) -> 160 | K71: 3069600 | L71: 19200
B72: 5 | C72: 5 | D72: HEALTH CARE AND SOCIAL ASSISTANCE | E72: 62 | F72: 200 | G72: 3601 | H72: 152365978 | I72: 814 | J72: =IF(County!G72=0,"0",IF(County!G72<5,"*",ROUND((G72*1),-1))) -> 3600 | K72: 152366000 | L72: 42300
B73: 5 | C73: 5 | D73: ARTS, ENTERTAINMENT, AND RECREATION | E73: 71 | F73: 17 | G73: 221 | H73: 3363047 | I73: 293 | J73: =IF(County!G73=0,"0",IF(County!G73<5,"*",ROUND((G73*1),-1))) -> 220 | K73: =ROUND((H73),-2) -> 3363000 | L73: 15300
B74: 5 | C74: 5 | D74: ACCOMMODATION AND FOOD SERVICES | E74: 72 | F74: 160 | G74: 3675 | H74: 51151135 | I74: 268 | J74: =IF(County!G74=0,"0",IF(County!G74<5,"*",ROUND((G74*1),-1))) -> 3680 | K74: 51151100 | L74: 13900
B75: 5 | C75: 5 | D75: OTHER SERVICES, EXCEPT PUBLIC ADMIN | E75: 81 | F75: 142 | G75: 842 | H75: 20665620 | I75: 472 | J75: =IF(County!G75=0,"0",IF(County!G75<5,"*",ROUND((G75*1),-1))) -> 840 | K75: 20665600 | L75: 24600
B76: 5 | C76: 3 | D76: LOCAL GOVERNMENT | E76: 11 | F76: 42 | G76: 4628 | H76: 172541264 | I76: 717 | J76: =IF(County!G76=0,"0",IF(County!G76<5,"*",ROUND((G76*1),-1))) -> 4630 | K76: 172541300 | L76: 37300
A77: D | B77: 5 | C77: 3 | D77: EDUCATIONAL SERVICES | E77: 61 | F77: 23 | G77: 1862 | H77: 61468447 | I77: 635 | J77: =IF(County!G77=0,"0",IF(County!G77<5,"*",ROUND((G77*1),-1))) -> 1860 | K77: 61468400 | L77: 33000
A78: D | B78: 5 | C78: 3 | D78: HEALTH CARE AND SOCIAL ASSISTANCE | E78: 62 | F78: 1 | G78: 1514 | H78: 67298310 | I78: 855 | J78: =IF(County!G78=0,"0",IF(County!G78<5,"*",ROUND((G78*1),-1))) -> 1510 | K78: 67298300 | L78: 44600
A79: D | B79: 5 | C79: 2 | D79: STATE GOVERNMENT | E79: 11 | F79: 18 | G79: 982 | H79: 30296652 | I79: 593 | J79: =IF(County!G79=0,"0",IF(County!G79<5,"*",ROUND((G79*1),-1))) -> 980 | K79: 30296700 | L79: 30900
A80: D | B80: 5 | C80: 2 | D80: EDUCATIONAL SERVICES | E80: 61 | F80: 1 | G80: 810 | H80: 23219935 | I80: 551 | J80: =IF(County!G80=0,"0",IF(County!G80<5,"*",ROUND((G80*1),-1))) -> 810 | K80: 23219900 | L80: 28700
B81: 5 | C81: 2 | D81: HEALTH CARE AND SOCIAL ASSISTANCE | E81: 62 | F81: 0 | G81: 0 | H81: 0 | I81: 0 | J81: =IF(County!G81=0,"0",IF(County!G81<5,"*",ROUND((G81*1),-1))) -> 0 | K81: 0 | L81: 0
B82: 5 | C82: U | D82: TOTAL UI COVERED | E82: 11 | F82: 1843 | G82: 48486 | H82: 2363553101 | I82: 937 | J82: =IF(County!G82=0,"0",IF(County!G82<5,"*",ROUND((G82*1),-1))) -> 48490 | K82: 2363553100 | L82: 48700
B83: 5 | C83: 1 | D83: FEDERAL GOVERNMENT | E83: 11 | F83: 12 | G83: 160 | H83: 9847574 | I83: 1184 | J83: =IF(County!G83=0,"0",IF(County!G83<5,"*",ROUND((G83*1),-1))) -> 160 | K83: 9847600 | L83: 61500
B84: 7 | C84: 5 | D84: AGRICULTURE, FORESTRY, FISHING AND HUNTI | E84: 11 | F84: 17 | G84: 141 | H84: 4747545 | I84: 648 | J84: =IF(County!G84=0,"0",IF(County!G84<5,"*",ROUND((G84*1),-1))) -> 140 | K84: 4747500 | L84: 33900
A85: D | B85: 7 | C85: 5 | D85: MINING, QUARRYING, AND OIL AND GAS EXTRA | E85: 21 | F85: 1 | G85: 2 | H85: 43750 | I85: 421 | J85: =IF(County!G85=0,"0",IF(County!G85<5,"*",ROUND((G85*1),-1))) -> * | K85: 43800 | L85: *
A86: D | B86: 7 | C86: 5 | D86: UTILITIES | E86: 22 | F86: 2 | G86: 27 | H86: 1887009 | I86: 1344 | J86: =IF(County!G86=0,"0",IF(County!G86<5,"*",ROUND((G86*1),-1))) -> 30 | K86: 1887000 | L86: 62900
B87: 7 | C87: 5 | D87: CONSTRUCTION | E87: 23 | F87: 20 | G87: 63 | H87: 2179822 | I87: 665 | J87: =IF(County!G87=0,"0",IF(County!G87<5,"*",ROUND((G87*1),-1))) -> 60 | K87: 2179800 | L87: 36300
B88: 7 | C88: 5 | D88: MANUFACTURING | E88: 31-33 | F88: 15 | G88: 418 | H88: 18243728 | I88: 839 | J88: =IF(County!G88=0,"0",IF(County!G88<5,"*",ROUND((G88*1),-1))) -> 420 | K88: 18243700 | L88: 43400
B89: 7 | C89: 5 | D89: WHOLESALE TRADE | E89: 42 | F89: 20 | G89: 271 | H89: 11303021 | I89: 802 | J89: =IF(County!G89=0,"0",IF(County!G89<5,"*",ROUND((G89*1),-1))) -> 270 | K89: 11303000 | L89: 41900
B90: 7 | C90: 5 | D90: RETAIL TRADE | E90: 44-45 | F90: 29 | G90: 210 | H90: 3895078 | I90: 357 | J90: =IF(County!G90=0,"0",IF(County!G90<5,"*",ROUND((G90*1),-1))) -> 210 | K90: 3895100 | L90: 18500
B91: 7 | C91: 5 | D91: TRANSPORTATION AND WAREHOUSING | E91: 48-49 | F91: 21 | G91: 106 | H91: 4183425 | I91: 759 | J91: =IF(County!G91=0,"0",IF(County!G91<5,"*",ROUND((G91*1),-1))) -> 110 | K91: 4183400 | L91: 38000
A92: D | B92: 7 | C92: 5 | D92: INFORMATION | E92: 51 | F92: 2 | G92: 8 | H92: 379626 | I92: 913 | J92: =IF(County!G92=0,"0",IF(County!G92<5,"*",ROUND((G92*1),-1))) -> 10 | K92: 379600 | L92: 38000
B93: 7 | C93: 5 | D93: FINANCE AND INSURANCE | E93: 52 | F93: 12 | G93: 136 | H93: 6130492 | I93: 867 | J93: =IF(County!G93=0,"0",IF(County!G93<5,"*",ROUND((G93*1),-1))) -> 140 | K93: 6130500 | L93: 43800
B94: 7 | C94: 5 | D94: REAL ESTATE AND RENTAL AND LEASING | E94: 53 | F94: 0 | G94: 0 | H94: 0 | I94: 0 | J94: =IF(County!G94=0,"0",IF(County!G94<5,"*",ROUND((G94*1),-1))) -> 0 | K94: 0 | L94: 0
B95: 7 | C95: 5 | D95: PROFESSIONAL AND TECHNICAL SERVICES | E95: 54 | F95: 11 | G95: 34 | H95: 1460606 | I95: 826 | J95: =IF(County!G95=0,"0",IF(County!G95<5,"*",ROUND((G95*1),-1))) -> 30 | K95: 1460600 | L95: 48700
B96: 7 | C96: 5 | D96: MANAGEMENT OF COMPANIES AND ENTERPRISES | E96: 55 | F96: 0 | G96: 0 | H96: 0 | I96: 0 | J96: =IF(County!G96=0,"0",IF(County!G96<5,"*",ROUND((G96*1),-1))) -> 0 | K96: 0 | L96: 0
B97: 7 | C97: 5 | D97: ADMINISTRATIVE AND WASTE SERVICES | E97: 56 | F97: 7 | G97: 14 | H97: 316858 | I97: 435 | J97: =IF(County!G97=0,"0",IF(County!G97<5,"*",ROUND((G97*1),-1))) -> 10 | K97: 316900 | L97: 31700
A98: D | B98: 7 | C98: 5 | D98: EDUCATIONAL SERVICES | E98: 61 | F98: 1 | G98: 8 | H98: 21652 | I98: 52 | J98: =IF(County!G98=0,"0",IF(County!G98<5,"*",ROUND((G98*1),-1))) -> 10 | K98: 21700 | L98: 2200
B99: 7 | C99: 5 | D99: HEALTH CARE AND SOCIAL ASSISTANCE | E99: 62 | F99: 11 | G99: 96 | H99: 2372768 | I99: 475 | J99: =IF(County!G99=0,"0",IF(County!G99<5,"*",ROUND((G99*1),-1))) -> 100 | K99: 2372800 | L99: 23700
A100: D | B100: 7 | C100: 5 | D100: ARTS, ENTERTAINMENT, AND RECREATION | E100: 71 | F100: 2 | G100: 19 | H100: 253244 | I100: 256 | J100: =IF(County!G100=0,"0",IF(County!G100<5,"*",ROUND((G100*1),-1))) -> 20 | K100: 253200 | L100: 12700
B101: 7 | C101: 5 | D101: ACCOMMODATION AND FOOD SERVICES | E101: 72 | F101: 7 | G101: 49 | H101: 380037 | I101: 149 | J101: =IF(County!G101=0,"0",IF(County!G101<5,"*",ROUND((G101*1),-1))) -> 50 | K101: 380000 | L101: 7600
B102: 7 | C102: 5 | D102: OTHER SERVICES, EXCEPT PUBLIC ADMIN | E102: 81 | F102: 12 | G102: 60 | H102: 2633140 | I102: 844 | J102: =IF(County!G102=0,"0",IF(County!G102<5,"*",ROUND((G102*1),-1))) -> 60 | K102: 2633100 | L102: 43900
B103: 7 | C103: 3 | D103: LOCAL GOVERNMENT | E103: 11 | F103: 20 | G103: 566 | H103: 15537621 | I103: 528 | J103: =IF(County!G103=0,"0",IF(County!G103<5,"*",ROUND((G103*1),-1))) -> 570 | K103: 15537600 | L103: 27300
A104: D | B104: 7 | C104: 3 | D104: EDUCATIONAL SERVICES | E104: 61 | F104: 6 | G104: 366 | H104: 10640621 | I104: 559 | J104: =IF(County!G104=0,"0",IF(County!G104<5,"*",ROUND((G104*1),-1))) -> 370 | K104: 10640600 | L104: 28800
B105: 7 | C105: 3 | D105: HEALTH CARE AND SOCIAL ASSISTANCE | E105: 62 | F105: 0 | G105: 0 | H105: 0 | I105: 0 | J105: =IF(County!G105=0,"0",IF(County!G105<5,"*",ROUND((G105*1),-1))) -> 0 | K105: 0 | L105: 0
B106: 7 | C106: 2 | D106: STATE GOVERNMENT | E106: 11 | F106: 7 | G106: 39 | H106: 1424605 | I106: 702 | J106: =IF(County!G106=0,"0",IF(County!G106<5,"*",ROUND((G106*1),-1))) -> 40 | K106: 1424600 | L106: 35600
B107: 7 | C107: 2 | D107: EDUCATIONAL SERVICES | E107: 61 | F107: 0 | G107: 0 | H107: 0 | I107: 0 | J107: =IF(County!G107=0,"0",IF(County!G107<5,"*",ROUND((G107*1),-1))) -> 0 | K107: 0 | L107: 0
B108: 7 | C108: 2 | D108: HEALTH CARE AND SOCIAL ASSISTANCE | E108: 62 | F108: 0 | G108: 0 | H108: 0 | I108: 0 | J108: =IF(County!G108=0,"0",IF(County!G108<5,"*",ROUND((G108*1),-1))) -> 0 | K108: 0 | L108: 0
B109: 7 | C109: U | D109: TOTAL UI COVERED | E109: 11 | F109: 216 | G109: 2267 | H109: 77394027 | I109: 657 | J109: =IF(County!G109=0,"0",IF(County!G109<5,"*",ROUND((G109*1),-1))) -> 2270 | K109: 77394000 | L109: 34100
B110: 7 | C110: 1 | D110: FEDERAL GOVERNMENT | E110: 11 | F110: 7 | G110: 26 | H110: 1078932 | I110: 798 | J110: =IF(County!G110=0,"0",IF(County!G110<5,"*",ROUND((G110*1),-1))) -> 30 | K110: 1078900 | L110: 36000
B111: 9 | C111: 5 | D111: AGRICULTURE, FORESTRY, FISHING AND HUNTI | E111: 11 | F111: 6 | G111: 45 | H111: 1479633 | I111: 632 | J111: =IF(County!G111=0,"0",IF(County!G111<5,"*",ROUND((G111*1),-1))) -> 50 | K111: 1479600 | L111: 29600
A112: D | B112: 9 | C112: 5 | D112: MINING, QUARRYING, AND OIL AND GAS EXTRA | E112: 21 | F112: 1 | G112: 10 | H112: 327017 | I112: 629 | J112: =IF(County!G112=0,"0",IF(County!G112<5,"*",ROUND((G112*1),-1))) -> 10 | K112: 327000 | L112: 32700
A113: D | B113: 9 | C113: 5 | D113: UTILITIES | E113: 22 | F113: 1 | G113: 1 | H113: 1200 | I113: 23 | J113: =IF(County!G113=0,"0",IF(County!G113<5,"*",ROUND((G113*1),-1))) -> * | K113: 1200 | L113: *
B114: 9 | C114: 5 | D114: CONSTRUCTION | E114: 23 | F114: 11 | G114: 23 | H114: 613906 | I114: 513 | J114: =IF(County!G114=0,"0",IF(County!G114<5,"*",ROUND((G114*1),-1))) -> 20 | K114: 613900 | L114: 30700
B115: 9 | C115: 5 | D115: MANUFACTURING | E115: 31-33 | F115: 19 | G115: 942 | H115: 43279317 | I115: 884 | J115: =IF(County!G115=0,"0",IF(County!G115<5,"*",ROUND((G115*1),-1))) -> 940 | K115: 43279300 | L115: 46000
B116: 9 | C116: 5 | D116: WHOLESALE TRADE | E116: 42 | F116: 11 | G116: 134 | H116: 5038548 | I116: 723 | J116: =IF(County!G116=0,"0",IF(County!G116<5,"*",ROUND((G116*1),-1))) -> 130 | K116: 5038500 | L116: 38800
B117: 9 | C117: 5 | D117: RETAIL TRADE | E117: 44-45 | F117: 40 | G117: 345 | H117: 6562661 | I117: 366 | J117: =IF(County!G117=0,"0",IF(County!G117<5,"*",ROUND((G117*1),-1))) -> 350 | K117: 6562700 | L117: 18800
B118: 9 | C118: 5 | D118: TRANSPORTATION AND WAREHOUSING | E118: 48-49 | F118: 14 | G118: 128 | H118: 4771908 | I118: 717 | J118: =IF(County!G118=0,"0",IF(County!G118<5,"*",ROUND((G118*1),-1))) -> 130 | K118: 4771900 | L118: 36700
A119: D | B119: 9 | C119: 5 | D119: INFORMATION | E119: 51 | F119: 3 | G119: 9 | H119: 350472 | I119: 749 | J119: =IF(County!G119=0,"0",IF(County!G119<5,"*",ROUND((G119*1),-1))) -> 10 | K119: 350500 | L119: 35100
B120: 9 | C120: 5 | D120: FINANCE AND INSURANCE | E120: 52 | F120: 20 | G120: 100 | H120: 3323104 | I120: 639 | J120: =IF(County!G120=0,"0",IF(County!G120<5,"*",ROUND((G120*1),-1))) -> 100 | K120: 3323100 | L120: 33200
B121: 9 | C121: 5 | D121: REAL ESTATE AND RENTAL AND LEASING | E121: 53 | F121: 5 | G121: 12 | H121: 252762 | I121: 405 | J121: =IF(County!G121=0,"0",IF(County!G121<5,"*",ROUND((G121*1),-1))) -> 10 | K121: 252800 | L121: 25300
B122: 9 | C122: 5 | D122: PROFESSIONAL AND TECHNICAL SERVICES | E122: 54 | F122: 10 | G122: 65 | H122: 2697216 | I122: 798 | J122: =IF(County!G122=0,"0",IF(County!G122<5,"*",ROUND((G122*1),-1))) -> 70 | K122: 2697200 | L122: 38500
B123: 9 | C123: 5 | D123: MANAGEMENT OF COMPANIES AND ENTERPRISES | E123: 55 | F123: 3 | G123: 9 | H123: 824752 | I123: 1762 | J123: =IF(County!G123=0,"0",IF(County!G123<5,"*",ROUND((G123*1),-1))) -> 10 | K123: 824800 | L123: 82500
B124: 9 | C124: 5 | D124: ADMINISTRATIVE AND WASTE SERVICES | E124: 56 | F124: 9 | G124: 37 | H124: 934334 | I124: 486 | J124: =IF(County!G124=0,"0",IF(County!G124<5,"*",ROUND((G124*1),-1))) -> 40 | K124: 934300 | L124: 23400
A125: D | B125: 9 | C125: 5 | D125: EDUCATIONAL SERVICES | E125: 61 | F125: 1 | G125: 1 | H125: 11854 | I125: 228 | J125: =IF(County!G125=0,"0",IF(County!G125<5,"*",ROUND((G125*1),-1))) -> * | K125: 11900 | L125: *
B126: 9 | C126: 5 | D126: HEALTH CARE AND SOCIAL ASSISTANCE | E126: 62 | F126: 18 | G126: 353 | H126: 10116526 | I126: 551 | J126: =IF(County!G126=0,"0",IF(County!G126<5,"*",ROUND((G126*1),-1))) -> 350 | K126: 10116500 | L126: 28900
B127: 9 | C127: 5 | D127: ARTS, ENTERTAINMENT, AND RECREATION | E127: 71 | F127: 4 | G127: 24 | H127: 210008 | I127: 168 | J127: =IF(County!G127=0,"0",IF(County!G127<5,"*",ROUND((G127*1),-1))) -> 20 | K127: 210000 | L127: 10500
B128: 9 | C128: 5 | D128: ACCOMMODATION AND FOOD SERVICES | E128: 72 | F128: 18 | G128: 279 | H128: 3341916 | I128: 230 | J128: =IF(County!G128=0,"0",IF(County!G128<5,"*",ROUND((G128*1),-1))) -> 280 | K128: 3341900 | L128: 11900
B129: 9 | C129: 5 | D129: OTHER SERVICES, EXCEPT PUBLIC ADMIN | E129: 81 | F129: 25 | G129: 99 | H129: 1492587 | I129: 290 | J129: =IF(County!G129=0,"0",IF(County!G129<5,"*",ROUND((G129*1),-1))) -> 100 | K129: 1492600 | L129: 14900
B130: 9 | C130: 3 | D130: LOCAL GOVERNMENT | E130: 11 | F130: 9 | G130: 535 | H130: 13891728 | I130: 499 | J130: =IF(County!G130=0,"0",IF(County!G130<5,"*",ROUND((G130*1),-1))) -> 540 | K130: 13891700 | L130: 25700
A131: D | B131: 9 | C131: 3 | D131: EDUCATIONAL SERVICES | E131: 61 | F131: 1 | G131: 317 | H131: 8728604 | I131: 530 | J131: =IF(County!G131=0,"0",IF(County!G131<5,"*",ROUND((G131*1),-1))) -> 320 | K131: 8728600 | L131: 27300
B132: 9 | C132: 3 | D132: HEALTH CARE AND SOCIAL ASSISTANCE | E132: 62 | F132: 0 | G132: 0 | H132: 0 | I132: 0 | J132: =IF(County!G132=0,"0",IF(County!G132<5,"*",ROUND((G132*1),-1))) -> 0 | K132: 0 | L132: =IF(G132=0,0,IF(J132="*","*",ROUND((K132/J132),-2))) -> 0
B133: 9 | C133: 2 | D133: STATE GOVERNMENT | E133: 11 | F133: 8 | G133: 25 | H133: 1023916 | I133: 788 | J133: =IF(County!G133=0,"0",IF(County!G133<5,"*",ROUND((G133*1),-1))) -> 30 | K133: 1023900 | L133: 34100
B134: 9 | C134: 2 | D134: EDUCATIONAL SERVICES | E134: 61 | F134: 0 | G134: 0 | H134: 0 | I134: 0 | J134: =IF(County!G134=0,"0",IF(County!G134<5,"*",ROUND((G134*1),-1))) -> 0 | K134: 0 | L134: 0
B135: 9 | C135: 2 | D135: HEALTH CARE AND SOCIAL ASSISTANCE | E135: 62 | F135: 0 | G135: 0 | H135: 0 | I135: 0 | J135: =IF(County!G135=0,"0",IF(County!G135<5,"*",ROUND((G135*1),-1))) -> 0 | K135: 0 | L135: 0
B136: 9 | C136: U | D136: TOTAL UI COVERED | E136: 11 | F136: 234 | G136: 3177 | H136: 100545365 | I136: 609 | J136: =IF(County!G136=0,"0",IF(County!G136<5,"*",ROUND((G136*1),-1))) -> 3180 | K136: 100545400 | L136: 31600
B137: 9 | C137: 1 | D137: FEDERAL GOVERNMENT | E137: 11 | F137: 3 | G137: 21 | H137: 1119743 | I137: 1025 | J137: =IF(County!G137=0,"0",IF(County!G137<5,"*",ROUND((G137*1),-1))) -> 20 | K137: =ROUND((H137),-2) -> 1119700 | L137: 56000
B138: 11 | C138: 5 | D138: AGRICULTURE, FORESTRY, FISHING AND HUNTI | E138: 11 | F138: 34 | G138: 203 | H138: 7721570 | I138: 731 | J138: =IF(County!G138=0,"0",IF(County!G138<5,"*",ROUND((G138*1),-1))) -> 200 | K138: 7721600 | L138: 38600
A139: D | B139: 11 | C139: 5 | D139: MINING, QUARRYING, AND OIL AND GAS EXTRA | E139: 21 | F139: 1 | G139: 9 | H139: 485025 | I139: 1036 | J139: =IF(County!G139=0,"0",IF(County!G139<5,"*",ROUND((G139*1),-1))) -> 10 | K139: 485000 | L139: 48500
A140: D | B140: 11 | C140: 5 | D140: UTILITIES | E140: 22 | F140: 1 | G140: 36 | H140: 2761182 | I140: 1475 | J140: =IF(County!G140=0,"0",IF(County!G140<5,"*",ROUND((G140*1),-1))) -> 40 | K140: 2761200 | L140: 69000
B141: 11 | C141: 5 | D141: CONSTRUCTION | E141: 23 | F141: 158 | G141: 1786 | H141: 85300371 | I141: 918 | J141: =IF(County!G141=0,"0",IF(County!G141<5,"*",ROUND((G141*1),-1))) -> 1790 | K141: 85300400 | L141: 47700
B142: 11 | C142: 5 | D142: MANUFACTURING | E142: 31-33 | F142: 77 | G142: 1937 | H142: 86166822 | I142: 855 | J142: =IF(County!G142=0,"0",IF(County!G142<5,"*",ROUND((G142*1),-1))) -> 1940 | K142: 86166800 | L142: 44400
B143: 11 | C143: 5 | D143: WHOLESALE TRADE | E143: 42 | F143: 151 | G143: 1339 | H143: 75808965 | I143: 1089 | J143: =IF(County!G143=0,"0",IF(County!G143<5,"*",ROUND((G143*1),-1))) -> 1340 | K143: 75809000 | L143: 56600
B144: 11 | C144: 5 | D144: RETAIL TRADE | E144: 44-45 | F144: 145 | G144: 5666 | H144: 191219897 | I144: 649 | J144: =IF(County!G144=0,"0",IF(County!G144<5,"*",ROUND((G144*1),-1))) -> 5670 | K144: 191219900 | L144: 33700
B145: 11 | C145: 5 | D145: TRANSPORTATION AND WAREHOUSING | E145: 48-49 | F145: 65 | G145: 2121 | H145: 79459281 | I145: 720 | J145: =IF(County!G145=0,"0",IF(County!G145<5,"*",ROUND((G145*1),-1))) -> 2120 | K145: 79459300 | L145: 37500
B146: 11 | C146: 5 | D146: INFORMATION | E146: 51 | F146: 19 | G146: 242 | H146: 10320506 | I146: 820 | J146: =IF(County!G146=0,"0",IF(County!G146<5,"*",ROUND((G146*1),-1))) -> 240 | K146: 10320500 | L146: 43000
B147: 11 | C147: 5 | D147: FINANCE AND INSURANCE | E147: 52 | F147: 110 | G147: 398 | H147: 22066301 | I147: 1066 | J147: =IF(County!G147=0,"0",IF(County!G147<5,"*",ROUND((G147*1),-1))) -> 400 | K147: 22066300 | L147: 55200
B148: 11 | C148: 5 | D148: REAL ESTATE AND RENTAL AND LEASING | E148: 53 | F148: 64 | G148: 250 | H148: 12194694 | I148: 938 | J148: =IF(County!G148=0,"0",IF(County!G148<5,"*",ROUND((G148*1),-1))) -> 250 | K148: 12194700 | L148: 48800
B149: 11 | C149: 5 | D149: PROFESSIONAL AND TECHNICAL SERVICES | E149: 54 | F149: 209 | G149: 899 | H149: 59043379 | I149: 1263 | J149: =IF(County!G149=0,"0",IF(County!G149<5,"*",ROUND((G149*1),-1))) -> 900 | K149: 59043400 | L149: 65600
B150: 11 | C150: 5 | D150: MANAGEMENT OF COMPANIES AND ENTERPRISES | E150: 55 | F150: 6 | G150: 85 | H150: 5404094 | I150: 1223 | J150: =IF(County!G150=0,"0",IF(County!G150<5,"*",ROUND((G150*1),-1))) -> 90 | K150: 5404100 | L150: 60000
B151: 11 | C151: 5 | D151: ADMINISTRATIVE AND WASTE SERVICES | E151: 56 | F151: 94 | G151: 3052 | H151: 77924024 | I151: 491 | J151: =IF(County!G151=0,"0",IF(County!G151<5,"*",ROUND((G151*1),-1))) -> 3050 | K151: 77924000 | L151: 25500
B152: 11 | C152: 5 | D152: EDUCATIONAL SERVICES | E152: 61 | F152: 18 | G152: 244 | H152: 5278897 | I152: 416 | J152: =IF(County!G152=0,"0",IF(County!G152<5,"*",ROUND((G152*1),-1))) -> 240 | K152: 5278900 | L152: 22000
B153: 11 | C153: 5 | D153: HEALTH CARE AND SOCIAL ASSISTANCE | E153: 62 | F153: 110 | G153: 1584 | H153: 67008124 | I153: 814 | J153: =IF(County!G153=0,"0",IF(County!G153<5,"*",ROUND((G153*1),-1))) -> 1580 | K153: 67008100 | L153: 42400
B154: 11 | C154: 5 | D154: ARTS, ENTERTAINMENT, AND RECREATION | E154: 71 | F154: 33 | G154: 233 | H154: 6092425 | I154: 503 | J154: =IF(County!G154=0,"0",IF(County!G154<5,"*",ROUND((G154*1),-1))) -> 230 | K154: 6092400 | L154: 26500
B155: 11 | C155: 5 | D155: ACCOMMODATION AND FOOD SERVICES | E155: 72 | F155: 107 | G155: 1847 | H155: 25900552 | I155: 270 | J155: =IF(County!G155=0,"0",IF(County!G155<5,"*",ROUND((G155*1),-1))) -> 1850 | K155: 25900600 | L155: 14000
B156: 11 | C156: 5 | D156: OTHER SERVICES, EXCEPT PUBLIC ADMIN | E156: 81 | F156: 163 | G156: 684 | H156: 15609528 | I156: 439 | J156: =IF(County!G156=0,"0",IF(County!G156<5,"*",ROUND((G156*1),-1))) -> 680 | K156: 15609500 | L156: 23000
B157: 11 | C157: 3 | D157: LOCAL GOVERNMENT | E157: 11 | F157: 33 | G157: 3192 | H157: 127930407 | I157: 771 | J157: =IF(County!G157=0,"0",IF(County!G157<5,"*",ROUND((G157*1),-1))) -> 3190 | K157: 127930400 | L157: 40100
B158: 11 | C158: 3 | D158: EDUCATIONAL SERVICES | E158: 61 | F158: 10 | G158: 1493 | H158: 56672591 | I158: 730 | J158: =IF(County!G158=0,"0",IF(County!G158<5,"*",ROUND((G158*1),-1))) -> 1490 | K158: 56672600 | L158: 38000
A159: D | B159: 11 | C159: 3 | D159: HEALTH CARE AND SOCIAL ASSISTANCE | E159: 62 | F159: 9 | G159: 726 | H159: 38701691 | I159: 1025 | J159: =IF(County!G159=0,"0",IF(County!G159<5,"*",ROUND((G159*1),-1))) -> 730 | K159: 38701700 | L159: 53000
B160: 11 | C160: 2 | D160: STATE GOVERNMENT | E160: 11 | F160: 14 | G160: 54 | H160: 2421166 | I160: 862 | J160: =IF(County!G160=0,"0",IF(County!G160<5,"*",ROUND((G160*1),-1))) -> 50 | K160: 2421200 | L160: 48400
A161: D | B161: 11 | C161: 2 | D161: EDUCATIONAL SERVICES | E161: 61 | F161: 1 | G161: 0 | H161: 8790 | I161: 0 | J161: =IF(County!G161=0,"0",IF(County!G161<5,"*",ROUND((G161*1),-1))) -> 0 | K161: 8800 | L161: 0
B162: 11 | C162: 2 | D162: HEALTH CARE AND SOCIAL ASSISTANCE | E162: 62 | F162: 0 | G162: 0 | H162: 0 | I162: 0 | J162: =IF(County!G162=0,"0",IF(County!G162<5,"*",ROUND((G162*1),-1))) -> 0 | K162: 0 | L162: 0
B163: 11 | C163: U | D163: TOTAL UI COVERED | E163: 11 | F163: 1609 | G163: 25860 | H163: 966117210 | I163: 718 | J163: =IF(County!G163=0,"0",IF(County!G163<5,"*",ROUND((G163*1),-1))) -> 25860 | K163: 966117200 | L163: 37400
B164: 11 | C164: 1 | D164: FEDERAL GOVERNMENT | E164: 11 | F164: 9 | G164: 87 | H164: 5004859 | I164: 1106 | J164: =IF(County!G164=0,"0",IF(County!G164<5,"*",ROUND((G164*1),-1))) -> 90 | K164: 5004900 | L164: 55600
B165: 13 | C165: 5 | D165: AGRICULTURE, FORESTRY, FISHING AND HUNTI | E165: 11 | F165: 5 | G165: 44 | H165: 1112687 | I165: 486 | J165: =IF(County!G165=0,"0",IF(County!G165<5,"*",ROUND((G165*1),-1))) -> 40 | K165: 1112700 | L165: 27800
B166: 13 | C166: 5 | D166: MINING, QUARRYING, AND OIL AND GAS EXTRA | E166: 21 | F166: 0 | G166: 0 | H166: 0 | I166: 0 | J166: =IF(County!G166=0,"0",IF(County!G166<5,"*",ROUND((G166*1),-1))) -> 0 | K166: 0 | L166: 0
A167: D | B167: 13 | C167: 5 | D167: UTILITIES | E167: 22 | F167: 1 | G167: 12 | H167: 484906 | I167: 777 | J167: =IF(County!G167=0,"0",IF(County!G167<5,"*",ROUND((G167*1),-1))) -> 10 | K167: 484900 | L167: 48500
B168: 13 | C168: 5 | D168: CONSTRUCTION | E168: 23 | F168: 43 | G168: 149 | H168: 4388156 | I168: 566 | J168: =IF(County!G168=0,"0",IF(County!G168<5,"*",ROUND((G168*1),-1))) -> 150 | K168: 4388200 | L168: 29300
B169: 13 | C169: 5 | D169: MANUFACTURING | E169: 31-33 | F169: 22 | G169: 155 | H169: 3406026 | I169: 423 | J169: =IF(County!G169=0,"0",IF(County!G169<5,"*",ROUND((G169*1),-1))) -> 160 | K169: 3406000 | L169: 21300
B170: 13 | C170: 5 | D170: WHOLESALE TRADE | E170: 42 | F170: 7 | G170: 14 | H170: 607987 | I170: 835 | J170: =IF(County!G170=0,"0",IF(County!G170<5,"*",ROUND((G170*1),-1))) -> 10 | K170: 608000 | L170: 60800
B171: 13 | C171: 5 | D171: RETAIL TRADE | E171: 44-45 | F171: 77 | G171: 386 | H171: 6554030 | I171: 327 | J171: =IF(County!G171=0,"0",IF(County!G171<5,"*",ROUND((G171*1),-1))) -> 390 | K171: 6554000 | L171: 16800
B172: 13 | C172: 5 | D172: TRANSPORTATION AND WAREHOUSING | E172: 48-49 | F172: 8 | G172: 30 | H172: 737795 | I172: 473 | J172: =IF(County!G172=0,"0",IF(County!G172<5,"*",ROUND((G172*1),-1))) -> 30 | K172: 737800 | L172: 24600
B173: 13 | C173: 5 | D173: INFORMATION | E173: 51 | F173: 5 | G173: 11 | H173: 407031 | I173: 712 | J173: =IF(County!G173=0,"0",IF(County!G173<5,"*",ROUND((G173*1),-1))) -> 10 | K173: 407000 | L173: 40700
B174: 13 | C174: 5 | D174: FINANCE AND INSURANCE | E174: 52 | F174: 12 | G174: 42 | H174: 1448478 | I174: 663 | J174: =IF(County!G174=0,"0",IF(County!G174<5,"*",ROUND((G174*1),-1))) -> 40 | K174: 1448500 | L174: 36200
B175: 13 | C175: 5 | D175: REAL ESTATE AND RENTAL AND LEASING | E175: 53 | F175: 10 | G175: 29 | H175: 723835 | I175: 480 | J175: =IF(County!G175=0,"0",IF(County!G175<5,"*",ROUND((G175*1),-1))) -> 30 | K175: 723800 | L175: 24100
B176: 13 | C176: 5 | D176: PROFESSIONAL AND TECHNICAL SERVICES | E176: 54 | F176: 30 | G176: 99 | H176: 4741805 | I176: 921 | J176: =IF(County!G176=0,"0",IF(County!G176<5,"*",ROUND((G176*1),-1))) -> 100 | K176: 4741800 | L176: 47400
B177: 13 | C177: 5 | D177: MANAGEMENT OF COMPANIES AND ENTERPRISES | E177: 55 | F177: 0 | G177: 0 | H177: 0 | I177: 0 | J177: =IF(County!G177=0,"0",IF(County!G177<5,"*",ROUND((G177*1),-1))) -> 0 | K177: 0 | L177: 0
B178: 13 | C178: 5 | D178: ADMINISTRATIVE AND WASTE SERVICES | E178: 56 | F178: 14 | G178: 111 | H178: 2338339 | I178: 405 | J178: =IF(County!G178=0,"0",IF(County!G178<5,"*",ROUND((G178*1),-1))) -> 110 | K178: 2338300 | L178: 21300
B179: 13 | C179: 5 | D179: EDUCATIONAL SERVICES | E179: 61 | F179: 0 | G179: 0 | H179: 0 | I179: 0 | J179: =IF(County!G179=0,"0",IF(County!G179<5,"*",ROUND((G179*1),-1))) -> 0 | K179: 0 | L179: 0
B180: 13 | C180: 5 | D180: HEALTH CARE AND SOCIAL ASSISTANCE | E180: 62 | F180: 19 | G180: 354 | H180: 11629495 | I180: 632 | J180: =IF(County!G180=0,"0",IF(County!G180<5,"*",ROUND((G180*1),-1))) -> 350 | K180: 11629500 | L180: 33200
B181: 13 | C181: 5 | D181: ARTS, ENTERTAINMENT, AND RECREATION | E181: 71 | F181: 6 | G181: 35 | H181: 869178 | I181: 478 | J181: =IF(County!G181=0,"0",IF(County!G181<5,"*",ROUND((G181*1),-1))) -> 40 | K181: 869200 | L181: 21700
B182: 13 | C182: 5 | D182: ACCOMMODATION AND FOOD SERVICES | E182: 72 | F182: 43 | G182: 592 | H182: 8459873 | I182: 275 | J182: =IF(County!G182=0,"0",IF(County!G182<5,"*",ROUND((G182*1),-1))) -> 590 | K182: 8459900 | L182: 14300
B183: 13 | C183: 5 | D183: OTHER SERVICES, EXCEPT PUBLIC ADMIN | E183: 81 | F183: 15 | G183: 82 | H183: 1605616 | I183: 377 | J183: =IF(County!G183=0,"0",IF(County!G183<5,"*",ROUND((G183*1),-1))) -> 80 | K183: 1605600 | L183: 20100
B184: 13 | C184: 3 | D184: LOCAL GOVERNMENT | E184: 11 | F184: 7 | G184: 602 | H184: 19004708 | I184: 607 | J184: =IF(County!G184=0,"0",IF(County!G184<5,"*",ROUND((G184*1),-1))) -> 600 | K184: 19004700 | L184: 31700
A185: D | B185: 13 | C185: 3 | D185: EDUCATIONAL SERVICES | E185: 61 | F185: 1 | G185: 361 | H185: 12418477 | I185: 662 | J185: =IF(County!G185=0,"0",IF(County!G185<5,"*",ROUND((G185*1),-1))) -> 360 | K185: 12418500 | L185: 34500
B186: 13 | C186: 3 | D186: HEALTH CARE AND SOCIAL ASSISTANCE | E186: 62 | F186: 0 | G186: 0 | H186: 0 | I186: 0 | J186: =IF(County!G186=0,"0",IF(County!G186<5,"*",ROUND((G186*1),-1))) -> 0 | K186: 0 | L186: 0
B187: 13 | C187: 2 | D187: STATE GOVERNMENT | E187: 11 | F187: 11 | G187: 216 | H187: 4118575 | I187: 367 | J187: =IF(County!G187=0,"0",IF(County!G187<5,"*",ROUND((G187*1),-1))) -> 220 | K187: 4118600 | L187: 18700
B188: 13 | C188: 2 | D188: EDUCATIONAL SERVICES | E188: 61 | F188: 0 | G188: 0 | H188: 0 | I188: 0 | J188: =IF(County!G188=0,"0",IF(County!G188<5,"*",ROUND((G188*1),-1))) -> 0 | K188: 0 | L188: 0
B189: 13 | C189: 2 | D189: HEALTH CARE AND SOCIAL ASSISTANCE | E189: 62 | F189: 0 | G189: 0 | H189: 0 | I189: 0 | J189: =IF(County!G189=0,"0",IF(County!G189<5,"*",ROUND((G189*1),-1))) -> 0 | K189: 0 | L189: 0
B190: 13 | C190: U | D190: TOTAL UI COVERED | E190: 11 | F190: 332 | G190: 2961 | H190: 72638520 | I190: 472 | J190: =IF(County!G190=0,"0",IF(County!G190<5,"*",ROUND((G190*1),-1))) -> 2960 | K190: 72638500 | L190: 24500
B191: 13 | C191: 1 | D191: FEDERAL GOVERNMENT | E191: 11 | F191: 2 | G191: 15 | H191: 747941 | I191: 959 | J191: =IF(County!G191=0,"0",IF(County!G191<5,"*",ROUND((G191*1),-1))) -> 20 | K191: 747900 | L191: 37400
B192: 15 | C192: 5 | D192: AGRICULTURE, FORESTRY, FISHING AND HUNTI | E192: 11 | F192: 32 | G192: 192 | H192: 7894776 | I192: 791 | J192: =IF(County!G192=0,"0",IF(County!G192<5,"*",ROUND((G192*1),-1))) -> 190 | K192: 7894800 | L192: 41600
A193: D | B193: 15 | C193: 5 | D193: MINING, QUARRYING, AND OIL AND GAS EXTRA | E193: 21 | F193: 1 | G193: 25 | H193: 1538931 | I193: 1184 | J193: =IF(County!G193=0,"0",IF(County!G193<5,"*",ROUND((G193*1),-1))) -> 30 | K193: 1538900 | L193: 51300
A194: D | B194: 15 | C194: 5 | D194: UTILITIES | E194: 22 | F194: 1 | G194: 18 | H194: 1136980 | I194: 1215 | J194: =IF(County!G194=0,"0",IF(County!G194<5,"*",ROUND((G194*1),-1))) -> 20 | K194: 1137000 | L194: 56900
B195: 15 | C195: 5 | D195: CONSTRUCTION | E195: 23 | F195: 60 | G195: 260 | H195: 8998727 | I195: 666 | J195: =IF(County!G195=0,"0",IF(County!G195<5,"*",ROUND((G195*1),-1))) -> 260 | K195: 8998700 | L195: 34600
A196: D | B196: 15 | C196: 5 | D196: MANUFACTURING | E196: 31-33 | F196: 18 | G196: 2236 | H196: 86288223 | I196: 742 | J196: =IF(County!G196=0,"0",IF(County!G196<5,"*",ROUND((G196*1),-1))) -> 2240 | K196: 86288200 | L196: =IF(G196=0,0,IF(J196="*","*",ROUND((K196/J196),-2))) -> 38500
B197: 15 | C197: 5 | D197: WHOLESALE TRADE | E197: 42 | F197: 17 | G197: 177 | H197: 11108309 | I197: 1207 | J197: =IF(County!G197=0,"0",IF(County!G197<5,"*",ROUND((G197*1),-1))) -> 180 | K197: 11108300 | L197: 61700
B198: 15 | C198: 5 | D198: RETAIL TRADE | E198: 44-45 | F198: 50 | G198: 394 | H198: 8746716 | I198: 427 | J198: =IF(County!G198=0,"0",IF(County!G198<5,"*",ROUND((G198*1),-1))) -> 390 | K198: 8746700 | L198: 22400
B199: 15 | C199: 5 | D199: TRANSPORTATION AND WAREHOUSING | E199: 48-49 | F199: 23 | G199: 99 | H199: 3580054 | I199: 695 | J199: =IF(County!G199=0,"0",IF(County!G199<5,"*",ROUND((G199*1),-1))) -> 100 | K199: 3580100 | L199: 35800
B200: 15 | C200: 5 | D200: INFORMATION | E200: 51 | F200: 5 | G200: 18 | H200: 637578 | I200: 681 | J200: =IF(County!G200=0,"0",IF(County!G200<5,"*",ROUND((G200*1),-1))) -> 20 | K200: 637600 | L200: 31900
... 2313 more rows

Sheet UI Covered Statewide (hidden)
A1: 1998 | B1: 1999 | C1: 2000 | D1: 2001 | E1: 2002 | F1: 2003 | G1: 2004 | H1: 2005 | I1: 2006 | J1: 2007 | K1: 2008 | L1: 2009 | M1: 2010 | N1: 2011 | O1: 2012 | P1: 2013 | Q1: 2014 | R1: 2015
A2: 2814320 | B2: 2865800 | C2: 2893100 | D2: 2832760 | E2: 2795720 | F2: 2784820 | G2: 2812360 | H2: 2837430 | I2: 2855800 | J2: 2868800 | K2: 2834510 | L2: 2834510 | M2: 2667710 | N2: 2717580 | O2: 2774880 | P2: 2812420 | Q2: 2854650 | R2: =#REF! -> 

Sheet UI Covered County (hidden)
A1: CountyName | B1: County | C1: 1998 | D1: 1999 | E1: 2000 | F1: 2001 | G1: 2002 | H1: 2003 | I1: 2004 | J1: 2005 | K1: 2006 | L1: 2007 | M1: 2008 | N1: 2009 | O1: 2010 | P1: 2011 | Q1: 2012 | R1: 2013 | S1: 2014 | T1: 2015
A2: Adams County | B2: 1 | C2: 15000 | D2: 15340 | E2: 15300 | F2: 13650 | G2: 13890 | H2: 14140 | I2: 14830 | J2: 14570 | K2: 14190 | L2: 14000 | M2: 12820 | N2: 11360 | O2: 11950 | P2: 12130 | Q2: 12310 | R2: 12510 | S2: 13000 | T2: ='Adams (001)'!$D$41 -> 13000
A3: Allen County | B3: 3 | C3: 185990 | D3: 186590 | E3: 186970 | F3: 181160 | G3: 178820 | H3: 174850 | I3: 176290 | J3: 177700 | K3: 180570 | L3: 180810 | M3: 178554 | N3: 167910 | O3: 167540 | P3: 170670 | Q3: 173280 | R3: 173090 | S3: 175290 | T3: ='Allen (003)'!$D$41 -> 175290
A4: Bartholomew County | B4: 5 | C4: 43450 | D4: 43400 | E4: 42810 | F4: 40870 | G4: 40070 | H4: 39050 | I4: 40120 | J4: 41330 | K4: 42380 | L4: 43520 | M4: 44246 | N4: 40640 | O4: 40650 | P4: 43690 | Q4: 47060 | R4: 47100 | S4: 48490 | T4: ='Bartholomew (005)'!$D$41 -> 48490
A5: Benton County | B5: 7 | C5: 2680 | D5: 2870 | E5: 2780 | F5: 2610 | G5: 2480 | H5: 2470 | I5: 2380 | J5: 2390 | K5: 2380 | L5: 2390 | M5: 2366 | N5: 2270 | O5: 2270 | P5: 2270 | Q5: 2270 | R5: 2260 | S5: 2270 | T5: ='Benton (007)'!$D$41 -> 2270
A6: Blackford County | B6: 9 | C6: 4570 | D6: 4570 | E6: 4420 | F6: 4290 | G6: 4250 | H6: 4070 | I6: 3980 | J6: 4030 | K6: 3920 | L6: 3880 | M6: 3667 | N6: 3300 | O6: 3290 | P6: 3230 | Q6: 3200 | R6: 3290 | S6: 3180 | T6: ='Blackford (009)'!$D$41 -> 3180
A7: Boone County | B7: 11 | C7: 13820 | D7: 13710 | E7: 13930 | F7: 14700 | G7: 15090 | H7: 15700 | I7: 16600 | J7: 17570 | K7: 17950 | L7: 18410 | M7: 19497 | N7: 19310 | O7: 20110 | P7: 20830 | Q7: 22370 | R7: 24650 | S7: 25860 | T7: ='Boone (011)'!$D$41 -> 25860
A8: Brown County | B8: 13 | C8: 2790 | D8: 2880 | E8: 2920 | F8: 2890 | G8: 2960 | H8: 2940 | I8: 3000 | J8: 3080 | K8: 3130 | L8: 3170 | M8: 3048 | N8: 2980 | O8: 2920 | P8: 3010 | Q8: 2870 | R8: 2920 | S8: 2960 | T8: ='Brown (013)'!$D$41 -> 2960
A9: Carroll County | B9: 15 | C9: 5630 | D9: 5710 | E9: 5700 | F9: 5610 | G9: 5490 | H9: 5300 | I9: 5220 | J9: 5270 | K9: 5290 | L9: 5400 | M9: 5249 | N9: 4940 | O9: 4950 | P9: 4910 | Q9: 5100 | R9: 5210 | S9: 5240 | T9: ='Carroll (015)'!$D$41 -> 5240
A10: Cass County | B10: 17 | C10: 17450 | D10: 17630 | E10: 17710 | F10: 17040 | G10: 16850 | H10: 16170 | I10: 16000 | J10: 15530 | K10: 15250 | L10: 15380 | M10: 15323 | N10: 14480 | O10: 14460 | P10: 14170 | Q10: 14210 | R10: 14310 | S10: 14430 | T10: ='Cass (017)'!$D$41 -> 14430
A11: Clark County | B11: 19 | C11: 42480 | D11: 43480 | E11: 43120 | F11: 43280 | G11: 43140 | H11: 41930 | I11: 42470 | J11: 43800 | K11: 44470 | L11: 45730 | M11: 46017 | N11: 44270 | O11: 43590 | P11: 44060 | Q11: 45140 | R11: 46660 | S11: 48570 | T11: ='Clark (019)'!$D$41 -> 48570
A12: Clay County | B12: 21 | C12: 7520 | D12: 7780 | E12: 7620 | F12: 6580 | G12: 6760 | H12: 7100 | I12: 7440 | J12: 7360 | K12: 7540 | L12: 7150 | M12: 6816 | N12: 6500 | O12: 6920 | P12: 7440 | Q12: 7550 | R12: 7440 | S12: 7470 | T12: ='Clay (021)'!$D$41 -> 7470
A13: Clinton County | B13: 23 | C13: 12010 | D13: 11550 | E13: 11270 | F13: 11060 | G13: 10970 | H13: 11110 | I13: 11070 | J13: 11110 | K13: 11150 | L13: 11100 | M13: 10967 | N13: 10400 | O13: 10470 | P13: 10490 | Q13: 10550 | R13: 10540 | S13: 10760 | T13: ='Clinton (023)'!$D$41 -> 10760
A14: Crawford County | B14: 25 | C14: 1690 | D14: 1960 | E14: 2030 | F14: 2160 | G14: 2190 | H14: 2180 | I14: 2270 | J14: 2210 | K14: 2080 | L14: 2090 | M14: 2133 | N14: 1850 | O14: 1920 | P14: 1900 | Q14: 1920 | R14: 1950 | S14: 1990 | T14: ='Crawford (025)'!$D$41 -> 1990
A15: Daviess County | B15: 27 | C15: 10020 | D15: 10330 | E15: 10230 | F15: 9830 | G15: 9860 | H15: 10060 | I15: 10410 | J15: 10670 | K15: 10930 | L15: 11140 | M15: 11024 | N15: 10630 | O15: 10350 | P15: 10550 | Q15: 10660 | R15: 10770 | S15: 10940 | T15: ='Daviess (027)'!$D$41 -> 10940
A16: Dearborn County | B16: 29 | C16: 13380 | D16: 13640 | E16: 13960 | F16: 14270 | G16: 14190 | H16: 14350 | I16: 14530 | J16: 14630 | K16: 14690 | L16: 14630 | M16: 14421 | N16: 14420 | O16: 14180 | P16: 14240 | Q16: 14190 | R16: 13890 | S16: 14070 | T16: ='Dearborn (029)'!$D$41 -> 14070
A17: Decatur County | B17: 31 | C17: 13170 | D17: 14230 | E17: 14240 | F17: 13420 | G17: 13840 | H17: 12370 | I17: 12270 | J17: 12360 | K17: 12320 | L17: 12070 | M17: 12212 | N17: 11320 | O17: 11100 | P17: 11360 | Q17: 12530 | R17: 13060 | S17: 13420 | T17: ='Decatur (031)'!$D$41 -> 13420
A18: Dekalb County | B18: 33 | C18: 21170 | D18: 22110 | E18: 21770 | F18: 20900 | G18: 21150 | H18: 21150 | I18: 21350 | J18: 21210 | K18: 20530 | L18: 20110 | M18: 19442 | N18: 17840 | O18: 17790 | P18: 18230 | Q18: 19130 | R18: 19970 | S18: 20470 | T18: ='Dekalb (033)'!$D$41 -> 20470
A19: Delaware County | B19: 35 | C19: 53840 | D19: 53870 | E19: 53730 | F19: 52890 | G19: 51170 | H19: 49990 | I19: 48380 | J19: 47190 | K19: 48160 | L19: 47720 | M19: 46154 | N19: 43930 | O19: 43220 | P19: 43610 | Q19: 44310 | R19: 44380 | S19: 44070 | T19: ='Delaware (035)'!$D$41 -> 44070
A20: Dubois County | B20: 37 | C20: 28470 | D20: 28950 | E20: 29350 | F20: 28670 | G20: 28050 | H20: 27630 | I20: 27930 | J20: 28350 | K20: 28320 | L20: 28440 | M20: 28079 | N20: 26430 | O20: 26070 | P20: 26490 | Q20: 26700 | R20: 27050 | S20: 27440 | T20: ='Dubois (037)'!$D$41 -> 27440
A21: Elkhart County | B21: 39 | C21: 116400 | D21: 121660 | E21: 122100 | F21: 113230 | G21: 113230 | H21: 115600 | I21: 122710 | J21: 124870 | K21: 126850 | L21: 124440 | M21: 114019 | N21: 93840 | O21: 99830 | P21: 103380 | Q21: 109440 | R21: 115010 | S21: 119890 | T21: ='Elkhart (039)'!$D$41 -> 119890
A22: Fayette County | B22: 41 | C22: 10890 | D22: 10700 | E22: 10460 | F22: 9780 | G22: 9340 | H22: 9000 | I22: 8650 | J22: 8780 | K22: 7990 | L22: 7700 | M22: 6873 | N22: 6430 | O22: 6220 | P22: 6250 | Q22: 6190 | R22: 6160 | S22: 6290 | T22: ='Fayette (041)'!$D$41 -> 6290
A23: Floyd County | B23: 43 | C23: 26430 | D23: 26640 | E23: 26830 | F23: 26180 | G23: 26040 | H23: 26940 | I23: 27900 | J23: 28520 | K23: 29100 | L23: 28970 | M23: 29006 | N23: 27640 | O23: 27900 | P23: 27760 | Q23: 27590 | R23: 28140 | S23: 27910 | T23: ='Floyd (43)'!$D$41 -> 27910
A24: Fountain County | B24: 45 | C24: 5740 | D24: 5690 | E24: 5740 | F24: 5510 | G24: 5230 | H24: 5180 | I24: 5300 | J24: 5560 | K24: 5630 | L24: 5690 | M24: 5603 | N24: 4840 | O24: 4930 | P24: 5230 | Q24: 5390 | R24: 5000 | S24: 4920 | T24: ='Fountain (045)'!$D$41 -> 4920
A25: Franklin County | B25: 47 | C25: 4000 | D25: 4020 | E25: 4110 | F25: 4030 | G25: 3930 | H25: 3970 | I25: 4060 | J25: 4020 | K25: 4090 | L25: 4390 | M25: 4401 | N25: 4160 | O25: 4080 | P25: 3940 | Q25: 3720 | R25: 4050 | S25: 4140 | T25: ='Franklin (047)'!$D$41 -> 4140
A26: Fulton County | B26: 49 | C26: 7470 | D26: 7440 | E26: 7250 | F26: 6790 | G26: 6730 | H26: 6630 | I26: 6620 | J26: 6750 | K26: 6750 | L26: 6810 | M26: 6551 | N26: 5930 | O26: 6050 | P26: 6300 | Q26: 6460 | R26: 6310 | S26: 6210 | T26: ='Fulton (049)'!$D$41 -> 6210
A27: Gibson County | B27: 51 | C27: 10830 | D27: 11420 | E27: 12380 | F27: 12460 | G27: 13280 | H27: 14980 | I27: 15390 | J27: 15940 | K27: 16140 | L27: 16030 | M27: 15591 | N27: 15150 | O27: 16480 | P27: 17110 | Q27: 17760 | R27: 18860 | S27: 19340 | T27: ='Gibson (051)'!$D$41 -> 19340
A28: Grant County | B28: 53 | C28: 29700 | D28: 29770 | E28: 29100 | F28: 28310 | G28: 27920 | H28: 27190 | I28: 26110 | J28: 25710 | K28: 25570 | L28: 25740 | M28: 25850 | N28: 25310 | O28: 25540 | P28: 25490 | Q28: 26190 | R28: 26480 | S28: 26630 | T28: ='Grant (053)'!$D$41 -> 26630
A29: Greene County | B29: 55 | C29: 7990 | D29: 7930 | E29: 7580 | F29: 7490 | G29: 7530 | H29: 7190 | I29: 7070 | J29: 7190 | K29: 7270 | L29: 7370 | M29: 7419 | N29: 7580 | O29: 6540 | P29: 6490 | Q29: 6340 | R29: 6310 | S29: 6510 | T29: ='Greene (055)'!$D$41 -> 6510
A30: Hamilton County | B30: 57 | C30: 69420 | D30: 74330 | E30: 77030 | F30: 78650 | G30: 80150 | H30: 84180 | I30: 88080 | J30: 94850 | K30: 99740 | L30: 109530 | M30: 111972 | N30: 108070 | O30: 107500 | P30: 110820 | Q30: 113520 | R30: 119460 | S30: 125160 | T30: ='Hamilton (057)'!$D$41 -> 125160
A31: Hancock County | B31: 59 | C31: 14480 | D31: 14820 | E31: 15420 | F31: 15790 | G31: 16370 | H31: 17150 | I31: 18120 | J31: 18410 | K31: 19340 | L31: 19330 | M31: 19691 | N31: 18320 | O31: 18740 | P31: 19200 | Q31: 19810 | R31: 20800 | S31: 21180 | T31: ='Hancock (059)'!$D$41 -> 21180
A32: Harrison County | B32: 61 | C32: 9230 | D32: 11060 | E32: 11840 | F32: 11710 | G32: 12150 | H32: 12030 | I32: 11830 | J32: 11320 | K32: 11350 | L32: 11450 | M32: 11197 | N32: 10570 | O32: 10700 | P32: 10680 | Q32: 10020 | R32: 9920 | S32: 9920 | T32: ='Harrison (061)'!$D$41 -> 9920
A33: Hendricks County | B33: 63 | C33: 25670 | D33: 27350 | E33: 29620 | F33: 31230 | G33: 33280 | H33: 35300 | I33: 38290 | J33: 39850 | K33: 42810 | L33: 45380 | M33: 47456 | N33: 48040 | O33: 49730 | P33: 51840 | Q33: 53930 | R33: 55260 | S33: 57450 | T33: ='Hendricks (063)'!$D$41 -> 57450
A34: Henry County | B34: 65 | C34: 14520 | D34: 14570 | E34: 14410 | F34: 14010 | G34: 13750 | H34: 13890 | I34: 13740 | J34: 13420 | K34: 13260 | L34: 13180 | M34: 13094 | N34: 12210 | O34: 11670 | P34: 12030 | Q34: 12280 | R34: 12620 | S34: 12760 | T34: ='Henry (065)'!$D$41 -> 12760
A35: Howard County | B35: 67 | C35: 46610 | D35: 47330 | E35: 46700 | F35: 44230 | G35: 43510 | H35: 42160 | I35: 41700 | J35: 41220 | K35: 40770 | L35: 39890 | M35: 37892 | N35: 32930 | O35: 34250 | P35: 35150 | Q35: 36170 | R35: 37480 | S35: 38270 | T35: ='Howard (067)'!$D$41 -> 38270
A36: Huntington County | B36: 69 | C36: 16580 | D36: 16480 | E36: 16070 | F36: 15560 | G36: 15340 | H36: 15160 | I36: 15270 | J36: 15160 | K36: 15040 | L36: 15000 | M36: 14710 | N36: 13220 | O36: 13500 | P36: 14050 | Q36: 13700 | R36: 13810 | S36: 14020 | T36: ='Huntington (069)'!$D$41 -> 14020
A37: Jackson County | B37: 71 | C37: 19030 | D37: 20070 | E37: 20340 | F37: 20290 | G37: 20180 | H37: 20050 | I37: 20300 | J37: 20170 | K37: 20140 | L37: 20170 | M37: 19587 | N37: 17900 | O37: 18160 | P37: 18460 | Q37: 18930 | R37: 19650 | S37: 19990 | T37: ='Jackson (071)'!$D$41 -> 19990
A38: Jasper County | B38: 73 | C38: 10110 | D38: 10440 | E38: 10780 | F38: 10650 | G38: 10440 | H38: 10540 | I38: 11540 | J38: 11740 | K38: 12100 | L38: 12420 | M38: 12183 | N38: 11530 | O38: 10990 | P38: 11110 | Q38: 11390 | R38: 12020 | S38: 11790 | T38: ='Jasper (73)'!$D$41 -> 11790
A39: Jay County | B39: 75 | C39: 7620 | D39: 7490 | E39: 7410 | F39: 7250 | G39: 6950 | H39: 6650 | I39: 7240 | J39: 7820 | K39: 8030 | L39: 8060 | M39: 8146 | N39: 7390 | O39: 7460 | P39: 7530 | Q39: 7410 | R39: 7430 | S39: 7500 | T39: ='Jay (075)'!$D$41 -> 7500
A40: Jefferson County | B40: 77 | C40: 12530 | D40: 12580 | E40: 12600 | F40: 12490 | G40: 12730 | H40: 12730 | I40: 13070 | J40: 13210 | K40: 13180 | L40: 12970 | M40: 12620 | N40: 11860 | O40: 11770 | P40: 11760 | Q40: 12210 | R40: 12390 | S40: 12200 | T40: ='Jefferson (077)'!$D$41 -> 12200
A41: Jennings County | B41: 79 | C41: 8260 | D41: 8660 | E41: 8710 | F41: 8500 | G41: 7730 | H41: 8110 | I41: 8280 | J41: 7970 | K41: 7820 | L41: 7850 | M41: 7612 | N41: 6980 | O41: 7150 | P41: 7140 | Q41: 7060 | R41: 7080 | S41: 7160 | T41: ='Jennings (079)'!$D$41 -> 7160
A42: Johnson County | B42: 81 | C42: 37760 | D42: 38470 | E42: 39010 | F42: 38670 | G42: 39230 | H42: 39930 | I42: 40190 | J42: 40820 | K42: 42420 | L42: 42780 | M42: 42670 | N42: 40790 | O42: 40660 | P42: 42420 | Q42: 44420 | R42: 46650 | S42: 47400 | T42: ='Johnson (081)'!$D$41 -> 47400
A43: Knox County | B43: 83 | C43: 17080 | D43: 16940 | E43: 16910 | F43: 16750 | G43: 16730 | H43: 16590 | I43: 16260 | J43: 16050 | K43: 16340 | L43: 16530 | M43: 16561 | N43: 15820 | O43: 16330 | P43: 16420 | Q43: 17040 | R43: 17210 | S43: 17420 | T43: ='Knox (083)'!$D$41 -> 17420
A44: Kosciusko County | B44: 85 | C44: 32400 | D44: 33270 | E44: 33850 | F44: 32660 | G44: 32930 | H44: 33220 | I44: 33670 | J44: 34920 | K44: 35040 | L44: 35040 | M44: 35337 | N44: 33080 | O44: 33620 | P44: 34180 | Q44: 34900 | R44: 36130 | S44: 36720 | T44: ='Kosciusko (085)'!$D$41 -> 36720
A45: Lagrange County | B45: 87 | C45: 12720 | D45: 12930 | E45: 12800 | F45: 11940 | G45: 12090 | H45: 12100 | I45: 12300 | J45: 12260 | K45: 12450 | L45: 12300 | M45: 11448 | N45: 9580 | O45: 10090 | P45: 10650 | Q45: 11560 | R45: 12360 | S45: 12740 | T45: ='Lagrange (087)'!$D$41 -> 12740
A46: Lake County | B46: 89 | C46: 201120 | D46: 201960 | E46: 197550 | F46: 192940 | G46: 187770 | H46: 189300 | I46: 189370 | J46: 191210 | K46: 191800 | L46: 193110 | M46: 192672 | N46: 182720 | O46: 180770 | P46: 183860 | Q46: 187200 | R46: 186310 | S46: 184760 | T46: ='Lake (089)'!$D$41 -> 184760
A47: Laporte County | B47: 91 | C47: 46560 | D47: 46680 | E47: 47150 | F47: 46640 | G47: 46080 | H47: 45190 | I47: 44440 | J47: 44860 | K47: 44680 | L47: 44620 | M47: 44103 | N47: 41600 | O47: 40460 | P47: 40930 | Q47: 40960 | R47: 40430 | S47: 40480 | T47: ='Laporte (091)'!$D$41 -> 40480
A48: Lawrence County | B48: 93 | C48: 15550 | D48: 15370 | E48: 15320 | F48: 14830 | G48: 14460 | H48: 14100 | I48: 13880 | J48: 13860 | K48: 14220 | L48: 13850 | M48: 13258 | N48: 12030 | O48: 12080 | P48: 12420 | Q48: 12510 | R48: 12750 | S48: 12590 | T48: ='Lawrence (093)'!$D$41 -> 12590
A49: Madison County | B49: 95 | C49: 46480 | D49: 45560 | E49: 45630 | F49: 44850 | G49: 43910 | H49: 43110 | I49: 42590 | J49: 42110 | K49: 40940 | L49: 39070 | M49: 39251 | N49: 38570 | O49: 38090 | P49: 38070 | Q49: 38210 | R49: 37640 | S49: 37680 | T49: ='Madison (095)'!$D$41 -> 37680
A50: Marion County | B50: 97 | C50: 571290 | D50: 583940 | E50: 592110 | F50: 578200 | G50: 566380 | H50: 559940 | I50: 564550 | J50: 567650 | K50: 567300 | L50: 566940 | M50: 563713 | N50: 532460 | O50: 530040 | P50: 535180 | Q50: 548680 | R50: 556030 | S50: 561980 | T50: ='Marion (097)'!$D$41 -> 561980
A51: Marshall County | B51: 99 | C51: 20180 | D51: 20620 | E51: 20150 | F51: 18840 | G51: 18110 | H51: 17850 | I51: 18370 | J51: 18510 | K51: 18660 | L51: 18940 | M51: 18879 | N51: 17160 | O51: 17300 | P51: 17820 | Q51: 18130 | R51: 18510 | S51: 19120 | T51: ='Marshall (099)'!$D$41 -> 19120
A52: Martin County | B52: 101 | C52: 3180 | D52: 3290 | E52: 3210 | F52: 3290 | G52: 3330 | H52: 3440 | I52: 2980 | J52: 2960 | K52: 3300 | L52: 3160 | M52: 3003 | N52: 2960 | O52: 3360 | P52: 3330 | Q52: 2950 | R52: 2920 | S52: 2920 | T52: ='Martin (101)'!$D$41 -> 2920
A53: Miami County | B53: 103 | C53: 9440 | D53: 9760 | E53: 10200 | F53: 10070 | G53: 9920 | H53: 9670 | I53: 9780 | J53: 10030 | K53: 9790 | L53: 9680 | M53: 9518 | N53: 8560 | O53: 8220 | P53: 8420 | Q53: 8520 | R53: 8560 | S53: 8630 | T53: ='Miami (103)'!$D$41 -> 8630
A54: Monroe County | B54: 105 | C54: 57730 | D54: 59270 | E54: 59520 | F54: 57970 | G54: 57570 | H54: 59490 | I54: 60890 | J54: 61040 | K54: 60930 | L54: 61890 | M54: 61735 | N54: 61280 | O54: 60880 | P54: 60980 | Q54: 61190 | R54: 61050 | S54: 61230 | T54: ='Monroe (105)'!$D$41 -> 61230
A55: Montgomery County | B55: 107 | C55: 17840 | D55: 17160 | E55: 17300 | F55: 16770 | G55: 16470 | H55: 16440 | I55: 16670 | J55: 16670 | K55: 16490 | L55: 16170 | M55: 15627 | N55: 14430 | O55: 14330 | P55: 14400 | Q55: 14610 | R55: 14650 | S55: 14950 | T55: ='Montgomery (107)'!$D$41 -> 14950
A56: Morgan County | B56: 109 | C56: 14130 | D56: 14460 | E56: 14740 | F56: 14520 | G56: 14410 | H56: 14400 | I56: 14910 | J56: 15010 | K56: 15090 | L56: 15020 | M56: 14628 | N56: 13970 | O56: 13800 | P56: 14030 | Q56: 14530 | R56: 14560 | S56: 14610 | T56: ='Morgan (109)'!$D$41 -> 14610
A57: Newton County | B57: 111 | C57: 4060 | D57: 3940 | E57: 4200 | F57: 4040 | G57: 4020 | H57: 4000 | I57: 4180 | J57: 4170 | K57: 4280 | L57: 4180 | M57: 3828 | N57: 3460 | O57: 3390 | P57: 3450 | Q57: 3440 | R57: 3400 | S57: 3440 | T57: ='Newton (111)'!$D$41 -> 3440
A58: Noble County | B58: 113 | C58: 20730 | D58: 20750 | E58: 21660 | F58: 20280 | G58: 19740 | H58: 19420 | I58: 19400 | J58: 19440 | K58: 19050 | L58: 18850 | M58: 17734 | N58: 15440 | O58: 16110 | P58: 16990 | Q58: 17220 | R58: 17590 | S58: 18210 | T58: ='Noble (113)'!$D$41 -> 18210
A59: Ohio County | B59: 115 | C59: 2140 | D59: 2070 | E59: 2000 | F59: 1840 | G59: 1810 | H59: 1760 | I59: 1690 | J59: 1700 | K59: 1660 | L59: 1670 | M59: 1642 | N59: 1560 | O59: 1490 | P59: 1530 | Q59: 1500 | R59: 1600 | S59: 1510 | T59: ='Ohio (115)'!$D$41 -> 1510
A60: Orange County | B60: 117 | C60: 7080 | D60: 6940 | E60: 6890 | F60: 6530 | G60: 6270 | H60: 6050 | I60: 6110 | J60: 6270 | K60: 6560 | L60: 7670 | M60: 7607 | N60: 7340 | O60: 7320 | P60: 7200 | Q60: 7330 | R60: 7400 | S60: 7270 | T60: ='Orange (117)'!$D$41 -> 7270
A61: Owen County | B61: 119 | C61: 4000 | D61: 4200 | E61: 4320 | F61: 4290 | G61: 4410 | H61: 4380 | I61: 4400 | J61: 4580 | K61: 4710 | L61: 4950 | M61: 5080 | N61: 4980 | O61: 4750 | P61: 4650 | Q61: 4580 | R61: 4470 | S61: 4470 | T61: ='Owen (119)'!$D$41 -> 4470
A62: Parke County | B62: 121 | C62: 3440 | D62: 3510 | E62: 3470 | F62: 3410 | G62: 3330 | H62: 3330 | I62: 3300 | J62: 3300 | K62: 3270 | L62: 3420 | M62: 3388 | N62: 3250 | O62: 3130 | P62: 3050 | Q62: 2970 | R62: 3020 | S62: 3040 | T62: ='Parke (121)'!$D$41 -> 3040
A63: Perry County | B63: 123 | C63: 5740 | D63: 5900 | E63: 6000 | F63: 5710 | G63: 5900 | H63: 6050 | I63: 6220 | J63: 6190 | K63: 6250 | L63: 6290 | M63: 6192 | N63: 5740 | O63: 5780 | P63: 6030 | Q63: 6060 | R63: 6150 | S63: 6380 | T63: ='Perry (123)'!$D$41 -> 6380
A64: Pike County | B64: 125 | C64: 2960 | D64: 2930 | E64: 2810 | F64: 2990 | G64: 3020 | H64: 3030 | I64: 2990 | J64: 2860 | K64: 3000 | L64: 3010 | M64: 3042 | N64: 3050 | O64: 2990 | P64: 3080 | Q64: 3090 | R64: 3180 | S64: 3230 | T64: ='Pike (125)'!$D$41 -> 3230
A65: Porter County | B65: 127 | C65: 54020 | D65: 54950 | E65: 54580 | F65: 53070 | G65: 51860 | H65: 51820 | I65: 52600 | J65: 53880 | K65: 55170 | L65: 56880 | M65: 56686 | N65: 53450 | O65: 54040 | P65: 55010 | Q65: 55660 | R65: 57200 | S65: 58010 | T65: ='Porter (127)'!$D$41 -> 58010
A66: Posey County | B66: 129 | C66: 9020 | D66: 9200 | E66: 9320 | F66: 8940 | G66: 8620 | H66: 8350 | I66: 8460 | J66: 8590 | K66: 8630 | L66: 8700 | M66: 8691 | N66: 8230 | O66: 8330 | P66: 8610 | Q66: 8580 | R66: 8470 | S66: 8110 | T66: ='Posey (129)'!$D$41 -> 8110
A67: Pulaski County | B67: 131 | C67: 4760 | D67: 4650 | E67: 4510 | F67: 4470 | G67: 4470 | H67: 4460 | I67: 4490 | J67: 4640 | K67: 4570 | L67: 4560 | M67: 4480 | N67: 4260 | O67: 4260 | P67: 4410 | Q67: 4480 | R67: 4450 | S67: 4500 | T67: ='Pulaski (131)'!$D$41 -> 4500
A68: Putnam County | B68: 133 | C68: 11770 | D68: 12260 | E68: 12810 | F68: 12300 | G68: 12060 | H68: 12380 | I68: 12460 | J68: 12210 | K68: 12210 | L68: 12280 | M68: 12042 | N68: 11370 | O68: 11210 | P68: 11520 | Q68: 12340 | R68: 12650 | S68: 12260 | T68: ='Putnam (133)'!$D$41 -> 12260
A69: Randolph County | B69: 135 | C69: 7530 | D69: 7790 | E69: 7940 | F69: 7960 | G69: 7900 | H69: 7570 | I69: 7350 | J69: 7190 | K69: 6980 | L69: 7050 | M69: 7072 | N69: 6860 | O69: 7030 | P69: 7180 | Q69: 7230 | R69: 7290 | S69: 7310 | T69: ='Randolph (135)'!$D$41 -> 7310
A70: Ripley County | B70: 137 | C70: 11920 | D70: 12260 | E70: 12820 | F70: 13130 | G70: 12830 | H70: 13890 | I70: 14170 | J70: 13960 | K70: 13310 | L70: 12760 | M70: 12619 | N70: 11590 | O70: 12250 | P70: 13100 | Q70: 11990 | R70: 11630 | S70: 11750 | T70: ='Ripley (137)'!$D$41 -> 11750
A71: Rush County | B71: 139 | C71: 5950 | D71: 5960 | E71: 5710 | F71: 5660 | G71: 5410 | H71: 5120 | I71: 5190 | J71: 5330 | K71: 5360 | L71: 5300 | M71: 4941 | N71: 4650 | O71: 4540 | P71: 4560 | Q71: 4530 | R71: 4570 | S71: 4720 | T71: ='Rush (139)'!$D$41 -> 4720
A72: St Joseph County | B72: 141 | C72: 127450 | D72: 128250 | E72: 128200 | F72: 123740 | G72: 121310 | H72: 121030 | I72: 122510 | J72: 123710 | K72: 122670 | L72: 122790 | M72: 120939 | N72: 113370 | O72: 112690 | P72: 114670 | Q72: 114250 | R72: 114290 | S72: 116410 | T72: ='St. Joseph (141)'!$D$41 -> 116410
A73: Scott County | B73: 143 | C73: 7010 | D73: 7470 | E73: 7590 | F73: 7260 | G73: 7020 | H73: 6930 | I73: 7250 | J73: 7300 | K73: 7160 | L73: 7040 | M73: 6904 | N73: 6240 | O73: 6150 | P73: 6410 | Q73: 6790 | R73: 7000 | S73: 7270 | T73: ='Scott (143)'!$D$41 -> 7270
A74: Shelby County | B74: 145 | C74: 16670 | D74: 17530 | E74: 17220 | F74: 16730 | G74: 16380 | H74: 16550 | I74: 16940 | J74: 16910 | K74: 17020 | L74: 16710 | M74: 16397 | N74: 15710 | O74: 15560 | P74: 15690 | Q74: 16440 | R74: 16940 | S74: 17440 | T74: ='Shelby (145)'!$D$41 -> 17440
A75: Spencer County | B75: 147 | C75: 7740 | D75: 7760 | E75: 7960 | F75: 7080 | G75: 7130 | H75: 7200 | I75: 7100 | J75: 7070 | K75: 7030 | L75: 7010 | M75: 7021 | N75: 6590 | O75: 6640 | P75: 6730 | Q75: 6810 | R75: 6750 | S75: 6820 | T75: ='Spencer (147)'!$D$41 -> 6820
A76: Starke County | B76: 149 | C76: 4570 | D76: 4500 | E76: 4490 | F76: 4330 | G76: 4200 | H76: 4140 | I76: 4190 | J76: 4200 | K76: 4190 | L76: 4280 | M76: 4269 | N76: 4010 | O76: 4120 | P76: 4160 | Q76: 4140 | R76: 4290 | S76: 4280 | T76: ='Starke (149)'!$D$41 -> 4280
A77: Steuben County | B77: 151 | C77: 17960 | D77: 17850 | E77: 17650 | F77: 15950 | G77: 15150 | H77: 14780 | I77: 15130 | J77: 14940 | K77: 14450 | L77: 14420 | M77: 13853 | N77: 12980 | O77: 13320 | P77: 13820 | Q77: 14480 | R77: 15000 | S77: 15430 | T77: ='Steuben (151)'!$D$41 -> 15430
A78: Sullivan County | B78: 153 | C78: 5650 | D78: 5580 | E78: 5520 | F78: 5420 | G78: 5380 | H78: 5380 | I78: 5400 | J78: 5320 | K78: 5220 | L78: 5310 | M78: 5271 | N78: 5340 | O78: 5590 | P78: 5780 | Q78: 6120 | R78: 6080 | S78: 6120 | T78: ='Sullivan (153)'!$D$41 -> 6120
A79: Switzerland County | B79: 155 | C79: 1530 | D79: 1560 | E79: 1830 | F79: 2670 | G79: 2380 | H79: 2360 | I79: 2320 | J79: 2310 | K79: 2290 | L79: 2340 | M79: 2320 | N79: 2290 | O79: 2300 | P79: 2270 | Q79: 2230 | R79: 2160 | S79: 2060 | T79: ='Switzerland (155)'!$D$41 -> 2060
A80: Tippecanoe County | B80: 157 | C80: 74190 | D80: 76080 | E80: 76840 | F80: 74370 | G80: 73900 | H80: 71690 | I80: 72920 | J80: 74280 | K80: 75140 | L80: 75620 | M80: 75640 | N80: 72030 | O80: 71920 | P80: 75090 | Q80: 78050 | R80: 78310 | S80: 79990 | T80: ='Tippecanoe (157)'!$D$41 -> 79990
A81: Tipton County | B81: 159 | C81: 4490 | D81: 4540 | E81: 4570 | F81: 4520 | G81: 4500 | H81: 4430 | I81: 4410 | J81: 4390 | K81: 4280 | L81: 4270 | M81: 4177 | N81: 3910 | O81: 3960 | P81: 3890 | Q81: 4140 | R81: 4130 | S81: 4220 | T81: ='Tipton (159)'!$D$41 -> 4220
A82: Union County | B82: 161 | C82: 1480 | D82: 1500 | E82: 1580 | F82: 1550 | G82: 1450 | H82: 1530 | I82: 1550 | J82: 1600 | K82: 1630 | L82: 1450 | M82: 1419 | N82: 1340 | O82: 1390 | P82: 1390 | Q82: 1360 | R82: 1330 | S82: 1310 | T82: ='Union (161)'!$D$41 -> 1310
A83: Vanderburgh County | B83: 163 | C83: 105890 | D83: 108060 | E83: 108790 | F83: 108790 | G83: 107760 | H83: 107540 | I83: 106000 | J83: 107180 | K83: 107220 | L83: 106040 | M83: 106422 | N83: 102850 | O83: 103110 | P83: 104820 | Q83: 104000 | R83: 102480 | S83: 104230 | T83: ='Vanderburgh (163)'!$D$41 -> 104230
A84: Vermillion County | B84: 165 | C84: 4960 | D84: 4800 | E84: 4850 | F84: 4690 | G84: 4570 | H84: 4660 | I84: 4750 | J84: 4720 | K84: 4710 | L84: 4690 | M84: 4587 | N84: 4270 | O84: 4170 | P84: 4030 | Q84: 4270 | R84: 4200 | S84: 4280 | T84: ='Vermillion (165)'!$D$41 -> 4280
A85: Vigo County | B85: 167 | C85: 50150 | D85: 51030 | E85: 51650 | F85: 50600 | G85: 50120 | H85: 50610 | I85: 50490 | J85: 50180 | K85: 50390 | L85: 50850 | M85: 50344 | N85: 48980 | O85: 48510 | P85: 47950 | Q85: 48020 | R85: 47940 | S85: 47750 | T85: ='Vigo (167)'!$D$41 -> 47750
A86: Wabash County | B86: 169 | C86: 14320 | D86: 14600 | E86: 14650 | F86: 14160 | G86: 13780 | H86: 13570 | I86: 13400 | J86: 13130 | K86: 13340 | L86: 13260 | M86: 12389 | N86: 11440 | O86: 11630 | P86: 11850 | Q86: 12210 | R86: 12300 | S86: 12470 | T86: ='Wabash (169)'!$D$41 -> 12470
A87: Warren County | B87: 171 | C87: 1470 | D87: 1550 | E87: 1660 | F87: 1720 | G87: 1750 | H87: 1690 | I87: 1810 | J87: 1860 | K87: 1880 | L87: 1990 | M87: 1914 | N87: 1680 | O87: 1780 | P87: 1950 | Q87: 1940 | R87: 1880 | S87: 1850 | T87: ='Warren (171)'!$D$41 -> 1850
A88: Warrick County | B88: 173 | C88: 12560 | D88: 12640 | E88: 12550 | F88: 13030 | G88: 13750 | H88: 13690 | I88: 14060 | J88: 13910 | K88: 14180 | L88: 14300 | M88: 14248 | N88: 14000 | O88: 14310 | P88: 14450 | Q88: 14940 | R88: 15160 | S88: 15510 | T88: ='Warrick (173)'!$D$41 -> 15510
A89: Washington County | B89: 175 | C89: 6700 | D89: 6690 | E89: 6830 | F89: 6640 | G89: 6400 | H89: 6340 | I89: 6280 | J89: 6340 | K89: 6190 | L89: 6090 | M89: 5787 | N89: 5240 | O89: 5290 | P89: 5280 | Q89: 5580 | R89: 5720 | S89: 5760 | T89: ='Washington (175)'!$D$41 -> 5760
A90: Wayne County | B90: 177 | C90: 36650 | D90: 36610 | E90: 35770 | F90: 34200 | G90: 33990 | H90: 32900 | I90: 32010 | J90: 31530 | K90: 33290 | L90: 32750 | M90: 31993 | N90: 29170 | O90: 27940 | P90: 28250 | Q90: 28790 | R90: 29050 | S90: 29730 | T90: ='Wayne (177)'!$D$41 -> 29730
A91: Wells County | B91: 179 | C91: 11430 | D91: 11670 | E91: 11870 | F91: 11400 | G91: 11240 | H91: 11130 | I91: 10780 | J91: 10740 | K91: 10850 | L91: 10720 | M91: 10839 | N91: 10370 | O91: 10060 | P91: 10110 | Q91: 10540 | R91: 10750 | S91: 10850 | T91: ='Wells (179)'!$D$41 -> 10850
A92: White County | B92: 181 | C92: 10250 | D92: 10460 | E92: 10360 | F92: 9700 | G92: 8750 | H92: 8290 | I92: 8350 | J92: 8300 | K92: 8330 | L92: 8600 | M92: 8473 | N92: 7980 | O92: 8130 | P92: 8470 | Q92: 8650 | R92: 8810 | S92: 9230 | T92: ='White (181)'!$D$41 -> 9230
A93: Whitley County | B93: 183 | C93: 12310 | D93: 12060 | E93: 12050 | F93: 11080 | G93: 10850 | H93: 11150 | I93: 10910 | J93: 11430 | K93: 11760 | L93: 12250 | M93: 11949 | N93: 10850 | O93: 10670 | P93: 10970 | Q93: 11260 | R93: 11210 | S93: 11700 | T93: ='Whitley (183)'!$D$41 -> 11700
A94: Not Classified | B94: 999 | C94: 51430 | D94: 54250 | E94: 67850 | F94: 79830 | G94: 75910 | H94: 73700 | I94: 72210 | J94: 71030 | K94: 69930 | L94: 69940 | M94: 66397 | N94: 60760 | O94: 58900 | P94: 61140 | Q94: 62690 | R94: 62590 | S94: 63380 | T94: ='Not classified (999)'!$D$41 -> 63380

Sheet Adams (001)
B1: UI COVERED EMPLOYMENT
B2: Adams County
B3: 2014 Annual Averages
A7: NAICS Sectors/Ownership | C7: Number of Reporting Units | D7: Average Number of Workers | E7: Total Annual Wages | F7: Average Annual Wages
A8: Private Ownership Only | C8: not rounded | D8: rounded to tens | E8: rounded to hundreds | F8: rounded to hundreds
B9: AGRICULTURE, FORESTRY, FISHING AND HUNTI | C9: 23 | D9: 140 | E9: 4115300 | F9: 29400
B10: MINING, QUARRYING, AND OIL AND GAS EXTRA | C10: Confidential | D10: Confidential | E10: Confidential | F10: Confidential
B11: UTILITIES | C11: Confidential | D11: Confidential | E11: Confidential | F11: Confidential
B12: CONSTRUCTION | C12: 68 | D12: 340 | E12: 12420600 | F12: 36500
B13: MANUFACTURING | C13: 63 | D13: 4840 | E13: 212086500 | F13: 43800
B14: WHOLESALE TRADE | C14: 36 | D14: 380 | E14: 17316400 | F14: 45600
B15: RETAIL TRADE | C15: 129 | D15: 1350 | E15: 30643600 | F15: 22700
B16: TRANSPORTATION AND WAREHOUSING | C16: 36 | D16: 350 | E16: 12468600 | F16: 35600
B17: INFORMATION | C17: 9 | D17: 240 | E17: 9414700 | F17: 39200
B18: FINANCE AND INSURANCE | C18: 43 | D18: 270 | E18: 10539400 | F18: 39000
B19: REAL ESTATE AND RENTAL AND LEASING | C19: 16 | D19: 70 | E19: 2201200 | F19: 31400
B20: PROFESSIONAL AND TECHNICAL SERVICES | C20: 38 | D20: 150 | E20: 6931400 | F20: 46200
B21: MANAGEMENT OF COMPANIES AND ENTERPRISES | C21: Confidential | D21: Confidential | E21: Confidential | F21: Confidential
B22: ADMINISTRATIVE AND WASTE SERVICES | C22: 44 | D22: 560 | E22: 9202100 | F22: 16400
B23: EDUCATIONAL SERVICES | C23: 4 | D23: 20 | E23: 201100 | F23: 10100
B24: HEALTH CARE AND SOCIAL ASSISTANCE | C24: 36 | D24: 950 | E24: 24724800 | F24: 26000
B25: ARTS, ENTERTAINMENT, AND RECREATION | C25: 7 | D25: 50 | E25: 482600 | F25: 9700
B26: ACCOMMODATION AND FOOD SERVICES | C26: 52 | D26: 850 | E26: 8690400 | F26: 10200
B27: OTHER SERVICES, EXCEPT PUBLIC ADMIN | C27: 66 | D27: 370 | E27: 7547700 | F27: 20400
B28: UNCLASSIFIED | C28: Data included in Total UI Covered
A30: Local Government
B31: LOCAL GOVERNMENT | C31: 19 | D31: 2000 | E31: 63938300 | F31: 32000
B32: EDUCATIONAL SERVICES | C32: 6 | D32: 860 | E32: 25324700 | F32: 29400
B33: HEALTH CARE AND SOCIAL ASSISTANCE | C33: 2 | D33: 660 | E33: 26957600 | F33: 40800
A35: State Government
B36: STATE GOVERNMENT | C36: 11 | D36: 57 | E36: 2095816 | F36: 34900
B37: EDUCATIONAL SERVICES | C37: 0 | D37: 0 | E37: 0 | F37: 0
B38: HEALTH CARE AND SOCIAL ASSISTANCE | C38: 0 | D38: 0 | E38: 0 | F38: 0
A40: Total UI Covered
B41: TOTAL UI COVERED | C41: 704 | D41: 13000 | E41: 438010800 | F41: 33700
A43: Federal Government
B44: FEDERAL GOVERNMENT | C44: 7 | D44: 60 | E44: 2691500 | F44: 44900
A47: *Less than 5 employees unrounded
A75: Telephone: 800-784-0360 | E75: Released | F75: 2015-09-17T10:21:33.750

Sheet Allen (003)
B1: UI COVERED EMPLOYMENT
B2: Allen County
B3: 2014 Annual Averages
A7: NAICS Sectors/Ownership | C7: Number of Reporting Units | D7: Average Number of Workers | E7: Total Annual Wages | F7: Average Annual Wages
A8: Private Ownership Only | C8: not rounded | D8: rounded to tens | E8: rounded to hundreds | F8: rounded to hundreds
B9: AGRICULTURE, FORESTRY, FISHING AND HUNTI | C9: 30 | D9: 210 | E9: 6478300 | F9: 30800
B10: MINING, QUARRYING, AND OIL AND GAS EXTRA | C10: 6 | D10: 90 | E10: 5884800 | F10: 65400
B11: UTILITIES | C11: 12 | D11: 460 | E11: 40502200 | F11: 88000
B12: CONSTRUCTION | C12: 860 | D12: 8090 | E12: 400367100 | F12: 49500
B13: MANUFACTURING | C13: 487 | D13: 27280 | E13: 1539127600 | F13: 56400
B14: WHOLESALE TRADE | C14: 606 | D14: 8890 | E14: 454772600 | F14: 51200
B15: RETAIL TRADE | C15: 1153 | D15: 20440 | E15: 513377700 | F15: 25100
B16: TRANSPORTATION AND WAREHOUSING | C16: 282 | D16: 6300 | E16: 286209400 | F16: 45400
B17: INFORMATION | C17: 94 | D17: 2830 | E17: 155748100 | F17: 55000
B18: FINANCE AND INSURANCE | C18: 643 | D18: 8210 | E18: 522188400 | F18: 63600
B19: REAL ESTATE AND RENTAL AND LEASING | C19: 382 | D19: 1890 | E19: 64551300 | F19: 34200
B20: PROFESSIONAL AND TECHNICAL SERVICES | C20: 928 | D20: 5520 | E20: 294424600 | F20: 53300
B21: MANAGEMENT OF COMPANIES AND ENTERPRISES | C21: 64 | D21: 1720 | E21: 114241800 | F21: 66400
B22: ADMINISTRATIVE AND WASTE SERVICES | C22: 497 | D22: 10890 | E22: 266359500 | F22: 24500
B23: EDUCATIONAL SERVICES | C23: 85 | D23: 3210 | E23: 95226000 | F23: 29700
B24: HEALTH CARE AND SOCIAL ASSISTANCE | C24: 755 | D24: 30270 | E24: 1377419200 | F24: 45500
B25: ARTS, ENTERTAINMENT, AND RECREATION | C25: 142 | D25: 2390 | E25: 39789000 | F25: 16600
B26: ACCOMMODATION AND FOOD SERVICES | C26: 706 | D26: 15830 | E26: 222630900 | F26: 14100
B27: OTHER SERVICES, EXCEPT PUBLIC ADMIN | C27: 719 | D27: 5020 | E27: 133076100 | F27: 26500
B28: UNCLASSIFIED | C28: Data included in Total UI Covered
A30: Local Government
B31: LOCAL GOVERNMENT | C31: 191 | D31: 12770 | E31: 488955500 | F31: 38300
B32: EDUCATIONAL SERVICES | C32: 136 | D32: 7280 | E32: 270598300 | F32: 37200
B33: HEALTH CARE AND SOCIAL ASSISTANCE | C33: 3 | D33: 70 | E33: 1827800 | F33: 26100
A35: State Government
B36: STATE GOVERNMENT | C36: 25 | D36: 2990 | E36: 111830600 | F36: 37400
B37: EDUCATIONAL SERVICES | C37: 3 | D37: 2300 | E37: 82222100 | F37: 35700
B38: HEALTH CARE AND SOCIAL ASSISTANCE | C38: 0 | D38: 0 | E38: 0 | F38: 0
A40: Total UI Covered
B41: TOTAL UI COVERED | C41: 8662 | D41: 175290 | E41: 7133160600 | F41: 40700
A43: Federal Government
B44: FEDERAL GOVERNMENT | C44: 40 | D44: 1830 | E44: 125843700 | F44: 68800
A47: *Less than 5 employees unrounded
A75: Telephone: 800-784-0360 | E75: Released | F75: 2015-09-17T10:22:05.530

Sheet Bartholomew (005)
B1: UI COVERED EMPLOYMENT
B2: Bartholomew County
B3: 2014 Annual Averages
A7: NAICS Sectors/Ownership | C7: Number of Reporting Units | D7: Average Number of Workers | E7: Total Annual Wages | F7: Average Annual Wages
A8: Private Ownership Only | C8: not rounded | D8: rounded to tens | E8: rounded to hundreds | F8: rounded to hundreds
B9: AGRICULTURE, FORESTRY, FISHING AND HUNTI | C9: 16 | D9: 60 | E9: 2037500 | F9: 34000
B10: MINING, QUARRYING, AND OIL AND GAS EXTRA | C10: Confidential | D10: Confidential | E10: Confidential | F10: Confidential
B11: UTILITIES | C11: 9 | D11: 140 | E11: 10798000 | F11: 77100
B12: CONSTRUCTION | C12: 150 | D12: 1440 | E12: 70142800 | F12: 48700
B13: MANUFACTURING | C13: 142 | D13: 18540 | E13: 1244385600 | F13: 67100
B14: WHOLESALE TRADE | C14: 110 | D14: 1500 | E14: 115598300 | F14: 77100
B15: RETAIL TRADE | C15: 284 | D15: 4640 | E15: 104686300 | F15: 22600
B16: TRANSPORTATION AND WAREHOUSING | C16: 58 | D16: 1190 | E16: 52519700 | F16: 44100
B17: INFORMATION | C17: 17 | D17: 460 | E17: 18025000 | F17: 39200
B18: FINANCE AND INSURANCE | C18: 116 | D18: 1000 | E18: 59982700 | F18: 60000
B19: REAL ESTATE AND RENTAL AND LEASING | C19: 71 | D19: 310 | E19: 9916500 | F19: 32000
B20: PROFESSIONAL AND TECHNICAL SERVICES | C20: 159 | D20: 1620 | E20: 93742100 | F20: 57900
B21: MANAGEMENT OF COMPANIES AND ENTERPRISES | C21: 28 | D21: 690 | E21: 68486900 | F21: 99300
B22: ADMINISTRATIVE AND WASTE SERVICES | C22: 86 | D22: 2760 | E22: 78084500 | F22: 28300
B23: EDUCATIONAL SERVICES | C23: 17 | D23: 160 | E23: 3069600 | F23: 19200
B24: HEALTH CARE AND SOCIAL ASSISTANCE | C24: 200 | D24: 3600 | E24: 152366000 | F24: 42300
B25: ARTS, ENTERTAINMENT, AND RECREATION | C25: 17 | D25: 220 | E25: 3363000 | F25: 15300
B26: ACCOMMODATION AND FOOD SERVICES | C26: 160 | D26: 3680 | E26: 51151100 | F26: 13900
B27: OTHER SERVICES, EXCEPT PUBLIC ADMIN | C27: 142 | D27: 840 | E27: 20665600 | F27: 24600
B28: UNCLASSIFIED | C28: Data included in Total UI Covered
A30: Local Government
B31: LOCAL GOVERNMENT | C31: 42 | D31: 4630 | E31: 172541300 | F31: 37300
B32: EDUCATIONAL SERVICES | C32: 23 | D32: 1860 | E32: 61468400 | F32: 33000
B33: HEALTH CARE AND SOCIAL ASSISTANCE | C33: 1 | D33: 1510 | E33: 67298300 | F33: 44600
A35: State Government
B36: STATE GOVERNMENT | C36: 18 | D36: 980 | E36: 30296700 | F36: 30900
B37: EDUCATIONAL SERVICES | C37: 1 | D37: 810 | E37: 23219900 | F37: 28700
B38: HEALTH CARE AND SOCIAL ASSISTANCE | C38: 0 | D38: 0 | E38: 0 | F38: 0
A40: Total UI Covered
B41: TOTAL UI COVERED | C41: 1843 | D41: 48490 | E41: 2363553100 | F41: 48700
A43: Federal Government
B44: FEDERAL GOVERNMENT | C44: 12 | D44: 160 | E44: 9847600 | F44: 61500
A47: *Less than 5 employees unrounded
A75: Telephone: 800-784-0360 | E75: Released | F75: 2015-09-17T10:22:28.520

Sheet Benton (007)
B1: UI COVERED EMPLOYMENT
B2: Benton County
B3: 2014 Annual Averages
A7: NAICS Sectors/Ownership | C7: Number of Reporting Units | D7: Average Number of Workers | E7: Total Annual Wages | F7: Average Annual Wages
A8: Private Ownership Only | C8: not rounded | D8: rounded to tens | E8: rounded to hundreds | F8: rounded to hundreds
B9: AGRICULTURE, FORESTRY, FISHING AND HUNTI | C9: 17 | D9: 140 | E9: 4747500 | F9: 33900
B10: MINING, QUARRYING, AND OIL AND GAS EXTRA | C10: Confidential | D10: Confidential | E10: Confidential | F10: Confidential
B11: UTILITIES | C11: Confidential | D11: Confidential | E11: Confidential | F11: Confidential
B12: CONSTRUCTION | C12: 20 | D12: 60 | E12: 2179800 | F12: 36300
B13: MANUFACTURING | C13: 15 | D13: 420 | E13: 18243700 | F13: 43400
B14: WHOLESALE TRADE | C14: 20 | D14: 270 | E14: 11303000 | F14: 41900
B15: RETAIL TRADE | C15: 29 | D15: 210 | E15: 3895100 | F15: 18500
B16: TRANSPORTATION AND WAREHOUSING | C16: 21 | D16: 110 | E16: 4183400 | F16: 38000
B17: INFORMATION | C17: Confidential | D17: Confidential | E17: Confidential | F17: Confidential
B18: FINANCE AND INSURANCE | C18: 12 | D18: 140 | E18: 6130500 | F18: 43800
B19: REAL ESTATE AND RENTAL AND LEASING | C19: 0 | D19: 0 | E19: 0 | F19: 0
B20: PROFESSIONAL AND TECHNICAL SERVICES | C20: 11 | D20: 30 | E20: 1460600 | F20: 48700
B21: MANAGEMENT OF COMPANIES AND ENTERPRISES | C21: 0 | D21: 0 | E21: 0 | F21: 0
B22: ADMINISTRATIVE AND WASTE SERVICES | C22: 7 | D22: 10 | E22: 316900 | F22: 31700
B23: EDUCATIONAL SERVICES | C23: Confidential | D23: Confidential | E23: Confidential | F23: Confidential
B24: HEALTH CARE AND SOCIAL ASSISTANCE | C24: 11 | D24: 100 | E24: 2372800 | F24: 23700
B25: ARTS, ENTERTAINMENT, AND RECREATION | C25: Confidential | D25: Confidential | E25: Confidential | F25: Confidential
B26: ACCOMMODATION AND FOOD SERVICES | C26: 7 | D26: 50 | E26: 380000 | F26: 7600
B27: OTHER SERVICES, EXCEPT PUBLIC ADMIN | C27: 12 | D27: 60 | E27: 2633100 | F27: 43900
B28: UNCLASSIFIED | C28: Data included in Total UI Covered
A30: Local Government
B31: LOCAL GOVERNMENT | C31: 20 | D31: 570 | E31: 15537600 | F31: 27300
B32: EDUCATIONAL SERVICES | C32: 6 | D32: 370 | E32: 10640600 | F32: 28800
B33: HEALTH CARE AND SOCIAL ASSISTANCE | C33: 0 | D33: 0 | E33: 0 | F33: 0
A35: State Government
B36: STATE GOVERNMENT | C36: 7 | D36: 40 | E36: 1424600 | F36: 35600
B37: EDUCATIONAL SERVICES | C37: 0 | D37: 0 | E37: 0 | F37: 0
B38: HEALTH CARE AND SOCIAL ASSISTANCE | C38: 0 | D38: 0 | E38: 0 | F38: 0
A40: Total UI Covered
B41: TOTAL UI COVERED | C41: 216 | D41: 2270 | E41: 77394000 | F41: 34100
A43: Federal Government
B44: FEDERAL GOVERNMENT | C44: 7 | D44: 30 | E44: 1078900 | F44: 36000
A47: *Less than 5 employees unrounded
A75: Telephone: 800-784-0360 | E75: Released | F75: 2015-09-17T10:22:53.440

Sheet Blackford (009)
B1: UI COVERED EMPLOYMENT
B2: Blackford County
B3: 2014 Annual Averages
A7: NAICS Sectors/Ownership | C7: Number of Reporting Units | D7: Average Number of Workers | E7: Total Annual Wages | F7: Average Annual Wages
A8: Private Ownership Only | C8: not rounded | D8: rounded to tens | E8: rounded to hundreds | F8: rounded to hundreds
B9: AGRICULTURE, FORESTRY, FISHING AND HUNTI | C9: 6 | D9: 50 | E9: 1479600 | F9: 29600
B10: MINING, QUARRYING, AND OIL AND GAS EXTRA | C10: Confidential | D10: Confidential | E10: Confidential | F10: Confidential
B11: UTILITIES | C11: Confidential | D11: Confidential | E11: Confidential | F11: Confidential
B12: CONSTRUCTION | C12: 11 | D12: 20 | E12: 613900 | F12: 30700
B13: MANUFACTURING | C13: 19 | D13: 940 | E13: 43279300 | F13: 46000
B14: WHOLESALE TRADE | C14: 11 | D14: 130 | E14: 5038500 | F14: 38800
B15: RETAIL TRADE | C15: 40 | D15: 350 | E15: 6562700 | F15: 18800
B16: TRANSPORTATION AND WAREHOUSING | C16: 14 | D16: 130 | E16: 4771900 | F16: 36700
B17: INFORMATION | C17: Confidential | D17: Confidential | E17: Confidential | F17: Confidential
B18: FINANCE AND INSURANCE | C18: 20 | D18: 100 | E18: 3323100 | F18: 33200
B19: REAL ESTATE AND RENTAL AND LEASING | C19: 5 | D19: 10 | E19: 252800 | F19: 25300
B20: PROFESSIONAL AND TECHNICAL SERVICES | C20: 10 | D20: 70 | E20: 2697200 | F20: 38500
B21: MANAGEMENT OF COMPANIES AND ENTERPRISES | C21: 3 | D21: 10 | E21: 824800 | F21: 82500
B22: ADMINISTRATIVE AND WASTE SERVICES | C22: 9 | D22: 40 | E22: 934300 | F22: 23400
B23: EDUCATIONAL SERVICES | C23: Confidential | D23: Confidential | E23: Confidential | F23: Confidential
B24: HEALTH CARE AND SOCIAL ASSISTANCE | C24: 18 | D24: 350 | E24: 10116500 | F24: 28900
B25: ARTS, ENTERTAINMENT, AND RECREATION | C25: 4 | D25: 20 | E25: 210000 | F25: 10500
B26: ACCOMMODATION AND FOOD SERVICES | C26: 18 | D26: 280 | E26: 3341900 | F26: 11900
B27: OTHER SERVICES, EXCEPT PUBLIC ADMIN | C27: 25 | D27: 100 | E27: 1492600 | F27: 14900
B28: UNCLASSIFIED | C28: Data included in Total UI Covered
A30: Local Government
B31: LOCAL GOVERNMENT | C31: 9 | D31: 540 | E31: 13891700 | F31: 25700
B32: EDUCATIONAL SERVICES | C32: 1 | D32: 320 | E32: 8728600 | F32: 27300
B33: HEALTH CARE AND SOCIAL ASSISTANCE | C33: 0 | D33: 0 | E33: 0 | F33: 0
A35: State Government
B36: STATE GOVERNMENT | C36: 8 | D36: 30 | E36: 1023900 | F36: 34100
B37: EDUCATIONAL SERVICES | C37: 0 | D37: 0 | E37: 0 | F37: 0
B38: HEALTH CARE AND SOCIAL ASSISTANCE | C38: 0 | D38: 0 | E38: 0 | F38: 0
A40: Total UI Covered
B41: TOTAL UI COVERED | C41: 234 | D41: 3180 | E41: 100545400 | F41: 31600
A43: Federal Government
B44: FEDERAL GOVERNMENT | C44: 3 | D44: 20 | E44: 1119700 | F44: 56000
A47: *Less than 5 employees unrounded
A75: Telephone: 800-784-0360 | E75: Released | F75: 2015-09-17T10:23:43.790

Sheet Boone (011)
B1: UI COVERED EMPLOYMENT
B2: Boone County
B3: 2014 Annual Averages
A7: NAICS Sectors/Ownership | C7: Number of Reporting Units | D7: Average Number of Workers | E7: Total Annual Wages | F7: Average Annual Wages
A8: Private Ownership Only | C8: not rounded | D8: rounded to tens | E8: rounded to hundreds | F8: rounded to hundreds
B9: AGRICULTURE, FORESTRY, FISHING AND HUNTI | C9: 34 | D9: 200 | E9: 7721600 | F9: 38600
B10: MINING, QUARRYING, AND OIL AND GAS EXTRA | C10: Confidential | D10: Confidential | E10: Confidential | F10: Confidential
B11: UTILITIES | C11: Confidential | D11: Confidential | E11: Confidential | F11: Confidential
B12: CONSTRUCTION | C12: 158 | D12: 1790 | E12: 85300400 | F12: 47700
B13: MANUFACTURING | C13: 77 | D13: 1940 | E13: 86166800 | F13: 44400
B14: WHOLESALE TRADE | C14: 151 | D14: 1340 | E14: 75809000 | F14: 56600
B15: RETAIL TRADE | C15: 145 | D15: 5670 | E15: 191219900 | F15: 33700
B16: TRANSPORTATION AND WAREHOUSING | C16: 65 | D16: 2120 | E16: 79459300 | F16: 37500
B17: INFORMATION | C17: 19 | D17: 240 | E17: 10320500 | F17: 43000
B18: FINANCE AND INSURANCE | C18: 110 | D18: 400 | E18: 22066300 | F18: 55200
B19: REAL ESTATE AND RENTAL AND LEASING | C19: 64 | D19: 250 | E19: 12194700 | F19: 48800
B20: PROFESSIONAL AND TECHNICAL SERVICES | C20: 209 | D20: 900 | E20: 59043400 | F20: 65600
B21: MANAGEMENT OF COMPANIES AND ENTERPRISES | C21: 6 | D21: 90 | E21: 5404100 | F21: 60000
B22: ADMINISTRATIVE AND WASTE SERVICES | C22: 94 | D22: 3050 | E22: 77924000 | F22: 25500
B23: EDUCATIONAL SERVICES | C23: 18 | D23: 240 | E23: 5278900 | F23: 22000
B24: HEALTH CARE AND SOCIAL ASSISTANCE | C24: 110 | D24: 1580 | E24: 67008100 | F24: 42400
B25: ARTS, ENTERTAINMENT, AND RECREATION | C25: 33 | D25: 230 | E25: 6092400 | F25: 26500
B26: ACCOMMODATION AND FOOD SERVICES | C26: 107 | D26: 1850 | E26: 25900600 | F26: 14000
B27: OTHER SERVICES, EXCEPT PUBLIC ADMIN | C27: 163 | D27: 680 | E27: 15609500 | F27: 23000
B28: UNCLASSIFIED | C28: Data included in Total UI Covered
A30: Local Government
B31: LOCAL GOVERNMENT | C31: 33 | D31: 3190 | E31: 127930400 | F31: 40100
B32: EDUCATIONAL SERVICES | C32: 10 | D32: 1490 | E32: 56672600 | F32: 38000
B33: HEALTH CARE AND SOCIAL ASSISTANCE | C33: 9 | D33: 730 | E33: 38701700 | F33: 53000
A35: State Government
B36: STATE GOVERNMENT | C36: 14 | D36: 50 | E36: 2421200 | F36: 48400
B37: EDUCATIONAL SERVICES | C37: 1 | D37: 0 | E37: 8800 | F37: 0
B38: HEALTH CARE AND SOCIAL ASSISTANCE | C38: 0 | D38: 0 | E38: 0 | F38: 0
A40: Total UI Covered
B41: TOTAL UI COVERED | C41: 1609 | D41: 25860 | E41: 966117200 | F41: 37400
A43: Federal Government
B44: FEDERAL GOVERNMENT | C44: 9 | D44: 90 | E44: 5004900 | F44: 55600
A47: *Less than 5 employees unrounded
A75: Telephone: 800-784-0360 | E75: Released | F75: 2015-09-17T10:25:23.980

Sheet Brown (013)
B1: UI COVERED EMPLOYMENT
B2: Brown County
B3: 2014 Annual Averages
A7: NAICS Sectors/Ownership | C7: Number of Reporting Units | D7: Average Number of Workers | E7: Total Annual Wages | F7: Average Annual Wages
A8: Private Ownership Only | C8: not rounded | D8: rounded to tens | E8: rounded to hundreds | F8: rounded to hundreds
B9: AGRICULTURE, FORESTRY, FISHING AND HUNTI | C9: 5 | D9: 40 | E9: 1112700 | F9: 27800
B10: MINING, QUARRYING, AND OIL AND GAS EXTRA | C10: 0 | D10: 0 | E10: 0 | F10: 0
B11: UTILITIES | C11: Confidential | D11: Confidential | E11: Confidential | F11: Confidential
B12: CONSTRUCTION | C12: 43 | D12: 150 | E12: 4388200 | F12: 29300
B13: MANUFACTURING | C13: 22 | D13: 160 | E13: 3406000 | F13: 21300
B14: WHOLESALE TRADE | C14: 7 | D14: 10 | E14: 608000 | F14: 60800
B15: RETAIL TRADE | C15: 77 | D15: 390 | E15: 6554000 | F15: 16800
B16: TRANSPORTATION AND WAREHOUSING | C16: 8 | D16: 30 | E16: 737800 | F16: 24600
B17: INFORMATION | C17: 5 | D17: 10 | E17: 407000 | F17: 40700
B18: FINANCE AND INSURANCE | C18: 12 | D18: 40 | E18: 1448500 | F18: 36200
B19: REAL ESTATE AND RENTAL AND LEASING | C19: 10 | D19: 30 | E19: 723800 | F19: 24100
B20: PROFESSIONAL AND TECHNICAL SERVICES | C20: 30 | D20: 100 | E20: 4741800 | F20: 47400
B21: MANAGEMENT OF COMPANIES AND ENTERPRISES | C21: 0 | D21: 0 | E21: 0 | F21: 0
B22: ADMINISTRATIVE AND WASTE SERVICES | C22: 14 | D22: 110 | E22: 2338300 | F22: 21300
B23: EDUCATIONAL SERVICES | C23: 0 | D23: 0 | E23: 0 | F23: 0
B24: HEALTH CARE AND SOCIAL ASSISTANCE | C24: 19 | D24: 350 | E24: 11629500 | F24: 33200
B25: ARTS, ENTERTAINMENT, AND RECREATION | C25: 6 | D25: 40 | E25: 869200 | F25: 21700
B26: ACCOMMODATION AND FOOD SERVICES | C26: 43 | D26: 590 | E26: 8459900 | F26: 14300
B27: OTHER SERVICES, EXCEPT PUBLIC ADMIN | C27: 15 | D27: 80 | E27: 1605600 | F27: 20100
B28: UNCLASSIFIED | C28: Data included in Total UI Covered
A30: Local Government
B31: LOCAL GOVERNMENT | C31: 7 | D31: 600 | E31: 19004700 | F31: 31700
B32: EDUCATIONAL SERVICES | C32: 1 | D32: 360 | E32: 12418500 | F32: 34500
B33: HEALTH CARE AND SOCIAL ASSISTANCE | C33: 0 | D33: 0 | E33: 0 | F33: 0
A35: State Government
B36: STATE GOVERNMENT | C36: 11 | D36: 220 | E36: 4118600 | F36: 18700
B37: EDUCATIONAL SERVICES | C37: 0 | D37: 0 | E37: 0 | F37: 0
B38: HEALTH CARE AND SOCIAL ASSISTANCE | C38: 0 | D38: 0 | E38: 0 | F38: 0
A40: Total UI Covered
B41: TOTAL UI COVERED | C41: 332 | D41: 2960 | E41: 72638500 | F41: 24500
A43: Federal Government
B44: FEDERAL GOVERNMENT | C44: 2 | D44: 20 | E44: 747900 | F44: 37400
A47: *Less than 5 employees unrounded
A75: Telephone: 800-784-0360 | E75: Released | F75: 2015-09-17T10:25:42.470

Sheet Carroll (015)
B1: UI COVERED EMPLOYMENT
B2: Carroll County
B3: 2014 Annual Averages
A7: NAICS Sectors/Ownership | C7: Number of Reporting Units | D7: Average Number of Workers | E7: Total Annual Wages | F7: Average Annual Wages
A8: Private Ownership Only | C8: not rounded | D8: rounded to tens | E8: rounded to hundreds | F8: rounded to hundreds
B9: AGRICULTURE, FORESTRY, FISHING AND HUNTI | C9: 32 | D9: 190 | E9: 7894800 | F9: 41600
B10: MINING, QUARRYING, AND OIL AND GAS EXTRA | C10: Confidential | D10: Confidential | E10: Confidential | F10: Confidential
B11: UTILITIES | C11: Confidential | D11: Confidential | E11: Confidential | F11: Confidential
B12: CONSTRUCTION | C12: 60 | D12: 260 | E12: 8998700 | F12: 34600
B13: MANUFACTURING | C13: Confidential | D13: Confidential | E13: Confidential | F13: Confidential
B14: WHOLESALE TRADE | C14: 17 | D14: 180 | E14: 11108300 | F14: 61700
B15: RETAIL TRADE | C15: 50 | D15: 390 | E15: 8746700 | F15: 22400
B16: TRANSPORTATION AND WAREHOUSING | C16: 23 | D16: 100 | E16: 3580100 | F16: 35800
B17: INFORMATION | C17: 5 | D17: 20 | E17: 637600 | F17: 31900
B18: FINANCE AND INSURANCE | C18: 20 | D18: 100 | E18: 3490700 | F18: 34900
B19: REAL ESTATE AND RENTAL AND LEASING | C19: 12 | D19: 40 | E19: 793800 | F19: 19800
B20: PROFESSIONAL AND TECHNICAL SERVICES | C20: 18 | D20: 80 | E20: 2254200 | F20: 28200
B21: MANAGEMENT OF COMPANIES AND ENTERPRISES | C21: 0 | D21: 0 | E21: 0 | F21: 0
B22: ADMINISTRATIVE AND WASTE SERVICES | C22: 15 | D22: 30 | E22: 1050900 | F22: 35000
B23: EDUCATIONAL SERVICES | C23: Confidential | D23: Confidential | E23: Confidential | F23: Confidential
B24: HEALTH CARE AND SOCIAL ASSISTANCE | C24: 24 | D24: 200 | E24: 5585500 | F24: 27900
B25: ARTS, ENTERTAINMENT, AND RECREATION | C25: 4 | D25: 10 | E25: 69700 | F25: 7000
B26: ACCOMMODATION AND FOOD SERVICES | C26: 27 | D26: 480 | E26: 5984700 | F26: 12500
B27: OTHER SERVICES, EXCEPT PUBLIC ADMIN | C27: 27 | D27: 80 | E27: 1735400 | F27: 21700
B28: UNCLASSIFIED | C28: Data included in Total UI Covered
A30: Local Government
B31: LOCAL GOVERNMENT | C31: 12 | D31: 760 | E31: 19637400 | F31: 25800
B32: EDUCATIONAL SERVICES | C32: 2 | D32: 470 | E32: 12937900 | F32: 27500
B33: HEALTH CARE AND SOCIAL ASSISTANCE | C33: 0 | D33: 0 | E33: 0 | F33: 0
A35: State Government
B36: STATE GOVERNMENT | C36: 8 | D36: 40 | E36: 1746200 | F36: 43700
B37: EDUCATIONAL SERVICES | C37: 0 | D37: 0 | E37: 0 | F37: 0
B38: HEALTH CARE AND SOCIAL ASSISTANCE | C38: 0 | D38: 0 | E38: 0 | F38: 0
A40: Total UI Covered
B41: TOTAL UI COVERED | C41: 374 | D41: 5240 | E41: 172393500 | F41: 32900
A43: Federal Government
B44: FEDERAL GOVERNMENT | C44: 10 | D44: 60 | E44: 3125700 | F44: 52100
A47: *Less than 5 employees unrounded
A75: Telephone: 800-784-0360 | E75: Released | F75: 2015-09-17T10:26:02.450

Sheet Cass (017)
B1: UI COVERED EMPLOYMENT
B2: Cass County
B3: 2014 Annual Averages
A7: NAICS Sectors/Ownership | C7: Number of Reporting Units | D7: Average Number of Workers | E7: Total Annual Wages | F7: Average Annual Wages
A8: Private Ownership Only | C8: not rounded | D8: rounded to tens | E8: rounded to hundreds | F8: rounded to hundreds
B9: AGRICULTURE, FORESTRY, FISHING AND HUNTI | C9: 21 | D9: 120 | E9: 3615500 | F9: 30100
B10: MINING, QUARRYING, AND OIL AND GAS EXTRA | C10: Confidential | D10: Confidential | E10: Confidential | F10: Confidential
B11: UTILITIES | C11: Confidential | D11: Confidential | E11: Confidential | F11: Confidential
B12: CONSTRUCTION | C12: 64 | D12: 530 | E12: 24278600 | F12: 45800
B13: MANUFACTURING | C13: 51 | D13: 4310 | E13: 162389800 | F13: 37700
B14: WHOLESALE TRADE | C14: 44 | D14: 530 | E14: 27375900 | F14: 51700
B15: RETAIL TRADE | C15: 121 | D15: 1580 | E15: 37059300 | F15: 23500
B16: TRANSPORTATION AND WAREHOUSING | C16: 31 | D16: 320 | E16: 11964800 | F16: 37400
B17: INFORMATION | C17: 8 | D17: 100 | E17: 2932300 | F17: 29300
B18: FINANCE AND INSURANCE | C18: 44 | D18: 310 | E18: 13279000 | F18: 42800
B19: REAL ESTATE AND RENTAL AND LEASING | C19: 21 | D19: 70 | E19: 1743400 | F19: 24900
B20: PROFESSIONAL AND TECHNICAL SERVICES | C20: 40 | D20: 190 | E20: 6236100 | F20: 32800
B21: MANAGEMENT OF COMPANIES AND ENTERPRISES | C21: 5 | D21: 90 | E21: 6057400 | F21: 67300
B22: ADMINISTRATIVE AND WASTE SERVICES | C22: 38 | D22: 600 | E22: 20330600 | F22: 33900
B23: EDUCATIONAL SERVICES | C23: Confidential | D23: Confidential | E23: Confidential | F23: Confidential
B24: HEALTH CARE AND SOCIAL ASSISTANCE | C24: 57 | D24: 1300 | E24: 32951100 | F24: 25300
B25: ARTS, ENTERTAINMENT, AND RECREATION | C25: 5 | D25: 20 | E25: 299000 | F25: 15000
B26: ACCOMMODATION AND FOOD SERVICES | C26: 73 | D26: 960 | E26: 10880100 | F26: 11300
B27: OTHER SERVICES, EXCEPT PUBLIC ADMIN | C27: 65 | D27: 260 | E27: 5154900 | F27: 19800
B28: UNCLASSIFIED | C28: Data included in Total UI Covered
A30: Local Government
B31: LOCAL GOVERNMENT | C31: 17 | D31: 2380 | E31: 84055400 | F31: 35300
B32: EDUCATIONAL SERVICES | C32: 3 | D32: 1190 | E32: 37168100 | F32: 31200
B33: HEALTH CARE AND SOCIAL ASSISTANCE | C33: 1 | D33: 540 | E33: 26572100 | F33: 49200
A35: State Government
B36: STATE GOVERNMENT | C36: 16 | D36: 700 | E36: 28084900 | F36: 40100
B37: EDUCATIONAL SERVICES | C37: 0 | D37: 0 | E37: 0 | F37: 0
B38: HEALTH CARE AND SOCIAL ASSISTANCE | C38: 1 | D38: 450 | E38: 17807900 | F38: 39600
A40: Total UI Covered
B41: TOTAL UI COVERED | C41: 724 | D41: 14430 | E41: 482622500 | F41: 33400
A43: Federal Government
B44: FEDERAL GOVERNMENT | C44: 10 | D44: 80 | E44: 4421300 | F44: 55300
A47: *Less than 5 employees unrounded
A75: Telephone: 800-784-0360 | E75: Released | F75: 2015-09-17T10:26:24.280

Sheet Clark (019)
B1: UI COVERED EMPLOYMENT
B2: Clark County
B3: 2014 Annual Averages
A7: NAICS Sectors/Ownership | C7: Number of Reporting Units | D7: Average Number of Workers | E7: Total Annual Wages | F7: Average Annual Wages
A8: Private Ownership Only | C8: not rounded | D8: rounded to tens | E8: rounded to hundreds | F8: rounded to hundreds
B9: AGRICULTURE, FORESTRY, FISHING AND HUNTI | C9: 10 | D9: 70 | E9: 1010400 | F9: 14400
B10: MINING, QUARRYING, AND OIL AND GAS EXTRA | C10: 6 | D10: 90 | E10: 4865700 | F10: 54100
B11: UTILITIES | C11: 13 | D11: 190 | E11: 13374000 | F11: 70400
B12: CONSTRUCTION | C12: 256 | D12: 2180 | E12: 97009200 | F12: 44500
B13: MANUFACTURING | C13: 156 | D13: 7800 | E13: 358728100 | F13: 46000
B14: WHOLESALE TRADE | C14: 144 | D14: 1370 | E14: 70881300 | F14: 51700
B15: RETAIL TRADE | C15: 379 | D15: 7900 | E15: 198869300 | F15: 25200
B16: TRANSPORTATION AND WAREHOUSING | C16: 130 | D16: 4240 | E16: 210907400 | F16: 49700
B17: INFORMATION | C17: 24 | D17: 240 | E17: 7101000 | F17: 29600
B18: FINANCE AND INSURANCE | C18: 155 | D18: 2140 | E18: 104473400 | F18: 48800
B19: REAL ESTATE AND RENTAL AND LEASING | C19: 94 | D19: 540 | E19: 16985200 | F19: 31500
B20: PROFESSIONAL AND TECHNICAL SERVICES | C20: 177 | D20: 840 | E20: 41772700 | F20: 49700
B21: MANAGEMENT OF COMPANIES AND ENTERPRISES | C21: 25 | D21: 180 | E21: 15348000 | F21: 85300
B22: ADMINISTRATIVE AND WASTE SERVICES | C22: 130 | D22: 3220 | E22: 92099000 | F22: 28600
B23: EDUCATIONAL SERVICES | C23: 23 | D23: 150 | E23: 4599300 | F23: 30700
B24: HEALTH CARE AND SOCIAL ASSISTANCE | C24: 205 | D24: 4230 | E24: 171330700 | F24: 40500
B25: ARTS, ENTERTAINMENT, AND RECREATION | C25: 35 | D25: 510 | E25: 7842000 | F25: 15400
B26: ACCOMMODATION AND FOOD SERVICES | C26: 222 | D26: 5400 | E26: 76051300 | F26: 14100
B27: OTHER SERVICES, EXCEPT PUBLIC ADMIN | C27: 178 | D27: 1360 | E27: 37633200 | F27: 27700
B28: UNCLASSIFIED | C28: Data included in Total UI Covered
A30: Local Government
B31: LOCAL GOVERNMENT | C31: 76 | D31: 5330 | E31: 213752500 | F31: 40100
B32: EDUCATIONAL SERVICES | C32: 33 | D32: 2040 | E32: 82457100 | F32: 40400
B33: HEALTH CARE AND SOCIAL ASSISTANCE | C33: 7 | D33: 1660 | E33: 74458800 | F33: 44900
A35: State Government
B36: STATE GOVERNMENT | C36: 22 | D36: 610 | E36: 21020100 | F36: 34500
B37: EDUCATIONAL SERVICES | C37: 1 | D37: 320 | E37: 9174100 | F37: 28700
B38: HEALTH CARE AND SOCIAL ASSISTANCE | C38: 0 | D38: 0 | E38: 0 | F38: 0
A40: Total UI Covered
B41: TOTAL UI COVERED | C41: 2458 | D41: 48570 | E41: 1765654000 | F41: 36400
A43: Federal Government
B44: FEDERAL GOVERNMENT | C44: 14 | D44: 1480 | E44: 61502300 | F44: 41600
A47: *Less than 5 employees unrounded
A75: Telephone: 800-784-0360 | E75: Released | F75: 2015-09-17T10:26:44.990

Sheet Clay (021)
B1: UI COVERED EMPLOYMENT
B2: Clay County
B3: 2014 Annual Averages
A7: NAICS Sectors/Ownership | C7: Number of Reporting Units | D7: Average Number of Workers | E7: Total Annual Wages | F7: Average Annual Wages
A8: Private Ownership Only | C8: not rounded | D8: rounded to tens | E8: rounded to hundreds | F8: rounded to hundreds
B9: AGRICULTURE, FORESTRY, FISHING AND HUNTI | C9: 12 | D9: 40 | E9: 1642000 | F9: 41100
B10: MINING, QUARRYING, AND OIL AND GAS EXTRA | C10: 4 | D10: 30 | E10: 667800 | F10: 22300
B11: UTILITIES | C11: Confidential | D11: Confidential | E11: Confidential | F11: Confidential
B12: CONSTRUCTION | C12: 52 | D12: 190 | E12: 5217300 | F12: 27500
B13: MANUFACTURING | C13: 35 | D13: 2680 | E13: 105801100 | F13: 39500
B14: WHOLESALE TRADE | C14: 18 | D14: 160 | E14: 6156600 | F14: 38500
B15: RETAIL TRADE | C15: 78 | D15: 940 | E15: 20376800 | F15: 21700
B16: TRANSPORTATION AND WAREHOUSING | C16: 40 | D16: 210 | E16: 6825900 | F16: 32500
B17: INFORMATION | C17: 6 | D17: 40 | E17: 1347300 | F17: 33700
B18: FINANCE AND INSURANCE | C18: 28 | D18: 150 | E18: 5231600 | F18: 34900
B19: REAL ESTATE AND RENTAL AND LEASING | C19: 10 | D19: 30 | E19: 447500 | F19: 14900
B20: PROFESSIONAL AND TECHNICAL SERVICES | C20: 22 | D20: 80 | E20: 2355400 | F20: 29400
B21: MANAGEMENT OF COMPANIES AND ENTERPRISES | C21: Confidential | D21: Confidential | E21: Confidential | F21: Confidential
B22: ADMINISTRATIVE AND WASTE SERVICES | C22: 18 | D22: 80 | E22: 2866800 | F22: 35800
B23: EDUCATIONAL SERVICES | C23: 4 | D23: 10 | E23: 327100 | F23: 32700
B24: HEALTH CARE AND SOCIAL ASSISTANCE | C24: 39 | D24: 620 | E24: 18920200 | F24: 30500
B25: ARTS, ENTERTAINMENT, AND RECREATION | C25: 5 | D25: 60 | E25: 561400 | F25: 9400
B26: ACCOMMODATION AND FOOD SERVICES | C26: 43 | D26: 570 | E26: 5454500 | F26: 9600
B27: OTHER SERVICES, EXCEPT PUBLIC ADMIN | C27: 37 | D27: 340 | E27: 3804000 | F27: 11200
B28: UNCLASSIFIED | C28: Data included in Total UI Covered
A30: Local Government
B31: LOCAL GOVERNMENT | C31: 20 | D31: 1140 | E31: 31923300 | F31: 28000
B32: EDUCATIONAL SERVICES | C32: 1 | D32: 810 | E32: 23377200 | F32: 28900
B33: HEALTH CARE AND SOCIAL ASSISTANCE | C33: 0 | D33: 0 | E33: 0 | F33: 0
A35: State Government
B36: STATE GOVERNMENT | C36: 13 | D36: 80 | E36: 2977700 | F36: 37200
B37: EDUCATIONAL SERVICES | C37: 0 | D37: 0 | E37: 0 | F37: 0
B38: HEALTH CARE AND SOCIAL ASSISTANCE | C38: 0 | D38: 0 | E38: 0 | F38: 0
A40: Total UI Covered
B41: TOTAL UI COVERED | C41: 484 | D41: 7470 | E41: 224159100 | F41: 30000
A43: Federal Government
B44: FEDERAL GOVERNMENT | C44: 14 | D44: 80 | E44: 3298300 | F44: 41200
A47: *Less than 5 employees unrounded
A75: Telephone: 800-784-0360 | E75: Released | F75: 2015-09-17T10:27:09.330

Sheet Clinton (023)
B1: UI COVERED EMPLOYMENT
B2: Clinton County
B3: 2014 Annual Averages
A7: NAICS Sectors/Ownership | C7: Number of Reporting Units | D7: Average Number of Workers | E7: Total Annual Wages | F7: Average Annual Wages
A8: Private Ownership Only | C8: not rounded | D8: rounded to tens | E8: rounded to hundreds | F8: rounded to hundreds
B9: AGRICULTURE, FORESTRY, FISHING AND HUNTI | C9: 28 | D9: 220 | E9: 6569200 | F9: 29900
B10: MINING, QUARRYING, AND OIL AND GAS EXTRA | C10: 0 | D10: 0 | E10: 0 | F10: 0
B11: UTILITIES | C11: 0 | D11: 0 | E11: 0 | F11: 0
B12: CONSTRUCTION | C12: 61 | D12: 430 | E12: 19139200 | F12: 44500
B13: MANUFACTURING | C13: 40 | D13: 3770 | E13: 179986100 | F13: 47700
B14: WHOLESALE TRADE | C14: 39 | D14: 270 | E14: 14260400 | F14: 52800
B15: RETAIL TRADE | C15: 87 | D15: 950 | E15: 20513900 | F15: 21600
B16: TRANSPORTATION AND WAREHOUSING | C16: 31 | D16: 400 | E16: 22013700 | F16: 55000
B17: INFORMATION | C17: 8 | D17: 70 | E17: 2565700 | F17: 36700
B18: FINANCE AND INSURANCE | C18: 33 | D18: 200 | E18: 9721500 | F18: 48600
B19: REAL ESTATE AND RENTAL AND LEASING | C19: 14 | D19: 50 | E19: 1202200 | F19: 24000
B20: PROFESSIONAL AND TECHNICAL SERVICES | C20: 34 | D20: 110 | E20: 3572700 | F20: 32500
B21: MANAGEMENT OF COMPANIES AND ENTERPRISES | C21: Confidential | D21: Confidential | E21: Confidential | F21: Confidential
B22: ADMINISTRATIVE AND WASTE SERVICES | C22: 24 | D22: 410 | E22: 11620000 | F22: 28300
B23: EDUCATIONAL SERVICES | C23: 4 | D23: 10 | E23: 223600 | F23: 22400
B24: HEALTH CARE AND SOCIAL ASSISTANCE | C24: 41 | D24: 1100 | E24: 35208000 | F24: 32000
B25: ARTS, ENTERTAINMENT, AND RECREATION | C25: 6 | D25: 40 | E25: 281500 | F25: 7000
B26: ACCOMMODATION AND FOOD SERVICES | C26: 47 | D26: 740 | E26: 8353200 | F26: 11300
B27: OTHER SERVICES, EXCEPT PUBLIC ADMIN | C27: 44 | D27: 360 | E27: 8470200 | F27: 23500
B28: UNCLASSIFIED | C28: Data included in Total UI Covered
A30: Local Government
B31: LOCAL GOVERNMENT | C31: 23 | D31: 1570 | E31: 49473500 | F31: 31500
B32: EDUCATIONAL SERVICES | C32: 9 | D32: 940 | E32: 30343600 | F32: 32300
B33: HEALTH CARE AND SOCIAL ASSISTANCE | C33: 0 | D33: 0 | E33: 0 | F33: 0
A35: State Government
B36: STATE GOVERNMENT | C36: 9 | D36: 60 | E36: 2152500 | F36: 35900
B37: EDUCATIONAL SERVICES | C37: 0 | D37: 0 | E37: 0 | F37: 0
B38: HEALTH CARE AND SOCIAL ASSISTANCE | C38: 0 | D38: 0 | E38: 0 | F38: 0
A40: Total UI Covered
B41: TOTAL UI COVERED | C41: 574 | D41: 10760 | E41: 396760000 | F41: 36900
A43: Federal Government
B44: FEDERAL GOVERNMENT | C44: 10 | D44: 60 | E44: 2855100 | F44: 47600
A47: *Less than 5 employees unrounded
A75: Telephone: 800-784-0360 | E75: Released | F75: 2015-09-17T10:27:41.360

Sheet Crawford (025)
B1: UI COVERED EMPLOYMENT
B2: Crawford County
B3: 2014 Annual Averages
A7: NAICS Sectors/Ownership | C7: Number of Reporting Units | D7: Average Number of Workers | E7: Total Annual Wages | F7: Average Annual Wages
A8: Private Ownership Only | C8: not rounded | D8: rounded to tens | E8: rounded to hundreds | F8: rounded to hundreds
B9: AGRICULTURE, FORESTRY, FISHING AND HUNTI | C9: 3 | D9: 10 | E9: 268600 | F9: 26900
B10: MINING, QUARRYING, AND OIL AND GAS EXTRA | C10: Confidential | D10: Confidential | E10: Confidential | F10: Confidential
B11: UTILITIES | C11: 3 | D11: 10 | E11: 396200 | F11: 39600
B12: CONSTRUCTION | C12: 13 | D12: 30 | E12: 547800 | F12: 18300
B13: MANUFACTURING | C13: Confidential | D13: Confidential | E13: Confidential | F13: Confidential
B14: WHOLESALE TRADE | C14: 4 | D14: 20 | E14: 614000 | F14: 30700
B15: RETAIL TRADE | C15: 26 | D15: 180 | E15: 3202300 | F15: 17800
B16: TRANSPORTATION AND WAREHOUSING | C16: 15 | D16: 150 | E16: 4758900 | F16: 31700
B17: INFORMATION | C17: 0 | D17: 0 | E17: 0 | F17: 0
B18: FINANCE AND INSURANCE | C18: 8 | D18: 30 | E18: 888500 | F18: 29600
B19: REAL ESTATE AND RENTAL AND LEASING | C19: Confidential | D19: Confidential | E19: Confidential | F19: Confidential
B20: PROFESSIONAL AND TECHNICAL SERVICES | C20: 4 | D20: 10 | E20: 129800 | F20: 13000
B21: MANAGEMENT OF COMPANIES AND ENTERPRISES | C21: Confidential | D21: Confidential | E21: Confidential | F21: Confidential
B22: ADMINISTRATIVE AND WASTE SERVICES | C22: Confidential | D22: Confidential | E22: Confidential | F22: Confidential
B23: EDUCATIONAL SERVICES | C23: 0 | D23: 0 | E23: 0 | F23: 0
B24: HEALTH CARE AND SOCIAL ASSISTANCE | C24: 20 | D24: 140 | E24: 4149500 | F24: 29600
B25: ARTS, ENTERTAINMENT, AND RECREATION | C25: Confidential | D25: Confidential | E25: Confidential | F25: Confidential
B26: ACCOMMODATION AND FOOD SERVICES | C26: 20 | D26: 140 | E26: 1692000 | F26: 12100
B27: OTHER SERVICES, EXCEPT PUBLIC ADMIN | C27: 9 | D27: 40 | E27: 700100 | F27: 17500
B28: UNCLASSIFIED | C28: Data included in Total UI Covered
A30: Local Government
B31: LOCAL GOVERNMENT | C31: 13 | D31: 500 | E31: 11975700 | F31: 24000
B32: EDUCATIONAL SERVICES | C32: 2 | D32: 340 | E32: 8726900 | F32: 25700
B33: HEALTH CARE AND SOCIAL ASSISTANCE | C33: 0 | D33: 0 | E33: 0 | F33: 0
A35: State Government
B36: STATE GOVERNMENT | C36: 9 | D36: 60 | E36: 1859400 | F36: 31000
B37: EDUCATIONAL SERVICES | C37: 0 | D37: 0 | E37: 0 | F37: 0
B38: HEALTH CARE AND SOCIAL ASSISTANCE | C38: 0 | D38: 0 | E38: 0 | F38: 0
A40: Total UI Covered
B41: TOTAL UI COVERED | C41: 162 | D41: 1990 | E41: 55194100 | F41: 27700
A43: Federal Government
B44: FEDERAL GOVERNMENT | C44: 5 | D44: 20 | E44: 910300 | F44: 45500
A47: *Less than 5 employees unrounded
A75: Telephone: 800-784-0360 | E75: Released | F75: 2015-09-17T10:28:06.490

Sheet Daviess (027)
B1: UI COVERED EMPLOYMENT
B2: Daviess County
B3: 2014 Annual Averages
A7: NAICS Sectors/Ownership | C7: Number of Reporting Units | D7: Average Number of Workers | E7: Total Annual Wages | F7: Average Annual Wages
A8: Private Ownership Only | C8: not rounded | D8: rounded to tens | E8: rounded to hundreds | F8: rounded to hundreds
B9: AGRICULTURE, FORESTRY, FISHING AND HUNTI | C9: 25 | D9: 90 | E9: 3286500 | F9: 36500
B10: MINING, QUARRYING, AND OIL AND GAS EXTRA | C10: Confidential | D10: Confidential | E10: Confidential | F10: Confidential
B11: UTILITIES | C11: 4 | D11: 40 | E11: 2681100 | F11: 67000
B12: CONSTRUCTION | C12: 190 | D12: 1280 | E12: 47807700 | F12: 37300
B13: MANUFACTURING | C13: 87 | D13: 2130 | E13: 71840700 | F13: 33700
B14: WHOLESALE TRADE | C14: 32 | D14: 390 | E14: 20665600 | F14: 53000
B15: RETAIL TRADE | C15: 102 | D15: 1270 | E15: 32774500 | F15: 25800
B16: TRANSPORTATION AND WAREHOUSING | C16: 43 | D16: 770 | E16: 25804300 | F16: 33500
B17: INFORMATION | C17: 9 | D17: 80 | E17: 2984600 | F17: 37300
B18: FINANCE AND INSURANCE | C18: 40 | D18: 260 | E18: 11788700 | F18: 45300
B19: REAL ESTATE AND RENTAL AND LEASING | C19: 15 | D19: 80 | E19: 1905100 | F19: 23800
B20: PROFESSIONAL AND TECHNICAL SERVICES | C20: 47 | D20: 290 | E20: 12555500 | F20: 43300
B21: MANAGEMENT OF COMPANIES AND ENTERPRISES | C21: Confidential | D21: Confidential | E21: Confidential | F21: Confidential
B22: ADMINISTRATIVE AND WASTE SERVICES | C22: 18 | D22: 190 | E22: 5073600 | F22: 26700
B23: EDUCATIONAL SERVICES | C23: Confidential | D23: Confidential | E23: Confidential | F23: Confidential
B24: HEALTH CARE AND SOCIAL ASSISTANCE | C24: 70 | D24: 960 | E24: 26089900 | F24: 27200
B25: ARTS, ENTERTAINMENT, AND RECREATION | C25: 5 | D25: 70 | E25: 431200 | F25: 6200
B26: ACCOMMODATION AND FOOD SERVICES | C26: 52 | D26: 820 | E26: 8711500 | F26: 10600
B27: OTHER SERVICES, EXCEPT PUBLIC ADMIN | C27: 70 | D27: 330 | E27: 8615800 | F27: 26100
B28: UNCLASSIFIED | C28: Data included in Total UI Covered
A30: Local Government
B31: LOCAL GOVERNMENT | C31: 21 | D31: 1620 | E31: 59180300 | F31: 36500
B32: EDUCATIONAL SERVICES | C32: 6 | D32: 640 | E32: 21119400 | F32: 33000
B33: HEALTH CARE AND SOCIAL ASSISTANCE | C33: 1 | D33: 560 | E33: 23982700 | F33: 42800
A35: State Government
B36: STATE GOVERNMENT | C36: 14 | D36: 90 | E36: 3438900 | F36: 38200
B37: EDUCATIONAL SERVICES | C37: 0 | D37: 0 | E37: 0 | F37: 0
B38: HEALTH CARE AND SOCIAL ASSISTANCE | C38: 0 | D38: 0 | E38: 0 | F38: 0
A40: Total UI Covered
B41: TOTAL UI COVERED | C41: 852 | D41: 10940 | E41: 355877500 | F41: 32500
A43: Federal Government
B44: FEDERAL GOVERNMENT | C44: 9 | D44: 70 | E44: 3619300 | F44: 51700
A47: *Less than 5 employees unrounded
A75: Telephone: 800-784-0360 | E75: Released | F75: 2015-09-17T10:28:26.510

Sheet Dearborn (029)
B1: UI COVERED EMPLOYMENT
B2: Dearborn County
B3: 2014 Annual Averages
A7: NAICS Sectors/Ownership | C7: Number of Reporting Units | D7: Average Number of Workers | E7: Total Annual Wages | F7: Average Annual Wages
A8: Private Ownership Only | C8: not rounded | D8: rounded to tens | E8: rounded to hundreds | F8: rounded to hundreds
B9: AGRICULTURE, FORESTRY, FISHING AND HUNTI | C9: 4 | D9: 10 | E9: 129100 | F9: 12900
B10: MINING, QUARRYING, AND OIL AND GAS EXTRA | C10: Confidential | D10: Confidential | E10: Confidential | F10: Confidential
B11: UTILITIES | C11: 16 | D11: 230 | E11: 21976300 | F11: 95500
B12: CONSTRUCTION | C12: 118 | D12: 620 | E12: 33250500 | F12: 53600
B13: MANUFACTURING | C13: 47 | D13: 2110 | E13: 92499200 | F13: 43800
B14: WHOLESALE TRADE | C14: 51 | D14: 250 | E14: 11983300 | F14: 47900
B15: RETAIL TRADE | C15: 126 | D15: 1880 | E15: 48562400 | F15: 25800
B16: TRANSPORTATION AND WAREHOUSING | C16: 53 | D16: 330 | E16: 13016000 | F16: 39400
B17: INFORMATION | C17: 8 | D17: 110 | E17: 4300800 | F17: 39100
B18: FINANCE AND INSURANCE | C18: 50 | D18: 340 | E18: 15668300 | F18: 46100
B19: REAL ESTATE AND RENTAL AND LEASING | C19: 34 | D19: 90 | E19: 2582900 | F19: 28700
B20: PROFESSIONAL AND TECHNICAL SERVICES | C20: 72 | D20: 250 | E20: 10090400 | F20: 40400
B21: MANAGEMENT OF COMPANIES AND ENTERPRISES | C21: Confidential | D21: Confidential | E21: Confidential | F21: Confidential
B22: ADMINISTRATIVE AND WASTE SERVICES | C22: 52 | D22: 330 | E22: 8310200 | F22: 25200
B23: EDUCATIONAL SERVICES | C23: Confidential | D23: Confidential | E23: Confidential | F23: Confidential
B24: HEALTH CARE AND SOCIAL ASSISTANCE | C24: 83 | D24: 1420 | E24: 45319500 | F24: 31900
B25: ARTS, ENTERTAINMENT, AND RECREATION | C25: 24 | D25: 1630 | E25: 42538300 | F25: 26100
B26: ACCOMMODATION AND FOOD SERVICES | C26: 64 | D26: 1220 | E26: 15375400 | F26: 12600
B27: OTHER SERVICES, EXCEPT PUBLIC ADMIN | C27: 70 | D27: 280 | E27: 6317500 | F27: 22600
B28: UNCLASSIFIED | C28: Data included in Total UI Covered
A30: Local Government
B31: LOCAL GOVERNMENT | C31: 45 | D31: 2800 | E31: 109765600 | F31: 39200
B32: EDUCATIONAL SERVICES | C32: 8 | D32: 1140 | E32: 39184400 | F32: 34400
B33: HEALTH CARE AND SOCIAL ASSISTANCE | C33: 17 | D33: 870 | E33: 45564100 | F33: 52400
A35: State Government
B36: STATE GOVERNMENT | C36: 10 | D36: 100 | E36: 3710900 | F36: 37100
B37: EDUCATIONAL SERVICES | C37: 0 | D37: 0 | E37: 0 | F37: 0
B38: HEALTH CARE AND SOCIAL ASSISTANCE | C38: 0 | D38: 0 | E38: 0 | F38: 0
A40: Total UI Covered
B41: TOTAL UI COVERED | C41: 939 | D41: 14070 | E41: 488082500 | F41: 34700
A43: Federal Government
B44: FEDERAL GOVERNMENT | C44: 9 | D44: 100 | E44: 5823700 | F44: 58200
A47: *Less than 5 employees unrounded
A75: Telephone: 800-784-0360 | E75: Released | F75: 2015-09-17T10:31:31.370

Sheet Decatur (031)
B1: UI COVERED EMPLOYMENT
B2: Decatur County
B3: 2014 Annual Averages
A7: NAICS Sectors/Ownership | C7: Number of Reporting Units | D7: Average Number of Workers | E7: Total Annual Wages | F7: Average Annual Wages
A8: Private Ownership Only | C8: not rounded | D8: rounded to tens | E8: rounded to hundreds | F8: rounded to hundreds
B9: AGRICULTURE, FORESTRY, FISHING AND HUNTI | C9: 27 | D9: 210 | E9: 8333500 | F9: 39700
B10: MINING, QUARRYING, AND OIL AND GAS EXTRA | C10: Confidential | D10: Confidential | E10: Confidential | F10: Confidential
B11: UTILITIES | C11: 4 | D11: 60 | E11: 4089800 | F11: 68200
B12: CONSTRUCTION | C12: 64 | D12: 280 | E12: 9784400 | F12: 34900
B13: MANUFACTURING | C13: 59 | D13: 5170 | E13: 265497600 | F13: 51400
B14: WHOLESALE TRADE | C14: 36 | D14: 430 | E14: 20633000 | F14: 48000
B15: RETAIL TRADE | C15: 94 | D15: 1100 | E15: 25065700 | F15: 22800
B16: TRANSPORTATION AND WAREHOUSING | C16: 35 | D16: 670 | E16: 26563100 | F16: 39600
B17: INFORMATION | C17: 5 | D17: 70 | E17: 2632100 | F17: 37600
B18: FINANCE AND INSURANCE | C18: 37 | D18: 240 | E18: 12166700 | F18: 50700
B19: REAL ESTATE AND RENTAL AND LEASING | C19: 17 | D19: 50 | E19: 1810500 | F19: 36200
B20: PROFESSIONAL AND TECHNICAL SERVICES | C20: 29 | D20: 100 | E20: 4371200 | F20: 43700
B21: MANAGEMENT OF COMPANIES AND ENTERPRISES | C21: Confidential | D21: Confidential | E21: Confidential | F21: Confidential
B22: ADMINISTRATIVE AND WASTE SERVICES | C22: 29 | D22: 1430 | E22: 38064900 | F22: 26600
B23: EDUCATIONAL SERVICES | C23: 7 | D23: 10 | E23: 96600 | F23: 9700
B24: HEALTH CARE AND SOCIAL ASSISTANCE | C24: 43 | D24: 710 | E24: 20354900 | F24: 28700
B25: ARTS, ENTERTAINMENT, AND RECREATION | C25: 6 | D25: 120 | E25: 3077700 | F25: 25600
B26: ACCOMMODATION AND FOOD SERVICES | C26: 49 | D26: 820 | E26: 10915300 | F26: 13300
B27: OTHER SERVICES, EXCEPT PUBLIC ADMIN | C27: 51 | D27: 260 | E27: 5344600 | F27: 20600
B28: UNCLASSIFIED | C28: Data included in Total UI Covered
A30: Local Government
B31: LOCAL GOVERNMENT | C31: 21 | D31: 1400 | E31: 55134500 | F31: 39400
B32: EDUCATIONAL SERVICES | C32: 6 | D32: 610 | E32: 21976600 | F32: 36000
B33: HEALTH CARE AND SOCIAL ASSISTANCE | C33: 1 | D33: 430 | E33: 21803800 | F33: 50700
A35: State Government
B36: STATE GOVERNMENT | C36: 12 | D36: 60 | E36: 2199100 | F36: 36700
B37: EDUCATIONAL SERVICES | C37: 0 | D37: 0 | E37: 0 | F37: 0
B38: HEALTH CARE AND SOCIAL ASSISTANCE | C38: 0 | D38: 0 | E38: 0 | F38: 0
A40: Total UI Covered
B41: TOTAL UI COVERED | C41: 627 | D41: 13420 | E41: 531816400 | F41: 39600
A43: Federal Government
B44: FEDERAL GOVERNMENT | C44: 8 | D44: 60 | E44: 3431700 | F44: 57200
A47: *Less than 5 employees unrounded
A75: Telephone: 800-784-0360 | E75: Released | F75: 2015-09-17T10:31:50.820

Sheet Dekalb (033)
B1: UI COVERED EMPLOYMENT
B2: Dekalb County
B3: 2014 Annual Averages
A7: NAICS Sectors/Ownership | C7: Number of Reporting Units | D7: Average Number of Workers | E7: Total Annual Wages | F7: Average Annual Wages
A8: Private Ownership Only | C8: not rounded | D8: rounded to tens | E8: rounded to hundreds | F8: rounded to hundreds
B9: AGRICULTURE, FORESTRY, FISHING AND HUNTI | C9: 20 | D9: 90 | E9: 2432800 | F9: 27000
B10: MINING, QUARRYING, AND OIL AND GAS EXTRA | C10: 5 | D10: 60 | E10: 2134300 | F10: 35600
B11: UTILITIES | C11: Confidential | D11: Confidential | E11: Confidential | F11: Confidential
B12: CONSTRUCTION | C12: 113 | D12: 630 | E12: 24702400 | F12: 39200
B13: MANUFACTURING | C13: 118 | D13: 8240 | E13: 453336700 | F13: 55000
B14: WHOLESALE TRADE | C14: 57 | D14: 1310 | E14: 65528300 | F14: 50000
B15: RETAIL TRADE | C15: 110 | D15: 1460 | E15: 34670600 | F15: 23700
B16: TRANSPORTATION AND WAREHOUSING | C16: 38 | D16: 850 | E16: 29945300 | F16: 35200
B17: INFORMATION | C17: 8 | D17: 90 | E17: 2770600 | F17: 30800
B18: FINANCE AND INSURANCE | C18: 52 | D18: 330 | E18: 13692400 | F18: 41500
B19: REAL ESTATE AND RENTAL AND LEASING | C19: 24 | D19: 110 | E19: 4211700 | F19: 38300
B20: PROFESSIONAL AND TECHNICAL SERVICES | C20: 79 | D20: 470 | E20: 24785300 | F20: 52700
B21: MANAGEMENT OF COMPANIES AND ENTERPRISES | C21: 6 | D21: 350 | E21: 30206100 | F21: 86300
B22: ADMINISTRATIVE AND WASTE SERVICES | C22: 55 | D22: 940 | E22: 26545000 | F22: 28200
B23: EDUCATIONAL SERVICES | C23: 6 | D23: 60 | E23: 702800 | F23: 11700
B24: HEALTH CARE AND SOCIAL ASSISTANCE | C24: 56 | D24: 1600 | E24: 58373200 | F24: 36500
B25: ARTS, ENTERTAINMENT, AND RECREATION | C25: 17 | D25: 170 | E25: 2254400 | F25: 13300
B26: ACCOMMODATION AND FOOD SERVICES | C26: 76 | D26: 1270 | E26: 15693500 | F26: 12400
B27: OTHER SERVICES, EXCEPT PUBLIC ADMIN | C27: 81 | D27: 470 | E27: 8371600 | F27: 17800
B28: UNCLASSIFIED | C28: Data included in Total UI Covered
A30: Local Government
B31: LOCAL GOVERNMENT | C31: 22 | D31: 1870 | E31: 64426800 | F31: 34500
B32: EDUCATIONAL SERVICES | C32: 10 | D32: 1200 | E32: 43174400 | F32: 36000
B33: HEALTH CARE AND SOCIAL ASSISTANCE | C33: 0 | D33: 0 | E33: 0 | F33: 0
A35: State Government
B36: STATE GOVERNMENT | C36: 14 | D36: 80 | E36: 2919800 | F36: 36500
B37: EDUCATIONAL SERVICES | C37: 0 | D37: 0 | E37: 0 | F37: 0
B38: HEALTH CARE AND SOCIAL ASSISTANCE | C38: 0 | D38: 0 | E38: 0 | F38: 0
A40: Total UI Covered
B41: TOTAL UI COVERED | C41: 958 | D41: 20470 | E41: 868218200 | F41: 42400
A43: Federal Government
B44: FEDERAL GOVERNMENT | C44: 11 | D44: 80 | E44: 4454800 | F44: 55700
A47: *Less than 5 employees unrounded
A75: Telephone: 800-784-0360 | E75: Released | F75: 2015-09-17T10:32:08.670

Sheet Delaware (035)
B1: UI COVERED EMPLOYMENT
B2: Delaware County
B3: 2014 Annual Averages
A7: NAICS Sectors/Ownership | C7: Number of Reporting Units | D7: Average Number of Workers | E7: Total Annual Wages | F7: Average Annual Wages
A8: Private Ownership Only | C8: not rounded | D8: rounded to tens | E8: rounded to hundreds | F8: rounded to hundreds
B9: AGRICULTURE, FORESTRY, FISHING AND HUNTI | C9: 17 | D9: 180 | E9: 5540900 | F9: 30800
B10: MINING, QUARRYING, AND OIL AND GAS EXTRA | C10: Confidential | D10: Confidential | E10: Confidential | F10: Confidential
B11: UTILITIES | C11: 6 | D11: 170 | E11: 13033300 | F11: 76700
B12: CONSTRUCTION | C12: 171 | D12: 1410 | E12: 60076800 | F12: 42600
B13: MANUFACTURING | C13: 125 | D13: 4180 | E13: 198740500 | F13: 47500
B14: WHOLESALE TRADE | C14: 108 | D14: 970 | E14: 47388200 | F14: 48900
B15: RETAIL TRADE | C15: 412 | D15: 6460 | E15: 151076100 | F15: 23400
B16: TRANSPORTATION AND WAREHOUSING | C16: 46 | D16: 1100 | E16: 44764100 | F16: 40700
B17: INFORMATION | C17: 13 | D17: 330 | E17: 14743900 | F17: 44700
B18: FINANCE AND INSURANCE | C18: 153 | D18: 1750 | E18: 73613200 | F18: 42100
B19: REAL ESTATE AND RENTAL AND LEASING | C19: 97 | D19: 610 | E19: 21204000 | F19: 34800
B20: PROFESSIONAL AND TECHNICAL SERVICES | C20: 164 | D20: 1710 | E20: 77441700 | F20: 45300
B21: MANAGEMENT OF COMPANIES AND ENTERPRISES | C21: 17 | D21: 790 | E21: 66380700 | F21: 84000
B22: ADMINISTRATIVE AND WASTE SERVICES | C22: 107 | D22: 1890 | E22: 45237900 | F22: 23900
B23: EDUCATIONAL SERVICES | C23: 18 | D23: 110 | E23: 3078000 | F23: 28000
B24: HEALTH CARE AND SOCIAL ASSISTANCE | C24: 239 | D24: 8030 | E24: 325930200 | F24: 40600
B25: ARTS, ENTERTAINMENT, AND RECREATION | C25: 41 | D25: 490 | E25: 6380000 | F25: 13000
B26: ACCOMMODATION AND FOOD SERVICES | C26: 209 | D26: 4450 | E26: 56512100 | F26: 12700
B27: OTHER SERVICES, EXCEPT PUBLIC ADMIN | C27: 181 | D27: 1130 | E27: 27837900 | F27: 24600
B28: UNCLASSIFIED | C28: Data included in Total UI Covered
A30: Local Government
B31: LOCAL GOVERNMENT | C31: 51 | D31: 3630 | E31: 125438600 | F31: 34600
B32: EDUCATIONAL SERVICES | C32: 28 | D32: 2240 | E32: 76441600 | F32: 34100
B33: HEALTH CARE AND SOCIAL ASSISTANCE | C33: 0 | D33: 0 | E33: 0 | F33: 0
A35: State Government
B36: STATE GOVERNMENT | C36: 21 | D36: 4670 | E36: 231951900 | F36: 49700
B37: EDUCATIONAL SERVICES | C37: 2 | D37: 4490 | E37: 224508300 | F37: 50000
B38: HEALTH CARE AND SOCIAL ASSISTANCE | C38: 0 | D38: 0 | E38: 0 | F38: 0
A40: Total UI Covered
B41: TOTAL UI COVERED | C41: 2196 | D41: 44070 | E41: 1598286400 | F41: 36300
A43: Federal Government
B44: FEDERAL GOVERNMENT | C44: 17 | D44: 280 | E44: 17128800 | F44: 61200
A47: *Less than 5 employees unrounded
A75: Telephone: 800-784-0360 | E75: Released | F75: 2015-09-17T10:32:25.780

Sheet Dubois (037)
B1: UI COVERED EMPLOYMENT
B2: Dubois County
B3: 2014 Annual Averages
A7: NAICS Sectors/Ownership | C7: Number of Reporting Units | D7: Average Number of Workers | E7: Total Annual Wages | F7: Average Annual Wages
A8: Private Ownership Only | C8: not rounded | D8: rounded to tens | E8: rounded to hundreds | F8: rounded to hundreds
B9: AGRICULTURE, FORESTRY, FISHING AND HUNTI | C9: 45 | D9: 390 | E9: 9752400 | F9: 25000
B10: MINING, QUARRYING, AND OIL AND GAS EXTRA | C10: Confidential | D10: Confidential | E10: Confidential | F10: Confidential
B11: UTILITIES | C11: 5 | D11: 50 | E11: 2511900 | F11: 50200
B12: CONSTRUCTION | C12: 149 | D12: 940 | E12: 37834200 | F12: 40200
B13: MANUFACTURING | C13: 104 | D13: 11220 | E13: 485775200 | F13: 43300
B14: WHOLESALE TRADE | C14: 87 | D14: 1400 | E14: 67760500 | F14: 48400
B15: RETAIL TRADE | C15: 198 | D15: 2900 | E15: 75812900 | F15: 26100
B16: TRANSPORTATION AND WAREHOUSING | C16: 59 | D16: 920 | E16: 42585900 | F16: 46300
B17: INFORMATION | C17: 9 | D17: 190 | E17: 7067000 | F17: 37200
B18: FINANCE AND INSURANCE | C18: 75 | D18: 460 | E18: 24031700 | F18: 52200
B19: REAL ESTATE AND RENTAL AND LEASING | C19: 23 | D19: 100 | E19: 2445500 | F19: 24500
B20: PROFESSIONAL AND TECHNICAL SERVICES | C20: 85 | D20: 480 | E20: 21830400 | F20: 45500
B21: MANAGEMENT OF COMPANIES AND ENTERPRISES | C21: 10 | D21: 470 | E21: 46160600 | F21: 98200
B22: ADMINISTRATIVE AND WASTE SERVICES | C22: 45 | D22: 350 | E22: 7121700 | F22: 20300
B23: EDUCATIONAL SERVICES | C23: Confidential | D23: Confidential | E23: Confidential | F23: Confidential
B24: HEALTH CARE AND SOCIAL ASSISTANCE | C24: 113 | D24: 3100 | E24: 139033700 | F24: 44800
B25: ARTS, ENTERTAINMENT, AND RECREATION | C25: 12 | D25: 120 | E25: 1226400 | F25: 10200
B26: ACCOMMODATION AND FOOD SERVICES | C26: 99 | D26: 1650 | E26: 19714100 | F26: 11900
B27: OTHER SERVICES, EXCEPT PUBLIC ADMIN | C27: 100 | D27: 550 | E27: 13407300 | F27: 24400
B28: UNCLASSIFIED | C28: Data included in Total UI Covered
A30: Local Government
B31: LOCAL GOVERNMENT | C31: 24 | D31: 1880 | E31: 60880600 | F31: 32400
B32: EDUCATIONAL SERVICES | C32: 8 | D32: 1110 | E32: 35804500 | F32: 32300
B33: HEALTH CARE AND SOCIAL ASSISTANCE | C33: 0 | D33: 0 | E33: 0 | F33: 0
A35: State Government
B36: STATE GOVERNMENT | C36: 14 | D36: 160 | E36: 6227900 | F36: 38900
B37: EDUCATIONAL SERVICES | C37: 1 | D37: 70 | E37: 2250000 | F37: 32100
B38: HEALTH CARE AND SOCIAL ASSISTANCE | C38: 0 | D38: 0 | E38: 0 | F38: 0
A40: Total UI Covered
B41: TOTAL UI COVERED | C41: 1262 | D41: 27440 | E41: 1075146200 | F41: 39200
A43: Federal Government
B44: FEDERAL GOVERNMENT | C44: 15 | D44: 100 | E44: 5362200 | F44: 53600
A47: *Less than 5 employees unrounded
A75: Telephone: 800-784-0360 | E75: Released | F75: 2015-09-17T10:32:41.160

Sheet Elkhart (039)
B1: UI COVERED EMPLOYMENT
B2: Elkhart County
B3: 2014 Annual Averages
A7: NAICS Sectors/Ownership | C7: Number of Reporting Units | D7: Average Number of Workers | E7: Total Annual Wages | F7: Average Annual Wages
A8: Private Ownership Only | C8: not rounded | D8: rounded to tens | E8: rounded to hundreds | F8: rounded to hundreds
B9: AGRICULTURE, FORESTRY, FISHING AND HUNTI | C9: 23 | D9: 180 | E9: 5380400 | F9: 29900
B10: MINING, QUARRYING, AND OIL AND GAS EXTRA | C10: Confidential | D10: Confidential | E10: Confidential | F10: Confidential
B11: UTILITIES | C11: 6 | D11: 160 | E11: 15412400 | F11: 96300
B12: CONSTRUCTION | C12: 442 | D12: 2800 | E12: 133928700 | F12: 47800
B13: MANUFACTURING | C13: 752 | D13: 57910 | E13: 2674234200 | F13: 46200
B14: WHOLESALE TRADE | C14: 422 | D14: 5780 | E14: 282709100 | F14: 48900
B15: RETAIL TRADE | C15: 645 | D15: 9180 | E15: 234454700 | F15: 25500
B16: TRANSPORTATION AND WAREHOUSING | C16: 179 | D16: 2850 | E16: 130352800 | F16: 45700
B17: INFORMATION | C17: 40 | D17: 540 | E17: 22332500 | F17: 41400
B18: FINANCE AND INSURANCE | C18: 234 | D18: 1800 | E18: 87762600 | F18: 48800
B19: REAL ESTATE AND RENTAL AND LEASING | C19: 150 | D19: 810 | E19: 27233800 | F19: 33600
B20: PROFESSIONAL AND TECHNICAL SERVICES | C20: 319 | D20: 1940 | E20: 94746400 | F20: 48800
B21: MANAGEMENT OF COMPANIES AND ENTERPRISES | C21: 28 | D21: 1940 | E21: 282569500 | F21: 145700
B22: ADMINISTRATIVE AND WASTE SERVICES | C22: 211 | D22: 5470 | E22: 115583400 | F22: 21100
B23: EDUCATIONAL SERVICES | C23: 20 | D23: 660 | E23: 19594100 | F23: 29700
B24: HEALTH CARE AND SOCIAL ASSISTANCE | C24: 311 | D24: 9990 | E24: 421675300 | F24: 42200
B25: ARTS, ENTERTAINMENT, AND RECREATION | C25: 46 | D25: 510 | E25: 8045900 | F25: 15800
B26: ACCOMMODATION AND FOOD SERVICES | C26: 334 | D26: 6610 | E26: 86597300 | F26: 13100
B27: OTHER SERVICES, EXCEPT PUBLIC ADMIN | C27: 403 | D27: 2330 | E27: 72219600 | F27: 31000
B28: UNCLASSIFIED | C28: Data included in Total UI Covered
A30: Local Government
B31: LOCAL GOVERNMENT | C31: 54 | D31: 8150 | E31: 290336000 | F31: 35600
B32: EDUCATIONAL SERVICES | C32: 20 | D32: 5780 | E32: 201900300 | F32: 34900
B33: HEALTH CARE AND SOCIAL ASSISTANCE | C33: 0 | D33: 0 | E33: 0 | F33: 0
A35: State Government
B36: STATE GOVERNMENT | C36: 17 | D36: 230 | E36: 8812100 | F36: 38300
B37: EDUCATIONAL SERVICES | C37: 0 | D37: 0 | E37: 0 | F37: 0
B38: HEALTH CARE AND SOCIAL ASSISTANCE | C38: 0 | D38: 0 | E38: 0 | F38: 0
A40: Total UI Covered
B41: TOTAL UI COVERED | C41: 4635 | D41: 119890 | E41: 5016281400 | F41: 41800
A43: Federal Government
B44: FEDERAL GOVERNMENT | C44: 15 | D44: 250 | E44: 15123300 | F44: 60500
A47: *Less than 5 employees unrounded
A75: Telephone: 800-784-0360 | E75: Released | F75: 2015-09-17T10:32:57.700

Sheet Fayette (041)
B1: UI COVERED EMPLOYMENT
B2: Fayette County
B3: 2014 Annual Averages
A7: NAICS Sectors/Ownership | C7: Number of Reporting Units | D7: Average Number of Workers | E7: Total Annual Wages | F7: Average Annual Wages
A8: Private Ownership Only | C8: not rounded | D8: rounded to tens | E8: rounded to hundreds | F8: rounded to hundreds
B9: AGRICULTURE, FORESTRY, FISHING AND HUNTI | C9: 6 | D9: 20 | E9: 710100 | F9: 35500
B10: MINING, QUARRYING, AND OIL AND GAS EXTRA | C10: Confidential | D10: Confidential | E10: Confidential | F10: Confidential
B11: UTILITIES | C11: 4 | D11: 50 | E11: 2680400 | F11: 53600
B12: CONSTRUCTION | C12: 32 | D12: 120 | E12: 3832500 | F12: 31900
B13: MANUFACTURING | C13: 31 | D13: 1230 | E13: 62787400 | F13: 51000
B14: WHOLESALE TRADE | C14: 13 | D14: 180 | E14: 8769700 | F14: 48700
B15: RETAIL TRADE | C15: 67 | D15: 830 | E15: 19929500 | F15: 24000
B16: TRANSPORTATION AND WAREHOUSING | C16: 13 | D16: 30 | E16: 1188200 | F16: 39600
B17: INFORMATION | C17: 7 | D17: 100 | E17: 2559500 | F17: 25600
B18: FINANCE AND INSURANCE | C18: 29 | D18: 150 | E18: 5644900 | F18: 37600
B19: REAL ESTATE AND RENTAL AND LEASING | C19: 18 | D19: 50 | E19: 1235900 | F19: 24700
B20: PROFESSIONAL AND TECHNICAL SERVICES | C20: 31 | D20: 230 | E20: 4608500 | F20: 20000
B21: MANAGEMENT OF COMPANIES AND ENTERPRISES | C21: Confidential | D21: Confidential | E21: Confidential | F21: Confidential
B22: ADMINISTRATIVE AND WASTE SERVICES | C22: 8 | D22: 40 | E22: 1382700 | F22: 34600
B23: EDUCATIONAL SERVICES | C23: 5 | D23: 30 | E23: 295000 | F23: 9800
B24: HEALTH CARE AND SOCIAL ASSISTANCE | C24: 37 | D24: 1400 | E24: 46368100 | F24: 33100
B25: ARTS, ENTERTAINMENT, AND RECREATION | C25: 7 | D25: 50 | E25: 829400 | F25: 16600
B26: ACCOMMODATION AND FOOD SERVICES | C26: 41 | D26: 560 | E26: 6567000 | F26: 11700
B27: OTHER SERVICES, EXCEPT PUBLIC ADMIN | C27: 45 | D27: 170 | E27: 3832900 | F27: 22500
B28: UNCLASSIFIED | C28: Data included in Total UI Covered
A30: Local Government
B31: LOCAL GOVERNMENT | C31: 23 | D31: 970 | E31: 31218300 | F31: 32200
B32: EDUCATIONAL SERVICES | C32: 14 | D32: 520 | E32: 18952200 | F32: 36400
B33: HEALTH CARE AND SOCIAL ASSISTANCE | C33: 1 | D33: 10 | E33: 202800 | F33: 20300
A35: State Government
B36: STATE GOVERNMENT | C36: 12 | D36: 60 | E36: 2602300 | F36: 43400
B37: EDUCATIONAL SERVICES | C37: 0 | D37: 0 | E37: 0 | F37: 0
B38: HEALTH CARE AND SOCIAL ASSISTANCE | C38: 0 | D38: 0 | E38: 0 | F38: 0
A40: Total UI Covered
B41: TOTAL UI COVERED | C41: 430 | D41: 6290 | E41: 209664600 | F41: 33300
A43: Federal Government
B44: FEDERAL GOVERNMENT | C44: 5 | D44: 40 | E44: 1973300 | F44: 49300
A47: *Less than 5 employees unrounded
A75: Telephone: 800-784-0360 | E75: Released | F75: 2015-09-17T10:33:16.530

Sheet Floyd (43)
B1: UI COVERED EMPLOYMENT
B2: Floyd County
B3: 2014 Annual Averages
A7: NAICS Sectors/Ownership | C7: Number of Reporting Units | D7: Average Number of Workers | E7: Total Annual Wages | F7: Average Annual Wages
A8: Private Ownership Only | C8: not rounded | D8: rounded to tens | E8: rounded to hundreds | F8: rounded to hundreds
B9: AGRICULTURE, FORESTRY, FISHING AND HUNTI | C9: 4 | D9: 10 | E9: 271200 | F9: 27100
B10: MINING, QUARRYING, AND OIL AND GAS EXTRA | C10: Confidential | D10: Confidential | E10: Confidential | F10: Confidential
B11: UTILITIES | C11: 4 | D11: 70 | E11: 6005900 | F11: 85800
B12: CONSTRUCTION | C12: 202 | D12: 1530 | E12: 71929700 | F12: 47000
B13: MANUFACTURING | C13: 118 | D13: 5800 | E13: 285544300 | F13: 49200
B14: WHOLESALE TRADE | C14: 93 | D14: 550 | E14: 27264700 | F14: 49600
B15: RETAIL TRADE | C15: 170 | D15: 3020 | E15: 69203400 | F15: 22900
B16: TRANSPORTATION AND WAREHOUSING | C16: 42 | D16: 320 | E16: 13026900 | F16: 40700
B17: INFORMATION | C17: 17 | D17: 150 | E17: 7888400 | F17: 52600
B18: FINANCE AND INSURANCE | C18: 136 | D18: 730 | E18: 43136500 | F18: 59100
B19: REAL ESTATE AND RENTAL AND LEASING | C19: 72 | D19: 180 | E19: 5661200 | F19: 31500
B20: PROFESSIONAL AND TECHNICAL SERVICES | C20: 211 | D20: 1060 | E20: 55056800 | F20: 51900
B21: MANAGEMENT OF COMPANIES AND ENTERPRISES | C21: 16 | D21: 190 | E21: 11622400 | F21: 61200
B22: ADMINISTRATIVE AND WASTE SERVICES | C22: 84 | D22: 1110 | E22: 30097100 | F22: 27100
B23: EDUCATIONAL SERVICES | C23: 17 | D23: 260 | E23: 5905900 | F23: 22700
B24: HEALTH CARE AND SOCIAL ASSISTANCE | C24: 212 | D24: 3720 | E24: 123378800 | F24: 33200
B25: ARTS, ENTERTAINMENT, AND RECREATION | C25: 18 | D25: 100 | E25: 1427200 | F25: 14300
B26: ACCOMMODATION AND FOOD SERVICES | C26: 138 | D26: 2700 | E26: 36046900 | F26: 13400
B27: OTHER SERVICES, EXCEPT PUBLIC ADMIN | C27: 131 | D27: 910 | E27: 23620100 | F27: 26000
B28: UNCLASSIFIED | C28: Data included in Total UI Covered
A30: Local Government
B31: LOCAL GOVERNMENT | C31: 56 | D31: 4570 | E31: 194685000 | F31: 42600
B32: EDUCATIONAL SERVICES | C32: 18 | D32: 1350 | E32: 52298400 | F32: 38700
B33: HEALTH CARE AND SOCIAL ASSISTANCE | C33: 20 | D33: 2150 | E33: 105476900 | F33: 49100
A35: State Government
B36: STATE GOVERNMENT | C36: 16 | D36: 930 | E36: 32787900 | F36: 35300
B37: EDUCATIONAL SERVICES | C37: 1 | D37: 830 | E37: 28874500 | F37: 34800
B38: HEALTH CARE AND SOCIAL ASSISTANCE | C38: 0 | D38: 0 | E38: 0 | F38: 0
A40: Total UI Covered
B41: TOTAL UI COVERED | C41: 1757 | D41: 27910 | E41: 1044849500 | F41: 37400
A43: Federal Government
B44: FEDERAL GOVERNMENT | C44: 17 | D44: 210 | E44: 13284300 | F44: 63300
A47: *Less than 5 employees unrounded
A75: Telephone: 800-784-0360 | E75: Released | F75: 2015-09-17T10:33:32.660

Sheet Fountain (045)
B1: UI COVERED EMPLOYMENT
B2: Fountain County
B3: 2014 Annual Averages
A7: NAICS Sectors/Ownership | C7: Number of Reporting Units | D7: Average Number of Workers | E7: Total Annual Wages | F7: Average Annual Wages
A8: Private Ownership Only | C8: not rounded | D8: rounded to tens | E8: rounded to hundreds | F8: rounded to hundreds
B9: AGRICULTURE, FORESTRY, FISHING AND HUNTI | C9: 13 | D9: 170 | E9: 4767900 | F9: 28000
B10: MINING, QUARRYING, AND OIL AND GAS EXTRA | C10: 0 | D10: 0 | E10: 0 | F10: 0
B11: UTILITIES | C11: Confidential | D11: Confidential | E11: Confidential | F11: Confidential
B12: CONSTRUCTION | C12: 33 | D12: 100 | E12: 3402100 | F12: 34000
B13: MANUFACTURING | C13: 22 | D13: 1880 | E13: 76895200 | F13: 40900
B14: WHOLESALE TRADE | C14: 15 | D14: 100 | E14: 4553300 | F14: 45500
B15: RETAIL TRADE | C15: 62 | D15: 630 | E15: 10772900 | F15: 17100
B16: TRANSPORTATION AND WAREHOUSING | C16: 15 | D16: 100 | E16: 3531800 | F16: 35300
B17: INFORMATION | C17: 7 | D17: 50 | E17: 1451500 | F17: 29000
B18: FINANCE AND INSURANCE | C18: 18 | D18: 160 | E18: 5425100 | F18: 33900
B19: REAL ESTATE AND RENTAL AND LEASING | C19: 7 | D19: 20 | E19: 399700 | F19: 20000
B20: PROFESSIONAL AND TECHNICAL SERVICES | C20: 18 | D20: 60 | E20: 1516800 | F20: 25300
B21: MANAGEMENT OF COMPANIES AND ENTERPRISES | C21: Confidential | D21: Confidential | E21: Confidential | F21: Confidential
B22: ADMINISTRATIVE AND WASTE SERVICES | C22: 9 | D22: 30 | E22: 548000 | F22: 18300
B23: EDUCATIONAL SERVICES | C23: Confidential | D23: Confidential | E23: Confidential | F23: Confidential
B24: HEALTH CARE AND SOCIAL ASSISTANCE | C24: 17 | D24: 370 | E24: 11112700 | F24: 30000
B25: ARTS, ENTERTAINMENT, AND RECREATION | C25: 6 | D25: 20 | E25: 350800 | F25: 17500
B26: ACCOMMODATION AND FOOD SERVICES | C26: 32 | D26: 350 | E26: 3717100 | F26: 10600
B27: OTHER SERVICES, EXCEPT PUBLIC ADMIN | C27: 31 | D27: 80 | E27: 2016100 | F27: 25200
B28: UNCLASSIFIED | C28: Data included in Total UI Covered
A30: Local Government
B31: LOCAL GOVERNMENT | C31: 14 | D31: 730 | E31: 20941000 | F31: 28700
B32: EDUCATIONAL SERVICES | C32: 7 | D32: 460 | E32: 13864600 | F32: 30100
B33: HEALTH CARE AND SOCIAL ASSISTANCE | C33: 0 | D33: 0 | E33: 0 | F33: 0
A35: State Government
B36: STATE GOVERNMENT | C36: 10 | D36: 40 | E36: 1493400 | F36: 37300
B37: EDUCATIONAL SERVICES | C37: 0 | D37: 0 | E37: 0 | F37: 0
B38: HEALTH CARE AND SOCIAL ASSISTANCE | C38: 0 | D38: 0 | E38: 0 | F38: 0
A40: Total UI Covered
B41: TOTAL UI COVERED | C41: 332 | D41: 4920 | E41: 154755100 | F41: 31500
A43: Federal Government
B44: FEDERAL GOVERNMENT | C44: 9 | D44: 60 | E44: 2567100 | F44: 42800
A47: *Less than 5 employees unrounded
A75: Telephone: 800-784-0360
E79: Released | F79: 2015-09-17T10:33:53.140

Sheet Franklin (047)
B1: UI COVERED EMPLOYMENT
B2: Franklin County
B3: 2014 Annual Averages
A7: NAICS Sectors/Ownership | C7: Number of Reporting Units | D7: Average Number of Workers | E7: Total Annual Wages | F7: Average Annual Wages
A8: Private Ownership Only | C8: not rounded | D8: rounded to tens | E8: rounded to hundreds | F8: rounded to hundreds
B9: AGRICULTURE, FORESTRY, FISHING AND HUNTI | C9: 6 | D9: 30 | E9: 696600 | F9: 23200
B10: MINING, QUARRYING, AND OIL AND GAS EXTRA | C10: 3 | D10: 10 | E10: 406800 | F10: 40700
B11: UTILITIES | C11: Confidential | D11: Confidential | E11: Confidential | F11: Confidential
B12: CONSTRUCTION | C12: 48 | D12: 170 | E12: 6272000 | F12: 36900
B13: MANUFACTURING | C13: 18 | D13: 640 | E13: 27416900 | F13: 42800
B14: WHOLESALE TRADE | C14: 14 | D14: 100 | E14: 3987300 | F14: 39900
B15: RETAIL TRADE | C15: 51 | D15: 650 | E15: 13949900 | F15: 21500
B16: TRANSPORTATION AND WAREHOUSING | C16: 17 | D16: 80 | E16: 3149800 | F16: 39400
B17: INFORMATION | C17: Confidential | D17: Confidential | E17: Confidential | F17: Confidential
B18: FINANCE AND INSURANCE | C18: 11 | D18: 150 | E18: 6564800 | F18: 43800
B19: REAL ESTATE AND RENTAL AND LEASING | C19: Confidential | D19: Confidential | E19: Confidential | F19: Confidential
B20: PROFESSIONAL AND TECHNICAL SERVICES | C20: 22 | D20: 50 | E20: 1593900 | F20: 31900
B21: MANAGEMENT OF COMPANIES AND ENTERPRISES | C21: Confidential | D21: Confidential | E21: Confidential | F21: Confidential
B22: ADMINISTRATIVE AND WASTE SERVICES | C22: 12 | D22: 140 | E22: 4764600 | F22: 34000
B23: EDUCATIONAL SERVICES | C23: Confidential | D23: Confidential | E23: Confidential | F23: Confidential
B24: HEALTH CARE AND SOCIAL ASSISTANCE | C24: 34 | D24: 500 | E24: 13178200 | F24: 26400
B25: ARTS, ENTERTAINMENT, AND RECREATION | C25: 7 | D25: 40 | E25: 384300 | F25: 9600
B26: ACCOMMODATION AND FOOD SERVICES | C26: 28 | D26: 450 | E26: 5200300 | F26: 11600
B27: OTHER SERVICES, EXCEPT PUBLIC ADMIN | C27: 33 | D27: 90 | E27: 1894600 | F27: 21100
B28: UNCLASSIFIED | C28: Data included in Total UI Covered
A30: Local Government
B31: LOCAL GOVERNMENT | C31: 21 | D31: 850 | E31: 25162900 | F31: 29600
B32: EDUCATIONAL SERVICES | C32: 10 | D32: 610 | E32: 20360300 | F32: 33400
B33: HEALTH CARE AND SOCIAL ASSISTANCE | C33: 0 | D33: 0 | E33: 0 | F33: 0
A35: State Government
B36: STATE GOVERNMENT | C36: 10 | D36: 110 | E36: 2896500 | F36: 26300
B37: EDUCATIONAL SERVICES | C37: 0 | D37: 0 | E37: 0 | F37: 0
B38: HEALTH CARE AND SOCIAL ASSISTANCE | C38: 0 | D38: 0 | E38: 0 | F38: 0
A40: Total UI Covered
B41: TOTAL UI COVERED | C41: 346 | D41: 4140 | E41: 119933100 | F41: 29000
A43: Federal Government
B44: FEDERAL GOVERNMENT | C44: 9 | D44: 40 | E44: 1737200 | F44: 43400
A47: *Less than 5 employees unrounded
A75: Telephone: 800-784-0360 | E75: Released | F75: 2015-09-17T10:34:11.660

Sheet Fulton (049)
B1: UI COVERED EMPLOYMENT
B2: Fulton County
B3: 2014 Annual Averages
A7: NAICS Sectors/Ownership | C7: Number of Reporting Units | D7: Average Number of Workers | E7: Total Annual Wages | F7: Average Annual Wages
A8: Private Ownership Only | C8: not rounded | D8: rounded to tens | E8: rounded to hundreds | F8: rounded to hundreds
B9: AGRICULTURE, FORESTRY, FISHING AND HUNTI | C9: 15 | D9: 80 | E9: 2780600 | F9: 34800
B10: MINING, QUARRYING, AND OIL AND GAS EXTRA | C10: Confidential | D10: Confidential | E10: Confidential | F10: Confidential
B11: UTILITIES | C11: 3 | D11: 30 | E11: 2041600 | F11: 68100
B12: CONSTRUCTION | C12: 43 | D12: 320 | E12: 14739300 | F12: 46100
B13: MANUFACTURING | C13: 48 | D13: 1700 | E13: 75517200 | F13: 44400
B14: WHOLESALE TRADE | C14: 33 | D14: 240 | E14: 10247200 | F14: 42700
B15: RETAIL TRADE | C15: 73 | D15: 840 | E15: 18434300 | F15: 21900
B16: TRANSPORTATION AND WAREHOUSING | C16: 24 | D16: 120 | E16: 5766600 | F16: 48100
B17: INFORMATION | C17: 6 | D17: 80 | E17: 3648700 | F17: 45600
B18: FINANCE AND INSURANCE | C18: 28 | D18: 180 | E18: 8624200 | F18: 47900
B19: REAL ESTATE AND RENTAL AND LEASING | C19: 19 | D19: 40 | E19: 980200 | F19: 24500
B20: PROFESSIONAL AND TECHNICAL SERVICES | C20: 25 | D20: 90 | E20: 2673100 | F20: 29700
B21: MANAGEMENT OF COMPANIES AND ENTERPRISES | C21: Confidential | D21: Confidential | E21: Confidential | F21: Confidential
B22: ADMINISTRATIVE AND WASTE SERVICES | C22: 16 | D22: 60 | E22: 1720500 | F22: 28700
B23: EDUCATIONAL SERVICES | C23: 0 | D23: 0 | E23: 0 | F23: 0
B24: HEALTH CARE AND SOCIAL ASSISTANCE | C24: 30 | D24: 430 | E24: 10709900 | F24: 24900
B25: ARTS, ENTERTAINMENT, AND RECREATION | C25: Confidential | D25: Confidential | E25: Confidential | F25: Confidential
B26: ACCOMMODATION AND FOOD SERVICES | C26: 39 | D26: 480 | E26: 5255500 | F26: 10900
B27: OTHER SERVICES, EXCEPT PUBLIC ADMIN | C27: 41 | D27: 180 | E27: 5062600 | F27: 28100
B28: UNCLASSIFIED | C28: Data included in Total UI Covered
A30: Local Government
B31: LOCAL GOVERNMENT | C31: 16 | D31: 1270 | E31: 45830500 | F31: 36100
B32: EDUCATIONAL SERVICES | C32: 3 | D32: 500 | E32: 14482700 | F32: 29000
B33: HEALTH CARE AND SOCIAL ASSISTANCE | C33: 1 | D33: 400 | E33: 23028600 | F33: 57600
A35: State Government
B36: STATE GOVERNMENT | C36: 10 | D36: 40 | E36: 1631500 | F36: 40800
B37: EDUCATIONAL SERVICES | C37: 0 | D37: 0 | E37: 0 | F37: 0
B38: HEALTH CARE AND SOCIAL ASSISTANCE | C38: 0 | D38: 0 | E38: 0 | F38: 0
A40: Total UI Covered
B41: TOTAL UI COVERED | C41: 475 | D41: 6210 | E41: 218464500 | F41: 35200
A43: Federal Government
B44: FEDERAL GOVERNMENT | C44: 9 | D44: 40 | E44: 2053300 | F44: 51300
A47: *Less than 5 employees unrounded
A75: Telephone: 800-784-0360 | E75: Released | F75: 2015-09-17T10:34:34.390

Sheet Gibson (051)
B1: UI COVERED EMPLOYMENT
B2: Gibson County
B3: 2014 Annual Averages
A7: NAICS Sectors/Ownership | C7: Number of Reporting Units | D7: Average Number of Workers | E7: Total Annual Wages | F7: Average Annual Wages
A8: Private Ownership Only | C8: not rounded | D8: rounded to tens | E8: rounded to hundreds | F8: rounded to hundreds
B9: AGRICULTURE, FORESTRY, FISHING AND HUNTI | C9: 22 | D9: 140 | E9: 4582400 | F9: 32700
B10: MINING, QUARRYING, AND OIL AND GAS EXTRA | C10: 18 | D10: 1230 | E10: 99678900 | F10: 81000
B11: UTILITIES | C11: 10 | D11: 430 | E11: 37520100 | F11: 87300
B12: CONSTRUCTION | C12: 67 | D12: 330 | E12: 15707600 | F12: 47600
B13: MANUFACTURING | C13: 46 | D13: 7200 | E13: 483657600 | F13: 67200
B14: WHOLESALE TRADE | C14: 30 | D14: 330 | E14: 14964800 | F14: 45300
B15: RETAIL TRADE | C15: 108 | D15: 1510 | E15: 36828900 | F15: 24400
B16: TRANSPORTATION AND WAREHOUSING | C16: 38 | D16: 600 | E16: 27182700 | F16: 45300
B17: INFORMATION | C17: 4 | D17: 70 | E17: 1888800 | F17: 27000
B18: FINANCE AND INSURANCE | C18: 39 | D18: 150 | E18: 6960600 | F18: 46400
B19: REAL ESTATE AND RENTAL AND LEASING | C19: 20 | D19: 70 | E19: 1803300 | F19: 25800
B20: PROFESSIONAL AND TECHNICAL SERVICES | C20: 49 | D20: 260 | E20: 11271000 | F20: 43400
B21: MANAGEMENT OF COMPANIES AND ENTERPRISES | C21: 4 | D21: 10 | E21: 656200 | F21: 65600
B22: ADMINISTRATIVE AND WASTE SERVICES | C22: 33 | D22: 2570 | E22: 86109500 | F22: 33500
B23: EDUCATIONAL SERVICES | C23: 6 | D23: 400 | E23: 10423200 | F23: 26100
B24: HEALTH CARE AND SOCIAL ASSISTANCE | C24: 60 | D24: 1200 | E24: 38305300 | F24: 31900
B25: ARTS, ENTERTAINMENT, AND RECREATION | C25: 7 | D25: 70 | E25: 460700 | F25: 6600
B26: ACCOMMODATION AND FOOD SERVICES | C26: 64 | D26: 1230 | E26: 14730500 | F26: 12000
B27: OTHER SERVICES, EXCEPT PUBLIC ADMIN | C27: 58 | D27: 250 | E27: 6160000 | F27: 24600
B28: UNCLASSIFIED | C28: Data included in Total UI Covered
A30: Local Government
B31: LOCAL GOVERNMENT | C31: 39 | D31: 1250 | E31: 39179700 | F31: 31300
B32: EDUCATIONAL SERVICES | C32: 20 | D32: 730 | E32: 25030900 | F32: 34300
B33: HEALTH CARE AND SOCIAL ASSISTANCE | C33: 0 | D33: 0 | E33: 0 | F33: 0
A35: State Government
B36: STATE GOVERNMENT | C36: 11 | D36: 60 | E36: 2490200 | F36: 41500
B37: EDUCATIONAL SERVICES | C37: 0 | D37: 0 | E37: 0 | F37: 0
B38: HEALTH CARE AND SOCIAL ASSISTANCE | C38: 0 | D38: 0 | E38: 0 | F38: 0
A40: Total UI Covered
B41: TOTAL UI COVERED | C41: 729 | D41: 19340 | E41: 940562100 | F41: 48600
A43: Federal Government
B44: FEDERAL GOVERNMENT | C44: 12 | D44: 80 | E44: 4164700 | F44: 52100
A47: *Less than 5 employees unrounded
A75: Telephone: 800-784-0360 | E75: Released | F75: 2015-09-17T10:34:52.730

Sheet Grant (053)
B1: UI COVERED EMPLOYMENT
B2: Grant County
B3: 2014 Annual Averages
A7: NAICS Sectors/Ownership | C7: Number of Reporting Units | D7: Average Number of Workers | E7: Total Annual Wages | F7: Average Annual Wages
A8: Private Ownership Only | C8: not rounded | D8: rounded to tens | E8: rounded to hundreds | F8: rounded to hundreds
B9: AGRICULTURE, FORESTRY, FISHING AND HUNTI | C9: 14 | D9: 90 | E9: 2248900 | F9: 25000
B10: MINING, QUARRYING, AND OIL AND GAS EXTRA | C10: Confidential | D10: Confidential | E10: Confidential | F10: Confidential
B11: UTILITIES | C11: 3 | D11: 60 | E11: 5068100 | F11: 84500
B12: CONSTRUCTION | C12: 93 | D12: 630 | E12: 26076000 | F12: 41400
B13: MANUFACTURING | C13: 62 | D13: 4790 | E13: 267692700 | F13: 55900
B14: WHOLESALE TRADE | C14: 49 | D14: 1110 | E14: 47179300 | F14: 42500
B15: RETAIL TRADE | C15: 242 | D15: 3110 | E15: 67211800 | F15: 21600
B16: TRANSPORTATION AND WAREHOUSING | C16: 39 | D16: 1460 | E16: 49112800 | F16: 33600
B17: INFORMATION | C17: 17 | D17: 240 | E17: 8442800 | F17: 35200
B18: FINANCE AND INSURANCE | C18: 89 | D18: 630 | E18: 28364400 | F18: 45000
B19: REAL ESTATE AND RENTAL AND LEASING | C19: 48 | D19: 210 | E19: 5591200 | F19: 26600
B20: PROFESSIONAL AND TECHNICAL SERVICES | C20: 78 | D20: 350 | E20: 14940100 | F20: 42700
B21: MANAGEMENT OF COMPANIES AND ENTERPRISES | C21: 7 | D21: 250 | E21: 14364100 | F21: 57500
B22: ADMINISTRATIVE AND WASTE SERVICES | C22: 52 | D22: 1300 | E22: 28774200 | F22: 22100
B23: EDUCATIONAL SERVICES | C23: 8 | D23: 1900 | E23: 64681800 | F23: 34000
B24: HEALTH CARE AND SOCIAL ASSISTANCE | C24: 125 | D24: 4560 | E24: 165165500 | F24: 36200
B25: ARTS, ENTERTAINMENT, AND RECREATION | C25: 12 | D25: 80 | E25: 1270500 | F25: 15900
B26: ACCOMMODATION AND FOOD SERVICES | C26: 124 | D26: 2210 | E26: 27678800 | F26: 12500
B27: OTHER SERVICES, EXCEPT PUBLIC ADMIN | C27: 117 | D27: 680 | E27: 15667700 | F27: 23000
B28: UNCLASSIFIED | C28: Data included in Total UI Covered
A30: Local Government
B31: LOCAL GOVERNMENT | C31: 54 | D31: 2800 | E31: 86244700 | F31: 30800
B32: EDUCATIONAL SERVICES | C32: 24 | D32: 1660 | E32: 53120200 | F32: 32000
B33: HEALTH CARE AND SOCIAL ASSISTANCE | C33: 2 | D33: 40 | E33: 877100 | F33: 21900
A35: State Government
B36: STATE GOVERNMENT | C36: 14 | D36: 120 | E36: 4731300 | F36: 39400
B37: EDUCATIONAL SERVICES | C37: 0 | D37: 0 | E37: 0 | F37: 0
B38: HEALTH CARE AND SOCIAL ASSISTANCE | C38: 0 | D38: 0 | E38: 0 | F38: 0
A40: Total UI Covered
B41: TOTAL UI COVERED | C41: 1250 | D41: 26630 | E41: 935265300 | F41: 35100
A43: Federal Government
B44: FEDERAL GOVERNMENT | C44: 17 | D44: 990 | E44: 59293900 | F44: 59900
A47: *Less than 5 employees unrounded
A75: Telephone: 800-784-0360 | E75: Released | F75: 2015-09-17T10:35:10.100

Sheet Greene (055)
B1: UI COVERED EMPLOYMENT
B2: Greene County
B3: 2014 Annual Averages
A7: NAICS Sectors/Ownership | C7: Number of Reporting Units | D7: Average Number of Workers | E7: Total Annual Wages | F7: Average Annual Wages
A8: Private Ownership Only | C8: not rounded | D8: rounded to tens | E8: rounded to hundreds | F8: rounded to hundreds
B9: AGRICULTURE, FORESTRY, FISHING AND HUNTI | C9: 13 | D9: 250 | E9: 8067400 | F9: 32300
B10: MINING, QUARRYING, AND OIL AND GAS EXTRA | C10: 6 | D10: 140 | E10: 7087000 | F10: 50600
B11: UTILITIES | C11: 5 | D11: 90 | E11: 5756400 | F11: 64000
B12: CONSTRUCTION | C12: 68 | D12: 370 | E12: 16634400 | F12: 45000
B13: MANUFACTURING | C13: 25 | D13: 490 | E13: 17931300 | F13: 36600
B14: WHOLESALE TRADE | C14: 22 | D14: 80 | E14: 3028600 | F14: 37900
B15: RETAIL TRADE | C15: 100 | D15: 1010 | E15: 21171400 | F15: 21000
B16: TRANSPORTATION AND WAREHOUSING | C16: 23 | D16: 120 | E16: 5072800 | F16: 42300
B17: INFORMATION | C17: 10 | D17: 50 | E17: 1587300 | F17: 31700
B18: FINANCE AND INSURANCE | C18: 29 | D18: 190 | E18: 7344200 | F18: 38700
B19: REAL ESTATE AND RENTAL AND LEASING | C19: 12 | D19: 30 | E19: 539200 | F19: 18000
B20: PROFESSIONAL AND TECHNICAL SERVICES | C20: 46 | D20: 210 | E20: 8618300 | F20: 41000
B21: MANAGEMENT OF COMPANIES AND ENTERPRISES | C21: 3 | D21: 50 | E21: 1164400 | F21: 23300
B22: ADMINISTRATIVE AND WASTE SERVICES | C22: 19 | D22: 110 | E22: 3311100 | F22: 30100
B23: EDUCATIONAL SERVICES | C23: Confidential | D23: Confidential | E23: Confidential | F23: Confidential
B24: HEALTH CARE AND SOCIAL ASSISTANCE | C24: 54 | D24: 790 | E24: 19861700 | F24: 25100
B25: ARTS, ENTERTAINMENT, AND RECREATION | C25: 4 | D25: 20 | E25: 209300 | F25: 10500
B26: ACCOMMODATION AND FOOD SERVICES | C26: 51 | D26: 580 | E26: 6652100 | F26: 11500
B27: OTHER SERVICES, EXCEPT PUBLIC ADMIN | C27: 51 | D27: 160 | E27: 2748200 | F27: 17200
B28: UNCLASSIFIED | C28: Data included in Total UI Covered
A30: Local Government
B31: LOCAL GOVERNMENT | C31: 33 | D31: 1580 | E31: 51448300 | F31: 32600
B32: EDUCATIONAL SERVICES | C32: 6 | D32: 850 | E32: 25383800 | F32: 29900
B33: HEALTH CARE AND SOCIAL ASSISTANCE | C33: 1 | D33: 280 | E33: 12078000 | F33: 43100
A35: State Government
B36: STATE GOVERNMENT | C36: 12 | D36: 150 | E36: 6422400 | F36: 42800
B37: EDUCATIONAL SERVICES | C37: 0 | D37: 0 | E37: 0 | F37: 0
B38: HEALTH CARE AND SOCIAL ASSISTANCE | C38: 0 | D38: 0 | E38: 0 | F38: 0
A40: Total UI Covered
B41: TOTAL UI COVERED | C41: 589 | D41: 6510 | E41: 198314400 | F41: 30500
A43: Federal Government
B44: FEDERAL GOVERNMENT | C44: 13 | D44: 70 | E44: 3408900 | F44: 48700
A47: *Less than 5 employees unrounded
A75: Telephone: 800-784-0360 | E75: Released | F75: 2015-09-17T10:35:29.910

Sheet Hamilton (057)
B1: UI COVERED EMPLOYMENT
B2: Hamilton County
B3: 2014 Annual Averages
A7: NAICS Sectors/Ownership | C7: Number of Reporting Units | D7: Average Number of Workers | E7: Total Annual Wages | F7: Average Annual Wages
A8: Private Ownership Only | C8: not rounded | D8: rounded to tens | E8: rounded to hundreds | F8: rounded to hundreds
B9: AGRICULTURE, FORESTRY, FISHING AND HUNTI | C9: 34 | D9: 700 | E9: 35196500 | F9: 50300
B10: MINING, QUARRYING, AND OIL AND GAS EXTRA | C10: 14 | D10: 180 | E10: 13217400 | F10: 73400
B11: UTILITIES | C11: 12 | D11: 1040 | E11: 120748700 | F11: 116100
B12: CONSTRUCTION | C12: 647 | D12: 6700 | E12: 366100600 | F12: 54600
B13: MANUFACTURING | C13: 219 | D13: 5920 | E13: 338773400 | F13: 57200
B14: WHOLESALE TRADE | C14: 926 | D14: 6130 | E14: 530281800 | F14: 86500
B15: RETAIL TRADE | C15: 802 | D15: 15350 | E15: 438223800 | F15: 28500
B16: TRANSPORTATION AND WAREHOUSING | C16: 118 | D16: 990 | E16: 49476200 | F16: 50000
B17: INFORMATION | C17: 146 | D17: 2890 | E17: 176955800 | F17: 61200
B18: FINANCE AND INSURANCE | C18: 742 | D18: 12910 | E18: 1041598700 | F18: 80700
B19: REAL ESTATE AND RENTAL AND LEASING | C19: 386 | D19: 3320 | E19: 184755700 | F19: 55600
B20: PROFESSIONAL AND TECHNICAL SERVICES | C20: 1475 | D20: 9400 | E20: 640155300 | F20: 68100
B21: MANAGEMENT OF COMPANIES AND ENTERPRISES | C21: 110 | D21: 2860 | E21: 270743400 | F21: 94700
B22: ADMINISTRATIVE AND WASTE SERVICES | C22: 521 | D22: 10090 | E22: 431064600 | F22: 42700
B23: EDUCATIONAL SERVICES | C23: 136 | D23: 1350 | E23: 32484900 | F23: 24100
B24: HEALTH CARE AND SOCIAL ASSISTANCE | C24: 775 | D24: 14030 | E24: 596966600 | F24: 42500
B25: ARTS, ENTERTAINMENT, AND RECREATION | C25: 148 | D25: 2330 | E25: 48729800 | F25: 20900
B26: ACCOMMODATION AND FOOD SERVICES | C26: 571 | D26: 12770 | E26: 193459400 | F26: 15100
B27: OTHER SERVICES, EXCEPT PUBLIC ADMIN | C27: 760 | D27: 3730 | E27: 94384200 | F27: 25300
B28: UNCLASSIFIED | C28: Data included in Total UI Covered
A30: Local Government
B31: LOCAL GOVERNMENT | C31: 83 | D31: 12320 | E31: 500426100 | F31: 40600
B32: EDUCATIONAL SERVICES | C32: 51 | D32: 7100 | E32: 273723600 | F32: 38600
B33: HEALTH CARE AND SOCIAL ASSISTANCE | C33: 1 | D33: 1260 | E33: 60784600 | F33: 48200
A35: State Government
B36: STATE GOVERNMENT | C36: 21 | D36: 160 | E36: 6446600 | F36: 40300
B37: EDUCATIONAL SERVICES | C37: 0 | D37: 0 | E37: 0 | F37: 0
B38: HEALTH CARE AND SOCIAL ASSISTANCE | C38: 0 | D38: 0 | E38: 0 | F38: 0
A40: Total UI Covered
B41: TOTAL UI COVERED | C41: 8646 | D41: 125160 | E41: 6110222500 | F41: 48800
A43: Federal Government
B44: FEDERAL GOVERNMENT | C44: 11 | D44: 360 | E44: 22475100 | F44: 62400
A47: *Less than 5 employees unrounded
A75: Telephone: 800-784-0360 | E75: Released | F75: 2015-09-17T10:35:53.640

Sheet Hancock (059)
B1: UI COVERED EMPLOYMENT
B2: Hancock County
B3: 2014 Annual Averages
A7: NAICS Sectors/Ownership | C7: Number of Reporting Units | D7: Average Number of Workers | E7: Total Annual Wages | F7: Average Annual Wages
A8: Private Ownership Only | C8: not rounded | D8: rounded to tens | E8: rounded to hundreds | F8: rounded to hundreds
B9: AGRICULTURE, FORESTRY, FISHING AND HUNTI | C9: 22 | D9: 100 | E9: 2797100 | F9: 28000
B10: MINING, QUARRYING, AND OIL AND GAS EXTRA | C10: 0 | D10: 0 | E10: 0 | F10: 0
B11: UTILITIES | C11: 4 | D11: 50 | E11: 3465800 | F11: 69300
B12: CONSTRUCTION | C12: 220 | D12: 1390 | E12: 60061900 | F12: 43200
B13: MANUFACTURING | C13: 71 | D13: 3450 | E13: 163765100 | F13: 47500
B14: WHOLESALE TRADE | C14: 95 | D14: 670 | E14: 36483400 | F14: 54500
B15: RETAIL TRADE | C15: 152 | D15: 2250 | E15: 56391600 | F15: 25100
B16: TRANSPORTATION AND WAREHOUSING | C16: 47 | D16: 670 | E16: 26370100 | F16: 39400
B17: INFORMATION | C17: 18 | D17: 410 | E17: 21728600 | F17: 53000
B18: FINANCE AND INSURANCE | C18: 81 | D18: 360 | E18: 16810000 | F18: 46700
B19: REAL ESTATE AND RENTAL AND LEASING | C19: 44 | D19: 160 | E19: 5133900 | F19: 32100
B20: PROFESSIONAL AND TECHNICAL SERVICES | C20: 145 | D20: 1600 | E20: 149325200 | F20: 93300
B21: MANAGEMENT OF COMPANIES AND ENTERPRISES | C21: 10 | D21: 130 | E21: 11307800 | F21: 87000
B22: ADMINISTRATIVE AND WASTE SERVICES | C22: 99 | D22: 1670 | E22: 44090200 | F22: 26400
B23: EDUCATIONAL SERVICES | C23: 12 | D23: 90 | E23: 3260000 | F23: 36200
B24: HEALTH CARE AND SOCIAL ASSISTANCE | C24: 127 | D24: 1940 | E24: 63652900 | F24: 32800
B25: ARTS, ENTERTAINMENT, AND RECREATION | C25: 13 | D25: 180 | E25: 2008400 | F25: 11200
B26: ACCOMMODATION AND FOOD SERVICES | C26: 108 | D26: 2030 | E26: 25114600 | F26: 12400
B27: OTHER SERVICES, EXCEPT PUBLIC ADMIN | C27: 120 | D27: 410 | E27: 10797800 | F27: 26300
B28: UNCLASSIFIED | C28: Data included in Total UI Covered
A30: Local Government
B31: LOCAL GOVERNMENT | C31: 40 | D31: 3350 | E31: 124404900 | F31: 37100
B32: EDUCATIONAL SERVICES | C32: 20 | D32: 1690 | E32: 57171900 | F32: 33800
B33: HEALTH CARE AND SOCIAL ASSISTANCE | C33: 1 | D33: 740 | E33: 36819800 | F33: 49800
A35: State Government
B36: STATE GOVERNMENT | C36: 18 | D36: 280 | E36: 13213500 | F36: 47200
B37: EDUCATIONAL SERVICES | C37: 0 | D37: 0 | E37: 0 | F37: 0
B38: HEALTH CARE AND SOCIAL ASSISTANCE | C38: 0 | D38: 0 | E38: 0 | F38: 0
A40: Total UI Covered
B41: TOTAL UI COVERED | C41: 1444 | D41: 21180 | E41: 840182700 | F41: 39700
A43: Federal Government
B44: FEDERAL GOVERNMENT | C44: 9 | D44: 110 | E44: 5588200 | F44: 50800
A47: *Less than 5 employees unrounded
A75: Telephone: 800-784-0360 | E75: Released | F75: 2015-09-17T10:36:26.350

Sheet Harrison (061)
B1: UI COVERED EMPLOYMENT
B2: Harrison County
B3: 2014 Annual Averages
A7: NAICS Sectors/Ownership | C7: Number of Reporting Units | D7: Average Number of Workers | E7: Total Annual Wages | F7: Average Annual Wages
A8: Private Ownership Only | C8: not rounded | D8: rounded to tens | E8: rounded to hundreds | F8: rounded to hundreds
B9: AGRICULTURE, FORESTRY, FISHING AND HUNTI | C9: 15 | D9: 50 | E9: 1378700 | F9: 27600
B10: MINING, QUARRYING, AND OIL AND GAS EXTRA | C10: 10 | D10: 90 | E10: 4866000 | F10: 54100
B11: UTILITIES | C11: 6 | D11: 90 | E11: 6375600 | F11: 70800
B12: CONSTRUCTION | C12: 88 | D12: 320 | E12: 9971300 | F12: 31200
B13: MANUFACTURING | C13: 37 | D13: 1620 | E13: 64527700 | F13: 39800
B14: WHOLESALE TRADE | C14: 36 | D14: 350 | E14: 14652800 | F14: 41900
B15: RETAIL TRADE | C15: 98 | D15: 1250 | E15: 29280800 | F15: 23400
B16: TRANSPORTATION AND WAREHOUSING | C16: 28 | D16: 130 | E16: 4479400 | F16: 34500
B17: INFORMATION | C17: 4 | D17: 60 | E17: 1557900 | F17: 26000
B18: FINANCE AND INSURANCE | C18: 47 | D18: 260 | E18: 12598000 | F18: 48500
B19: REAL ESTATE AND RENTAL AND LEASING | C19: 12 | D19: 30 | E19: 1009800 | F19: 33700
B20: PROFESSIONAL AND TECHNICAL SERVICES | C20: 46 | D20: 170 | E20: 5999600 | F20: 35300
B21: MANAGEMENT OF COMPANIES AND ENTERPRISES | C21: 3 | D21: 30 | E21: 1036600 | F21: 34600
B22: ADMINISTRATIVE AND WASTE SERVICES | C22: 23 | D22: 100 | E22: 2904900 | F22: 29000
B23: EDUCATIONAL SERVICES | C23: Confidential | D23: Confidential | E23: Confidential | F23: Confidential
B24: HEALTH CARE AND SOCIAL ASSISTANCE | C24: 67 | D24: 670 | E24: 19548500 | F24: 29200
B25: ARTS, ENTERTAINMENT, AND RECREATION | C25: Confidential | D25: Confidential | E25: Confidential | F25: Confidential
B26: ACCOMMODATION AND FOOD SERVICES | C26: 49 | D26: 940 | E26: 11919100 | F26: 12700
B27: OTHER SERVICES, EXCEPT PUBLIC ADMIN | C27: 49 | D27: 240 | E27: 4474500 | F27: 18600
B28: UNCLASSIFIED | C28: Data included in Total UI Covered
A30: Local Government
B31: LOCAL GOVERNMENT | C31: 18 | D31: 1870 | E31: 63776900 | F31: 34100
B32: EDUCATIONAL SERVICES | C32: 3 | D32: 900 | E32: 28388500 | F32: 31500
B33: HEALTH CARE AND SOCIAL ASSISTANCE | C33: 6 | D33: 560 | E33: 24398500 | F33: 43600
A35: State Government
B36: STATE GOVERNMENT | C36: 9 | D36: 110 | E36: 4110500 | F36: 37400
B37: EDUCATIONAL SERVICES | C37: 0 | D37: 0 | E37: 0 | F37: 0
B38: HEALTH CARE AND SOCIAL ASSISTANCE | C38: 0 | D38: 0 | E38: 0 | F38: 0
A40: Total UI Covered
B41: TOTAL UI COVERED | C41: 657 | D41: 9920 | E41: 319484500 | F41: 32200
A43: Federal Government
B44: FEDERAL GOVERNMENT | C44: 15 | D44: 100 | E44: 4857400 | F44: 48600
A47: *Less than 5 employees unrounded
A75: Telephone: 800-784-0360 | E75: Released | F75: 2015-09-17T10:36:41.600

Sheet Hendricks (063)
B1: UI COVERED EMPLOYMENT
B2: Hendricks County
B3: 2014 Annual Averages
A7: NAICS Sectors/Ownership | C7: Number of Reporting Units | D7: Average Number of Workers | E7: Total Annual Wages | F7: Average Annual Wages
A8: Private Ownership Only | C8: not rounded | D8: rounded to tens | E8: rounded to hundreds | F8: rounded to hundreds
B9: AGRICULTURE, FORESTRY, FISHING AND HUNTI | C9: 20 | D9: 130 | E9: 3669600 | F9: 28200
B10: MINING, QUARRYING, AND OIL AND GAS EXTRA | C10: Confidential | D10: Confidential | E10: Confidential | F10: Confidential
B11: UTILITIES | C11: 8 | D11: 770 | E11: 59601600 | F11: 77400
B12: CONSTRUCTION | C12: 341 | D12: 2280 | E12: 108008100 | F12: 47400
B13: MANUFACTURING | C13: 110 | D13: 3540 | E13: 178238000 | F13: 50300
B14: WHOLESALE TRADE | C14: 191 | D14: 3330 | E14: 160482000 | F14: 48200
B15: RETAIL TRADE | C15: 395 | D15: 9760 | E15: 250007800 | F15: 25600
B16: TRANSPORTATION AND WAREHOUSING | C16: 142 | D16: 6740 | E16: 251899500 | F16: 37400
B17: INFORMATION | C17: 28 | D17: 230 | E17: 4758100 | F17: 20700
B18: FINANCE AND INSURANCE | C18: 183 | D18: 900 | E18: 45616400 | F18: 50700
B19: REAL ESTATE AND RENTAL AND LEASING | C19: 93 | D19: 420 | E19: 13194800 | F19: 31400
B20: PROFESSIONAL AND TECHNICAL SERVICES | C20: 314 | D20: 1020 | E20: 47486900 | F20: 46600
B21: MANAGEMENT OF COMPANIES AND ENTERPRISES | C21: 18 | D21: 270 | E21: 18786600 | F21: 69600
B22: ADMINISTRATIVE AND WASTE SERVICES | C22: 185 | D22: 5810 | E22: 141669100 | F22: 24400
B23: EDUCATIONAL SERVICES | C23: 35 | D23: 180 | E23: 4713700 | F23: 26200
B24: HEALTH CARE AND SOCIAL ASSISTANCE | C24: 230 | D24: 4810 | E24: 169580300 | F24: 35300
B25: ARTS, ENTERTAINMENT, AND RECREATION | C25: 61 | D25: 660 | E25: 28144500 | F25: 42600
B26: ACCOMMODATION AND FOOD SERVICES | C26: 289 | D26: 6700 | E26: 94412200 | F26: 14100
B27: OTHER SERVICES, EXCEPT PUBLIC ADMIN | C27: 258 | D27: 1860 | E27: 51115400 | F27: 27500
B28: UNCLASSIFIED | C28: Data included in Total UI Covered
A30: Local Government
B31: LOCAL GOVERNMENT | C31: 51 | D31: 6930 | E31: 274498400 | F31: 39600
B32: EDUCATIONAL SERVICES | C32: 27 | D32: 3490 | E32: 122604700 | F32: 35100
B33: HEALTH CARE AND SOCIAL ASSISTANCE | C33: 1 | D33: 1600 | E33: 91186900 | F33: 57000
A35: State Government
B36: STATE GOVERNMENT | C36: 28 | D36: 1110 | E36: 44991500 | F36: 40500
B37: EDUCATIONAL SERVICES | C37: 0 | D37: 0 | E37: 0 | F37: 0
B38: HEALTH CARE AND SOCIAL ASSISTANCE | C38: 0 | D38: 0 | E38: 0 | F38: 0
A40: Total UI Covered
B41: TOTAL UI COVERED | C41: 2978 | D41: 57450 | E41: 1951960700 | F41: 34000
A43: Federal Government
B44: FEDERAL GOVERNMENT | C44: 14 | D44: 270 | E44: 18602900 | F44: 68900
A47: *Less than 5 employees unrounded
A75: Telephone: 800-784-0360 | E75: Released | F75: 2015-09-17T10:36:58.680

Sheet Henry (065)
B1: UI COVERED EMPLOYMENT
B2: Henry County
B3: 2014 Annual Averages
A7: NAICS Sectors/Ownership | C7: Number of Reporting Units | D7: Average Number of Workers | E7: Total Annual Wages | F7: Average Annual Wages
A8: Private Ownership Only | C8: not rounded | D8: rounded to tens | E8: rounded to hundreds | F8: rounded to hundreds
B9: AGRICULTURE, FORESTRY, FISHING AND HUNTI | C9: 19 | D9: 130 | E9: 3676100 | F9: 28300
B10: MINING, QUARRYING, AND OIL AND GAS EXTRA | C10: Confidential | D10: Confidential | E10: Confidential | F10: Confidential
B11: UTILITIES | C11: 6 | D11: 60 | E11: 4304000 | F11: 71700
B12: CONSTRUCTION | C12: 95 | D12: 520 | E12: 22440800 | F12: 43200
B13: MANUFACTURING | C13: 46 | D13: 2050 | E13: 90704500 | F13: 44200
B14: WHOLESALE TRADE | C14: 38 | D14: 340 | E14: 13773600 | F14: 40500
B15: RETAIL TRADE | C15: 159 | D15: 1640 | E15: 36867600 | F15: 22500
B16: TRANSPORTATION AND WAREHOUSING | C16: 26 | D16: 190 | E16: 7641400 | F16: 40200
B17: INFORMATION | C17: 12 | D17: 120 | E17: 4422600 | F17: 36900
B18: FINANCE AND INSURANCE | C18: 52 | D18: 340 | E18: 15272600 | F18: 44900
B19: REAL ESTATE AND RENTAL AND LEASING | C19: 21 | D19: 120 | E19: 2455400 | F19: 20500
B20: PROFESSIONAL AND TECHNICAL SERVICES | C20: 46 | D20: 140 | E20: 3984600 | F20: 28500
B21: MANAGEMENT OF COMPANIES AND ENTERPRISES | C21: 4 | D21: 20 | E21: 690400 | F21: 34500
B22: ADMINISTRATIVE AND WASTE SERVICES | C22: 38 | D22: 770 | E22: 25204600 | F22: 32700
B23: EDUCATIONAL SERVICES | C23: 0 | D23: 0 | E23: 0 | F23: 0
B24: HEALTH CARE AND SOCIAL ASSISTANCE | C24: 67 | D24: 2070 | E24: 47159100 | F24: 22800
B25: ARTS, ENTERTAINMENT, AND RECREATION | C25: 12 | D25: 90 | E25: 1247000 | F25: 13900
B26: ACCOMMODATION AND FOOD SERVICES | C26: 58 | D26: 970 | E26: 12670600 | F26: 13100
B27: OTHER SERVICES, EXCEPT PUBLIC ADMIN | C27: 64 | D27: 340 | E27: 7189800 | F27: 21100
B28: UNCLASSIFIED | C28: Data included in Total UI Covered
A30: Local Government
B31: LOCAL GOVERNMENT | C31: 38 | D31: 2730 | E31: 100877500 | F31: 37000
B32: EDUCATIONAL SERVICES | C32: 10 | D32: 1250 | E32: 38898800 | F32: 31100
B33: HEALTH CARE AND SOCIAL ASSISTANCE | C33: 1 | D33: 730 | E33: 41310600 | F33: 56600
A35: State Government
B36: STATE GOVERNMENT | C36: 16 | D36: 140 | E36: 4889900 | F36: 34900
B37: EDUCATIONAL SERVICES | C37: 0 | D37: 0 | E37: 0 | F37: 0
B38: HEALTH CARE AND SOCIAL ASSISTANCE | C38: 0 | D38: 0 | E38: 0 | F38: 0
A40: Total UI Covered
B41: TOTAL UI COVERED | C41: 818 | D41: 12760 | E41: 406144200 | F41: 31800
A43: Federal Government
B44: FEDERAL GOVERNMENT | C44: 15 | D44: 90 | E44: 4264300 | F44: 47400
A47: *Less than 5 employees unrounded
A75: Telephone: 800-784-0360 | E75: Released | F75: 2015-09-17T10:37:22.890

Sheet Howard (067)
B1: UI COVERED EMPLOYMENT
B2: Howard County
B3: 2014 Annual Averages
A7: NAICS Sectors/Ownership | C7: Number of Reporting Units | D7: Average Number of Workers | E7: Total Annual Wages | F7: Average Annual Wages
A8: Private Ownership Only | C8: not rounded | D8: rounded to tens | E8: rounded to hundreds | F8: rounded to hundreds
B9: AGRICULTURE, FORESTRY, FISHING AND HUNTI | C9: 11 | D9: 60 | E9: 2162800 | F9: 36000
B10: MINING, QUARRYING, AND OIL AND GAS EXTRA | C10: Confidential | D10: Confidential | E10: Confidential | F10: Confidential
B11: UTILITIES | C11: 4 | D11: 130 | E11: 10176200 | F11: 78300
B12: CONSTRUCTION | C12: 136 | D12: 1040 | E12: 43099600 | F12: 41400
B13: MANUFACTURING | C13: 69 | D13: 11440 | E13: 903137400 | F13: 78900
B14: WHOLESALE TRADE | C14: 84 | D14: 810 | E14: 44897200 | F14: 55400
B15: RETAIL TRADE | C15: 316 | D15: 4900 | E15: 111836300 | F15: 22800
B16: TRANSPORTATION AND WAREHOUSING | C16: 40 | D16: 550 | E16: 23915300 | F16: 43500
B17: INFORMATION | C17: 19 | D17: 360 | E17: 19471000 | F17: 54100
B18: FINANCE AND INSURANCE | C18: 121 | D18: 780 | E18: 42600600 | F18: 54600
B19: REAL ESTATE AND RENTAL AND LEASING | C19: 63 | D19: 280 | E19: 8240900 | F19: 29400
B20: PROFESSIONAL AND TECHNICAL SERVICES | C20: 125 | D20: 660 | E20: 25818400 | F20: 39100
B21: MANAGEMENT OF COMPANIES AND ENTERPRISES | C21: 9 | D21: 30 | E21: 1185000 | F21: 39500
B22: ADMINISTRATIVE AND WASTE SERVICES | C22: 76 | D22: 1970 | E22: 46932400 | F22: 23800
B23: EDUCATIONAL SERVICES | C23: 17 | D23: 150 | E23: 3455100 | F23: 23000
B24: HEALTH CARE AND SOCIAL ASSISTANCE | C24: 178 | D24: 5410 | E24: 220009700 | F24: 40700
B25: ARTS, ENTERTAINMENT, AND RECREATION | C25: 15 | D25: 160 | E25: 2343200 | F25: 14600
B26: ACCOMMODATION AND FOOD SERVICES | C26: 183 | D26: 3970 | E26: 51024400 | F26: 12900
B27: OTHER SERVICES, EXCEPT PUBLIC ADMIN | C27: 141 | D27: 1000 | E27: 22262700 | F27: 22300
B28: UNCLASSIFIED | C28: Data included in Total UI Covered
A30: Local Government
B31: LOCAL GOVERNMENT | C31: 45 | D31: 3580 | E31: 118010900 | F31: 33000
B32: EDUCATIONAL SERVICES | C32: 27 | D32: 2200 | E32: 69052500 | F32: 31400
B33: HEALTH CARE AND SOCIAL ASSISTANCE | C33: 0 | D33: 0 | E33: 0 | F33: 0
A35: State Government
B36: STATE GOVERNMENT | C36: 19 | D36: 990 | E36: 31034600 | F36: 31300
B37: EDUCATIONAL SERVICES | C37: 2 | D37: 870 | E37: 26224600 | F37: 30100
B38: HEALTH CARE AND SOCIAL ASSISTANCE | C38: 0 | D38: 0 | E38: 0 | F38: 0
A40: Total UI Covered
B41: TOTAL UI COVERED | C41: 1673 | D41: 38270 | E41: 1732586600 | F41: 45300
A43: Federal Government
B44: FEDERAL GOVERNMENT | C44: 13 | D44: 220 | E44: 12839800 | F44: 58400
A47: *Less than 5 employees unrounded
A75: Telephone: 800-784-0360 | E75: Released | F75: 2015-09-17T10:37:39.110

Sheet Huntington (069)
B1: UI COVERED EMPLOYMENT
B2: Huntington County
B3: 2014 Annual Averages
A7: NAICS Sectors/Ownership | C7: Number of Reporting Units | D7: Average Number of Workers | E7: Total Annual Wages | F7: Average Annual Wages
A8: Private Ownership Only | C8: not rounded | D8: rounded to tens | E8: rounded to hundreds | F8: rounded to hundreds
B9: AGRICULTURE, FORESTRY, FISHING AND HUNTI | C9: 18 | D9: 170 | E9: 5778200 | F9: 34000
B10: MINING, QUARRYING, AND OIL AND GAS EXTRA | C10: Confidential | D10: Confidential | E10: Confidential | F10: Confidential
B11: UTILITIES | C11: 3 | D11: 50 | E11: 3351200 | F11: 67000
B12: CONSTRUCTION | C12: 69 | D12: 440 | E12: 20560400 | F12: 46700
B13: MANUFACTURING | C13: 70 | D13: 3860 | E13: 168259200 | F13: 43600
B14: WHOLESALE TRADE | C14: 43 | D14: 590 | E14: 26396600 | F14: 44700
B15: RETAIL TRADE | C15: 126 | D15: 1350 | E15: 29929700 | F15: 22200
B16: TRANSPORTATION AND WAREHOUSING | C16: 49 | D16: 550 | E16: 32780500 | F16: 59600
B17: INFORMATION | C17: 11 | D17: 390 | E17: 15135800 | F17: 38800
B18: FINANCE AND INSURANCE | C18: 62 | D18: 480 | E18: 21439300 | F18: 44700
B19: REAL ESTATE AND RENTAL AND LEASING | C19: 32 | D19: 90 | E19: 1968800 | F19: 21900
B20: PROFESSIONAL AND TECHNICAL SERVICES | C20: 58 | D20: 180 | E20: 6626700 | F20: 36800
B21: MANAGEMENT OF COMPANIES AND ENTERPRISES | C21: Confidential | D21: Confidential | E21: Confidential | F21: Confidential
B22: ADMINISTRATIVE AND WASTE SERVICES | C22: 30 | D22: 780 | E22: 15012200 | F22: 19200
B23: EDUCATIONAL SERVICES | C23: 8 | D23: 310 | E23: 9629900 | F23: 31100
B24: HEALTH CARE AND SOCIAL ASSISTANCE | C24: 54 | D24: 1670 | E24: 47360900 | F24: 28400
B25: ARTS, ENTERTAINMENT, AND RECREATION | C25: 13 | D25: 50 | E25: 485000 | F25: 9700
B26: ACCOMMODATION AND FOOD SERVICES | C26: 83 | D26: 1080 | E26: 13008400 | F26: 12000
B27: OTHER SERVICES, EXCEPT PUBLIC ADMIN | C27: 80 | D27: 540 | E27: 9352600 | F27: 17300
B28: UNCLASSIFIED | C28: Data included in Total UI Covered
A30: Local Government
B31: LOCAL GOVERNMENT | C31: 31 | D31: 1300 | E31: 43262400 | F31: 33300
B32: EDUCATIONAL SERVICES | C32: 11 | D32: 840 | E32: 28408200 | F32: 33800
B33: HEALTH CARE AND SOCIAL ASSISTANCE | C33: 1 | D33: 10 | E33: 474300 | F33: 47400
A35: State Government
B36: STATE GOVERNMENT | C36: 15 | D36: 110 | E36: 3810500 | F36: 34600
B37: EDUCATIONAL SERVICES | C37: 0 | D37: 0 | E37: 0 | F37: 0
B38: HEALTH CARE AND SOCIAL ASSISTANCE | C38: 0 | D38: 0 | E38: 0 | F38: 0
A40: Total UI Covered
B41: TOTAL UI COVERED | C41: 858 | D41: 14020 | E41: 478531200 | F41: 34100
A43: Federal Government
B44: FEDERAL GOVERNMENT | C44: 8 | D44: 80 | E44: 4198700 | F44: 52500
A47: *Less than 5 employees unrounded
A75: Telephone: 800-784-0360 | E75: Released | F75: 2015-09-17T10:37:56.730

Sheet Jackson (071)
B1: UI COVERED EMPLOYMENT
B2: Jackson County
B3: 2014 Annual Averages
A7: NAICS Sectors/Ownership | C7: Number of Reporting Units | D7: Average Number of Workers | E7: Total Annual Wages | F7: Average Annual Wages
A8: Private Ownership Only | C8: not rounded | D8: rounded to tens | E8: rounded to hundreds | F8: rounded to hundreds
B9: AGRICULTURE, FORESTRY, FISHING AND HUNTI | C9: Confidential | D9: Confidential | E9: Confidential | F9: Confidential
B10: MINING, QUARRYING, AND OIL AND GAS EXTRA | C10: Confidential | D10: Confidential | E10: Confidential | F10: Confidential
B11: UTILITIES | C11: 5 | D11: 110 | E11: 7726800 | F11: 70200
B12: CONSTRUCTION | C12: 92 | D12: 560 | E12: 22329400 | F12: 39900
B13: MANUFACTURING | C13: 69 | D13: 6370 | E13: 329111500 | F13: 51700
B14: WHOLESALE TRADE | C14: 54 | D14: 680 | E14: 30191400 | F14: 44400
B15: RETAIL TRADE | C15: 168 | D15: 2140 | E15: 51323700 | F15: 24000
B16: TRANSPORTATION AND WAREHOUSING | C16: 53 | D16: 1590 | E16: 71417700 | F16: 44900
B17: INFORMATION | C17: 6 | D17: 70 | E17: 1782800 | F17: 25500
B18: FINANCE AND INSURANCE | C18: 66 | D18: 380 | E18: 16572600 | F18: 43600
B19: REAL ESTATE AND RENTAL AND LEASING | C19: 38 | D19: 110 | E19: 2699100 | F19: 24500
B20: PROFESSIONAL AND TECHNICAL SERVICES | C20: 56 | D20: 260 | E20: 9380400 | F20: 36100
B21: MANAGEMENT OF COMPANIES AND ENTERPRISES | C21: 10 | D21: 100 | E21: 7255000 | F21: 72600
B22: ADMINISTRATIVE AND WASTE SERVICES | C22: 30 | D22: 1170 | E22: 39964100 | F22: 34200
B23: EDUCATIONAL SERVICES | C23: 3 | D23: 10 | E23: 112900 | F23: 11300
B24: HEALTH CARE AND SOCIAL ASSISTANCE | C24: 86 | D24: 1150 | E24: 38227600 | F24: 33200
B25: ARTS, ENTERTAINMENT, AND RECREATION | C25: 8 | D25: 70 | E25: 851100 | F25: 12200
B26: ACCOMMODATION AND FOOD SERVICES | C26: 86 | D26: 1430 | E26: 18483100 | F26: 12900
B27: OTHER SERVICES, EXCEPT PUBLIC ADMIN | C27: 71 | D27: 390 | E27: 9126800 | F27: 23400
B28: UNCLASSIFIED | C28: Data included in Total UI Covered
A30: Local Government
B31: LOCAL GOVERNMENT | C31: 31 | D31: 2540 | E31: 100317200 | F31: 39500
B32: EDUCATIONAL SERVICES | C32: 11 | D32: 1040 | E32: 34898000 | F32: 33600
B33: HEALTH CARE AND SOCIAL ASSISTANCE | C33: 1 | D33: 870 | E33: 46337700 | F33: 53300
A35: State Government
B36: STATE GOVERNMENT | C36: 18 | D36: 280 | E36: 12712000 | F36: 45400
B37: EDUCATIONAL SERVICES | C37: 0 | D37: 0 | E37: 0 | F37: 0
B38: HEALTH CARE AND SOCIAL ASSISTANCE | C38: 0 | D38: 0 | E38: 0 | F38: 0
A40: Total UI Covered
B41: TOTAL UI COVERED | C41: 969 | D41: 19990 | E41: 792497900 | F41: 39600
A43: Federal Government
B44: FEDERAL GOVERNMENT | C44: 11 | D44: 90 | E44: 4429800 | F44: 49200
A47: *Less than 5 employees unrounded
A75: Telephone: 800-784-0360 | E75: Released | F75: 2015-09-17T10:38:15.900

Sheet Jasper (73)
B1: UI COVERED EMPLOYMENT
B2: Jasper County
B3: 2014 Annual Averages
A7: NAICS Sectors/Ownership | C7: Number of Reporting Units | D7: Average Number of Workers | E7: Total Annual Wages | F7: Average Annual Wages
A8: Private Ownership Only | C8: not rounded | D8: rounded to tens | E8: rounded to hundreds | F8: rounded to hundreds
B9: AGRICULTURE, FORESTRY, FISHING AND HUNTI | C9: 43 | D9: 740 | E9: 39299300 | F9: 53100
B10: MINING, QUARRYING, AND OIL AND GAS EXTRA | C10: Confidential | D10: Confidential | E10: Confidential | F10: Confidential
B11: UTILITIES | C11: Confidential | D11: Confidential | E11: Confidential | F11: Confidential
B12: CONSTRUCTION | C12: 100 | D12: 750 | E12: 37079800 | F12: 49400
B13: MANUFACTURING | C13: 35 | D13: 1410 | E13: 65896900 | F13: 46700
B14: WHOLESALE TRADE | C14: 43 | D14: 420 | E14: 21829200 | F14: 52000
B15: RETAIL TRADE | C15: 120 | D15: 1420 | E15: 32969000 | F15: 23200
B16: TRANSPORTATION AND WAREHOUSING | C16: 71 | D16: 1550 | E16: 58995500 | F16: 38100
B17: INFORMATION | C17: 13 | D17: 110 | E17: 4556400 | F17: 41400
B18: FINANCE AND INSURANCE | C18: 40 | D18: 240 | E18: 9014300 | F18: 37600
B19: REAL ESTATE AND RENTAL AND LEASING | C19: 25 | D19: 90 | E19: 2241700 | F19: 24900
B20: PROFESSIONAL AND TECHNICAL SERVICES | C20: 52 | D20: 160 | E20: 5805500 | F20: 36300
B21: MANAGEMENT OF COMPANIES AND ENTERPRISES | C21: 4 | D21: 40 | E21: 2606700 | F21: 65200
B22: ADMINISTRATIVE AND WASTE SERVICES | C22: 28 | D22: 270 | E22: 7075100 | F22: 26200
B23: EDUCATIONAL SERVICES | C23: 5 | D23: 280 | E23: 9928700 | F23: 35500
B24: HEALTH CARE AND SOCIAL ASSISTANCE | C24: 46 | D24: 870 | E24: 23468300 | F24: 27000
B25: ARTS, ENTERTAINMENT, AND RECREATION | C25: 10 | D25: 80 | E25: 1075700 | F25: 13400
B26: ACCOMMODATION AND FOOD SERVICES | C26: 64 | D26: 1010 | E26: 11349700 | F26: 11200
B27: OTHER SERVICES, EXCEPT PUBLIC ADMIN | C27: 60 | D27: 180 | E27: 3534900 | F27: 19600
B28: UNCLASSIFIED | C28: Data included in Total UI Covered
A30: Local Government
B31: LOCAL GOVERNMENT | C31: 26 | D31: 1780 | E31: 54422200 | F31: 30600
B32: EDUCATIONAL SERVICES | C32: 10 | D32: 860 | E32: 25030500 | F32: 29100
B33: HEALTH CARE AND SOCIAL ASSISTANCE | C33: 5 | D33: 500 | E33: 16332300 | F33: 32700
A35: State Government
B36: STATE GOVERNMENT | C36: 13 | D36: 80 | E36: 3096000 | F36: 38700
B37: EDUCATIONAL SERVICES | C37: 0 | D37: 0 | E37: 0 | F37: 0
B38: HEALTH CARE AND SOCIAL ASSISTANCE | C38: 0 | D38: 0 | E38: 0 | F38: 0
A40: Total UI Covered
B41: TOTAL UI COVERED | C41: 804 | D41: 11790 | E41: 428771900 | F41: 36400
A43: Federal Government
B44: FEDERAL GOVERNMENT | C44: 8 | D44: 90 | E44: 4405300 | F44: 48900
A47: *Less than 5 employees unrounded
A75: Telephone: 800-784-0360 | E75: Released | F75: 2015-09-17T10:38:32.890

Sheet Jay (075)
B1: UI COVERED EMPLOYMENT
B2: Jay County
B3: 2014 Annual Averages
A7: NAICS Sectors/Ownership | C7: Number of Reporting Units | D7: Average Number of Workers | E7: Total Annual Wages | F7: Average Annual Wages
A8: Private Ownership Only | C8: not rounded | D8: rounded to tens | E8: rounded to hundreds | F8: rounded to hundreds
B9: AGRICULTURE, FORESTRY, FISHING AND HUNTI | C9: 11 | D9: 170 | E9: 4504000 | F9: 26500
B10: MINING, QUARRYING, AND OIL AND GAS EXTRA | C10: Confidential | D10: Confidential | E10: Confidential | F10: Confidential
B11: UTILITIES | C11: Confidential | D11: Confidential | E11: Confidential | F11: Confidential
B12: CONSTRUCTION | C12: 41 | D12: 230 | E12: 7519500 | F12: 32700
B13: MANUFACTURING | C13: 35 | D13: 3130 | E13: 127148200 | F13: 40600
B14: WHOLESALE TRADE | C14: 21 | D14: 240 | E14: 10785800 | F14: 44900
B15: RETAIL TRADE | C15: 55 | D15: 600 | E15: 12620600 | F15: 21000
B16: TRANSPORTATION AND WAREHOUSING | C16: 9 | D16: 50 | E16: 2046300 | F16: 40900
B17: INFORMATION | C17: 7 | D17: 70 | E17: 1685700 | F17: 24100
B18: FINANCE AND INSURANCE | C18: 34 | D18: 170 | E18: 5844100 | F18: 34400
B19: REAL ESTATE AND RENTAL AND LEASING | C19: 13 | D19: 30 | E19: 435400 | F19: 14500
B20: PROFESSIONAL AND TECHNICAL SERVICES | C20: 18 | D20: 110 | E20: 3756000 | F20: 34100
B21: MANAGEMENT OF COMPANIES AND ENTERPRISES | C21: 4 | D21: 90 | E21: 2252600 | F21: 25000
B22: ADMINISTRATIVE AND WASTE SERVICES | C22: 16 | D22: 190 | E22: 3631100 | F22: 19100
B23: EDUCATIONAL SERVICES | C23: 3 | D23: 20 | E23: 578500 | F23: 28900
B24: HEALTH CARE AND SOCIAL ASSISTANCE | C24: 18 | D24: 480 | E24: 12656500 | F24: 26400
B25: ARTS, ENTERTAINMENT, AND RECREATION | C25: 5 | D25: 20 | E25: 161800 | F25: 8100
B26: ACCOMMODATION AND FOOD SERVICES | C26: 29 | D26: 450 | E26: 4879100 | F26: 10800
B27: OTHER SERVICES, EXCEPT PUBLIC ADMIN | C27: 36 | D27: 140 | E27: 2196500 | F27: 15700
B28: UNCLASSIFIED | C28: Data included in Total UI Covered
A30: Local Government
B31: LOCAL GOVERNMENT | C31: 20 | D31: 1240 | E31: 39792500 | F31: 32100
B32: EDUCATIONAL SERVICES | C32: 11 | D32: 490 | E32: 16358200 | F32: 33400
B33: HEALTH CARE AND SOCIAL ASSISTANCE | C33: 1 | D33: 310 | E33: 13313400 | F33: 42900
A35: State Government
B36: STATE GOVERNMENT | C36: 12 | D36: 40 | E36: 1888900 | F36: 47200
B37: EDUCATIONAL SERVICES | C37: 0 | D37: 0 | E37: 0 | F37: 0
B38: HEALTH CARE AND SOCIAL ASSISTANCE | C38: 0 | D38: 0 | E38: 0 | F38: 0
A40: Total UI Covered
B41: TOTAL UI COVERED | C41: 389 | D41: 7500 | E41: 246881000 | F41: 32900
A43: Federal Government
B44: FEDERAL GOVERNMENT | C44: 6 | D44: 40 | E44: 2025500 | F44: 50600
A47: *Less than 5 employees unrounded
A75: Telephone: 800-784-0360 | E75: Released | F75: 2015-09-17T10:38:53.180

Sheet Jefferson (077)
B1: UI COVERED EMPLOYMENT
B2: Jefferson County
B3: 2014 Annual Averages
A7: NAICS Sectors/Ownership | C7: Number of Reporting Units | D7: Average Number of Workers | E7: Total Annual Wages | F7: Average Annual Wages
A8: Private Ownership Only | C8: not rounded | D8: rounded to tens | E8: rounded to hundreds | F8: rounded to hundreds
B9: AGRICULTURE, FORESTRY, FISHING AND HUNTI | C9: Confidential | D9: Confidential | E9: Confidential | F9: Confidential
B10: MINING, QUARRYING, AND OIL AND GAS EXTRA | C10: 0 | D10: 0 | E10: 0 | F10: 0
B11: UTILITIES | C11: Confidential | D11: Confidential | E11: Confidential | F11: Confidential
B12: CONSTRUCTION | C12: 54 | D12: 250 | E12: 9075400 | F12: 36300
B13: MANUFACTURING | C13: 48 | D13: 2930 | E13: 142747900 | F13: 48700
B14: WHOLESALE TRADE | C14: 20 | D14: 140 | E14: 6305500 | F14: 45000
B15: RETAIL TRADE | C15: 120 | D15: 1590 | E15: 38634900 | F15: 24300
B16: TRANSPORTATION AND WAREHOUSING | C16: 16 | D16: 180 | E16: 6984100 | F16: 38800
B17: INFORMATION | C17: 9 | D17: 110 | E17: 2561300 | F17: 23300
B18: FINANCE AND INSURANCE | C18: 34 | D18: 170 | E18: 7528700 | F18: 44300
B19: REAL ESTATE AND RENTAL AND LEASING | C19: 31 | D19: 100 | E19: 2771600 | F19: 27700
B20: PROFESSIONAL AND TECHNICAL SERVICES | C20: 48 | D20: 200 | E20: 6852900 | F20: 34300
B21: MANAGEMENT OF COMPANIES AND ENTERPRISES | C21: Confidential | D21: Confidential | E21: Confidential | F21: Confidential
B22: ADMINISTRATIVE AND WASTE SERVICES | C22: 23 | D22: 320 | E22: 9536100 | F22: 29800
B23: EDUCATIONAL SERVICES | C23: Confidential | D23: Confidential | E23: Confidential | F23: Confidential
B24: HEALTH CARE AND SOCIAL ASSISTANCE | C24: 71 | D24: 1620 | E24: 71751300 | F24: 44300
B25: ARTS, ENTERTAINMENT, AND RECREATION | C25: 10 | D25: 50 | E25: 611100 | F25: 12200
B26: ACCOMMODATION AND FOOD SERVICES | C26: 74 | D26: 1230 | E26: 14171700 | F26: 11500
B27: OTHER SERVICES, EXCEPT PUBLIC ADMIN | C27: 50 | D27: 250 | E27: 4924300 | F27: 19700
B28: UNCLASSIFIED | C28: Data included in Total UI Covered
A30: Local Government
B31: LOCAL GOVERNMENT | C31: 18 | D31: 1160 | E31: 35033300 | F31: 30200
B32: EDUCATIONAL SERVICES | C32: 9 | D32: 780 | E32: 24960800 | F32: 32000
B33: HEALTH CARE AND SOCIAL ASSISTANCE | C33: 1 | D33: 10 | E33: 115800 | F33: 11600
A35: State Government
B36: STATE GOVERNMENT | C36: 22 | D36: 1070 | E36: 36057000 | F36: 33700
B37: EDUCATIONAL SERVICES | C37: 1 | D37: 290 | E37: 8350400 | F37: 28800
B38: HEALTH CARE AND SOCIAL ASSISTANCE | C38: 1 | D38: 350 | E38: 14165600 | F38: 40500
A40: Total UI Covered
B41: TOTAL UI COVERED | C41: 667 | D41: 12200 | E41: 447333100 | F41: 36700
A43: Federal Government
B44: FEDERAL GOVERNMENT | C44: 10 | D44: 80 | E44: 4213200 | F44: 52700
A47: *Less than 5 employees unrounded
A75: Telephone: 800-784-0360 | E75: Released | F75: 2015-09-17T10:39:12.060

Sheet Jennings (079)
B1: UI COVERED EMPLOYMENT
B2: Jennings County
B3: 2014 Annual Averages
A7: NAICS Sectors/Ownership | C7: Number of Reporting Units | D7: Average Number of Workers | E7: Total Annual Wages | F7: Average Annual Wages
A8: Private Ownership Only | C8: not rounded | D8: rounded to tens | E8: rounded to hundreds | F8: rounded to hundreds
B9: AGRICULTURE, FORESTRY, FISHING AND HUNTI | C9: Confidential | D9: Confidential | E9: Confidential | F9: Confidential
B10: MINING, QUARRYING, AND OIL AND GAS EXTRA | C10: Confidential | D10: Confidential | E10: Confidential | F10: Confidential
B11: UTILITIES | C11: 3 | D11: 20 | E11: 813000 | F11: 40700
B12: CONSTRUCTION | C12: 38 | D12: 610 | E12: 29581000 | F12: 48500
B13: MANUFACTURING | C13: 41 | D13: 1930 | E13: 78520700 | F13: 40700
B14: WHOLESALE TRADE | C14: 16 | D14: 230 | E14: 8743800 | F14: 38000
B15: RETAIL TRADE | C15: 53 | D15: 690 | E15: 16148600 | F15: 23400
B16: TRANSPORTATION AND WAREHOUSING | C16: Confidential | D16: Confidential | E16: Confidential | F16: Confidential
B17: INFORMATION | C17: 3 | D17: 20 | E17: 503600 | F17: 25200
B18: FINANCE AND INSURANCE | C18: 19 | D18: 90 | E18: 3505500 | F18: 39000
B19: REAL ESTATE AND RENTAL AND LEASING | C19: 13 | D19: 40 | E19: 2007500 | F19: 50200
B20: PROFESSIONAL AND TECHNICAL SERVICES | C20: 19 | D20: 70 | E20: 3274100 | F20: 46800
B21: MANAGEMENT OF COMPANIES AND ENTERPRISES | C21: 0 | D21: 0 | E21: 0 | F21: 0
B22: ADMINISTRATIVE AND WASTE SERVICES | C22: 11 | D22: 70 | E22: 1732700 | F22: 24800
B23: EDUCATIONAL SERVICES | C23: 4 | D23: 30 | E23: 574000 | F23: 19100
B24: HEALTH CARE AND SOCIAL ASSISTANCE | C24: 54 | D24: 690 | E24: 21373200 | F24: 31000
B25: ARTS, ENTERTAINMENT, AND RECREATION | C25: 4 | D25: 10 | E25: 38900 | F25: 3900
B26: ACCOMMODATION AND FOOD SERVICES | C26: 25 | D26: 340 | E26: 4225600 | F26: 12400
B27: OTHER SERVICES, EXCEPT PUBLIC ADMIN | C27: 26 | D27: 100 | E27: 2022800 | F27: 20200
B28: UNCLASSIFIED | C28: Data included in Total UI Covered
A30: Local Government
B31: LOCAL GOVERNMENT | C31: 20 | D31: 1020 | E31: 33772300 | F31: 33100
B32: EDUCATIONAL SERVICES | C32: 11 | D32: 730 | E32: 25308100 | F32: 34700
B33: HEALTH CARE AND SOCIAL ASSISTANCE | C33: 0 | D33: 0 | E33: 0 | F33: 0
A35: State Government
B36: STATE GOVERNMENT | C36: 12 | D36: 170 | E36: 6284100 | F36: 37000
B37: EDUCATIONAL SERVICES | C37: 0 | D37: 0 | E37: 0 | F37: 0
B38: HEALTH CARE AND SOCIAL ASSISTANCE | C38: 0 | D38: 0 | E38: 0 | F38: 0
A40: Total UI Covered
B41: TOTAL UI COVERED | C41: 383 | D41: 7160 | E41: 247695200 | F41: 34600
A43: Federal Government
B44: FEDERAL GOVERNMENT | C44: 12 | D44: 70 | E44: 3763000 | F44: 53800
A47: *Less than 5 employees unrounded
A75: Telephone: 800-784-0360 | E75: Released | F75: 2015-09-17T10:39:27.530

Sheet Johnson (081)
B1: UI COVERED EMPLOYMENT
B2: Johnson County
B3: 2014 Annual Averages
A7: NAICS Sectors/Ownership | C7: Number of Reporting Units | D7: Average Number of Workers | E7: Total Annual Wages | F7: Average Annual Wages
A8: Private Ownership Only | C8: not rounded | D8: rounded to tens | E8: rounded to hundreds | F8: rounded to hundreds
B9: AGRICULTURE, FORESTRY, FISHING AND HUNTI | C9: 13 | D9: 110 | E9: 3741300 | F9: 34000
B10: MINING, QUARRYING, AND OIL AND GAS EXTRA | C10: 3 | D10: 20 | E10: 1133500 | F10: 56700
B11: UTILITIES | C11: 6 | D11: 120 | E11: 8552500 | F11: 71300
B12: CONSTRUCTION | C12: 352 | D12: 2060 | E12: 92171300 | F12: 44700
B13: MANUFACTURING | C13: 144 | D13: 5380 | E13: 270874700 | F13: 50300
B14: WHOLESALE TRADE | C14: 188 | D14: 2000 | E14: 107755500 | F14: 53900
B15: RETAIL TRADE | C15: 467 | D15: 8300 | E15: 194133300 | F15: 23400
B16: TRANSPORTATION AND WAREHOUSING | C16: 93 | D16: 2030 | E16: 83173400 | F16: 41000
B17: INFORMATION | C17: 26 | D17: 240 | E17: 9989300 | F17: 41600
B18: FINANCE AND INSURANCE | C18: 231 | D18: 1030 | E18: 53725600 | F18: 52200
B19: REAL ESTATE AND RENTAL AND LEASING | C19: 119 | D19: 460 | E19: 15109300 | F19: 32800
B20: PROFESSIONAL AND TECHNICAL SERVICES | C20: 312 | D20: 1160 | E20: 57953700 | F20: 50000
B21: MANAGEMENT OF COMPANIES AND ENTERPRISES | C21: 26 | D21: 180 | E21: 12893400 | F21: 71600
B22: ADMINISTRATIVE AND WASTE SERVICES | C22: 185 | D22: 3330 | E22: 102230100 | F22: 30700
B23: EDUCATIONAL SERVICES | C23: 39 | D23: 670 | E23: 20420200 | F23: 30500
B24: HEALTH CARE AND SOCIAL ASSISTANCE | C24: 263 | D24: 5700 | E24: 217958000 | F24: 38200
B25: ARTS, ENTERTAINMENT, AND RECREATION | C25: 34 | D25: 340 | E25: 4921100 | F25: 14500
B26: ACCOMMODATION AND FOOD SERVICES | C26: 278 | D26: 6350 | E26: 92329100 | F26: 14500
B27: OTHER SERVICES, EXCEPT PUBLIC ADMIN | C27: 252 | D27: 1570 | E27: 50307600 | F27: 32000
B28: UNCLASSIFIED | C28: Data included in Total UI Covered
A30: Local Government
B31: LOCAL GOVERNMENT | C31: 63 | D31: 6020 | E31: 213232700 | F31: 35400
B32: EDUCATIONAL SERVICES | C32: 32 | D32: 3380 | E32: 117541800 | F32: 34800
B33: HEALTH CARE AND SOCIAL ASSISTANCE | C33: 5 | D33: 740 | E33: 35514700 | F33: 48000
A35: State Government
B36: STATE GOVERNMENT | C36: 22 | D36: 350 | E36: 12914800 | F36: 36900
B37: EDUCATIONAL SERVICES | C37: 0 | D37: 0 | E37: 0 | F37: 0
B38: HEALTH CARE AND SOCIAL ASSISTANCE | C38: 0 | D38: 0 | E38: 0 | F38: 0
A40: Total UI Covered
B41: TOTAL UI COVERED | C41: 3115 | D41: 47400 | E41: 1625520500 | F41: 34300
A43: Federal Government
B44: FEDERAL GOVERNMENT | C44: 16 | D44: 400 | E44: 23885600 | F44: 59700
A47: *Less than 5 employees unrounded
A75: Telephone: 800-784-0360 | E75: Released | F75: 2015-09-17T10:39:48.690

Sheet Knox (083)
B1: UI COVERED EMPLOYMENT
B2: Knox County
B3: 2014 Annual Averages
A7: NAICS Sectors/Ownership | C7: Number of Reporting Units | D7: Average Number of Workers | E7: Total Annual Wages | F7: Average Annual Wages
A8: Private Ownership Only | C8: not rounded | D8: rounded to tens | E8: rounded to hundreds | F8: rounded to hundreds
B9: AGRICULTURE, FORESTRY, FISHING AND HUNTI | C9: 51 | D9: 390 | E9: 12159600 | F9: 31200
B10: MINING, QUARRYING, AND OIL AND GAS EXTRA | C10: 12 | D10: 890 | E10: 69265700 | F10: 77800
B11: UTILITIES | C11: 10 | D11: 260 | E11: 23604100 | F11: 90800
B12: CONSTRUCTION | C12: 70 | D12: 460 | E12: 17438200 | F12: 37900
B13: MANUFACTURING | C13: 40 | D13: 2120 | E13: 84024600 | F13: 39600
B14: WHOLESALE TRADE | C14: 64 | D14: 640 | E14: 28053000 | F14: 43800
B15: RETAIL TRADE | C15: 142 | D15: 1890 | E15: 42784200 | F15: 22600
B16: TRANSPORTATION AND WAREHOUSING | C16: 44 | D16: 630 | E16: 21107000 | F16: 33500
B17: INFORMATION | C17: 15 | D17: 180 | E17: 7216500 | F17: 40100
B18: FINANCE AND INSURANCE | C18: 59 | D18: 490 | E18: 23857900 | F18: 48700
B19: REAL ESTATE AND RENTAL AND LEASING | C19: 29 | D19: 140 | E19: 3324300 | F19: 23700
B20: PROFESSIONAL AND TECHNICAL SERVICES | C20: 43 | D20: 180 | E20: 5958500 | F20: 33100
B21: MANAGEMENT OF COMPANIES AND ENTERPRISES | C21: 7 | D21: 80 | E21: 3956400 | F21: 49500
B22: ADMINISTRATIVE AND WASTE SERVICES | C22: 37 | D22: 490 | E22: 9466700 | F22: 19300
B23: EDUCATIONAL SERVICES | C23: 9 | D23: 120 | E23: 2871600 | F23: 23900
B24: HEALTH CARE AND SOCIAL ASSISTANCE | C24: 100 | D24: 2070 | E24: 84250900 | F24: 40700
B25: ARTS, ENTERTAINMENT, AND RECREATION | C25: 7 | D25: 50 | E25: 635200 | F25: 12700
B26: ACCOMMODATION AND FOOD SERVICES | C26: 86 | D26: 1600 | E26: 20241800 | F26: 12700
B27: OTHER SERVICES, EXCEPT PUBLIC ADMIN | C27: 79 | D27: 550 | E27: 12670100 | F27: 23000
B28: UNCLASSIFIED | C28: Data included in Total UI Covered
A30: Local Government
B31: LOCAL GOVERNMENT | C31: 34 | D31: 2870 | E31: 102984300 | F31: 35900
B32: EDUCATIONAL SERVICES | C32: 13 | D32: 680 | E32: 22900800 | F32: 33700
B33: HEALTH CARE AND SOCIAL ASSISTANCE | C33: 1 | D33: 1610 | E33: 64355200 | F33: 40000
A35: State Government
B36: STATE GOVERNMENT | C36: 15 | D36: 1320 | E36: 57262000 | F36: 43400
B37: EDUCATIONAL SERVICES | C37: 1 | D37: 1080 | E37: 47012700 | F37: 43500
B38: HEALTH CARE AND SOCIAL ASSISTANCE | C38: 0 | D38: 0 | E38: 0 | F38: 0
A40: Total UI Covered
B41: TOTAL UI COVERED | C41: 949 | D41: 17420 | E41: 633132500 | F41: 36300
A43: Federal Government
B44: FEDERAL GOVERNMENT | C44: 17 | D44: 170 | E44: 10094200 | F44: 59400
A47: *Less than 5 employees unrounded
A75: Telephone: 800-784-0360 | E75: Released | F75: 2015-09-17T10:40:05.780

Sheet Kosciusko (085)
B1: UI COVERED EMPLOYMENT
B2: Kosciusko County
B3: 2014 Annual Averages
A7: NAICS Sectors/Ownership | C7: Number of Reporting Units | D7: Average Number of Workers | E7: Total Annual Wages | F7: Average Annual Wages
A8: Private Ownership Only | C8: not rounded | D8: rounded to tens | E8: rounded to hundreds | F8: rounded to hundreds
B9: AGRICULTURE, FORESTRY, FISHING AND HUNTI | C9: 46 | D9: 480 | E9: 17196900 | F9: 35800
B10: MINING, QUARRYING, AND OIL AND GAS EXTRA | C10: 3 | D10: 10 | E10: 452700 | F10: 45300
B11: UTILITIES | C11: 3 | D11: 60 | E11: 3919100 | F11: 65300
B12: CONSTRUCTION | C12: 199 | D12: 970 | E12: 36214000 | F12: 37300
B13: MANUFACTURING | C13: 178 | D13: 14610 | E13: 936146200 | F13: 64100
B14: WHOLESALE TRADE | C14: 128 | D14: 1530 | E14: 161873000 | F14: 105800
B15: RETAIL TRADE | C15: 275 | D15: 3700 | E15: 88541600 | F15: 23900
B16: TRANSPORTATION AND WAREHOUSING | C16: 54 | D16: 420 | E16: 17240900 | F16: 41000
B17: INFORMATION | C17: 18 | D17: 400 | E17: 16014500 | F17: 40000
B18: FINANCE AND INSURANCE | C18: 117 | D18: 660 | E18: 36631000 | F18: 55500
B19: REAL ESTATE AND RENTAL AND LEASING | C19: 70 | D19: 200 | E19: 4704600 | F19: 23500
B20: PROFESSIONAL AND TECHNICAL SERVICES | C20: 151 | D20: 510 | E20: 20891600 | F20: 41000
B21: MANAGEMENT OF COMPANIES AND ENTERPRISES | C21: 15 | D21: 440 | E21: 29897000 | F21: 67900
B22: ADMINISTRATIVE AND WASTE SERVICES | C22: 93 | D22: 1730 | E22: 47697700 | F22: 27600
B23: EDUCATIONAL SERVICES | C23: 16 | D23: 810 | E23: 18322400 | F23: 22600
B24: HEALTH CARE AND SOCIAL ASSISTANCE | C24: 104 | D24: 3120 | E24: 108544000 | F24: 34800
B25: ARTS, ENTERTAINMENT, AND RECREATION | C25: 22 | D25: 250 | E25: 4257700 | F25: 17000
B26: ACCOMMODATION AND FOOD SERVICES | C26: 160 | D26: 2650 | E26: 34300500 | F26: 12900
B27: OTHER SERVICES, EXCEPT PUBLIC ADMIN | C27: 168 | D27: 1170 | E27: 34398800 | F27: 29400
B28: UNCLASSIFIED | C28: Data included in Total UI Covered
A30: Local Government
B31: LOCAL GOVERNMENT | C31: 43 | D31: 2910 | E31: 93139000 | F31: 32000
B32: EDUCATIONAL SERVICES | C32: 13 | D32: 2100 | E32: 66074500 | F32: 31500
B33: HEALTH CARE AND SOCIAL ASSISTANCE | C33: 1 | D33: 10 | E33: 701200 | F33: 70100
A35: State Government
B36: STATE GOVERNMENT | C36: 12 | D36: 80 | E36: 3184600 | F36: 39800
B37: EDUCATIONAL SERVICES | C37: 0 | D37: 0 | E37: 0 | F37: 0
B38: HEALTH CARE AND SOCIAL ASSISTANCE | C38: 0 | D38: 0 | E38: 0 | F38: 0
A40: Total UI Covered
B41: TOTAL UI COVERED | C41: 1873 | D41: 36720 | E41: 1713567800 | F41: 46700
A43: Federal Government
B44: FEDERAL GOVERNMENT | C44: 17 | D44: 160 | E44: 9388200 | F44: 58700
A47: *Less than 5 employees unrounded
A75: Telephone: 800-784-0360 | E75: Released | F75: 2015-09-17T10:40:23.650

Sheet Lagrange (087)
B1: UI COVERED EMPLOYMENT
B2: Lagrange County
B3: 2014 Annual Averages
A7: NAICS Sectors/Ownership | C7: Number of Reporting Units | D7: Average Number of Workers | E7: Total Annual Wages | F7: Average Annual Wages
A8: Private Ownership Only | C8: not rounded | D8: rounded to tens | E8: rounded to hundreds | F8: rounded to hundreds
B9: AGRICULTURE, FORESTRY, FISHING AND HUNTI | C9: 31 | D9: 210 | E9: 7882800 | F9: 37500
B10: MINING, QUARRYING, AND OIL AND GAS EXTRA | C10: Confidential | D10: Confidential | E10: Confidential | F10: Confidential
B11: UTILITIES | C11: Confidential | D11: Confidential | E11: Confidential | F11: Confidential
B12: CONSTRUCTION | C12: 100 | D12: 450 | E12: 16592200 | F12: 36900
B13: MANUFACTURING | C13: 143 | D13: 6090 | E13: 289028000 | F13: 47500
B14: WHOLESALE TRADE | C14: 43 | D14: 640 | E14: 15900900 | F14: 24800
B15: RETAIL TRADE | C15: 137 | D15: 1080 | E15: 24681000 | F15: 22900
B16: TRANSPORTATION AND WAREHOUSING | C16: 35 | D16: 140 | E16: 7372500 | F16: 52700
B17: INFORMATION | C17: 4 | D17: 20 | E17: 1032200 | F17: 51600
B18: FINANCE AND INSURANCE | C18: 24 | D18: 260 | E18: 10551200 | F18: 40600
B19: REAL ESTATE AND RENTAL AND LEASING | C19: 25 | D19: 70 | E19: 1033100 | F19: 14800
B20: PROFESSIONAL AND TECHNICAL SERVICES | C20: 42 | D20: 190 | E20: 6420700 | F20: 33800
B21: MANAGEMENT OF COMPANIES AND ENTERPRISES | C21: 3 | D21: 30 | E21: 1454600 | F21: 48500
B22: ADMINISTRATIVE AND WASTE SERVICES | C22: 25 | D22: 70 | E22: 1876200 | F22: 26800
B23: EDUCATIONAL SERVICES | C23: Confidential | D23: Confidential | E23: Confidential | F23: Confidential
B24: HEALTH CARE AND SOCIAL ASSISTANCE | C24: 29 | D24: 750 | E24: 23672000 | F24: 31600
B25: ARTS, ENTERTAINMENT, AND RECREATION | C25: 7 | D25: 30 | E25: 517000 | F25: 17200
B26: ACCOMMODATION AND FOOD SERVICES | C26: 60 | D26: 1010 | E26: 12717000 | F26: 12600
B27: OTHER SERVICES, EXCEPT PUBLIC ADMIN | C27: 61 | D27: 300 | E27: 9220100 | F27: 30700
B28: UNCLASSIFIED | C28: Data included in Total UI Covered
A30: Local Government
B31: LOCAL GOVERNMENT | C31: 28 | D31: 1260 | E31: 39321800 | F31: 31200
B32: EDUCATIONAL SERVICES | C32: 16 | D32: 970 | E32: 30967900 | F32: 31900
B33: HEALTH CARE AND SOCIAL ASSISTANCE | C33: 0 | D33: 0 | E33: 0 | F33: 0
A35: State Government
B36: STATE GOVERNMENT | C36: 12 | D36: 60 | E36: 2414000 | F36: 40200
B37: EDUCATIONAL SERVICES | C37: 0 | D37: 0 | E37: 0 | F37: 0
B38: HEALTH CARE AND SOCIAL ASSISTANCE | C38: 0 | D38: 0 | E38: 0 | F38: 0
A40: Total UI Covered
B41: TOTAL UI COVERED | C41: 812 | D41: 12740 | E41: 475401600 | F41: 37300
A43: Federal Government
B44: FEDERAL GOVERNMENT | C44: 12 | D44: 60 | E44: 2765400 | F44: 46100
A47: *Less than 5 employees unrounded
A75: Telephone: 800-784-0360 | E75: Released | F75: 2015-09-17T10:40:41.960

Sheet Lake (089)
B1: UI COVERED EMPLOYMENT
B2: Lake County
B3: 2014 Annual Averages
A7: NAICS Sectors/Ownership | C7: Number of Reporting Units | D7: Average Number of Workers | E7: Total Annual Wages | F7: Average Annual Wages
A8: Private Ownership Only | C8: not rounded | D8: rounded to tens | E8: rounded to hundreds | F8: rounded to hundreds
B9: AGRICULTURE, FORESTRY, FISHING AND HUNTI | C9: 25 | D9: 170 | E9: 4195100 | F9: 24700
B10: MINING, QUARRYING, AND OIL AND GAS EXTRA | C10: 12 | D10: 110 | E10: 7417600 | F10: 67400
B11: UTILITIES | C11: Confidential | D11: Confidential | E11: Confidential | F11: Confidential
B12: CONSTRUCTION | C12: 940 | D12: 10900 | E12: 731372100 | F12: 67100
B13: MANUFACTURING | C13: 382 | D13: 24690 | E13: 2106114300 | F13: 85300
B14: WHOLESALE TRADE | C14: 629 | D14: 5810 | E14: 363228800 | F14: 62500
B15: RETAIL TRADE | C15: 1456 | D15: 24120 | E15: 595451300 | F15: 24700
B16: TRANSPORTATION AND WAREHOUSING | C16: 404 | D16: 6890 | E16: 316878900 | F16: 46000
B17: INFORMATION | C17: 89 | D17: 1370 | E17: 61991100 | F17: 45200
B18: FINANCE AND INSURANCE | C18: 608 | D18: 4110 | E18: 209043800 | F18: 50900
B19: REAL ESTATE AND RENTAL AND LEASING | C19: 359 | D19: 2050 | E19: 69019500 | F19: 33700
B20: PROFESSIONAL AND TECHNICAL SERVICES | C20: 979 | D20: 5530 | E20: 277576100 | F20: 50200
B21: MANAGEMENT OF COMPANIES AND ENTERPRISES | C21: 45 | D21: 2020 | E21: 172984100 | F21: 85600
B22: ADMINISTRATIVE AND WASTE SERVICES | C22: 478 | D22: 8250 | E22: 263129400 | F22: 31900
B23: EDUCATIONAL SERVICES | C23: 150 | D23: 2980 | E23: 86678500 | F23: 29100
B24: HEALTH CARE AND SOCIAL ASSISTANCE | C24: 1205 | D24: 30200 | E24: 1362154600 | F24: 45100
B25: ARTS, ENTERTAINMENT, AND RECREATION | C25: 117 | D25: 6120 | E25: 173209000 | F25: 28300
B26: ACCOMMODATION AND FOOD SERVICES | C26: 967 | D26: 17600 | E26: 238280000 | F26: 13500
B27: OTHER SERVICES, EXCEPT PUBLIC ADMIN | C27: 990 | D27: 6960 | E27: 199187200 | F27: 28600
B28: UNCLASSIFIED | C28: Data included in Total UI Covered
A30: Local Government
B31: LOCAL GOVERNMENT | C31: 175 | D31: 19990 | E31: 700923000 | F31: 35100
B32: EDUCATIONAL SERVICES | C32: 94 | D32: 11350 | E32: 409206900 | F32: 36100
B33: HEALTH CARE AND SOCIAL ASSISTANCE | C33: 0 | D33: 0 | E33: 0 | F33: 0
A35: State Government
B36: STATE GOVERNMENT | C36: 28 | D36: 3300 | E36: 129871200 | F36: 39400
B37: EDUCATIONAL SERVICES | C37: 3 | D37: 2490 | E37: 95647300 | F37: 38400
B38: HEALTH CARE AND SOCIAL ASSISTANCE | C38: 0 | D38: 0 | E38: 0 | F38: 0
A40: Total UI Covered
B41: TOTAL UI COVERED | C41: 10051 | D41: 184760 | E41: 8226906200 | F41: 44500
A43: Federal Government
B44: FEDERAL GOVERNMENT | C44: 45 | D44: 1320 | E44: 98459000 | F44: 74600
A47: *Less than 5 employees unrounded
A75: Telephone: 800-784-0360 | E75: Released | F75: 2015-09-17T10:41:12.770

Sheet Laporte (091)
B1: UI COVERED EMPLOYMENT
B2: Laporte County
B3: 2014 Annual Averages
A7: NAICS Sectors/Ownership | C7: Number of Reporting Units | D7: Average Number of Workers | E7: Total Annual Wages | F7: Average Annual Wages
A8: Private Ownership Only | C8: not rounded | D8: rounded to tens | E8: rounded to hundreds | F8: rounded to hundreds
B9: AGRICULTURE, FORESTRY, FISHING AND HUNTI | C9: 43 | D9: 280 | E9: 8565300 | F9: 30600
B10: MINING, QUARRYING, AND OIL AND GAS EXTRA | C10: Confidential | D10: Confidential | E10: Confidential | F10: Confidential
B11: UTILITIES | C11: Confidential | D11: Confidential | E11: Confidential | F11: Confidential
B12: CONSTRUCTION | C12: 216 | D12: 1730 | E12: 105484700 | F12: 61000
B13: MANUFACTURING | C13: 170 | D13: 7620 | E13: 376646000 | F13: 49400
B14: WHOLESALE TRADE | C14: 142 | D14: 1200 | E14: 56745900 | F14: 47300
B15: RETAIL TRADE | C15: 403 | D15: 5440 | E15: 119322800 | F15: 21900
B16: TRANSPORTATION AND WAREHOUSING | C16: 70 | D16: 1140 | E16: 49429300 | F16: 43400
B17: INFORMATION | C17: 23 | D17: 240 | E17: 7417700 | F17: 30900
B18: FINANCE AND INSURANCE | C18: 96 | D18: 840 | E18: 40390400 | F18: 48100
B19: REAL ESTATE AND RENTAL AND LEASING | C19: 83 | D19: 380 | E19: 12729100 | F19: 33500
B20: PROFESSIONAL AND TECHNICAL SERVICES | C20: 154 | D20: 660 | E20: 29961100 | F20: 45400
B21: MANAGEMENT OF COMPANIES AND ENTERPRISES | C21: 11 | D21: 100 | E21: 6465400 | F21: 64700
B22: ADMINISTRATIVE AND WASTE SERVICES | C22: 120 | D22: 2040 | E22: 58412600 | F22: 28600
B23: EDUCATIONAL SERVICES | C23: 18 | D23: 400 | E23: 10407900 | F23: 26000
B24: HEALTH CARE AND SOCIAL ASSISTANCE | C24: 185 | D24: 5120 | E24: 237325700 | F24: 46400
B25: ARTS, ENTERTAINMENT, AND RECREATION | C25: 33 | D25: 1350 | E25: 38556700 | F25: 28600
B26: ACCOMMODATION AND FOOD SERVICES | C26: 238 | D26: 4070 | E26: 51223500 | F26: 12600
B27: OTHER SERVICES, EXCEPT PUBLIC ADMIN | C27: 222 | D27: 1250 | E27: 30269000 | F27: 24200
B28: UNCLASSIFIED | C28: Data included in Total UI Covered
A30: Local Government
B31: LOCAL GOVERNMENT | C31: 55 | D31: 4240 | E31: 148980900 | F31: 35100
B32: EDUCATIONAL SERVICES | C32: 24 | D32: 2330 | E32: 83033400 | F32: 35600
B33: HEALTH CARE AND SOCIAL ASSISTANCE | C33: 0 | D33: 0 | E33: 0 | F33: 0
A35: State Government
B36: STATE GOVERNMENT | C36: 26 | D36: 2110 | E36: 82099900 | F36: 38900
B37: EDUCATIONAL SERVICES | C37: 1 | D37: 510 | E37: 19173500 | F37: 37600
B38: HEALTH CARE AND SOCIAL ASSISTANCE | C38: 0 | D38: 0 | E38: 0 | F38: 0
A40: Total UI Covered
B41: TOTAL UI COVERED | C41: 2313 | D41: 40480 | E41: 1500287800 | F41: 37100
A43: Federal Government
B44: FEDERAL GOVERNMENT | C44: 16 | D44: 170 | E44: 9308000 | F44: 54800
A47: *Less than 5 employees unrounded
A75: Telephone: 800-784-0360 | E75: Released | F75: 2015-09-17T10:41:27.620

Sheet Lawrence (093)
B1: UI COVERED EMPLOYMENT
B2: Lawrence County
B3: 2014 Annual Averages
A7: NAICS Sectors/Ownership | C7: Number of Reporting Units | D7: Average Number of Workers | E7: Total Annual Wages | F7: Average Annual Wages
A8: Private Ownership Only | C8: not rounded | D8: rounded to tens | E8: rounded to hundreds | F8: rounded to hundreds
B9: AGRICULTURE, FORESTRY, FISHING AND HUNTI | C9: 4 | D9: 10 | E9: 339200 | F9: 33900
B10: MINING, QUARRYING, AND OIL AND GAS EXTRA | C10: 13 | D10: 170 | E10: 7335200 | F10: 43100
B11: UTILITIES | C11: 5 | D11: 50 | E11: 3138700 | F11: 62800
B12: CONSTRUCTION | C12: 73 | D12: 430 | E12: 16210200 | F12: 37700
B13: MANUFACTURING | C13: 58 | D13: 2100 | E13: 125397000 | F13: 59700
B14: WHOLESALE TRADE | C14: 26 | D14: 210 | E14: 8100200 | F14: 38600
B15: RETAIL TRADE | C15: 148 | D15: 1910 | E15: 44807800 | F15: 23500
B16: TRANSPORTATION AND WAREHOUSING | C16: 30 | D16: 200 | E16: 7304000 | F16: 36500
B17: INFORMATION | C17: 15 | D17: 140 | E17: 5236800 | F17: 37400
B18: FINANCE AND INSURANCE | C18: 55 | D18: 370 | E18: 15811600 | F18: 42700
B19: REAL ESTATE AND RENTAL AND LEASING | C19: 20 | D19: 80 | E19: 2287100 | F19: 28600
B20: PROFESSIONAL AND TECHNICAL SERVICES | C20: 61 | D20: 530 | E20: 24949100 | F20: 47100
B21: MANAGEMENT OF COMPANIES AND ENTERPRISES | C21: Confidential | D21: Confidential | E21: Confidential | F21: Confidential
B22: ADMINISTRATIVE AND WASTE SERVICES | C22: 27 | D22: 310 | E22: 7036500 | F22: 22700
B23: EDUCATIONAL SERVICES | C23: 4 | D23: 40 | E23: 1878200 | F23: 47000
B24: HEALTH CARE AND SOCIAL ASSISTANCE | C24: 79 | D24: 2450 | E24: 71539100 | F24: 29200
B25: ARTS, ENTERTAINMENT, AND RECREATION | C25: 10 | D25: 50 | E25: 628800 | F25: 12600
B26: ACCOMMODATION AND FOOD SERVICES | C26: 59 | D26: 1200 | E26: 14658700 | F26: 12200
B27: OTHER SERVICES, EXCEPT PUBLIC ADMIN | C27: 70 | D27: 350 | E27: 8649300 | F27: 24700
B28: UNCLASSIFIED | C28: Data included in Total UI Covered
A30: Local Government
B31: LOCAL GOVERNMENT | C31: 35 | D31: 1770 | E31: 54301400 | F31: 30700
B32: EDUCATIONAL SERVICES | C32: 20 | D32: 1140 | E32: 35885800 | F32: 31500
B33: HEALTH CARE AND SOCIAL ASSISTANCE | C33: 0 | D33: 0 | E33: 0 | F33: 0
A35: State Government
B36: STATE GOVERNMENT | C36: 13 | D36: 210 | E36: 5683600 | F36: 27100
B37: EDUCATIONAL SERVICES | C37: 0 | D37: 0 | E37: 0 | F37: 0
B38: HEALTH CARE AND SOCIAL ASSISTANCE | C38: 0 | D38: 0 | E38: 0 | F38: 0
A40: Total UI Covered
B41: TOTAL UI COVERED | C41: 806 | D41: 12590 | E41: 425841000 | F41: 33800
A43: Federal Government
B44: FEDERAL GOVERNMENT | C44: 14 | D44: 120 | E44: 6262500 | F44: 52200
A47: *Less than 5 employees unrounded
A75: Telephone: 800-784-0360 | E75: Released | F75: 2015-09-17T10:41:43.940

Sheet Madison (095)
B1: UI COVERED EMPLOYMENT
B2: Madison County
B3: 2014 Annual Averages
A7: NAICS Sectors/Ownership | C7: Number of Reporting Units | D7: Average Number of Workers | E7: Total Annual Wages | F7: Average Annual Wages
A8: Private Ownership Only | C8: not rounded | D8: rounded to tens | E8: rounded to hundreds | F8: rounded to hundreds
B9: AGRICULTURE, FORESTRY, FISHING AND HUNTI | C9: 21 | D9: 170 | E9: 5607500 | F9: 33000
B10: MINING, QUARRYING, AND OIL AND GAS EXTRA | C10: Confidential | D10: Confidential | E10: Confidential | F10: Confidential
B11: UTILITIES | C11: Confidential | D11: Confidential | E11: Confidential | F11: Confidential
B12: CONSTRUCTION | C12: 212 | D12: 1460 | E12: 66619900 | F12: 45600
B13: MANUFACTURING | C13: 99 | D13: 3940 | E13: 210098300 | F13: 53300
B14: WHOLESALE TRADE | C14: 108 | D14: 1320 | E14: 63807000 | F14: 48300
B15: RETAIL TRADE | C15: 333 | D15: 4860 | E15: 107622400 | F15: 22100
B16: TRANSPORTATION AND WAREHOUSING | C16: 69 | D16: 1660 | E16: 66817200 | F16: 40300
B17: INFORMATION | C17: 29 | D17: 440 | E17: 19338500 | F17: 44000
B18: FINANCE AND INSURANCE | C18: 147 | D18: 910 | E18: 47226200 | F18: 51900
B19: REAL ESTATE AND RENTAL AND LEASING | C19: 79 | D19: 440 | E19: 12320400 | F19: 28000
B20: PROFESSIONAL AND TECHNICAL SERVICES | C20: 188 | D20: 750 | E20: 30368600 | F20: 40500
B21: MANAGEMENT OF COMPANIES AND ENTERPRISES | C21: 12 | D21: 310 | E21: 29334000 | F21: 94600
B22: ADMINISTRATIVE AND WASTE SERVICES | C22: 104 | D22: 2080 | E22: 49554200 | F22: 23800
B23: EDUCATIONAL SERVICES | C23: 27 | D23: 860 | E23: 28874500 | F23: 33600
B24: HEALTH CARE AND SOCIAL ASSISTANCE | C24: 207 | D24: 6170 | E24: 245395000 | F24: 39800
B25: ARTS, ENTERTAINMENT, AND RECREATION | C25: 37 | D25: 1200 | E25: 31486000 | F25: 26200
B26: ACCOMMODATION AND FOOD SERVICES | C26: 213 | D26: 4060 | E26: 52395300 | F26: 12900
B27: OTHER SERVICES, EXCEPT PUBLIC ADMIN | C27: 217 | D27: 1140 | E27: 26197800 | F27: 23000
B28: UNCLASSIFIED | C28: Data included in Total UI Covered
A30: Local Government
B31: LOCAL GOVERNMENT | C31: 56 | D31: 4510 | E31: 157606200 | F31: 34900
B32: EDUCATIONAL SERVICES | C32: 27 | D32: 2400 | E32: 81199300 | F32: 33800
B33: HEALTH CARE AND SOCIAL ASSISTANCE | C33: 1 | D33: 30 | E33: 971900 | F33: 32400
A35: State Government
B36: STATE GOVERNMENT | C36: 25 | D36: 1340 | E36: 51320100 | F36: 38300
B37: EDUCATIONAL SERVICES | C37: 0 | D37: 0 | E37: 0 | F37: 0
B38: HEALTH CARE AND SOCIAL ASSISTANCE | C38: 0 | D38: 0 | E38: 0 | F38: 0
A40: Total UI Covered
B41: TOTAL UI COVERED | C41: 2183 | D41: 37680 | E41: 1306100400 | F41: 34700
A43: Federal Government
B44: FEDERAL GOVERNMENT | C44: 16 | D44: 240 | E44: 13620200 | F44: 56800
A47: *Less than 5 employees unrounded
A75: Telephone: 800-784-0360 | E75: Released | F75: 2015-09-17T10:42:10.690

Sheet Marion (097)
B1: UI COVERED EMPLOYMENT
B2: Marion County
B3: 2014 Annual Averages
A7: NAICS Sectors/Ownership | C7: Number of Reporting Units | D7: Average Number of Workers | E7: Total Annual Wages | F7: Average Annual Wages
A8: Private Ownership Only | C8: not rounded | D8: rounded to tens | E8: rounded to hundreds | F8: rounded to hundreds
B9: AGRICULTURE, FORESTRY, FISHING AND HUNTI | C9: 20 | D9: 520 | E9: 23311100 | F9: 44800
B10: MINING, QUARRYING, AND OIL AND GAS EXTRA | C10: 6 | D10: 150 | E10: 8472500 | F10: 56500
B11: UTILITIES | C11: 18 | D11: 1350 | E11: 112821400 | F11: 83600
B12: CONSTRUCTION | C12: 1688 | D12: 24030 | E12: 1393237900 | F12: 58000
B13: MANUFACTURING | C13: 930 | D13: 54910 | E13: 4826338100 | F13: 87900
B14: WHOLESALE TRADE | C14: 1948 | D14: 26180 | E14: 1627347200 | F14: 62200
B15: RETAIL TRADE | C15: 2870 | D15: 51080 | E15: 1451163800 | F15: 28400
B16: TRANSPORTATION AND WAREHOUSING | C16: 728 | D16: 37560 | E16: 1557894900 | F16: 41500
B17: INFORMATION | C17: 419 | D17: 11480 | E17: 796540100 | F17: 69400
B18: FINANCE AND INSURANCE | C18: 1556 | D18: 25510 | E18: 1907782600 | F18: 74800
B19: REAL ESTATE AND RENTAL AND LEASING | C19: 1124 | D19: 9660 | E19: 460506600 | F19: 47700
B20: PROFESSIONAL AND TECHNICAL SERVICES | C20: 3166 | D20: 33610 | E20: 2482720000 | F20: 73900
B21: MANAGEMENT OF COMPANIES AND ENTERPRISES | C21: 215 | D21: 7880 | E21: 710905800 | F21: 90200
B22: ADMINISTRATIVE AND WASTE SERVICES | C22: 1456 | D22: 52050 | E22: 1495264600 | F22: 28700
B23: EDUCATIONAL SERVICES | C23: 321 | D23: 10770 | E23: 421656600 | F23: 39200
B24: HEALTH CARE AND SOCIAL ASSISTANCE | C24: 1907 | D24: 81520 | E24: 4443579500 | F24: 54500
B25: ARTS, ENTERTAINMENT, AND RECREATION | C25: 300 | D25: 7800 | E25: 471636000 | F25: 60500
B26: ACCOMMODATION AND FOOD SERVICES | C26: 2129 | D26: 48300 | E26: 829761700 | F26: 17200
B27: OTHER SERVICES, EXCEPT PUBLIC ADMIN | C27: 2093 | D27: 18570 | E27: 702794400 | F27: 37800
B28: UNCLASSIFIED | C28: Data included in Total UI Covered
A30: Local Government
B31: LOCAL GOVERNMENT | C31: 151 | D31: 35200 | E31: 1630496000 | F31: 46300
B32: EDUCATIONAL SERVICES | C32: 91 | D32: 17280 | E32: 749998600 | F32: 43400
B33: HEALTH CARE AND SOCIAL ASSISTANCE | C33: 2 | D33: 4300 | E33: 208419600 | F33: 48500
A35: State Government
B36: STATE GOVERNMENT | C36: 109 | D36: 23850 | E36: 1101991300 | F36: 46200
B37: EDUCATIONAL SERVICES | C37: 6 | D37: 12020 | E37: 543570200 | F37: 45200
B38: HEALTH CARE AND SOCIAL ASSISTANCE | C38: 2 | D38: 330 | E38: 13685600 | F38: 41500
A40: Total UI Covered
B41: TOTAL UI COVERED | C41: 23152 | D41: 561980 | E41: 28456234600 | F41: 50600
A43: Federal Government
B44: FEDERAL GOVERNMENT | C44: 96 | D44: 14490 | E44: 1060703700 | F44: 73200
A47: *Less than 5 employees unrounded
A75: Telephone: 800-784-0360 | E75: Released | F75: 2015-09-17T10:42:52.170

Sheet Marshall (099)
B1: UI COVERED EMPLOYMENT
B2: Marshall County
B3: 2014 Annual Averages
A7: NAICS Sectors/Ownership | C7: Number of Reporting Units | D7: Average Number of Workers | E7: Total Annual Wages | F7: Average Annual Wages
A8: Private Ownership Only | C8: not rounded | D8: rounded to tens | E8: rounded to hundreds | F8: rounded to hundreds
B9: AGRICULTURE, FORESTRY, FISHING AND HUNTI | C9: 18 | D9: 320 | E9: 11888200 | F9: 37200
B10: MINING, QUARRYING, AND OIL AND GAS EXTRA | C10: Confidential | D10: Confidential | E10: Confidential | F10: Confidential
B11: UTILITIES | C11: Confidential | D11: Confidential | E11: Confidential | F11: Confidential
B12: CONSTRUCTION | C12: 95 | D12: 460 | E12: 18303000 | F12: 39800
B13: MANUFACTURING | C13: 126 | D13: 6690 | E13: 281924000 | F13: 42100
B14: WHOLESALE TRADE | C14: 69 | D14: 490 | E14: 24050200 | F14: 49100
B15: RETAIL TRADE | C15: 161 | D15: 2030 | E15: 49285600 | F15: 24300
B16: TRANSPORTATION AND WAREHOUSING | C16: 38 | D16: 350 | E16: 15494100 | F16: 44300
B17: INFORMATION | C17: 11 | D17: 100 | E17: 3459200 | F17: 34600
B18: FINANCE AND INSURANCE | C18: 60 | D18: 540 | E18: 30468800 | F18: 56400
B19: REAL ESTATE AND RENTAL AND LEASING | C19: 22 | D19: 80 | E19: 1835200 | F19: 22900
B20: PROFESSIONAL AND TECHNICAL SERVICES | C20: 62 | D20: 310 | E20: 11601600 | F20: 37400
B21: MANAGEMENT OF COMPANIES AND ENTERPRISES | C21: Confidential | D21: Confidential | E21: Confidential | F21: Confidential
B22: ADMINISTRATIVE AND WASTE SERVICES | C22: 39 | D22: 890 | E22: 22474500 | F22: 25300
B23: EDUCATIONAL SERVICES | C23: Confidential | D23: Confidential | E23: Confidential | F23: Confidential
B24: HEALTH CARE AND SOCIAL ASSISTANCE | C24: 70 | D24: 1640 | E24: 53185800 | F24: 32400
B25: ARTS, ENTERTAINMENT, AND RECREATION | C25: 11 | D25: 150 | E25: 1704300 | F25: 11400
B26: ACCOMMODATION AND FOOD SERVICES | C26: 81 | D26: 1490 | E26: 20168200 | F26: 13500
B27: OTHER SERVICES, EXCEPT PUBLIC ADMIN | C27: 94 | D27: 640 | E27: 18874100 | F27: 29500
B28: UNCLASSIFIED | C28: Data included in Total UI Covered
A30: Local Government
B31: LOCAL GOVERNMENT | C31: 34 | D31: 1910 | E31: 61144100 | F31: 32000
B32: EDUCATIONAL SERVICES | C32: 12 | D32: 1220 | E32: 41348900 | F32: 33900
B33: HEALTH CARE AND SOCIAL ASSISTANCE | C33: 0 | D33: 0 | E33: 0 | F33: 0
A35: State Government
B36: STATE GOVERNMENT | C36: 16 | D36: 100 | E36: 4420400 | F36: 44200
B37: EDUCATIONAL SERVICES | C37: 0 | D37: 0 | E37: 0 | F37: 0
B38: HEALTH CARE AND SOCIAL ASSISTANCE | C38: 0 | D38: 0 | E38: 0 | F38: 0
A40: Total UI Covered
B41: TOTAL UI COVERED | C41: 1020 | D41: 19120 | E41: 667761400 | F41: 34900
A43: Federal Government
B44: FEDERAL GOVERNMENT | C44: 11 | D44: 90 | E44: 4302300 | F44: 47800
A47: *Less than 5 employees unrounded
A75: Telephone: 800-784-0360 | E75: Released | F75: 2015-09-17T10:43:40.870

Sheet Martin (101)
B1: UI COVERED EMPLOYMENT
B2: Martin County
B3: 2014 Annual Averages
A7: NAICS Sectors/Ownership | C7: Number of Reporting Units | D7: Average Number of Workers | E7: Total Annual Wages | F7: Average Annual Wages
A8: Private Ownership Only | C8: not rounded | D8: rounded to tens | E8: rounded to hundreds | F8: rounded to hundreds
B9: AGRICULTURE, FORESTRY, FISHING AND HUNTI | C9: Confidential | D9: Confidential | E9: Confidential | F9: Confidential
B10: MINING, QUARRYING, AND OIL AND GAS EXTRA | C10: 0 | D10: 0 | E10: 0 | F10: 0
B11: UTILITIES | C11: 3 | D11: 10 | E11: 730000 | F11: 73000
B12: CONSTRUCTION | C12: 19 | D12: 80 | E12: 3162800 | F12: 39500
B13: MANUFACTURING | C13: 11 | D13: 380 | E13: 18879500 | F13: 49700
B14: WHOLESALE TRADE | C14: 11 | D14: 120 | E14: 5340100 | F14: 44500
B15: RETAIL TRADE | C15: 30 | D15: 310 | E15: 6074700 | F15: 19600
B16: TRANSPORTATION AND WAREHOUSING | C16: 11 | D16: 110 | E16: 3850700 | F16: 35000
B17: INFORMATION | C17: 4 | D17: 40 | E17: 971100 | F17: 24300
B18: FINANCE AND INSURANCE | C18: 9 | D18: 50 | E18: 1676700 | F18: 33500
B19: REAL ESTATE AND RENTAL AND LEASING | C19: 4 | D19: 20 | E19: 472900 | F19: 23600
B20: PROFESSIONAL AND TECHNICAL SERVICES | C20: 24 | D20: 890 | E20: 55578400 | F20: 62400
B21: MANAGEMENT OF COMPANIES AND ENTERPRISES | C21: 0 | D21: 0 | E21: 0 | F21: 0
B22: ADMINISTRATIVE AND WASTE SERVICES | C22: 8 | D22: 20 | E22: 459900 | F22: 23000
B23: EDUCATIONAL SERVICES | C23: 0 | D23: 0 | E23: 0 | F23: 0
B24: HEALTH CARE AND SOCIAL ASSISTANCE | C24: 11 | D24: 120 | E24: 2802500 | F24: 23400
B25: ARTS, ENTERTAINMENT, AND RECREATION | C25: Confidential | D25: Confidential | E25: Confidential | F25: Confidential
B26: ACCOMMODATION AND FOOD SERVICES | C26: 21 | D26: 290 | E26: 2878600 | F26: 9900
B27: OTHER SERVICES, EXCEPT PUBLIC ADMIN | C27: 22 | D27: 60 | E27: 1143400 | F27: 19100
B28: UNCLASSIFIED | C28: Data included in Total UI Covered
A30: Local Government
B31: LOCAL GOVERNMENT | C31: 14 | D31: 390 | E31: 10859400 | F31: 27800
B32: EDUCATIONAL SERVICES | C32: 3 | D32: 220 | E32: 7391100 | F32: 33600
B33: HEALTH CARE AND SOCIAL ASSISTANCE | C33: 0 | D33: 0 | E33: 0 | F33: 0
A35: State Government
B36: STATE GOVERNMENT | C36: 8 | D36: 20 | E36: 980400 | F36: 49000
B37: EDUCATIONAL SERVICES | C37: 0 | D37: 0 | E37: 0 | F37: 0
B38: HEALTH CARE AND SOCIAL ASSISTANCE | C38: 0 | D38: 0 | E38: 0 | F38: 0
A40: Total UI Covered
B41: TOTAL UI COVERED | C41: 212 | D41: 2920 | E41: 116094900 | F41: 39800
A43: Federal Government
B44: FEDERAL GOVERNMENT | C44: 6 | D44: 4000 | E44: 336261400 | F44: 84100
A47: *Less than 5 employees unrounded
A75: Telephone: 800-784-0360 | E75: Released | F75: 2015-09-17T12:44:17.020

Sheet Miami (103)
B1: UI COVERED EMPLOYMENT
B2: Miami County
B3: 2014 Annual Averages
A7: NAICS Sectors/Ownership | C7: Number of Reporting Units | D7: Average Number of Workers | E7: Total Annual Wages | F7: Average Annual Wages
A8: Private Ownership Only | C8: not rounded | D8: rounded to tens | E8: rounded to hundreds | F8: rounded to hundreds
B9: AGRICULTURE, FORESTRY, FISHING AND HUNTI | C9: 23 | D9: 180 | E9: 4262400 | F9: 23700
B10: MINING, QUARRYING, AND OIL AND GAS EXTRA | C10: 3 | D10: 40 | E10: 2085300 | F10: 52100
B11: UTILITIES | C11: Confidential | D11: Confidential | E11: Confidential | F11: Confidential
B12: CONSTRUCTION | C12: 57 | D12: 310 | E12: 13232900 | F12: 42700
B13: MANUFACTURING | C13: 39 | D13: 1820 | E13: 76201500 | F13: 41900
B14: WHOLESALE TRADE | C14: 35 | D14: 240 | E14: 9947000 | F14: 41400
B15: RETAIL TRADE | C15: 88 | D15: 870 | E15: 18903200 | F15: 21700
B16: TRANSPORTATION AND WAREHOUSING | C16: 22 | D16: 300 | E16: 9512900 | F16: 31700
B17: INFORMATION | C17: 7 | D17: 100 | E17: 2137200 | F17: 21400
B18: FINANCE AND INSURANCE | C18: 40 | D18: 260 | E18: 11410500 | F18: 43900
B19: REAL ESTATE AND RENTAL AND LEASING | C19: 18 | D19: 70 | E19: 1420600 | F19: 20300
B20: PROFESSIONAL AND TECHNICAL SERVICES | C20: 28 | D20: 90 | E20: 3016500 | F20: 33500
B21: MANAGEMENT OF COMPANIES AND ENTERPRISES | C21: 0 | D21: 0 | E21: 0 | F21: 0
B22: ADMINISTRATIVE AND WASTE SERVICES | C22: 20 | D22: 160 | E22: 6358300 | F22: 39700
B23: EDUCATIONAL SERVICES | C23: Confidential | D23: Confidential | E23: Confidential | F23: Confidential
B24: HEALTH CARE AND SOCIAL ASSISTANCE | C24: 33 | D24: 980 | E24: 31314700 | F24: 32000
B25: ARTS, ENTERTAINMENT, AND RECREATION | C25: 6 | D25: 40 | E25: 487800 | F25: 12200
B26: ACCOMMODATION AND FOOD SERVICES | C26: 57 | D26: 850 | E26: 9305500 | F26: 10900
B27: OTHER SERVICES, EXCEPT PUBLIC ADMIN | C27: 47 | D27: 300 | E27: 6585000 | F27: 22000
B28: UNCLASSIFIED | C28: Data included in Total UI Covered
A30: Local Government
B31: LOCAL GOVERNMENT | C31: 29 | D31: 1340 | E31: 41483300 | F31: 31000
B32: EDUCATIONAL SERVICES | C32: 13 | D32: 800 | E32: 26125900 | F32: 32700
B33: HEALTH CARE AND SOCIAL ASSISTANCE | C33: 0 | D33: 0 | E33: 0 | F33: 0
A35: State Government
B36: STATE GOVERNMENT | C36: 14 | D36: 610 | E36: 22095200 | F36: 36200
B37: EDUCATIONAL SERVICES | C37: 0 | D37: 0 | E37: 0 | F37: 0
B38: HEALTH CARE AND SOCIAL ASSISTANCE | C38: 0 | D38: 0 | E38: 0 | F38: 0
A40: Total UI Covered
B41: TOTAL UI COVERED | C41: 568 | D41: 8630 | E41: 274673800 | F41: 31800
A43: Federal Government
B44: FEDERAL GOVERNMENT | C44: 18 | D44: 640 | E44: 39962000 | F44: 62400
A47: *Less than 5 employees unrounded
A75: Telephone: 800-784-0360 | E75: Released | F75: 2015-09-17T12:44:40.530

Sheet Monroe (105)
B1: UI COVERED EMPLOYMENT
B2: Monroe County
B3: 2014 Annual Averages
A7: NAICS Sectors/Ownership | C7: Number of Reporting Units | D7: Average Number of Workers | E7: Total Annual Wages | F7: Average Annual Wages
A8: Private Ownership Only | C8: not rounded | D8: rounded to tens | E8: rounded to hundreds | F8: rounded to hundreds
B9: AGRICULTURE, FORESTRY, FISHING AND HUNTI | C9: 12 | D9: 80 | E9: 1853200 | F9: 23200
B10: MINING, QUARRYING, AND OIL AND GAS EXTRA | C10: 10 | D10: 160 | E10: 7518400 | F10: 47000
B11: UTILITIES | C11: 13 | D11: 370 | E11: 33565800 | F11: 90700
B12: CONSTRUCTION | C12: 249 | D12: 2050 | E12: 97603600 | F12: 47600
B13: MANUFACTURING | C13: 103 | D13: 6810 | E13: 321364200 | F13: 47200
B14: WHOLESALE TRADE | C14: 128 | D14: 1400 | E14: 69930200 | F14: 50000
B15: RETAIL TRADE | C15: 425 | D15: 7020 | E15: 150467300 | F15: 21400
B16: TRANSPORTATION AND WAREHOUSING | C16: 48 | D16: 960 | E16: 30298100 | F16: 31600
B17: INFORMATION | C17: 58 | D17: 1100 | E17: 47834100 | F17: 43500
B18: FINANCE AND INSURANCE | C18: 157 | D18: 1380 | E18: 63590000 | F18: 46100
B19: REAL ESTATE AND RENTAL AND LEASING | C19: 173 | D19: 1110 | E19: 34617100 | F19: 31200
B20: PROFESSIONAL AND TECHNICAL SERVICES | C20: 285 | D20: 1710 | E20: 96457000 | F20: 56400
B21: MANAGEMENT OF COMPANIES AND ENTERPRISES | C21: 23 | D21: 360 | E21: 40897000 | F21: 113600
B22: ADMINISTRATIVE AND WASTE SERVICES | C22: 157 | D22: 2010 | E22: 57498100 | F22: 28600
B23: EDUCATIONAL SERVICES | C23: 50 | D23: 500 | E23: 12235500 | F23: 24500
B24: HEALTH CARE AND SOCIAL ASSISTANCE | C24: 297 | D24: 8680 | E24: 357738800 | F24: 41200
B25: ARTS, ENTERTAINMENT, AND RECREATION | C25: 46 | D25: 400 | E25: 7835100 | F25: 19600
B26: ACCOMMODATION AND FOOD SERVICES | C26: 322 | D26: 7450 | E26: 102789100 | F26: 13800
B27: OTHER SERVICES, EXCEPT PUBLIC ADMIN | C27: 242 | D27: 1980 | E27: 53182400 | F27: 26900
B28: UNCLASSIFIED | C28: Data included in Total UI Covered
A30: Local Government
B31: LOCAL GOVERNMENT | C31: 55 | D31: 4320 | E31: 147630800 | F31: 34200
B32: EDUCATIONAL SERVICES | C32: 30 | D32: 2100 | E32: 70202600 | F32: 33400
B33: HEALTH CARE AND SOCIAL ASSISTANCE | C33: 0 | D33: 0 | E33: 0 | F33: 0
A35: State Government
B36: STATE GOVERNMENT | C36: 26 | D36: 11390 | E36: 605246600 | F36: 53100
B37: EDUCATIONAL SERVICES | C37: 2 | D37: 11090 | E37: 594174700 | F37: 53600
B38: HEALTH CARE AND SOCIAL ASSISTANCE | C38: 0 | D38: 0 | E38: 0 | F38: 0
A40: Total UI Covered
B41: TOTAL UI COVERED | C41: 2876 | D41: 61230 | E41: 2340199100 | F41: 38200
A43: Federal Government
B44: FEDERAL GOVERNMENT | C44: 22 | D44: 280 | E44: 17817500 | F44: 63600
A47: *Less than 5 employees unrounded
A75: Telephone: 800-784-0360 | E75: Released | F75: 2015-09-17T12:45:02.220

Sheet Montgomery (107)
B1: UI COVERED EMPLOYMENT
B2: Montgomery County
B3: 2014 Annual Averages
A7: NAICS Sectors/Ownership | C7: Number of Reporting Units | D7: Average Number of Workers | E7: Total Annual Wages | F7: Average Annual Wages
A8: Private Ownership Only | C8: not rounded | D8: rounded to tens | E8: rounded to hundreds | F8: rounded to hundreds
B9: AGRICULTURE, FORESTRY, FISHING AND HUNTI | C9: 22 | D9: 150 | E9: 4881100 | F9: 32500
B10: MINING, QUARRYING, AND OIL AND GAS EXTRA | C10: Confidential | D10: Confidential | E10: Confidential | F10: Confidential
B11: UTILITIES | C11: Confidential | D11: Confidential | E11: Confidential | F11: Confidential
B12: CONSTRUCTION | C12: 81 | D12: 380 | E12: 15420400 | F12: 40600
B13: MANUFACTURING | C13: 56 | D13: 4950 | E13: 274616200 | F13: 55500
B14: WHOLESALE TRADE | C14: 46 | D14: 420 | E14: 23858400 | F14: 56800
B15: RETAIL TRADE | C15: 121 | D15: 1580 | E15: 34933700 | F15: 22100
B16: TRANSPORTATION AND WAREHOUSING | C16: 47 | D16: 690 | E16: 22455600 | F16: 32500
B17: INFORMATION | C17: 11 | D17: 120 | E17: 5376800 | F17: 44800
B18: FINANCE AND INSURANCE | C18: 53 | D18: 270 | E18: 11936200 | F18: 44200
B19: REAL ESTATE AND RENTAL AND LEASING | C19: 28 | D19: 80 | E19: 2363400 | F19: 29500
B20: PROFESSIONAL AND TECHNICAL SERVICES | C20: 50 | D20: 210 | E20: 7677600 | F20: 36600
B21: MANAGEMENT OF COMPANIES AND ENTERPRISES | C21: Confidential | D21: Confidential | E21: Confidential | F21: Confidential
B22: ADMINISTRATIVE AND WASTE SERVICES | C22: 42 | D22: 820 | E22: 17940900 | F22: 21900
B23: EDUCATIONAL SERVICES | C23: Confidential | D23: Confidential | E23: Confidential | F23: Confidential
B24: HEALTH CARE AND SOCIAL ASSISTANCE | C24: 72 | D24: 1370 | E24: 55152700 | F24: 40300
B25: ARTS, ENTERTAINMENT, AND RECREATION | C25: 10 | D25: 120 | E25: 1269900 | F25: 10600
B26: ACCOMMODATION AND FOOD SERVICES | C26: 79 | D26: 1260 | E26: 17972400 | F26: 14300
B27: OTHER SERVICES, EXCEPT PUBLIC ADMIN | C27: 80 | D27: 310 | E27: 6457500 | F27: 20800
B28: UNCLASSIFIED | C28: Data included in Total UI Covered
A30: Local Government
B31: LOCAL GOVERNMENT | C31: 39 | D31: 1590 | E31: 50440600 | F31: 31700
B32: EDUCATIONAL SERVICES | C32: 17 | D32: 1020 | E32: 32056900 | F32: 31400
B33: HEALTH CARE AND SOCIAL ASSISTANCE | C33: 1 | D33: * | E33: 51200 | F33: *
A35: State Government
B36: STATE GOVERNMENT | C36: 15 | D36: 220 | E36: 9935100 | F36: 45200
B37: EDUCATIONAL SERVICES | C37: 0 | D37: 0 | E37: 0 | F37: 0
B38: HEALTH CARE AND SOCIAL ASSISTANCE | C38: 0 | D38: 0 | E38: 0 | F38: 0
A40: Total UI Covered
B41: TOTAL UI COVERED | C41: 863 | D41: 14950 | E41: 584546100 | F41: 39100
A43: Federal Government
B44: FEDERAL GOVERNMENT | C44: 14 | D44: 80 | E44: 4008000 | F44: 50100
A47: *Less than 5 employees unrounded
A75: Telephone: 800-784-0360 | E75: Released | F75: 2015-09-17T12:45:26.580

Sheet Morgan (109)
B1: UI COVERED EMPLOYMENT
B2: Morgan County
B3: 2014 Annual Averages
A7: NAICS Sectors/Ownership | C7: Number of Reporting Units | D7: Average Number of Workers | E7: Total Annual Wages | F7: Average Annual Wages
A8: Private Ownership Only | C8: not rounded | D8: rounded to tens | E8: rounded to hundreds | F8: rounded to hundreds
B9: AGRICULTURE, FORESTRY, FISHING AND HUNTI | C9: 16 | D9: 70 | E9: 2180800 | F9: 31200
B10: MINING, QUARRYING, AND OIL AND GAS EXTRA | C10: 8 | D10: 50 | E10: 2330100 | F10: 46600
B11: UTILITIES | C11: 10 | D11: 190 | E11: 14874000 | F11: 78300
B12: CONSTRUCTION | C12: 176 | D12: 920 | E12: 37974100 | F12: 41300
B13: MANUFACTURING | C13: 65 | D13: 2360 | E13: 109969700 | F13: 46600
B14: WHOLESALE TRADE | C14: 57 | D14: 370 | E14: 21826400 | F14: 59000
B15: RETAIL TRADE | C15: 168 | D15: 2290 | E15: 53603600 | F15: 23400
B16: TRANSPORTATION AND WAREHOUSING | C16: 37 | D16: 140 | E16: 4957100 | F16: 35400
B17: INFORMATION | C17: 9 | D17: 90 | E17: 3444600 | F17: 38300
B18: FINANCE AND INSURANCE | C18: 74 | D18: 380 | E18: 17745600 | F18: 46700
B19: REAL ESTATE AND RENTAL AND LEASING | C19: 47 | D19: 140 | E19: 4772500 | F19: 34100
B20: PROFESSIONAL AND TECHNICAL SERVICES | C20: 107 | D20: 400 | E20: 16841300 | F20: 42100
B21: MANAGEMENT OF COMPANIES AND ENTERPRISES | C21: Confidential | D21: Confidential | E21: Confidential | F21: Confidential
B22: ADMINISTRATIVE AND WASTE SERVICES | C22: 71 | D22: 590 | E22: 20919400 | F22: 35500
B23: EDUCATIONAL SERVICES | C23: 8 | D23: 40 | E23: 509300 | F23: 12700
B24: HEALTH CARE AND SOCIAL ASSISTANCE | C24: 88 | D24: 1820 | E24: 62937500 | F24: 34600
B25: ARTS, ENTERTAINMENT, AND RECREATION | C25: 13 | D25: 110 | E25: 1427600 | F25: 13000
B26: ACCOMMODATION AND FOOD SERVICES | C26: 80 | D26: 1640 | E26: 22111600 | F26: 13500
B27: OTHER SERVICES, EXCEPT PUBLIC ADMIN | C27: 107 | D27: 500 | E27: 14372500 | F27: 28700
B28: UNCLASSIFIED | C28: Data included in Total UI Covered
A30: Local Government
B31: LOCAL GOVERNMENT | C31: 49 | D31: 2410 | E31: 77228400 | F31: 32000
B32: EDUCATIONAL SERVICES | C32: 31 | D32: 1440 | E32: 51808800 | F32: 36000
B33: HEALTH CARE AND SOCIAL ASSISTANCE | C33: 0 | D33: 0 | E33: 0 | F33: 0
A35: State Government
B36: STATE GOVERNMENT | C36: 13 | D36: 90 | E36: 3646500 | F36: 40500
B37: EDUCATIONAL SERVICES | C37: 0 | D37: 0 | E37: 0 | F37: 0
B38: HEALTH CARE AND SOCIAL ASSISTANCE | C38: 0 | D38: 0 | E38: 0 | F38: 0
A40: Total UI Covered
B41: TOTAL UI COVERED | C41: 1202 | D41: 14610 | E41: 493709800 | F41: 33800
A43: Federal Government
B44: FEDERAL GOVERNMENT | C44: 7 | D44: 90 | E44: 4724300 | F44: 52500
A47: *Less than 5 employees unrounded
A75: Telephone: 800-784-0360 | E75: Released | F75: 2015-09-17T12:45:49.920

Sheet Newton (111)
B1: UI COVERED EMPLOYMENT
B2: Newton County
B3: 2014 Annual Averages
A7: NAICS Sectors/Ownership | C7: Number of Reporting Units | D7: Average Number of Workers | E7: Total Annual Wages | F7: Average Annual Wages
A8: Private Ownership Only | C8: not rounded | D8: rounded to tens | E8: rounded to hundreds | F8: rounded to hundreds
B9: AGRICULTURE, FORESTRY, FISHING AND HUNTI | C9: 17 | D9: 390 | E9: 15659700 | F9: 40200
B10: MINING, QUARRYING, AND OIL AND GAS EXTRA | C10: Confidential | D10: Confidential | E10: Confidential | F10: Confidential
B11: UTILITIES | C11: Confidential | D11: Confidential | E11: Confidential | F11: Confidential
B12: CONSTRUCTION | C12: 35 | D12: 130 | E12: 4056200 | F12: 31200
B13: MANUFACTURING | C13: 22 | D13: 610 | E13: 23981700 | F13: 39300
B14: WHOLESALE TRADE | C14: 20 | D14: 180 | E14: 10146300 | F14: 56400
B15: RETAIL TRADE | C15: 35 | D15: 230 | E15: 5204100 | F15: 22600
B16: TRANSPORTATION AND WAREHOUSING | C16: 21 | D16: 220 | E16: 8639700 | F16: 39300
B17: INFORMATION | C17: Confidential | D17: Confidential | E17: Confidential | F17: Confidential
B18: FINANCE AND INSURANCE | C18: 11 | D18: 120 | E18: 4337700 | F18: 36100
B19: REAL ESTATE AND RENTAL AND LEASING | C19: 5 | D19: 10 | E19: 272600 | F19: 27300
B20: PROFESSIONAL AND TECHNICAL SERVICES | C20: 16 | D20: 50 | E20: 1653600 | F20: 33100
B21: MANAGEMENT OF COMPANIES AND ENTERPRISES | C21: 0 | D21: 0 | E21: 0 | F21: 0
B22: ADMINISTRATIVE AND WASTE SERVICES | C22: 5 | D22: 170 | E22: 7052300 | F22: 41500
B23: EDUCATIONAL SERVICES | C23: 0 | D23: 0 | E23: 0 | F23: 0
B24: HEALTH CARE AND SOCIAL ASSISTANCE | C24: 9 | D24: 240 | E24: 7474500 | F24: 31100
B25: ARTS, ENTERTAINMENT, AND RECREATION | C25: Confidential | D25: Confidential | E25: Confidential | F25: Confidential
B26: ACCOMMODATION AND FOOD SERVICES | C26: 22 | D26: 250 | E26: 3406100 | F26: 13600
B27: OTHER SERVICES, EXCEPT PUBLIC ADMIN | C27: 19 | D27: 40 | E27: 777600 | F27: 19400
B28: UNCLASSIFIED | C28: Data included in Total UI Covered
A30: Local Government
B31: LOCAL GOVERNMENT | C31: 15 | D31: 670 | E31: 18849200 | F31: 28100
B32: EDUCATIONAL SERVICES | C32: 2 | D32: 390 | E32: 11762700 | F32: 30200
B33: HEALTH CARE AND SOCIAL ASSISTANCE | C33: 1 | D33: * | E33: 189600 | F33: *
A35: State Government
B36: STATE GOVERNMENT | C36: 6 | D36: 40 | E36: 1629100 | F36: 40700
B37: EDUCATIONAL SERVICES | C37: 0 | D37: 0 | E37: 0 | F37: 0
B38: HEALTH CARE AND SOCIAL ASSISTANCE | C38: 0 | D38: 0 | E38: 0 | F38: 0
A40: Total UI Covered
B41: TOTAL UI COVERED | C41: 264 | D41: 3440 | E41: 115149000 | F41: 33500
A43: Federal Government
B44: FEDERAL GOVERNMENT | C44: 9 | D44: 30 | E44: 1017100 | F44: 33900
A47: *Less than 5 employees unrounded
A75: Telephone: 800-784-0360 | E75: Released | F75: 2015-09-17T12:46:15.410

Sheet Noble (113)
B1: UI COVERED EMPLOYMENT
B2: Noble County
B3: 2014 Annual Averages
A7: NAICS Sectors/Ownership | C7: Number of Reporting Units | D7: Average Number of Workers | E7: Total Annual Wages | F7: Average Annual Wages
A8: Private Ownership Only | C8: not rounded | D8: rounded to tens | E8: rounded to hundreds | F8: rounded to hundreds
B9: AGRICULTURE, FORESTRY, FISHING AND HUNTI | C9: 21 | D9: 170 | E9: 5636700 | F9: 33200
B10: MINING, QUARRYING, AND OIL AND GAS EXTRA | C10: Confidential | D10: Confidential | E10: Confidential | F10: Confidential
B11: UTILITIES | C11: 4 | D11: 50 | E11: 3830900 | F11: 76600
B12: CONSTRUCTION | C12: 81 | D12: 460 | E12: 18539900 | F12: 40300
B13: MANUFACTURING | C13: 128 | D13: 8910 | E13: 393773500 | F13: 44200
B14: WHOLESALE TRADE | C14: 50 | D14: 380 | E14: 18584700 | F14: 48900
B15: RETAIL TRADE | C15: 121 | D15: 1450 | E15: 33275500 | F15: 22900
B16: TRANSPORTATION AND WAREHOUSING | C16: 28 | D16: 250 | E16: 9327200 | F16: 37300
B17: INFORMATION | C17: 11 | D17: 240 | E17: 8592000 | F17: 35800
B18: FINANCE AND INSURANCE | C18: 46 | D18: 260 | E18: 9892600 | F18: 38000
B19: REAL ESTATE AND RENTAL AND LEASING | C19: 30 | D19: 90 | E19: 2288200 | F19: 25400
B20: PROFESSIONAL AND TECHNICAL SERVICES | C20: 51 | D20: 180 | E20: 5967500 | F20: 33200
B21: MANAGEMENT OF COMPANIES AND ENTERPRISES | C21: Confidential | D21: Confidential | E21: Confidential | F21: Confidential
B22: ADMINISTRATIVE AND WASTE SERVICES | C22: 37 | D22: 900 | E22: 23668200 | F22: 26300
B23: EDUCATIONAL SERVICES | C23: 8 | D23: 190 | E23: 3954400 | F23: 20800
B24: HEALTH CARE AND SOCIAL ASSISTANCE | C24: 45 | D24: 1250 | E24: 38265400 | F24: 30600
B25: ARTS, ENTERTAINMENT, AND RECREATION | C25: 9 | D25: 50 | E25: 610900 | F25: 12200
B26: ACCOMMODATION AND FOOD SERVICES | C26: 70 | D26: 1090 | E26: 11702700 | F26: 10700
B27: OTHER SERVICES, EXCEPT PUBLIC ADMIN | C27: 68 | D27: 440 | E27: 7817500 | F27: 17800
B28: UNCLASSIFIED | C28: Data included in Total UI Covered
A30: Local Government
B31: LOCAL GOVERNMENT | C31: 23 | D31: 1710 | E31: 55503300 | F31: 32500
B32: EDUCATIONAL SERVICES | C32: 7 | D32: 1110 | E32: 37885400 | F32: 34100
B33: HEALTH CARE AND SOCIAL ASSISTANCE | C33: 0 | D33: 0 | E33: 0 | F33: 0
A35: State Government
B36: STATE GOVERNMENT | C36: 16 | D36: 130 | E36: 4638700 | F36: 35700
B37: EDUCATIONAL SERVICES | C37: 0 | D37: 0 | E37: 0 | F37: 0
B38: HEALTH CARE AND SOCIAL ASSISTANCE | C38: 0 | D38: 0 | E38: 0 | F38: 0
A40: Total UI Covered
B41: TOTAL UI COVERED | C41: 849 | D41: 18210 | E41: 657737300 | F41: 36100
A43: Federal Government
B44: FEDERAL GOVERNMENT | C44: 12 | D44: 80 | E44: 3702100 | F44: 46300
A47: *Less than 5 employees unrounded
A75: Telephone: 800-784-0360 | E75: Released | F75: 2015-09-17T12:46:47.230

Sheet Ohio (115)
B1: UI COVERED EMPLOYMENT
B2: Ohio County
B3: 2014 Annual Averages
A7: NAICS Sectors/Ownership | C7: Number of Reporting Units | D7: Average Number of Workers | E7: Total Annual Wages | F7: Average Annual Wages
A8: Private Ownership Only | C8: not rounded | D8: rounded to tens | E8: rounded to hundreds | F8: rounded to hundreds
B9: AGRICULTURE, FORESTRY, FISHING AND HUNTI | C9: Confidential | D9: Confidential | E9: Confidential | F9: Confidential
B10: MINING, QUARRYING, AND OIL AND GAS EXTRA | C10: 0 | D10: 0 | E10: 0 | F10: 0
B11: UTILITIES | C11: Confidential | D11: Confidential | E11: Confidential | F11: Confidential
B12: CONSTRUCTION | C12: 13 | D12: 30 | E12: 1167900 | F12: 38900
B13: MANUFACTURING | C13: 5 | D13: 20 | E13: 566500 | F13: 28300
B14: WHOLESALE TRADE | C14: 4 | D14: 10 | E14: 429500 | F14: 43000
B15: RETAIL TRADE | C15: 10 | D15: 80 | E15: 1146000 | F15: 14300
B16: TRANSPORTATION AND WAREHOUSING | C16: 5 | D16: 40 | E16: 1396300 | F16: 34900
B17: INFORMATION | C17: 0 | D17: 0 | E17: 0 | F17: 0
B18: FINANCE AND INSURANCE | C18: 4 | D18: 10 | E18: 418900 | F18: 41900
B19: REAL ESTATE AND RENTAL AND LEASING | C19: Confidential | D19: Confidential | E19: Confidential | F19: Confidential
B20: PROFESSIONAL AND TECHNICAL SERVICES | C20: 4 | D20: 10 | E20: 190600 | F20: 19100
B21: MANAGEMENT OF COMPANIES AND ENTERPRISES | C21: 0 | D21: 0 | E21: 0 | F21: 0
B22: ADMINISTRATIVE AND WASTE SERVICES | C22: Confidential | D22: Confidential | E22: Confidential | F22: Confidential
B23: EDUCATIONAL SERVICES | C23: 0 | D23: 0 | E23: 0 | F23: 0
B24: HEALTH CARE AND SOCIAL ASSISTANCE | C24: 6 | D24: 80 | E24: 1948800 | F24: 24400
B25: ARTS, ENTERTAINMENT, AND RECREATION | C25: Confidential | D25: Confidential | E25: Confidential | F25: Confidential
B26: ACCOMMODATION AND FOOD SERVICES | C26: 9 | D26: 60 | E26: 687100 | F26: 11500
B27: OTHER SERVICES, EXCEPT PUBLIC ADMIN | C27: 4 | D27: 10 | E27: 292600 | F27: 29300
B28: UNCLASSIFIED | C28: Data included in Total UI Covered
A30: Local Government
B31: LOCAL GOVERNMENT | C31: 6 | D31: 310 | E31: 8272900 | F31: 26700
B32: EDUCATIONAL SERVICES | C32: 1 | D32: 150 | E32: 4603800 | F32: 30700
B33: HEALTH CARE AND SOCIAL ASSISTANCE | C33: 1 | D33: 10 | E33: 665600 | F33: 66600
A35: State Government
B36: STATE GOVERNMENT | C36: 7 | D36: 30 | E36: 1316100 | F36: 43900
B37: EDUCATIONAL SERVICES | C37: 0 | D37: 0 | E37: 0 | F37: 0
B38: HEALTH CARE AND SOCIAL ASSISTANCE | C38: 0 | D38: 0 | E38: 0 | F38: 0
A40: Total UI Covered
B41: TOTAL UI COVERED | C41: 88 | D41: 1510 | E41: 36768300 | F41: 24300
A43: Federal Government
B44: FEDERAL GOVERNMENT | C44: 2 | D44: 10 | E44: 571600 | F44: 57200
A47: *Less than 5 employees unrounded
A75: Telephone: 800-784-0360 | E75: Released | F75: 2015-09-17T12:47:10.880

Sheet Orange (117)
B1: UI COVERED EMPLOYMENT
B2: Orange County
B3: 2014 Annual Averages
A7: NAICS Sectors/Ownership | C7: Number of Reporting Units | D7: Average Number of Workers | E7: Total Annual Wages | F7: Average Annual Wages
A8: Private Ownership Only | C8: not rounded | D8: rounded to tens | E8: rounded to hundreds | F8: rounded to hundreds
B9: AGRICULTURE, FORESTRY, FISHING AND HUNTI | C9: 5 | D9: 90 | E9: 2980100 | F9: 33100
B10: MINING, QUARRYING, AND OIL AND GAS EXTRA | C10: Confidential | D10: Confidential | E10: Confidential | F10: Confidential
B11: UTILITIES | C11: Confidential | D11: Confidential | E11: Confidential | F11: Confidential
B12: CONSTRUCTION | C12: 41 | D12: 550 | E12: 26440300 | F12: 48100
B13: MANUFACTURING | C13: 24 | D13: 1300 | E13: 44373300 | F13: 34100
B14: WHOLESALE TRADE | C14: 14 | D14: 110 | E14: 6681100 | F14: 60700
B15: RETAIL TRADE | C15: 57 | D15: 630 | E15: 13951200 | F15: 22100
B16: TRANSPORTATION AND WAREHOUSING | C16: 16 | D16: 130 | E16: 5563000 | F16: 42800
B17: INFORMATION | C17: 7 | D17: 40 | E17: 1143800 | F17: 28600
B18: FINANCE AND INSURANCE | C18: 19 | D18: 80 | E18: 2931600 | F18: 36600
B19: REAL ESTATE AND RENTAL AND LEASING | C19: 9 | D19: 20 | E19: 429200 | F19: 21500
B20: PROFESSIONAL AND TECHNICAL SERVICES | C20: 16 | D20: 60 | E20: 1977900 | F20: 33000
B21: MANAGEMENT OF COMPANIES AND ENTERPRISES | C21: 5 | D21: 70 | E21: 3683300 | F21: 52600
B22: ADMINISTRATIVE AND WASTE SERVICES | C22: 13 | D22: 190 | E22: 5849900 | F22: 30800
B23: EDUCATIONAL SERVICES | C23: Confidential | D23: Confidential | E23: Confidential | F23: Confidential
B24: HEALTH CARE AND SOCIAL ASSISTANCE | C24: 39 | D24: 770 | E24: 22166400 | F24: 28800
B25: ARTS, ENTERTAINMENT, AND RECREATION | C25: 7 | D25: 130 | E25: 2048800 | F25: 15800
B26: ACCOMMODATION AND FOOD SERVICES | C26: 35 | D26: 1930 | E26: 44770300 | F26: 23200
B27: OTHER SERVICES, EXCEPT PUBLIC ADMIN | C27: 30 | D27: 140 | E27: 2800500 | F27: 20000
B28: UNCLASSIFIED | C28: Data included in Total UI Covered
A30: Local Government
B31: LOCAL GOVERNMENT | C31: 18 | D31: 810 | E31: 23975700 | F31: 29600
B32: EDUCATIONAL SERVICES | C32: 8 | D32: 570 | E32: 17900400 | F32: 31400
B33: HEALTH CARE AND SOCIAL ASSISTANCE | C33: 0 | D33: 0 | E33: 0 | F33: 0
A35: State Government
B36: STATE GOVERNMENT | C36: 10 | D36: 100 | E36: 4061300 | F36: 40600
B37: EDUCATIONAL SERVICES | C37: 0 | D37: 0 | E37: 0 | F37: 0
B38: HEALTH CARE AND SOCIAL ASSISTANCE | C38: 0 | D38: 0 | E38: 0 | F38: 0
A40: Total UI Covered
B41: TOTAL UI COVERED | C41: 367 | D41: 7270 | E41: 221066400 | F41: 30400
A43: Federal Government
B44: FEDERAL GOVERNMENT | C44: 6 | D44: 40 | E44: 1836000 | F44: 45900
A47: *Less than 5 employees unrounded
A75: Telephone: 800-784-0360 | E75: Released | F75: 2015-09-17T12:47:34.940

Sheet Owen (119)
B1: UI COVERED EMPLOYMENT
B2: Owen County
B3: 2014 Annual Averages
A7: NAICS Sectors/Ownership | C7: Number of Reporting Units | D7: Average Number of Workers | E7: Total Annual Wages | F7: Average Annual Wages
A8: Private Ownership Only | C8: not rounded | D8: rounded to tens | E8: rounded to hundreds | F8: rounded to hundreds
B9: AGRICULTURE, FORESTRY, FISHING AND HUNTI | C9: 5 | D9: 20 | E9: 364100 | F9: 18200
B10: MINING, QUARRYING, AND OIL AND GAS EXTRA | C10: 0 | D10: 0 | E10: 0 | F10: 0
B11: UTILITIES | C11: Confidential | D11: Confidential | E11: Confidential | F11: Confidential
B12: CONSTRUCTION | C12: 35 | D12: 140 | E12: 4354700 | F12: 31100
B13: MANUFACTURING | C13: 28 | D13: 1710 | E13: 87214800 | F13: 51000
B14: WHOLESALE TRADE | C14: 18 | D14: 50 | E14: 1727900 | F14: 34600
B15: RETAIL TRADE | C15: 37 | D15: 420 | E15: 8916300 | F15: 21200
B16: TRANSPORTATION AND WAREHOUSING | C16: 15 | D16: 70 | E16: 1866800 | F16: 26700
B17: INFORMATION | C17: Confidential | D17: Confidential | E17: Confidential | F17: Confidential
B18: FINANCE AND INSURANCE | C18: 13 | D18: 120 | E18: 4661300 | F18: 38800
B19: REAL ESTATE AND RENTAL AND LEASING | C19: 7 | D19: 10 | E19: 119700 | F19: 12000
B20: PROFESSIONAL AND TECHNICAL SERVICES | C20: 18 | D20: 70 | E20: 1829200 | F20: 26100
B21: MANAGEMENT OF COMPANIES AND ENTERPRISES | C21: 0 | D21: 0 | E21: 0 | F21: 0
B22: ADMINISTRATIVE AND WASTE SERVICES | C22: 10 | D22: 150 | E22: 3082700 | F22: 20600
B23: EDUCATIONAL SERVICES | C23: Confidential | D23: Confidential | E23: Confidential | F23: Confidential
B24: HEALTH CARE AND SOCIAL ASSISTANCE | C24: 16 | D24: 350 | E24: 16997400 | F24: 48600
B25: ARTS, ENTERTAINMENT, AND RECREATION | C25: 3 | D25: 10 | E25: 187500 | F25: 18800
B26: ACCOMMODATION AND FOOD SERVICES | C26: 22 | D26: 390 | E26: 4206500 | F26: 10800
B27: OTHER SERVICES, EXCEPT PUBLIC ADMIN | C27: 21 | D27: 90 | E27: 1492800 | F27: 16600
B28: UNCLASSIFIED | C28: Data included in Total UI Covered
A30: Local Government
B31: LOCAL GOVERNMENT | C31: 14 | D31: 610 | E31: 18736200 | F31: 30700
B32: EDUCATIONAL SERVICES | C32: 7 | D32: 390 | E32: 12634900 | F32: 32400
B33: HEALTH CARE AND SOCIAL ASSISTANCE | C33: 0 | D33: 0 | E33: 0 | F33: 0
A35: State Government
B36: STATE GOVERNMENT | C36: 8 | D36: 140 | E36: 3221400 | F36: 23000
B37: EDUCATIONAL SERVICES | C37: 0 | D37: 0 | E37: 0 | F37: 0
B38: HEALTH CARE AND SOCIAL ASSISTANCE | C38: 0 | D38: 0 | E38: 0 | F38: 0
A40: Total UI Covered
B41: TOTAL UI COVERED | C41: 278 | D41: 4470 | E41: 163359300 | F41: 36500
A43: Federal Government
B44: FEDERAL GOVERNMENT | C44: 6 | D44: 30 | E44: 1385500 | F44: 46200
A47: *Less than 5 employees unrounded
A75: Telephone: 800-784-0360 | E75: Released | F75: 2015-09-17T12:48:00.900

Sheet Parke (121)
B1: UI COVERED EMPLOYMENT
B2: Parke County
B3: 2014 Annual Averages
A7: NAICS Sectors/Ownership | C7: Number of Reporting Units | D7: Average Number of Workers | E7: Total Annual Wages | F7: Average Annual Wages
A8: Private Ownership Only | C8: not rounded | D8: rounded to tens | E8: rounded to hundreds | F8: rounded to hundreds
B9: AGRICULTURE, FORESTRY, FISHING AND HUNTI | C9: 16 | D9: 60 | E9: 1965500 | F9: 32800
B10: MINING, QUARRYING, AND OIL AND GAS EXTRA | C10: Confidential | D10: Confidential | E10: Confidential | F10: Confidential
B11: UTILITIES | C11: Confidential | D11: Confidential | E11: Confidential | F11: Confidential
B12: CONSTRUCTION | C12: 18 | D12: 80 | E12: 2716100 | F12: 34000
B13: MANUFACTURING | C13: 15 | D13: 460 | E13: 17437300 | F13: 37900
B14: WHOLESALE TRADE | C14: 12 | D14: 100 | E14: 2935600 | F14: 29400
B15: RETAIL TRADE | C15: 38 | D15: 340 | E15: 6541100 | F15: 19200
B16: TRANSPORTATION AND WAREHOUSING | C16: 16 | D16: 70 | E16: 2083400 | F16: 29800
B17: INFORMATION | C17: 5 | D17: 30 | E17: 1283500 | F17: 42800
B18: FINANCE AND INSURANCE | C18: 16 | D18: 80 | E18: 2995500 | F18: 37400
B19: REAL ESTATE AND RENTAL AND LEASING | C19: 9 | D19: 50 | E19: 1786000 | F19: 35700
B20: PROFESSIONAL AND TECHNICAL SERVICES | C20: 10 | D20: 60 | E20: 1420800 | F20: 23700
B21: MANAGEMENT OF COMPANIES AND ENTERPRISES | C21: Confidential | D21: Confidential | E21: Confidential | F21: Confidential
B22: ADMINISTRATIVE AND WASTE SERVICES | C22: 19 | D22: 90 | E22: 2171700 | F22: 24100
B23: EDUCATIONAL SERVICES | C23: Confidential | D23: Confidential | E23: Confidential | F23: Confidential
B24: HEALTH CARE AND SOCIAL ASSISTANCE | C24: 19 | D24: 170 | E24: 4221100 | F24: 24800
B25: ARTS, ENTERTAINMENT, AND RECREATION | C25: 4 | D25: 20 | E25: 204200 | F25: 10200
B26: ACCOMMODATION AND FOOD SERVICES | C26: 26 | D26: 250 | E26: 2833600 | F26: 11300
B27: OTHER SERVICES, EXCEPT PUBLIC ADMIN | C27: 27 | D27: 80 | E27: 1765300 | F27: 22100
B28: UNCLASSIFIED | C28: Data included in Total UI Covered
A30: Local Government
B31: LOCAL GOVERNMENT | C31: 22 | D31: 630 | E31: 16843400 | F31: 26700
B32: EDUCATIONAL SERVICES | C32: 9 | D32: 390 | E32: 11666200 | F32: 29900
B33: HEALTH CARE AND SOCIAL ASSISTANCE | C33: 0 | D33: 0 | E33: 0 | F33: 0
A35: State Government
B36: STATE GOVERNMENT | C36: 12 | D36: 410 | E36: 12448600 | F36: 30400
B37: EDUCATIONAL SERVICES | C37: 0 | D37: 0 | E37: 0 | F37: 0
B38: HEALTH CARE AND SOCIAL ASSISTANCE | C38: 0 | D38: 0 | E38: 0 | F38: 0
A40: Total UI Covered
B41: TOTAL UI COVERED | C41: 290 | D41: 3040 | E41: 85805900 | F41: 28200
A43: Federal Government
B44: FEDERAL GOVERNMENT | C44: 10 | D44: 50 | E44: 2005500 | F44: 40100
A47: *Less than 5 employees unrounded
A75: Telephone: 800-784-0360 | E75: Released | F75: 2015-09-17T12:48:23.600

Sheet Perry (123)
B1: UI COVERED EMPLOYMENT
B2: Perry County
B3: 2014 Annual Averages
A7: NAICS Sectors/Ownership | C7: Number of Reporting Units | D7: Average Number of Workers | E7: Total Annual Wages | F7: Average Annual Wages
A8: Private Ownership Only | C8: not rounded | D8: rounded to tens | E8: rounded to hundreds | F8: rounded to hundreds
B9: AGRICULTURE, FORESTRY, FISHING AND HUNTI | C9: 10 | D9: 40 | E9: 1263300 | F9: 31600
B10: MINING, QUARRYING, AND OIL AND GAS EXTRA | C10: Confidential | D10: Confidential | E10: Confidential | F10: Confidential
B11: UTILITIES | C11: 3 | D11: 50 | E11: 2603900 | F11: 52100
B12: CONSTRUCTION | C12: 38 | D12: 150 | E12: 5691500 | F12: 37900
B13: MANUFACTURING | C13: 24 | D13: 2240 | E13: 119725800 | F13: 53400
B14: WHOLESALE TRADE | C14: 14 | D14: 60 | E14: 2496400 | F14: 41600
B15: RETAIL TRADE | C15: 57 | D15: 720 | E15: 13846400 | F15: 19200
B16: TRANSPORTATION AND WAREHOUSING | C16: 13 | D16: 110 | E16: 3492400 | F16: 31700
B17: INFORMATION | C17: 6 | D17: 50 | E17: 1773900 | F17: 35500
B18: FINANCE AND INSURANCE | C18: 24 | D18: 110 | E18: 5076100 | F18: 46100
B19: REAL ESTATE AND RENTAL AND LEASING | C19: 12 | D19: 80 | E19: 2300500 | F19: 28800
B20: PROFESSIONAL AND TECHNICAL SERVICES | C20: 27 | D20: 80 | E20: 2996000 | F20: 37500
B21: MANAGEMENT OF COMPANIES AND ENTERPRISES | C21: Confidential | D21: Confidential | E21: Confidential | F21: Confidential
B22: ADMINISTRATIVE AND WASTE SERVICES | C22: 10 | D22: 50 | E22: 1236900 | F22: 24700
B23: EDUCATIONAL SERVICES | C23: Confidential | D23: Confidential | E23: Confidential | F23: Confidential
B24: HEALTH CARE AND SOCIAL ASSISTANCE | C24: 30 | D24: 400 | E24: 10321000 | F24: 25800
B25: ARTS, ENTERTAINMENT, AND RECREATION | C25: 3 | D25: 20 | E25: 207000 | F25: 10400
B26: ACCOMMODATION AND FOOD SERVICES | C26: 42 | D26: 620 | E26: 7510500 | F26: 12100
B27: OTHER SERVICES, EXCEPT PUBLIC ADMIN | C27: 28 | D27: 90 | E27: 2476200 | F27: 27500
B28: UNCLASSIFIED | C28: Data included in Total UI Covered
A30: Local Government
B31: LOCAL GOVERNMENT | C31: 16 | D31: 1080 | E31: 35792000 | F31: 33100
B32: EDUCATIONAL SERVICES | C32: 3 | D32: 480 | E32: 14657100 | F32: 30500
B33: HEALTH CARE AND SOCIAL ASSISTANCE | C33: 1 | D33: 300 | E33: 12938700 | F33: 43100
A35: State Government
B36: STATE GOVERNMENT | C36: 13 | D36: 330 | E36: 12688300 | F36: 38400
B37: EDUCATIONAL SERVICES | C37: 0 | D37: 0 | E37: 0 | F37: 0
B38: HEALTH CARE AND SOCIAL ASSISTANCE | C38: 0 | D38: 0 | E38: 0 | F38: 0
A40: Total UI Covered
B41: TOTAL UI COVERED | C41: 377 | D41: 6380 | E41: 238416800 | F41: 37400
A43: Federal Government
B44: FEDERAL GOVERNMENT | C44: 8 | D44: 70 | E44: 3736600 | F44: 53400
A47: *Less than 5 employees unrounded
A75: Telephone: 800-784-0360 | E75: Released | F75: 2015-09-17T12:48:43.220

Sheet Pike (125)
B1: UI COVERED EMPLOYMENT
B2: Pike County
B3: 2014 Annual Averages
A7: NAICS Sectors/Ownership | C7: Number of Reporting Units | D7: Average Number of Workers | E7: Total Annual Wages | F7: Average Annual Wages
A8: Private Ownership Only | C8: not rounded | D8: rounded to tens | E8: rounded to hundreds | F8: rounded to hundreds
B9: AGRICULTURE, FORESTRY, FISHING AND HUNTI | C9: 4 | D9: 20 | E9: 785700 | F9: 39300
B10: MINING, QUARRYING, AND OIL AND GAS EXTRA | C10: 12 | D10: 410 | E10: 31394300 | F10: 76600
B11: UTILITIES | C11: Confidential | D11: Confidential | E11: Confidential | F11: Confidential
B12: CONSTRUCTION | C12: Confidential | D12: Confidential | E12: Confidential | F12: Confidential
B13: MANUFACTURING | C13: 5 | D13: 170 | E13: 9330400 | F13: 54900
B14: WHOLESALE TRADE | C14: 7 | D14: 90 | E14: 6493600 | F14: 72200
B15: RETAIL TRADE | C15: 33 | D15: 270 | E15: 4814800 | F15: 17800
B16: TRANSPORTATION AND WAREHOUSING | C16: 12 | D16: 210 | E16: 8329300 | F16: 39700
B17: INFORMATION | C17: 3 | D17: 30 | E17: 859000 | F17: 28600
B18: FINANCE AND INSURANCE | C18: 6 | D18: 40 | E18: 1599300 | F18: 40000
B19: REAL ESTATE AND RENTAL AND LEASING | C19: Confidential | D19: Confidential | E19: Confidential | F19: Confidential
B20: PROFESSIONAL AND TECHNICAL SERVICES | C20: 9 | D20: 20 | E20: 550100 | F20: 27500
B21: MANAGEMENT OF COMPANIES AND ENTERPRISES | C21: Confidential | D21: Confidential | E21: Confidential | F21: Confidential
B22: ADMINISTRATIVE AND WASTE SERVICES | C22: 12 | D22: 100 | E22: 2734600 | F22: 27300
B23: EDUCATIONAL SERVICES | C23: 0 | D23: 0 | E23: 0 | F23: 0
B24: HEALTH CARE AND SOCIAL ASSISTANCE | C24: 16 | D24: 290 | E24: 6992800 | F24: 24100
B25: ARTS, ENTERTAINMENT, AND RECREATION | C25: 4 | D25: 10 | E25: 156500 | F25: 15700
B26: ACCOMMODATION AND FOOD SERVICES | C26: 12 | D26: 140 | E26: 1406200 | F26: 10000
B27: OTHER SERVICES, EXCEPT PUBLIC ADMIN | C27: 21 | D27: 90 | E27: 3468200 | F27: 38500
B28: UNCLASSIFIED | C28: Data included in Total UI Covered
A30: Local Government
B31: LOCAL GOVERNMENT | C31: 14 | D31: 530 | E31: 15622700 | F31: 29500
B32: EDUCATIONAL SERVICES | C32: 1 | D32: 310 | E32: 10727000 | F32: 34600
B33: HEALTH CARE AND SOCIAL ASSISTANCE | C33: 0 | D33: 0 | E33: 0 | F33: 0
A35: State Government
B36: STATE GOVERNMENT | C36: 8 | D36: 50 | E36: 2032700 | F36: 40700
B37: EDUCATIONAL SERVICES | C37: 0 | D37: 0 | E37: 0 | F37: 0
B38: HEALTH CARE AND SOCIAL ASSISTANCE | C38: 0 | D38: 0 | E38: 0 | F38: 0
A40: Total UI Covered
B41: TOTAL UI COVERED | C41: 201 | D41: 3230 | E41: 163407800 | F41: 50600
A43: Federal Government
B44: FEDERAL GOVERNMENT | C44: 7 | D44: 30 | E44: 1301500 | F44: 43400
A47: *Less than 5 employees unrounded
A75: Telephone: 800-784-0360 | E75: Released | F75: 2015-09-17T12:49:02.720

Sheet Porter (127)
B1: UI COVERED EMPLOYMENT
B2: Porter County
B3: 2014 Annual Averages
A7: NAICS Sectors/Ownership | C7: Number of Reporting Units | D7: Average Number of Workers | E7: Total Annual Wages | F7: Average Annual Wages
A8: Private Ownership Only | C8: not rounded | D8: rounded to tens | E8: rounded to hundreds | F8: rounded to hundreds
B9: AGRICULTURE, FORESTRY, FISHING AND HUNTI | C9: 11 | D9: 50 | E9: 1184000 | F9: 23700
B10: MINING, QUARRYING, AND OIL AND GAS EXTRA | C10: Confidential | D10: Confidential | E10: Confidential | F10: Confidential
B11: UTILITIES | C11: Confidential | D11: Confidential | E11: Confidential | F11: Confidential
B12: CONSTRUCTION | C12: 374 | D12: 3530 | E12: 238648600 | F12: 67600
B13: MANUFACTURING | C13: 157 | D13: 9770 | E13: 664352000 | F13: 68000
B14: WHOLESALE TRADE | C14: 245 | D14: 2180 | E14: 122812900 | F14: 56300
B15: RETAIL TRADE | C15: 417 | D15: 7280 | E15: 174605900 | F15: 24000
B16: TRANSPORTATION AND WAREHOUSING | C16: 152 | D16: 1910 | E16: 91840100 | F16: 48100
B17: INFORMATION | C17: 36 | D17: 520 | E17: 24858600 | F17: 47800
B18: FINANCE AND INSURANCE | C18: 225 | D18: 1140 | E18: 57468900 | F18: 50400
B19: REAL ESTATE AND RENTAL AND LEASING | C19: 142 | D19: 580 | E19: 18562900 | F19: 32000
B20: PROFESSIONAL AND TECHNICAL SERVICES | C20: 380 | D20: 1640 | E20: 82066000 | F20: 50000
B21: MANAGEMENT OF COMPANIES AND ENTERPRISES | C21: 24 | D21: 230 | E21: 17648200 | F21: 76700
B22: ADMINISTRATIVE AND WASTE SERVICES | C22: 202 | D22: 2780 | E22: 95307800 | F22: 34300
B23: EDUCATIONAL SERVICES | C23: 36 | D23: 2510 | E23: 71863400 | F23: 28600
B24: HEALTH CARE AND SOCIAL ASSISTANCE | C24: 327 | D24: 8010 | E24: 336403100 | F24: 42000
B25: ARTS, ENTERTAINMENT, AND RECREATION | C25: 44 | D25: 480 | E25: 8701900 | F25: 18100
B26: ACCOMMODATION AND FOOD SERVICES | C26: 310 | D26: 6240 | E26: 82319500 | F26: 13200
B27: OTHER SERVICES, EXCEPT PUBLIC ADMIN | C27: 330 | D27: 2470 | E27: 58998400 | F27: 23900
B28: UNCLASSIFIED | C28: Data included in Total UI Covered
A30: Local Government
B31: LOCAL GOVERNMENT | C31: 72 | D31: 6160 | E31: 205737600 | F31: 33400
B32: EDUCATIONAL SERVICES | C32: 41 | D32: 3750 | E32: 126752800 | F32: 33800
B33: HEALTH CARE AND SOCIAL ASSISTANCE | C33: 0 | D33: 0 | E33: 0 | F33: 0
A35: State Government
B36: STATE GOVERNMENT | C36: 16 | D36: 230 | E36: 9106000 | F36: 39600
B37: EDUCATIONAL SERVICES | C37: 0 | D37: 0 | E37: 0 | F37: 0
B38: HEALTH CARE AND SOCIAL ASSISTANCE | C38: 0 | D38: 0 | E38: 0 | F38: 0
A40: Total UI Covered
B41: TOTAL UI COVERED | C41: 3504 | D41: 58010 | E41: 2394695700 | F41: 41300
A43: Federal Government
B44: FEDERAL GOVERNMENT | C44: 19 | D44: 420 | E44: 25288200 | F44: 60200
A47: *Less than 5 employees unrounded
A75: Telephone: 800-784-0360 | E75: Released | F75: 2015-09-17T12:50:15.180

Sheet Posey (129)
B1: UI COVERED EMPLOYMENT
B2: Posey County
B3: 2014 Annual Averages
A7: NAICS Sectors/Ownership | C7: Number of Reporting Units | D7: Average Number of Workers | E7: Total Annual Wages | F7: Average Annual Wages
A8: Private Ownership Only | C8: not rounded | D8: rounded to tens | E8: rounded to hundreds | F8: rounded to hundreds
B9: AGRICULTURE, FORESTRY, FISHING AND HUNTI | C9: 22 | D9: 90 | E9: 2917300 | F9: 32400
B10: MINING, QUARRYING, AND OIL AND GAS EXTRA | C10: 11 | D10: 50 | E10: 1868600 | F10: 37400
B11: UTILITIES | C11: Confidential | D11: Confidential | E11: Confidential | F11: Confidential
B12: CONSTRUCTION | C12: 81 | D12: 460 | E12: 22404000 | F12: 48700
B13: MANUFACTURING | C13: 32 | D13: 2640 | E13: 218967800 | F13: 82900
B14: WHOLESALE TRADE | C14: 22 | D14: 270 | E14: 13567900 | F14: 50300
B15: RETAIL TRADE | C15: 55 | D15: 730 | E15: 22510200 | F15: 30800
B16: TRANSPORTATION AND WAREHOUSING | C16: 28 | D16: 680 | E16: 30636000 | F16: 45100
B17: INFORMATION | C17: 5 | D17: 20 | E17: 436200 | F17: 21800
B18: FINANCE AND INSURANCE | C18: 19 | D18: 160 | E18: 8490500 | F18: 53100
B19: REAL ESTATE AND RENTAL AND LEASING | C19: 12 | D19: 40 | E19: 1098400 | F19: 27500
B20: PROFESSIONAL AND TECHNICAL SERVICES | C20: 38 | D20: 290 | E20: 18686400 | F20: 64400
B21: MANAGEMENT OF COMPANIES AND ENTERPRISES | C21: Confidential | D21: Confidential | E21: Confidential | F21: Confidential
B22: ADMINISTRATIVE AND WASTE SERVICES | C22: 25 | D22: 330 | E22: 9893200 | F22: 30000
B23: EDUCATIONAL SERVICES | C23: 5 | D23: 80 | E23: 1352300 | F23: 16900
B24: HEALTH CARE AND SOCIAL ASSISTANCE | C24: 24 | D24: 350 | E24: 9082300 | F24: 25900
B25: ARTS, ENTERTAINMENT, AND RECREATION | C25: Confidential | D25: Confidential | E25: Confidential | F25: Confidential
B26: ACCOMMODATION AND FOOD SERVICES | C26: 31 | D26: 510 | E26: 6822900 | F26: 13400
B27: OTHER SERVICES, EXCEPT PUBLIC ADMIN | C27: 41 | D27: 160 | E27: 4724000 | F27: 29500
B28: UNCLASSIFIED | C28: Data included in Total UI Covered
A30: Local Government
B31: LOCAL GOVERNMENT | C31: 19 | D31: 1030 | E31: 31863900 | F31: 30900
B32: EDUCATIONAL SERVICES | C32: 2 | D32: 610 | E32: 20885200 | F32: 34200
B33: HEALTH CARE AND SOCIAL ASSISTANCE | C33: 0 | D33: 0 | E33: 0 | F33: 0
A35: State Government
B36: STATE GOVERNMENT | C36: 10 | D36: 80 | E36: 2695400 | F36: 33700
B37: EDUCATIONAL SERVICES | C37: 0 | D37: 0 | E37: 0 | F37: 0
B38: HEALTH CARE AND SOCIAL ASSISTANCE | C38: 0 | D38: 0 | E38: 0 | F38: 0
A40: Total UI Covered
B41: TOTAL UI COVERED | C41: 485 | D41: 8110 | E41: 418880500 | F41: 51600
A43: Federal Government
B44: FEDERAL GOVERNMENT | C44: 10 | D44: 60 | E44: 3342800 | F44: 55700
A47: *Less than 5 employees unrounded
A75: Telephone: 800-784-0360 | E75: Released | F75: 2015-09-17T12:50:44.110

Sheet Pulaski (131)
B1: UI COVERED EMPLOYMENT
B2: Pulaski County
B3: 2014 Annual Averages
A7: NAICS Sectors/Ownership | C7: Number of Reporting Units | D7: Average Number of Workers | E7: Total Annual Wages | F7: Average Annual Wages
A8: Private Ownership Only | C8: not rounded | D8: rounded to tens | E8: rounded to hundreds | F8: rounded to hundreds
B9: AGRICULTURE, FORESTRY, FISHING AND HUNTI | C9: 22 | D9: 370 | E9: 12239400 | F9: 33100
B10: MINING, QUARRYING, AND OIL AND GAS EXTRA | C10: Confidential | D10: Confidential | E10: Confidential | F10: Confidential
B11: UTILITIES | C11: 0 | D11: 0 | E11: 0 | F11: 0
B12: CONSTRUCTION | C12: 30 | D12: 130 | E12: 4435900 | F12: 34100
B13: MANUFACTURING | C13: 21 | D13: 1320 | E13: 62046900 | F13: 47000
B14: WHOLESALE TRADE | C14: 25 | D14: 240 | E14: 10893800 | F14: 45400
B15: RETAIL TRADE | C15: 56 | D15: 440 | E15: 9976800 | F15: 22700
B16: TRANSPORTATION AND WAREHOUSING | C16: 24 | D16: 110 | E16: 4565600 | F16: 41500
B17: INFORMATION | C17: Confidential | D17: Confidential | E17: Confidential | F17: Confidential
B18: FINANCE AND INSURANCE | C18: 19 | D18: 150 | E18: 6709000 | F18: 44700
B19: REAL ESTATE AND RENTAL AND LEASING | C19: 7 | D19: 10 | E19: 110100 | F19: 11000
B20: PROFESSIONAL AND TECHNICAL SERVICES | C20: 22 | D20: 70 | E20: 2223900 | F20: 31800
B21: MANAGEMENT OF COMPANIES AND ENTERPRISES | C21: Confidential | D21: Confidential | E21: Confidential | F21: Confidential
B22: ADMINISTRATIVE AND WASTE SERVICES | C22: 4 | D22: 20 | E22: 455100 | F22: 22800
B23: EDUCATIONAL SERVICES | C23: Confidential | D23: Confidential | E23: Confidential | F23: Confidential
B24: HEALTH CARE AND SOCIAL ASSISTANCE | C24: 21 | D24: 330 | E24: 9416200 | F24: 28500
B25: ARTS, ENTERTAINMENT, AND RECREATION | C25: 5 | D25: 20 | E25: 118300 | F25: 5900
B26: ACCOMMODATION AND FOOD SERVICES | C26: 21 | D26: 160 | E26: 1509700 | F26: 9400
B27: OTHER SERVICES, EXCEPT PUBLIC ADMIN | C27: 26 | D27: 90 | E27: 2328900 | F27: 25900
B28: UNCLASSIFIED | C28: Data included in Total UI Covered
A30: Local Government
B31: LOCAL GOVERNMENT | C31: 11 | D31: 910 | E31: 30449400 | F31: 33500
B32: EDUCATIONAL SERVICES | C32: 2 | D32: 410 | E32: 11548100 | F32: 28200
B33: HEALTH CARE AND SOCIAL ASSISTANCE | C33: 1 | D33: 240 | E33: 12592200 | F33: 52500
A35: State Government
B36: STATE GOVERNMENT | C36: 10 | D36: 90 | E36: 3257400 | F36: 36200
B37: EDUCATIONAL SERVICES | C37: 0 | D37: 0 | E37: 0 | F37: 0
B38: HEALTH CARE AND SOCIAL ASSISTANCE | C38: 0 | D38: 0 | E38: 0 | F38: 0
A40: Total UI Covered
B41: TOTAL UI COVERED | C41: 330 | D41: 4500 | E41: 163561800 | F41: 36300
A43: Federal Government
B44: FEDERAL GOVERNMENT | C44: 8 | D44: 40 | E44: 1659800 | F44: 41500
A47: *Less than 5 employees unrounded
A75: Telephone: 800-784-0360 | E75: Released | F75: 2015-09-17T12:51:13.980

Sheet Putnam (133)
B1: UI COVERED EMPLOYMENT
B2: Putnam County
B3: 2014 Annual Averages
A7: NAICS Sectors/Ownership | C7: Number of Reporting Units | D7: Average Number of Workers | E7: Total Annual Wages | F7: Average Annual Wages
A8: Private Ownership Only | C8: not rounded | D8: rounded to tens | E8: rounded to hundreds | F8: rounded to hundreds
B9: AGRICULTURE, FORESTRY, FISHING AND HUNTI | C9: 16 | D9: 80 | E9: 2120200 | F9: 26500
B10: MINING, QUARRYING, AND OIL AND GAS EXTRA | C10: 7 | D10: 60 | E10: 3409000 | F10: 56800
B11: UTILITIES | C11: 5 | D11: 30 | E11: 2132400 | F11: 71100
B12: CONSTRUCTION | C12: 83 | D12: 330 | E12: 12095300 | F12: 36700
B13: MANUFACTURING | C13: 25 | D13: 2450 | E13: 108195000 | F13: 44200
B14: WHOLESALE TRADE | C14: 23 | D14: 160 | E14: 7679700 | F14: 48000
B15: RETAIL TRADE | C15: 91 | D15: 1130 | E15: 25209700 | F15: 22300
B16: TRANSPORTATION AND WAREHOUSING | C16: 31 | D16: 910 | E16: 38294000 | F16: 42100
B17: INFORMATION | C17: 9 | D17: 150 | E17: 7259200 | F17: 48400
B18: FINANCE AND INSURANCE | C18: 40 | D18: 250 | E18: 10769800 | F18: 43100
B19: REAL ESTATE AND RENTAL AND LEASING | C19: 22 | D19: 80 | E19: 1496700 | F19: 18700
B20: PROFESSIONAL AND TECHNICAL SERVICES | C20: 42 | D20: 150 | E20: 5735000 | F20: 38200
B21: MANAGEMENT OF COMPANIES AND ENTERPRISES | C21: Confidential | D21: Confidential | E21: Confidential | F21: Confidential
B22: ADMINISTRATIVE AND WASTE SERVICES | C22: 30 | D22: 690 | E22: 18001200 | F22: 26100
B23: EDUCATIONAL SERVICES | C23: Confidential | D23: Confidential | E23: Confidential | F23: Confidential
B24: HEALTH CARE AND SOCIAL ASSISTANCE | C24: 46 | D24: 1220 | E24: 29589100 | F24: 24300
B25: ARTS, ENTERTAINMENT, AND RECREATION | C25: 9 | D25: 40 | E25: 746500 | F25: 18700
B26: ACCOMMODATION AND FOOD SERVICES | C26: 69 | D26: 1050 | E26: 13384400 | F26: 12700
B27: OTHER SERVICES, EXCEPT PUBLIC ADMIN | C27: 60 | D27: 270 | E27: 6155500 | F27: 22800
B28: UNCLASSIFIED | C28: Data included in Total UI Covered
A30: Local Government
B31: LOCAL GOVERNMENT | C31: 33 | D31: 1730 | E31: 50948400 | F31: 29400
B32: EDUCATIONAL SERVICES | C32: 10 | D32: 950 | E32: 27907500 | F32: 29400
B33: HEALTH CARE AND SOCIAL ASSISTANCE | C33: 1 | D33: 320 | E33: 10723300 | F33: 33500
A35: State Government
B36: STATE GOVERNMENT | C36: 19 | D36: 640 | E36: 22508200 | F36: 35200
B37: EDUCATIONAL SERVICES | C37: 0 | D37: 0 | E37: 0 | F37: 0
B38: HEALTH CARE AND SOCIAL ASSISTANCE | C38: 0 | D38: 0 | E38: 0 | F38: 0
A40: Total UI Covered
B41: TOTAL UI COVERED | C41: 668 | D41: 12260 | E41: 405102100 | F41: 33000
A43: Federal Government
B44: FEDERAL GOVERNMENT | C44: 11 | D44: 80 | E44: 3666100 | F44: 45800
A47: *Less than 5 employees unrounded
A75: Telephone: 800-784-0360 | E75: Released | F75: 2015-09-17T12:52:40.570

Sheet Randolph (135)
B1: UI COVERED EMPLOYMENT
B2: Randolph County
B3: 2014 Annual Averages
A7: NAICS Sectors/Ownership | C7: Number of Reporting Units | D7: Average Number of Workers | E7: Total Annual Wages | F7: Average Annual Wages
A8: Private Ownership Only | C8: not rounded | D8: rounded to tens | E8: rounded to hundreds | F8: rounded to hundreds
B9: AGRICULTURE, FORESTRY, FISHING AND HUNTI | C9: 17 | D9: 200 | E9: 6407400 | F9: 32000
B10: MINING, QUARRYING, AND OIL AND GAS EXTRA | C10: Confidential | D10: Confidential | E10: Confidential | F10: Confidential
B11: UTILITIES | C11: Confidential | D11: Confidential | E11: Confidential | F11: Confidential
B12: CONSTRUCTION | C12: 42 | D12: 380 | E12: 17314000 | F12: 45600
B13: MANUFACTURING | C13: 44 | D13: 2070 | E13: 93416000 | F13: 45100
B14: WHOLESALE TRADE | C14: 27 | D14: 270 | E14: 10263400 | F14: 38000
B15: RETAIL TRADE | C15: 69 | D15: 530 | E15: 10357000 | F15: 19500
B16: TRANSPORTATION AND WAREHOUSING | C16: 34 | D16: 180 | E16: 7057700 | F16: 39200
B17: INFORMATION | C17: 3 | D17: 50 | E17: 1102100 | F17: 22000
B18: FINANCE AND INSURANCE | C18: 25 | D18: 150 | E18: 4894400 | F18: 32600
B19: REAL ESTATE AND RENTAL AND LEASING | C19: 5 | D19: 10 | E19: 263500 | F19: 26400
B20: PROFESSIONAL AND TECHNICAL SERVICES | C20: 34 | D20: 120 | E20: 5209600 | F20: 43400
B21: MANAGEMENT OF COMPANIES AND ENTERPRISES | C21: 0 | D21: 0 | E21: 0 | F21: 0
B22: ADMINISTRATIVE AND WASTE SERVICES | C22: 20 | D22: 660 | E22: 23535700 | F22: 35700
B23: EDUCATIONAL SERVICES | C23: Confidential | D23: Confidential | E23: Confidential | F23: Confidential
B24: HEALTH CARE AND SOCIAL ASSISTANCE | C24: 31 | D24: 630 | E24: 18590500 | F24: 29500
B25: ARTS, ENTERTAINMENT, AND RECREATION | C25: 12 | D25: 160 | E25: 3252400 | F25: 20300
B26: ACCOMMODATION AND FOOD SERVICES | C26: 36 | D26: 470 | E26: 5357800 | F26: 11400
B27: OTHER SERVICES, EXCEPT PUBLIC ADMIN | C27: 39 | D27: 150 | E27: 2750900 | F27: 18300
B28: UNCLASSIFIED | C28: Data included in Total UI Covered
A30: Local Government
B31: LOCAL GOVERNMENT | C31: 34 | D31: 1110 | E31: 30731500 | F31: 27700
B32: EDUCATIONAL SERVICES | C32: 10 | D32: 740 | E32: 21994300 | F32: 29700
B33: HEALTH CARE AND SOCIAL ASSISTANCE | C33: 0 | D33: 0 | E33: 0 | F33: 0
A35: State Government
B36: STATE GOVERNMENT | C36: 8 | D36: 80 | E36: 2575300 | F36: 32200
B37: EDUCATIONAL SERVICES | C37: 0 | D37: 0 | E37: 0 | F37: 0
B38: HEALTH CARE AND SOCIAL ASSISTANCE | C38: 0 | D38: 0 | E38: 0 | F38: 0
A40: Total UI Covered
B41: TOTAL UI COVERED | C41: 489 | D41: 7310 | E41: 247636000 | F41: 33900
A43: Federal Government
B44: FEDERAL GOVERNMENT | C44: 11 | D44: 60 | E44: 2609500 | F44: 43500
A47: *Less than 5 employees unrounded
A75: Telephone: 800-784-0360 | E75: Released | F75: 2015-09-17T12:53:03.630

Sheet Ripley (137)
B1: UI COVERED EMPLOYMENT
B2: Ripley County
B3: 2014 Annual Averages
A7: NAICS Sectors/Ownership | C7: Number of Reporting Units | D7: Average Number of Workers | E7: Total Annual Wages | F7: Average Annual Wages
A8: Private Ownership Only | C8: not rounded | D8: rounded to tens | E8: rounded to hundreds | F8: rounded to hundreds
B9: AGRICULTURE, FORESTRY, FISHING AND HUNTI | C9: 18 | D9: 140 | E9: 3631300 | F9: 25900
B10: MINING, QUARRYING, AND OIL AND GAS EXTRA | C10: 3 | D10: 30 | E10: 1204200 | F10: 40100
B11: UTILITIES | C11: 6 | D11: 100 | E11: 5950600 | F11: 59500
B12: CONSTRUCTION | C12: 81 | D12: 440 | E12: 16621300 | F12: 37800
B13: MANUFACTURING | C13: 49 | D13: 2010 | E13: 95195500 | F13: 47400
B14: WHOLESALE TRADE | C14: 27 | D14: 130 | E14: 6051900 | F14: 46600
B15: RETAIL TRADE | C15: 104 | D15: 850 | E15: 20863400 | F15: 24500
B16: TRANSPORTATION AND WAREHOUSING | C16: 33 | D16: 770 | E16: 36420100 | F16: 47300
B17: INFORMATION | C17: 8 | D17: 130 | E17: 6461800 | F17: 49700
B18: FINANCE AND INSURANCE | C18: 46 | D18: 500 | E18: 35444600 | F18: 70900
B19: REAL ESTATE AND RENTAL AND LEASING | C19: 17 | D19: 30 | E19: 683900 | F19: 22800
B20: PROFESSIONAL AND TECHNICAL SERVICES | C20: 39 | D20: 290 | E20: 15379500 | F20: 53000
B21: MANAGEMENT OF COMPANIES AND ENTERPRISES | C21: 11 | D21: 1410 | E21: 121961500 | F21: 86500
B22: ADMINISTRATIVE AND WASTE SERVICES | C22: Confidential | D22: Confidential | E22: Confidential | F22: Confidential
B23: EDUCATIONAL SERVICES | C23: Confidential | D23: Confidential | E23: Confidential | F23: Confidential
B24: HEALTH CARE AND SOCIAL ASSISTANCE | C24: 62 | D24: 1390 | E24: 52419900 | F24: 37700
B25: ARTS, ENTERTAINMENT, AND RECREATION | C25: 7 | D25: 100 | E25: 1492600 | F25: 14900
B26: ACCOMMODATION AND FOOD SERVICES | C26: 53 | D26: 800 | E26: 9428000 | F26: 11800
B27: OTHER SERVICES, EXCEPT PUBLIC ADMIN | C27: 69 | D27: 330 | E27: 6897600 | F27: 20900
B28: UNCLASSIFIED | C28: Data included in Total UI Covered
A30: Local Government
B31: LOCAL GOVERNMENT | C31: 30 | D31: 1160 | E31: 34832200 | F31: 30000
B32: EDUCATIONAL SERVICES | C32: 8 | D32: 750 | E32: 24191200 | F32: 32300
B33: HEALTH CARE AND SOCIAL ASSISTANCE | C33: 2 | D33: * | E33: 289000 | F33: *
A35: State Government
B36: STATE GOVERNMENT | C36: 14 | D36: 120 | E36: 4572600 | F36: 38100
B37: EDUCATIONAL SERVICES | C37: 0 | D37: 0 | E37: 0 | F37: 0
B38: HEALTH CARE AND SOCIAL ASSISTANCE | C38: 0 | D38: 0 | E38: 0 | F38: 0
A40: Total UI Covered
B41: TOTAL UI COVERED | C41: 698 | D41: 11750 | E41: 505258200 | F41: 43000
A43: Federal Government
B44: FEDERAL GOVERNMENT | C44: 14 | D44: 70 | E44: 3364200 | F44: 48100
A47: *Less than 5 employees unrounded
A75: Telephone: 800-784-0360 | E75: Released | F75: 2015-09-17T12:53:28.050

Sheet Rush (139)
B1: UI COVERED EMPLOYMENT
B2: Rush County
B3: 2014 Annual Averages
A7: NAICS Sectors/Ownership | C7: Number of Reporting Units | D7: Average Number of Workers | E7: Total Annual Wages | F7: Average Annual Wages
A8: Private Ownership Only | C8: not rounded | D8: rounded to tens | E8: rounded to hundreds | F8: rounded to hundreds
B9: AGRICULTURE, FORESTRY, FISHING AND HUNTI | C9: 13 | D9: 150 | E9: 5607600 | F9: 37400
B10: MINING, QUARRYING, AND OIL AND GAS EXTRA | C10: Confidential | D10: Confidential | E10: Confidential | F10: Confidential
B11: UTILITIES | C11: Confidential | D11: Confidential | E11: Confidential | F11: Confidential
B12: CONSTRUCTION | C12: 38 | D12: 210 | E12: 7160800 | F12: 34100
B13: MANUFACTURING | C13: 28 | D13: 1040 | E13: 53049500 | F13: 51000
B14: WHOLESALE TRADE | C14: 24 | D14: 190 | E14: 6961200 | F14: 36600
B15: RETAIL TRADE | C15: 53 | D15: 520 | E15: 12900300 | F15: 24800
B16: TRANSPORTATION AND WAREHOUSING | C16: 23 | D16: 320 | E16: 13881400 | F16: 43400
B17: INFORMATION | C17: 4 | D17: 60 | E17: 2037800 | F17: 34000
B18: FINANCE AND INSURANCE | C18: 19 | D18: 110 | E18: 4816900 | F18: 43800
B19: REAL ESTATE AND RENTAL AND LEASING | C19: 11 | D19: 20 | E19: 521200 | F19: 26100
B20: PROFESSIONAL AND TECHNICAL SERVICES | C20: 33 | D20: 110 | E20: 3291000 | F20: 29900
B21: MANAGEMENT OF COMPANIES AND ENTERPRISES | C21: Confidential | D21: Confidential | E21: Confidential | F21: Confidential
B22: ADMINISTRATIVE AND WASTE SERVICES | C22: 11 | D22: 110 | E22: 3149600 | F22: 28600
B23: EDUCATIONAL SERVICES | C23: 0 | D23: 0 | E23: 0 | F23: 0
B24: HEALTH CARE AND SOCIAL ASSISTANCE | C24: 27 | D24: 260 | E24: 8301100 | F24: 31900
B25: ARTS, ENTERTAINMENT, AND RECREATION | C25: 3 | D25: 20 | E25: 373400 | F25: 18700
B26: ACCOMMODATION AND FOOD SERVICES | C26: 23 | D26: 310 | E26: 3778100 | F26: 12200
B27: OTHER SERVICES, EXCEPT PUBLIC ADMIN | C27: 31 | D27: 130 | E27: 2621800 | F27: 20200
B28: UNCLASSIFIED | C28: Data included in Total UI Covered
A30: Local Government
B31: LOCAL GOVERNMENT | C31: 23 | D31: 970 | E31: 31870600 | F31: 32900
B32: EDUCATIONAL SERVICES | C32: 11 | D32: 410 | E32: 12502600 | F32: 30500
B33: HEALTH CARE AND SOCIAL ASSISTANCE | C33: 1 | D33: 310 | E33: 12579100 | F33: 40600
A35: State Government
B36: STATE GOVERNMENT | C36: 13 | D36: 90 | E36: 3780600 | F36: 42000
B37: EDUCATIONAL SERVICES | C37: 0 | D37: 0 | E37: 0 | F37: 0
B38: HEALTH CARE AND SOCIAL ASSISTANCE | C38: 0 | D38: 0 | E38: 0 | F38: 0
A40: Total UI Covered
B41: TOTAL UI COVERED | C41: 381 | D41: 4720 | E41: 168937600 | F41: 35800
A43: Federal Government
B44: FEDERAL GOVERNMENT | C44: 7 | D44: 40 | E44: 1864200 | F44: 46600
A47: *Less than 5 employees unrounded
A75: Telephone: 800-784-0360 | E75: Released | F75: 2015-09-17T12:53:48.010

Sheet St. Joseph (141)
B1: UI COVERED EMPLOYMENT
B2: St. Joseph County
B3: 2014 Annual Averages
A7: NAICS Sectors/Ownership | C7: Number of Reporting Units | D7: Average Number of Workers | E7: Total Annual Wages | F7: Average Annual Wages
A8: Private Ownership Only | C8: not rounded | D8: rounded to tens | E8: rounded to hundreds | F8: rounded to hundreds
B9: AGRICULTURE, FORESTRY, FISHING AND HUNTI | C9: 28 | D9: 170 | E9: 5512300 | F9: 32400
B10: MINING, QUARRYING, AND OIL AND GAS EXTRA | C10: 4 | D10: 10 | E10: 541700 | F10: 54200
B11: UTILITIES | C11: 5 | D11: 320 | E11: 25415700 | F11: 79400
B12: CONSTRUCTION | C12: 448 | D12: 3950 | E12: 202216300 | F12: 51200
B13: MANUFACTURING | C13: 369 | D13: 14830 | E13: 783386800 | F13: 52800
B14: WHOLESALE TRADE | C14: 427 | D14: 5430 | E14: 293095300 | F14: 54000
B15: RETAIL TRADE | C15: 861 | D15: 14010 | E15: 334063700 | F15: 23800
B16: TRANSPORTATION AND WAREHOUSING | C16: 161 | D16: 2840 | E16: 119533900 | F16: 42100
B17: INFORMATION | C17: 84 | D17: 1690 | E17: 85627600 | F17: 50700
B18: FINANCE AND INSURANCE | C18: 334 | D18: 3360 | E18: 220116100 | F18: 65500
B19: REAL ESTATE AND RENTAL AND LEASING | C19: 212 | D19: 1530 | E19: 59192000 | F19: 38700
B20: PROFESSIONAL AND TECHNICAL SERVICES | C20: 539 | D20: 4040 | E20: 215848900 | F20: 53400
B21: MANAGEMENT OF COMPANIES AND ENTERPRISES | C21: 43 | D21: 2030 | E21: 182713400 | F21: 90000
B22: ADMINISTRATIVE AND WASTE SERVICES | C22: 309 | D22: 5370 | E22: 128132500 | F22: 23900
B23: EDUCATIONAL SERVICES | C23: 66 | D23: 10450 | E23: 520872500 | F23: 49800
B24: HEALTH CARE AND SOCIAL ASSISTANCE | C24: 520 | D24: 19120 | E24: 812200400 | F24: 42500
B25: ARTS, ENTERTAINMENT, AND RECREATION | C25: 75 | D25: 1050 | E25: 18984900 | F25: 18100
B26: ACCOMMODATION AND FOOD SERVICES | C26: 553 | D26: 10790 | E26: 152855500 | F26: 14200
B27: OTHER SERVICES, EXCEPT PUBLIC ADMIN | C27: 594 | D27: 3700 | E27: 110167300 | F27: 29800
B28: UNCLASSIFIED | C28: Data included in Total UI Covered
A30: Local Government
B31: LOCAL GOVERNMENT | C31: 45 | D31: 9700 | E31: 354282200 | F31: 36500
B32: EDUCATIONAL SERVICES | C32: 11 | D32: 5580 | E32: 192777100 | F32: 34500
B33: HEALTH CARE AND SOCIAL ASSISTANCE | C33: 0 | D33: 0 | E33: 0 | F33: 0
A35: State Government
B36: STATE GOVERNMENT | C36: 21 | D36: 2020 | E36: 67612400 | F36: 33500
B37: EDUCATIONAL SERVICES | C37: 2 | D37: 1550 | E37: 49390400 | F37: 31900
B38: HEALTH CARE AND SOCIAL ASSISTANCE | C38: 0 | D38: 0 | E38: 0 | F38: 0
A40: Total UI Covered
B41: TOTAL UI COVERED | C41: 5697 | D41: 116410 | E41: 4692383500 | F41: 40300
A43: Federal Government
B44: FEDERAL GOVERNMENT | C44: 36 | D44: 880 | E44: 59325700 | F44: 67400
A47: *Less than 5 employees unrounded
A75: Telephone: 800-784-0360 | E75: Released | F75: 2015-09-17T12:54:09.840

Sheet Scott (143)
B1: UI COVERED EMPLOYMENT
B2: Scott County
B3: 2014 Annual Averages
A7: NAICS Sectors/Ownership | C7: Number of Reporting Units | D7: Average Number of Workers | E7: Total Annual Wages | F7: Average Annual Wages
A8: Private Ownership Only | C8: not rounded | D8: rounded to tens | E8: rounded to hundreds | F8: rounded to hundreds
B9: AGRICULTURE, FORESTRY, FISHING AND HUNTI | C9: 3 | D9: 10 | E9: 323900 | F9: 32400
B10: MINING, QUARRYING, AND OIL AND GAS EXTRA | C10: 3 | D10: 10 | E10: 835100 | F10: 83500
B11: UTILITIES | C11: Confidential | D11: Confidential | E11: Confidential | F11: Confidential
B12: CONSTRUCTION | C12: 26 | D12: 130 | E12: 4213600 | F12: 32400
B13: MANUFACTURING | C13: 26 | D13: 1830 | E13: 87821600 | F13: 48000
B14: WHOLESALE TRADE | C14: 17 | D14: 130 | E14: 6265300 | F14: 48200
B15: RETAIL TRADE | C15: 79 | D15: 990 | E15: 21888600 | F15: 22100
B16: TRANSPORTATION AND WAREHOUSING | C16: 11 | D16: 90 | E16: 3752200 | F16: 41700
B17: INFORMATION | C17: 5 | D17: 30 | E17: 789800 | F17: 26300
B18: FINANCE AND INSURANCE | C18: 22 | D18: 120 | E18: 5580600 | F18: 46500
B19: REAL ESTATE AND RENTAL AND LEASING | C19: 21 | D19: 70 | E19: 1762900 | F19: 25200
B20: PROFESSIONAL AND TECHNICAL SERVICES | C20: 26 | D20: 120 | E20: 5253800 | F20: 43800
B21: MANAGEMENT OF COMPANIES AND ENTERPRISES | C21: 0 | D21: 0 | E21: 0 | F21: 0
B22: ADMINISTRATIVE AND WASTE SERVICES | C22: 20 | D22: 640 | E22: 14775900 | F22: 23100
B23: EDUCATIONAL SERVICES | C23: Confidential | D23: Confidential | E23: Confidential | F23: Confidential
B24: HEALTH CARE AND SOCIAL ASSISTANCE | C24: 45 | D24: 1050 | E24: 30047800 | F24: 28600
B25: ARTS, ENTERTAINMENT, AND RECREATION | C25: 3 | D25: 20 | E25: 211200 | F25: 10600
B26: ACCOMMODATION AND FOOD SERVICES | C26: 38 | D26: 780 | E26: 10173400 | F26: 13000
B27: OTHER SERVICES, EXCEPT PUBLIC ADMIN | C27: 24 | D27: 140 | E27: 2736100 | F27: 19500
B28: UNCLASSIFIED | C28: Data included in Total UI Covered
A30: Local Government
B31: LOCAL GOVERNMENT | C31: 14 | D31: 950 | E31: 30609800 | F31: 32200
B32: EDUCATIONAL SERVICES | C32: 2 | D32: 630 | E32: 20487900 | F32: 32500
B33: HEALTH CARE AND SOCIAL ASSISTANCE | C33: 1 | D33: * | E33: 284500 | F33: *
A35: State Government
B36: STATE GOVERNMENT | C36: 11 | D36: 100 | E36: 3443200 | F36: 34400
B37: EDUCATIONAL SERVICES | C37: 0 | D37: 0 | E37: 0 | F37: 0
B38: HEALTH CARE AND SOCIAL ASSISTANCE | C38: 0 | D38: 0 | E38: 0 | F38: 0
A40: Total UI Covered
B41: TOTAL UI COVERED | C41: 397 | D41: 7270 | E41: 232330100 | F41: 32000
A43: Federal Government
B44: FEDERAL GOVERNMENT | C44: 8 | D44: 70 | E44: 4351500 | F44: 62200
A47: *Less than 5 employees unrounded
A75: Telephone: 800-784-0360 | E75: Released | F75: 2015-09-17T12:54:42.180

Sheet Shelby (145)
B1: UI COVERED EMPLOYMENT
B2: Shelby County
B3: 2014 Annual Averages
A7: NAICS Sectors/Ownership | C7: Number of Reporting Units | D7: Average Number of Workers | E7: Total Annual Wages | F7: Average Annual Wages
A8: Private Ownership Only | C8: not rounded | D8: rounded to tens | E8: rounded to hundreds | F8: rounded to hundreds
B9: AGRICULTURE, FORESTRY, FISHING AND HUNTI | C9: 22 | D9: 170 | E9: 5248400 | F9: 30900
B10: MINING, QUARRYING, AND OIL AND GAS EXTRA | C10: 6 | D10: 60 | E10: 3128400 | F10: 52100
B11: UTILITIES | C11: 4 | D11: 40 | E11: 2934400 | F11: 73400
B12: CONSTRUCTION | C12: 104 | D12: 770 | E12: 34881900 | F12: 45300
B13: MANUFACTURING | C13: 75 | D13: 4900 | E13: 252852200 | F13: 51600
B14: WHOLESALE TRADE | C14: 51 | D14: 560 | E14: 27838000 | F14: 49700
B15: RETAIL TRADE | C15: 128 | D15: 1500 | E15: 38628900 | F15: 25800
B16: TRANSPORTATION AND WAREHOUSING | C16: 45 | D16: 1310 | E16: 55417200 | F16: 42300
B17: INFORMATION | C17: 11 | D17: 100 | E17: 2901100 | F17: 29000
B18: FINANCE AND INSURANCE | C18: 48 | D18: 190 | E18: 8381600 | F18: 44100
B19: REAL ESTATE AND RENTAL AND LEASING | C19: 43 | D19: 160 | E19: 4813600 | F19: 30100
B20: PROFESSIONAL AND TECHNICAL SERVICES | C20: 66 | D20: 200 | E20: 9987100 | F20: 49900
B21: MANAGEMENT OF COMPANIES AND ENTERPRISES | C21: 3 | D21: 20 | E21: 599400 | F21: 30000
B22: ADMINISTRATIVE AND WASTE SERVICES | C22: 51 | D22: 1200 | E22: 28525300 | F22: 23800
B23: EDUCATIONAL SERVICES | C23: Confidential | D23: Confidential | E23: Confidential | F23: Confidential
B24: HEALTH CARE AND SOCIAL ASSISTANCE | C24: 77 | D24: 1280 | E24: 55071600 | F24: 43000
B25: ARTS, ENTERTAINMENT, AND RECREATION | C25: Confidential | D25: Confidential | E25: Confidential | F25: Confidential
B26: ACCOMMODATION AND FOOD SERVICES | C26: 69 | D26: 1280 | E26: 15748000 | F26: 12300
B27: OTHER SERVICES, EXCEPT PUBLIC ADMIN | C27: 64 | D27: 350 | E27: 8963600 | F27: 25600
B28: UNCLASSIFIED | C28: Data included in Total UI Covered
A30: Local Government
B31: LOCAL GOVERNMENT | C31: 22 | D31: 2230 | E31: 82735600 | F31: 37100
B32: EDUCATIONAL SERVICES | C32: 9 | D32: 1010 | E32: 32027000 | F32: 31700
B33: HEALTH CARE AND SOCIAL ASSISTANCE | C33: 1 | D33: 670 | E33: 32245000 | F33: 48100
A35: State Government
B36: STATE GOVERNMENT | C36: 16 | D36: 100 | E36: 4197500 | F36: 42000
B37: EDUCATIONAL SERVICES | C37: 0 | D37: 0 | E37: 0 | F37: 0
B38: HEALTH CARE AND SOCIAL ASSISTANCE | C38: 0 | D38: 0 | E38: 0 | F38: 0
A40: Total UI Covered
B41: TOTAL UI COVERED | C41: 917 | D41: 17440 | E41: 669601700 | F41: 38400
A43: Federal Government
B44: FEDERAL GOVERNMENT | C44: 9 | D44: 130 | E44: 7383700 | F44: 56800
A47: *Less than 5 employees unrounded
A75: Telephone: 800-784-0360 | E75: Released | F75: 2015-09-17T12:55:19.690

Sheet Spencer (147)
B1: UI COVERED EMPLOYMENT
B2: Spencer County
B3: 2014 Annual Averages
A7: NAICS Sectors/Ownership | C7: Number of Reporting Units | D7: Average Number of Workers | E7: Total Annual Wages | F7: Average Annual Wages
A8: Private Ownership Only | C8: not rounded | D8: rounded to tens | E8: rounded to hundreds | F8: rounded to hundreds
B9: AGRICULTURE, FORESTRY, FISHING AND HUNTI | C9: 22 | D9: 100 | E9: 3476400 | F9: 34800
B10: MINING, QUARRYING, AND OIL AND GAS EXTRA | C10: 3 | D10: 10 | E10: 190700 | F10: 19100
B11: UTILITIES | C11: Confidential | D11: Confidential | E11: Confidential | F11: Confidential
B12: CONSTRUCTION | C12: 48 | D12: 240 | E12: 8959000 | F12: 37300
B13: MANUFACTURING | C13: 20 | D13: 1150 | E13: 58813100 | F13: 51100
B14: WHOLESALE TRADE | C14: 33 | D14: 380 | E14: 15510500 | F14: 40800
B15: RETAIL TRADE | C15: 52 | D15: 420 | E15: 10186800 | F15: 24300
B16: TRANSPORTATION AND WAREHOUSING | C16: 34 | D16: 270 | E16: 10773100 | F16: 39900
B17: INFORMATION | C17: 4 | D17: 90 | E17: 4928900 | F17: 54800
B18: FINANCE AND INSURANCE | C18: 26 | D18: 150 | E18: 4719400 | F18: 31500
B19: REAL ESTATE AND RENTAL AND LEASING | C19: 7 | D19: 10 | E19: 138200 | F19: 13800
B20: PROFESSIONAL AND TECHNICAL SERVICES | C20: 23 | D20: 90 | E20: 2488600 | F20: 27700
B21: MANAGEMENT OF COMPANIES AND ENTERPRISES | C21: Confidential | D21: Confidential | E21: Confidential | F21: Confidential
B22: ADMINISTRATIVE AND WASTE SERVICES | C22: 22 | D22: 380 | E22: 9953400 | F22: 26200
B23: EDUCATIONAL SERVICES | C23: 7 | D23: 310 | E23: 10117200 | F23: 32600
B24: HEALTH CARE AND SOCIAL ASSISTANCE | C24: 27 | D24: 390 | E24: 11407200 | F24: 29200
B25: ARTS, ENTERTAINMENT, AND RECREATION | C25: Confidential | D25: Confidential | E25: Confidential | F25: Confidential
B26: ACCOMMODATION AND FOOD SERVICES | C26: 27 | D26: 370 | E26: 4657000 | F26: 12600
B27: OTHER SERVICES, EXCEPT PUBLIC ADMIN | C27: 37 | D27: 290 | E27: 14822400 | F27: 51100
B28: UNCLASSIFIED | C28: Data included in Total UI Covered
A30: Local Government
B31: LOCAL GOVERNMENT | C31: 28 | D31: 870 | E31: 23716100 | F31: 27300
B32: EDUCATIONAL SERVICES | C32: 13 | D32: 490 | E32: 16014300 | F32: 32700
B33: HEALTH CARE AND SOCIAL ASSISTANCE | C33: 0 | D33: 0 | E33: 0 | F33: 0
A35: State Government
B36: STATE GOVERNMENT | C36: 9 | D36: 70 | E36: 2741700 | F36: 39200
B37: EDUCATIONAL SERVICES | C37: 0 | D37: 0 | E37: 0 | F37: 0
B38: HEALTH CARE AND SOCIAL ASSISTANCE | C38: 0 | D38: 0 | E38: 0 | F38: 0
A40: Total UI Covered
B41: TOTAL UI COVERED | C41: 442 | D41: 6820 | E41: 239929000 | F41: 35200
A43: Federal Government
B44: FEDERAL GOVERNMENT | C44: 15 | D44: 70 | E44: 2736100 | F44: 39100
A47: *Less than 5 employees unrounded
A75: Telephone: 800-784-0360 | E75: Released | F75: 2015-09-17T12:56:13.250

Sheet Starke (149)
B1: UI COVERED EMPLOYMENT
B2: Starke County
B3: 2014 Annual Averages
A7: NAICS Sectors/Ownership | C7: Number of Reporting Units | D7: Average Number of Workers | E7: Total Annual Wages | F7: Average Annual Wages
A8: Private Ownership Only | C8: not rounded | D8: rounded to tens | E8: rounded to hundreds | F8: rounded to hundreds
B9: AGRICULTURE, FORESTRY, FISHING AND HUNTI | C9: 18 | D9: 100 | E9: 2385200 | F9: 23900
B10: MINING, QUARRYING, AND OIL AND GAS EXTRA | C10: 0 | D10: 0 | E10: 0 | F10: 0
B11: UTILITIES | C11: 0 | D11: 0 | E11: 0 | F11: 0
B12: CONSTRUCTION | C12: 26 | D12: 70 | E12: 1858900 | F12: 26600
B13: MANUFACTURING | C13: 21 | D13: 870 | E13: 32296800 | F13: 37100
B14: WHOLESALE TRADE | C14: 18 | D14: 140 | E14: 7153300 | F14: 51100
B15: RETAIL TRADE | C15: 54 | D15: 600 | E15: 13798100 | F15: 23000
B16: TRANSPORTATION AND WAREHOUSING | C16: 15 | D16: 40 | E16: 1365400 | F16: 34100
B17: INFORMATION | C17: 6 | D17: 40 | E17: 1405100 | F17: 35100
B18: FINANCE AND INSURANCE | C18: 15 | D18: 70 | E18: 2105100 | F18: 30100
B19: REAL ESTATE AND RENTAL AND LEASING | C19: 15 | D19: 30 | E19: 388100 | F19: 12900
B20: PROFESSIONAL AND TECHNICAL SERVICES | C20: 17 | D20: 60 | E20: 1542000 | F20: 25700
B21: MANAGEMENT OF COMPANIES AND ENTERPRISES | C21: 0 | D21: 0 | E21: 0 | F21: 0
B22: ADMINISTRATIVE AND WASTE SERVICES | C22: 9 | D22: 210 | E22: 4881400 | F22: 23200
B23: EDUCATIONAL SERVICES | C23: Confidential | D23: Confidential | E23: Confidential | F23: Confidential
B24: HEALTH CARE AND SOCIAL ASSISTANCE | C24: 23 | D24: 450 | E24: 13953000 | F24: 31000
B25: ARTS, ENTERTAINMENT, AND RECREATION | C25: 5 | D25: 30 | E25: 389500 | F25: 13000
B26: ACCOMMODATION AND FOOD SERVICES | C26: 25 | D26: 530 | E26: 5937700 | F26: 11200
B27: OTHER SERVICES, EXCEPT PUBLIC ADMIN | C27: 25 | D27: 70 | E27: 1908900 | F27: 27300
B28: UNCLASSIFIED | C28: Data included in Total UI Covered
A30: Local Government
B31: LOCAL GOVERNMENT | C31: 13 | D31: 950 | E31: 27892600 | F31: 29400
B32: EDUCATIONAL SERVICES | C32: 3 | D32: 660 | E32: 20347100 | F32: 30800
B33: HEALTH CARE AND SOCIAL ASSISTANCE | C33: 0 | D33: 0 | E33: 0 | F33: 0
A35: State Government
B36: STATE GOVERNMENT | C36: 7 | D36: 50 | E36: 1735700 | F36: 34700
B37: EDUCATIONAL SERVICES | C37: 0 | D37: 0 | E37: 0 | F37: 0
B38: HEALTH CARE AND SOCIAL ASSISTANCE | C38: 0 | D38: 0 | E38: 0 | F38: 0
A40: Total UI Covered
B41: TOTAL UI COVERED | C41: 310 | D41: 4280 | E41: 121023000 | F41: 28300
A43: Federal Government
B44: FEDERAL GOVERNMENT | C44: 7 | D44: 40 | E44: 2009900 | F44: 50200
A47: *Less than 5 employees unrounded
A75: Telephone: 800-784-0360 | E75: Released | F75: 2015-09-17T12:56:38.600

Sheet Steuben (151)
B1: UI COVERED EMPLOYMENT
B2: Steuben County
B3: 2014 Annual Averages
A7: NAICS Sectors/Ownership | C7: Number of Reporting Units | D7: Average Number of Workers | E7: Total Annual Wages | F7: Average Annual Wages
A8: Private Ownership Only | C8: not rounded | D8: rounded to tens | E8: rounded to hundreds | F8: rounded to hundreds
B9: AGRICULTURE, FORESTRY, FISHING AND HUNTI | C9: 15 | D9: 90 | E9: 2734400 | F9: 30400
B10: MINING, QUARRYING, AND OIL AND GAS EXTRA | C10: 5 | D10: 10 | E10: 245500 | F10: 24600
B11: UTILITIES | C11: 3 | D11: 60 | E11: 5007300 | F11: 83500
B12: CONSTRUCTION | C12: 92 | D12: 450 | E12: 18353300 | F12: 40800
B13: MANUFACTURING | C13: 95 | D13: 5130 | E13: 206366600 | F13: 40200
B14: WHOLESALE TRADE | C14: 41 | D14: 250 | E14: 10653200 | F14: 42600
B15: RETAIL TRADE | C15: 160 | D15: 2030 | E15: 40945700 | F15: 20200
B16: TRANSPORTATION AND WAREHOUSING | C16: 42 | D16: 570 | E16: 28907100 | F16: 50700
B17: INFORMATION | C17: 7 | D17: 80 | E17: 4443500 | F17: 55500
B18: FINANCE AND INSURANCE | C18: 37 | D18: 160 | E18: 6065500 | F18: 37900
B19: REAL ESTATE AND RENTAL AND LEASING | C19: 36 | D19: 100 | E19: 2520100 | F19: 25200
B20: PROFESSIONAL AND TECHNICAL SERVICES | C20: 60 | D20: 180 | E20: 6847200 | F20: 38000
B21: MANAGEMENT OF COMPANIES AND ENTERPRISES | C21: 3 | D21: 10 | E21: 810800 | F21: 81100
B22: ADMINISTRATIVE AND WASTE SERVICES | C22: 43 | D22: 1030 | E22: 27253100 | F22: 26500
B23: EDUCATIONAL SERVICES | C23: Confidential | D23: Confidential | E23: Confidential | F23: Confidential
B24: HEALTH CARE AND SOCIAL ASSISTANCE | C24: 49 | D24: 1260 | E24: 35281500 | F24: 28000
B25: ARTS, ENTERTAINMENT, AND RECREATION | C25: 23 | D25: 80 | E25: 1366200 | F25: 17100
B26: ACCOMMODATION AND FOOD SERVICES | C26: 93 | D26: 1540 | E26: 18837000 | F26: 12200
B27: OTHER SERVICES, EXCEPT PUBLIC ADMIN | C27: 78 | D27: 390 | E27: 9092600 | F27: 23300
B28: UNCLASSIFIED | C28: Data included in Total UI Covered
A30: Local Government
B31: LOCAL GOVERNMENT | C31: 35 | D31: 1220 | E31: 36752400 | F31: 30100
B32: EDUCATIONAL SERVICES | C32: 14 | D32: 630 | E32: 20967100 | F32: 33300
B33: HEALTH CARE AND SOCIAL ASSISTANCE | C33: 0 | D33: 0 | E33: 0 | F33: 0
A35: State Government
B36: STATE GOVERNMENT | C36: 9 | D36: 250 | E36: 5868100 | F36: 23500
B37: EDUCATIONAL SERVICES | C37: 0 | D37: 0 | E37: 0 | F37: 0
B38: HEALTH CARE AND SOCIAL ASSISTANCE | C38: 0 | D38: 0 | E38: 0 | F38: 0
A40: Total UI Covered
B41: TOTAL UI COVERED | C41: 930 | D41: 15430 | E41: 485024400 | F41: 31400
A43: Federal Government
B44: FEDERAL GOVERNMENT | C44: 9 | D44: 60 | E44: 3130700 | F44: 52200
A47: *Less than 5 employees unrounded
A75: Telephone: 800-784-0360 | E75: Released | F75: 2015-09-17T12:57:04.920

Sheet Sullivan (153)
B1: UI COVERED EMPLOYMENT
B2: Sullivan County
B3: 2014 Annual Averages
A7: NAICS Sectors/Ownership | C7: Number of Reporting Units | D7: Average Number of Workers | E7: Total Annual Wages | F7: Average Annual Wages
A8: Private Ownership Only | C8: not rounded | D8: rounded to tens | E8: rounded to hundreds | F8: rounded to hundreds
B9: AGRICULTURE, FORESTRY, FISHING AND HUNTI | C9: 13 | D9: 50 | E9: 1833000 | F9: 36700
B10: MINING, QUARRYING, AND OIL AND GAS EXTRA | C10: 5 | D10: 870 | E10: 69272300 | F10: 79600
B11: UTILITIES | C11: 7 | D11: 240 | E11: 19740400 | F11: 82300
B12: CONSTRUCTION | C12: 31 | D12: 100 | E12: 3418900 | F12: 34200
B13: MANUFACTURING | C13: 17 | D13: 760 | E13: 28917600 | F13: 38000
B14: WHOLESALE TRADE | C14: 22 | D14: 170 | E14: 8057100 | F14: 47400
B15: RETAIL TRADE | C15: 52 | D15: 620 | E15: 13429500 | F15: 21700
B16: TRANSPORTATION AND WAREHOUSING | C16: 22 | D16: 140 | E16: 4732300 | F16: 33800
B17: INFORMATION | C17: 7 | D17: 140 | E17: 4897200 | F17: 35000
B18: FINANCE AND INSURANCE | C18: 17 | D18: 110 | E18: 4394300 | F18: 39900
B19: REAL ESTATE AND RENTAL AND LEASING | C19: 7 | D19: 20 | E19: 265600 | F19: 13300
B20: PROFESSIONAL AND TECHNICAL SERVICES | C20: 28 | D20: 120 | E20: 3554600 | F20: 29600
B21: MANAGEMENT OF COMPANIES AND ENTERPRISES | C21: 0 | D21: 0 | E21: 0 | F21: 0
B22: ADMINISTRATIVE AND WASTE SERVICES | C22: 12 | D22: 60 | E22: 1583100 | F22: 26400
B23: EDUCATIONAL SERVICES | C23: 5 | D23: 60 | E23: 1264900 | F23: 21100
B24: HEALTH CARE AND SOCIAL ASSISTANCE | C24: 22 | D24: 350 | E24: 7760600 | F24: 22200
B25: ARTS, ENTERTAINMENT, AND RECREATION | C25: Confidential | D25: Confidential | E25: Confidential | F25: Confidential
B26: ACCOMMODATION AND FOOD SERVICES | C26: 30 | D26: 420 | E26: 4739900 | F26: 11300
B27: OTHER SERVICES, EXCEPT PUBLIC ADMIN | C27: 25 | D27: 100 | E27: 1731300 | F27: 17300
B28: UNCLASSIFIED | C28: Data included in Total UI Covered
A30: Local Government
B31: LOCAL GOVERNMENT | C31: 23 | D31: 1070 | E31: 33190900 | F31: 31000
B32: EDUCATIONAL SERVICES | C32: 2 | D32: 390 | E32: 12538600 | F32: 32200
B33: HEALTH CARE AND SOCIAL ASSISTANCE | C33: 2 | D33: 300 | E33: 13183100 | F33: 43900
A35: State Government
B36: STATE GOVERNMENT | C36: 17 | D36: 680 | E36: 25814200 | F36: 38000
B37: EDUCATIONAL SERVICES | C37: 0 | D37: 0 | E37: 0 | F37: 0
B38: HEALTH CARE AND SOCIAL ASSISTANCE | C38: 0 | D38: 0 | E38: 0 | F38: 0
A40: Total UI Covered
B41: TOTAL UI COVERED | C41: 360 | D41: 6120 | E41: 238950500 | F41: 39000
A43: Federal Government
B44: FEDERAL GOVERNMENT | C44: 12 | D44: 50 | E44: 2118400 | F44: 42400
A47: *Less than 5 employees unrounded
A75: Telephone: 800-784-0360 | E75: Released | F75: 2015-09-17T12:57:52.630

Sheet Switzerland (155)
B1: UI COVERED EMPLOYMENT
B2: Switzerland County
B3: 2014 Annual Averages
A7: NAICS Sectors/Ownership | C7: Number of Reporting Units | D7: Average Number of Workers | E7: Total Annual Wages | F7: Average Annual Wages
A8: Private Ownership Only | C8: not rounded | D8: rounded to tens | E8: rounded to hundreds | F8: rounded to hundreds
B9: AGRICULTURE, FORESTRY, FISHING AND HUNTI | C9: Confidential | D9: Confidential | E9: Confidential | F9: Confidential
B10: MINING, QUARRYING, AND OIL AND GAS EXTRA | C10: Confidential | D10: Confidential | E10: Confidential | F10: Confidential
B11: UTILITIES | C11: 3 | D11: 10 | E11: 495800 | F11: 49600
B12: CONSTRUCTION | C12: 13 | D12: 30 | E12: 1549500 | F12: 51700
B13: MANUFACTURING | C13: 6 | D13: 90 | E13: 2663000 | F13: 29600
B14: WHOLESALE TRADE | C14: Confidential | D14: Confidential | E14: Confidential | F14: Confidential
B15: RETAIL TRADE | C15: 19 | D15: 140 | E15: 2269100 | F15: 16200
B16: TRANSPORTATION AND WAREHOUSING | C16: Confidential | D16: Confidential | E16: Confidential | F16: Confidential
B17: INFORMATION | C17: 4 | D17: 10 | E17: 308200 | F17: 30800
B18: FINANCE AND INSURANCE | C18: 4 | D18: 20 | E18: 613400 | F18: 30700
B19: REAL ESTATE AND RENTAL AND LEASING | C19: 0 | D19: 0 | E19: 0 | F19: 0
B20: PROFESSIONAL AND TECHNICAL SERVICES | C20: 8 | D20: 10 | E20: 228900 | F20: 22900
B21: MANAGEMENT OF COMPANIES AND ENTERPRISES | C21: 0 | D21: 0 | E21: 0 | F21: 0
B22: ADMINISTRATIVE AND WASTE SERVICES | C22: Confidential | D22: Confidential | E22: Confidential | F22: Confidential
B23: EDUCATIONAL SERVICES | C23: Confidential | D23: Confidential | E23: Confidential | F23: Confidential
B24: HEALTH CARE AND SOCIAL ASSISTANCE | C24: 7 | D24: 110 | E24: 4039100 | F24: 36700
B25: ARTS, ENTERTAINMENT, AND RECREATION | C25: Confidential | D25: Confidential | E25: Confidential | F25: Confidential
B26: ACCOMMODATION AND FOOD SERVICES | C26: 18 | D26: 120 | E26: 2353300 | F26: 19600
B27: OTHER SERVICES, EXCEPT PUBLIC ADMIN | C27: 11 | D27: 60 | E27: 1036400 | F27: 17300
B28: UNCLASSIFIED | C28: Data included in Total UI Covered
A30: Local Government
B31: LOCAL GOVERNMENT | C31: 12 | D31: 410 | E31: 12607800 | F31: 30800
B32: EDUCATIONAL SERVICES | C32: 5 | D32: 250 | E32: 7831600 | F32: 31300
B33: HEALTH CARE AND SOCIAL ASSISTANCE | C33: 0 | D33: 0 | E33: 0 | F33: 0
A35: State Government
B36: STATE GOVERNMENT | C36: 7 | D36: 30 | E36: 1468600 | F36: 49000
B37: EDUCATIONAL SERVICES | C37: 0 | D37: 0 | E37: 0 | F37: 0
B38: HEALTH CARE AND SOCIAL ASSISTANCE | C38: 0 | D38: 0 | E38: 0 | F38: 0
A40: Total UI Covered
B41: TOTAL UI COVERED | C41: 122 | D41: 2060 | E41: 61735400 | F41: 30000
A43: Federal Government
B44: FEDERAL GOVERNMENT | C44: 6 | D44: 20 | E44: 949200 | F44: 47500
A47: *Less than 5 employees unrounded
A75: Telephone: 800-784-0360 | E75: Released | F75: 2015-09-17T12:58:28.250

Sheet Tippecanoe (157)
B1: UI COVERED EMPLOYMENT
B2: Tippecanoe County
B3: 2014 Annual Averages
A7: NAICS Sectors/Ownership | C7: Number of Reporting Units | D7: Average Number of Workers | E7: Total Annual Wages | F7: Average Annual Wages
A8: Private Ownership Only | C8: not rounded | D8: rounded to tens | E8: rounded to hundreds | F8: rounded to hundreds
B9: AGRICULTURE, FORESTRY, FISHING AND HUNTI | C9: 35 | D9: 280 | E9: 10142600 | F9: 36200
B10: MINING, QUARRYING, AND OIL AND GAS EXTRA | C10: Confidential | D10: Confidential | E10: Confidential | F10: Confidential
B11: UTILITIES | C11: 5 | D11: 90 | E11: 6678500 | F11: 74200
B12: CONSTRUCTION | C12: 289 | D12: 2700 | E12: 117656100 | F12: 43600
B13: MANUFACTURING | C13: 118 | D13: 14280 | E13: 931344300 | F13: 65200
B14: WHOLESALE TRADE | C14: 151 | D14: 1650 | E14: 90880000 | F14: 55100
B15: RETAIL TRADE | C15: 498 | D15: 9250 | E15: 214036800 | F15: 23100
B16: TRANSPORTATION AND WAREHOUSING | C16: 93 | D16: 1780 | E16: 71786600 | F16: 40300
B17: INFORMATION | C17: 40 | D17: 830 | E17: 30762400 | F17: 37100
B18: FINANCE AND INSURANCE | C18: 215 | D18: 1910 | E18: 102780400 | F18: 53800
B19: REAL ESTATE AND RENTAL AND LEASING | C19: 178 | D19: 1120 | E19: 39286600 | F19: 35100
B20: PROFESSIONAL AND TECHNICAL SERVICES | C20: 341 | D20: 2420 | E20: 145715500 | F20: 60200
B21: MANAGEMENT OF COMPANIES AND ENTERPRISES | C21: 17 | D21: 200 | E21: 16782300 | F21: 83900
B22: ADMINISTRATIVE AND WASTE SERVICES | C22: 160 | D22: 4890 | E22: 117144000 | F22: 24000
B23: EDUCATIONAL SERVICES | C23: 33 | D23: 300 | E23: 5850500 | F23: 19500
B24: HEALTH CARE AND SOCIAL ASSISTANCE | C24: 284 | D24: 10270 | E24: 430231600 | F24: 41900
B25: ARTS, ENTERTAINMENT, AND RECREATION | C25: 56 | D25: 510 | E25: 6224700 | F25: 12200
B26: ACCOMMODATION AND FOOD SERVICES | C26: 383 | D26: 8130 | E26: 116891100 | F26: 14400
B27: OTHER SERVICES, EXCEPT PUBLIC ADMIN | C27: 295 | D27: 2030 | E27: 61055600 | F27: 30100
B28: UNCLASSIFIED | C28: Data included in Total UI Covered
A30: Local Government
B31: LOCAL GOVERNMENT | C31: 28 | D31: 5320 | E31: 194179700 | F31: 36500
B32: EDUCATIONAL SERVICES | C32: 7 | D32: 3320 | E32: 116784600 | F32: 35200
B33: HEALTH CARE AND SOCIAL ASSISTANCE | C33: 1 | D33: 10 | E33: 151400 | F33: 15100
A35: State Government
B36: STATE GOVERNMENT | C36: 22 | D36: 12010 | E36: 687225500 | F36: 57200
B37: EDUCATIONAL SERVICES | C37: 3 | D37: 11450 | E37: 667557300 | F37: 58300
B38: HEALTH CARE AND SOCIAL ASSISTANCE | C38: 1 | D38: 250 | E38: 8217500 | F38: 32900
A40: Total UI Covered
B41: TOTAL UI COVERED | C41: 3242 | D41: 79990 | E41: 3398459900 | F41: 42500
A43: Federal Government
B44: FEDERAL GOVERNMENT | C44: 25 | D44: 460 | E44: 28618400 | F44: 62200
A47: *Less than 5 employees unrounded
A75: Telephone: 800-784-0360 | E75: Released | F75: 2015-09-17T12:59:02.520

Sheet Tipton (159)
B1: UI COVERED EMPLOYMENT
B2: Tipton County
B3: 2014 Annual Averages
B4: 2014 Annual Averages
A7: NAICS Sectors/Ownership | C7: Number of Reporting Units | D7: Average Number of Workers | E7: Total Annual Wages | F7: Average Annual Wages
A8: Private Ownership Only | C8: not rounded | D8: rounded to tens | E8: rounded to hundreds | F8: rounded to hundreds
B9: AGRICULTURE, FORESTRY, FISHING AND HUNTI | C9: 26 | D9: 390 | E9: 18610500 | F9: 47700
B10: MINING, QUARRYING, AND OIL AND GAS EXTRA | C10: Confidential | D10: Confidential | E10: Confidential | F10: Confidential
B11: UTILITIES | C11: 0 | D11: 0 | E11: 0 | F11: 0
B12: CONSTRUCTION | C12: 46 | D12: 340 | E12: 14391600 | F12: 42300
B13: MANUFACTURING | C13: 22 | D13: 950 | E13: 45953500 | F13: 48400
B14: WHOLESALE TRADE | C14: 19 | D14: 150 | E14: 7021000 | F14: 46800
B15: RETAIL TRADE | C15: 39 | D15: 410 | E15: 12340300 | F15: 30100
B16: TRANSPORTATION AND WAREHOUSING | C16: 10 | D16: 20 | E16: 780000 | F16: 39000
B17: INFORMATION | C17: 6 | D17: 20 | E17: 768700 | F17: 38400
B18: FINANCE AND INSURANCE | C18: 15 | D18: 100 | E18: 4600200 | F18: 46000
B19: REAL ESTATE AND RENTAL AND LEASING | C19: 4 | D19: 10 | E19: 171400 | F19: 17100
B20: PROFESSIONAL AND TECHNICAL SERVICES | C20: 25 | D20: 140 | E20: 7543200 | F20: 53900
B21: MANAGEMENT OF COMPANIES AND ENTERPRISES | C21: 3 | D21: 40 | E21: 2397300 | F21: 59900
B22: ADMINISTRATIVE AND WASTE SERVICES | C22: 9 | D22: 40 | E22: 972800 | F22: 24300
B23: EDUCATIONAL SERVICES | C23: Confidential | D23: Confidential | E23: Confidential | F23: Confidential
B24: HEALTH CARE AND SOCIAL ASSISTANCE | C24: 16 | D24: 470 | E24: 18243800 | F24: 38800
B25: ARTS, ENTERTAINMENT, AND RECREATION | C25: Confidential | D25: Confidential | E25: Confidential | F25: Confidential
B26: ACCOMMODATION AND FOOD SERVICES | C26: 21 | D26: 310 | E26: 3137500 | F26: 10100
B27: OTHER SERVICES, EXCEPT PUBLIC ADMIN | C27: 21 | D27: 90 | E27: 2140200 | F27: 23800
B28: UNCLASSIFIED | C28: Data included in Total UI Covered
A30: Local Government
B31: LOCAL GOVERNMENT | C31: 15 | D31: 720 | E31: 20493800 | F31: 28500
B32: EDUCATIONAL SERVICES | C32: 6 | D32: 390 | E32: 12239800 | F32: 31400
B33: HEALTH CARE AND SOCIAL ASSISTANCE | C33: 0 | D33: 0 | E33: 0 | F33: 0
A35: State Government
B36: STATE GOVERNMENT | C36: 7 | D36: 40 | E36: 1575200 | F36: 39400
B37: EDUCATIONAL SERVICES | C37: 0 | D37: 0 | E37: 0 | F37: 0
B38: HEALTH CARE AND SOCIAL ASSISTANCE | C38: 0 | D38: 0 | E38: 0 | F38: 0
A40: Total UI Covered
